Workbook

Sheet Счет
A1: Управляющий счетом: | G1: Немзоров Илья. | I1: ICQ#: 285761677 | K1: mail: ilya_nemzorov@mail.ru | P1: ='НХЛ Ставки'!Q2 -> Доходность первоначального банка % | U1: ='НХЛ Ставки'!R2 -> 93.44957637
A2: Фактическая сумма на счете р. | D2: =30000+'НХЛ Ставки'!D3 -> 58034.87291 | F2: Прибыль р. | G2: ='НХЛ Ставки'!F1 -> 28034.87291 | I2: Оборот р. : | J2: ='НХЛ Ставки'!H1 -> 202310 | K2: Количестов сыгранных экспресов | M2: ='НХЛ Ставки'!K1 -> 273 | N2: Количество сыгранных одиночек | P2: ='НХЛ Ставки'!N1 -> 169 | Q2: РОЙ Одиноч. Ставок % | S2: ='НХЛ Ставки'!P1 -> -3.964108985 | U2: РОЙ Двойника % | W2: ='НХЛ Ставки'!R1 -> 15.46849033 | X2: Общий ROE % | Y2: ='НХЛ Ставки'!U1 -> 13.85738367
A4: Ставки на спорт на общем счете. "ПАММ СЧЕТ"
E12: Счет. 12.12.2013г. - 10.01.2014г. Ставки от 1 до 148. | O12: Счет. 10.01.2014г.по текущий день
E14: Счет. 12.12.2013г. - 10.01.2014г. | H14: график | I14: Ставки от 1 до 148. | P14: Закрыт
A15: Отчетный период: 12.12.2013г. - 10.01.2014г. Счет 9740;7919; увелечины на 50%. Доходность после списания комисии: 35.3% Снята комиссия 30% с прибыли. (4543р.) | E15: Дата вложения средств. | F15: Номер счета клиента | G15: Сумма Начальных инвестиций | H15: Сумма начальных инвестиций + реинвестиций | I15: Доля от портфеля % | J15: Фактическая сумма на общем счете | K15: Доходность | L15: Коммисия с прибыли 30% | M15: Доходность после снятия комисии % | N15: Доходность после вычета комисии р. | O15: Выплаченно клиенту | P15: Выполоченно Коммисии с прибыли | Q15: Рабочий счет на следущий отчетный период
H16: =SUM(H17:H18) -> 30000 | I16: =SUM(I17:I18) -> 100 | J16: 45103 | K16: =J16-H16 -> 15103 | Q16: =SUM(Q17:Q18) -> 42837.5
E17: 12.12.2013г. | F17: 9740 | G17: 30000 | H17: 30000 | I17: =(H17/H16)*100 -> 100 | J17: =J16*(I17/100) -> 45103 | K17: =K16*(I17/100) -> 15103 | L17: =IF(K17>0,(K17*0.3),0) -> 4530.9 | M17: =(N17/H17)*100 -> 35.24033333 | N17: =K17-L17 -> 10572.1 | O17: 0 | P17: 2265.5 | Q17: =J17-O17-P17 -> 42837.5
H18: 0 | I18: =(H18/H16)*100 -> 0 | J18: =J16*(I18/100) -> 0 | K18: =K16*(I18/100) -> 0 | L18: =IF(K18>0,(K18*0.3),0) -> 0 | N18: =K18-L18 -> 0 | O18: 0 | P18: 0 | Q18: =J18-O18-P18 -> 0
A20: Счет № 9740 Реинвестировал доход. Счет № 7919 Реинвестировал доход. Открыт новый счет № 7306. (4543,1р.) Цель увеличить счет 9740 на 50% (до 60858р.) | E20: Счет. 10.01.2014г.по текущий день | H20: график | I20: Ставки от 149 по текущей. | P20: Рабочий
E21: Дата вложения средств. | F21: Номер счета клиента | G21: Сумма Начальных инвестиций | H21: Сумма начальных инвестиций + реинвестиций | I21: Доля от портфеля % | J21: Фактическая сумма на общем счете | K21: Прибыль и убыток банка по счетам | L21: Коммисия с прибыли 30% | M21: Доходность после снятия комисии % | N21: Доходность после снятия комисии р. | O21: Выплаченно клиенту | P21: Выполоченно Коммисии с прибыли | Q21: Рабочий счет на следущий отчетный период
G22: =SUM(G23:G25) -> 34543.1 | H22: =SUM(H23:H25) -> 45115.1 | I22: =SUM(I23:I25) -> 100 | J22: =D2 -> 58034.87291 | K22: =J22-H22 -> 12919.77291 | Q22: =SUM(Q23:Q25) -> 58034.87291
E23: 12.12.2013г. | F23: 9740 | G23: 30000 | H23: 40572 | I23: =(H23/H22)*100 -> 89.9299791 | J23: =J22*(I23/100) -> 52190.74908 | K23: =K22*(I23/100) -> 11618.74908 | L23: =IF(K23>0,(K23*0.3),0) -> 3485.624724 | M23: =(N23/H23)*100 -> 20.04615093 | N23: =K23-L23 -> 8133.124355 | O23: 0 | P23: 0 | Q23: =J23-O23-P23 -> 52190.74908
E24: 10.01.2014г. | F24: 7306 Личный | G24: 4543.1 | H24: 4543.1 | I24: =(H24/H22)*100 -> 10.0700209 | J24: =J22*(I24/100) -> 5844.123833 | K24: =K22*(I24/100) -> 1301.023833 | L24: =IF(K24>0,(K24*0),0) -> 0 | M24: =(N24/H24)*100 -> 28.63735847 | N24: =K24-L24 -> 1301.023833 | O24: 0 | P24: 0 | Q24: =J24-O24-P24 -> 5844.123833
H25: 0 | I25: =(H25/H22)*100 -> 0 | J25: =J22*(I25/100) -> 0 | K25: =K22*(I25/100) -> 0 | L25: =IF(K25>0,(K25*0.3),0) -> 0 | N25: =K25-L25 -> 0 | O25: 0 | P25: 0 | Q25: =J25-O25-P25 -> 0

Sheet НХЛ Ставки
A1: Фактическая сумма на счете р. | D1: =Счет!D2 -> 58034.87291 | E1: Прибыль р. | F1: =D3 -> 28034.87291 | G1: Оборот р. : | H1: =K3+H3 -> 202310 | I1: Количество сыгранных двойников шт. | K1: =E3 -> 273 | L1: Количество сыгранных одиночек шт. | N1: =F3 -> 169 | O1: ROE Одиноч. Ставок % | P1: =A3 -> -3.964108985 | Q1: ROE Двойника % | R1: =C3 -> 15.46849033 | S1: Общий ROE % | U1: =(F1/H1)*100 -> 13.85738367
A2: РОЙ Одиночных ставок | C2: РОЙ Двойника | D2: Прибыль | E2: Количестов сыгранных экспресов | F2: Количество сыгранных одиночек | G2: Ср.коэф. Двойника | H2: Сумма ставок одиноч | J2: Ср. сумма ставки двойника | K2: Сумма ставок двойника | M2: Совпадение одиноч. Кол.( ничьи и все остальное | N2: Совпадение двоник. Кол. | O2: Сумма выигрыша | P2: Сумма выигрыша двойника | Q2: Доходность первоначального банка % | R2: =(D3/30000)*100 -> 93.44957637
A3: =((O3-H3)/H3)*100 -> -3.964108985 | C3: =((P3-K3)/K3)*100 -> 15.46849033 | D3: =(O3+P3)-(H3+K3) -> 28034.87291 | E3: =SUM(A7:A1076) -> 273 | F3: =SUM(B7:B927)+105 -> 169 | G3: =AVERAGE(G7:G340) -> 3.14659537 | H3: =SUM(I7:I631) -> 16773 | J3: =K3/E3 -> 679.6227106 | K3: =SUM(L7:L703) -> 185537 | M3: =SUM(M7:M580) -> 347 | N3: =SUM(N7:N530) -> 106 | O3: =SUM(O7:O672) -> 16108.1 | P3: =SUM(P7:P644) -> 214236.7729 | Q3: Движение счета
A4: Сыгр. Двойники | B4: Сыгр. Одночки | C4: Дата | D4: Наименование команд | E4: Ставка | F4: Коэф. Одиночный | G4: Коэф экспреса | H4: Сумма ставки одиночного события | I4: Сумма ставки сыгранного одночного | J4: Рекомедованная сумма ставки | K4: Общая сумма ставки | L4: Сумма ставки сыгранного двойника | M4: Совпадение одиноч. % | N4: Совпадение экспреса % | O4: Выигрышодиноч | P4: Выигрыш двойника | Q4: Начальный банк | R4: Фактический банк | S4: № ставки | T4: Доходность %
M5: =AVERAGE(M7:M617,)*100 -> 61.02819237 | N5: =(N3/E3)*100 -> 38.82783883 | Q5: 30000 | R5: 30000 | T5: 0 | AA5: Суссия + или -
A7: 1 | C7: 2013-12-11 | D7: Нью-Джерси Девилз @ Коламбус Блю Джекетс | E7: Меньше 5.5 | F7: 1.5 | G7: 1.798 | J7: =2000/G7 -> 1112.347052 | K7: 1000 | L7: =A7*K7 -> 1000 | M7: 1 | N7: =IF(M7+M8=2,1,0) -> 1 | O7: =F7*H7*M7 -> 0 | P7: =G7*L7*N7 -> 1798 | Q7: 30000 | R7: =R5-L7+P7 -> 30798 | S7: =A7 -> 1 | T7: =((R7-Q7)/Q7)*100 -> 2.66 | U7: =_xlfn.CEILING.PRECISE(R5,5000) -> 30000 | AA7: 8 | AB7: 1
C8: 2013-12-11 | D8: Лос-Анджелес Кингз @ Монреаль Канадиенс | E8: Меньше 5.5 | F8: 1.46 | M8: 1 | O8: =F8*H8*M8 -> 0 | AA8: 8 | AB8: 1
A9: 1 | C9: 2013-12-11 | D9: Сент-Луис Блюз @ Виннипег Джетс | E9: Меньше 5.5 | F9: 1.87 | G9: =F9*F10 -> 3.9644 | J9: =V9/G9 -> 454.0409646 | K9: 1000 | L9: =A9*K9 -> 1000 | M9: 1 | N9: =IF(M9+M10=2,1,0) -> 0 | O9: 0 | P9: =G9*L9*N9 -> 0 | Q9: 30000 | R9: =R7-L9+P9 -> 29798 | S9: =A7+A9 -> 2 | T9: =((R9-Q9)/Q9)*100 -> -0.6733333333 | U9: =_xlfn.CEILING.PRECISE(R7,5000) -> 35000 | V9: =U7*0.06 -> 1800 | Y9: =IF(T9<T7,(T9-T7),0) -> -3.333333333 | AA9: 8 | AB9: 1
C10: 2013-12-11 | D10: Финикс Койотс @ Колорадо Эвеланш | E10: Больше 5.5 | F10: 2.12 | I10: =H10*B10 -> 0 | M10: 0 | O10: 0 | AA10: 8 | AB10: 1
A11: 1 | C11: 2013-12-11 | D11: Оттава Сенаторз @ Баффало Сейбрз | E11: Меньше 5.5 | F11: 1.7 | G11: =F11*F12 -> 3.1161 | I11: 0 | J11: =V11/G11 -> 673.9193222 | K11: 1000 | L11: =A11*K11 -> 1000 | M11: 1 | N11: =IF(M11+M12=2,1,0) -> 0 | O11: 0 | P11: =G11*L11*N11 -> 0 | Q11: 30000 | R11: =R9-L11+P11 -> 28798 | S11: =S9+A11 -> 3 | T11: =((R11-Q11)/Q11)*100 -> -4.006666667 | U11: =_xlfn.CEILING.PRECISE(R9,5000) -> 30000 | V11: =U9*0.06 -> 2100 | Y11: =IF(T11<T9,(T11-T9),0) -> -3.333333333 | Z11: -7 | AA11: 8 | AB11: 1
C12: 2013-12-11 | D12: Тампа Бэй Лайтнинг @ Вашингтон Кэпиталз | E12: Меньше 5.5 | F12: 1.833 | I12: 0 | M12: 0 | O12: 0 | AA12: 8 | AB12: 1
A13: 1 | C13: 2013-12-11 | D13: Нэшвилл Предаторз @ Нью-Йорк Рейнджерс | E13: Меньше 5.5 | F13: 1.55 | G13: =F13*F14 -> 3.286 | I13: 0 | J13: =V13/G13 -> 547.778454 | K13: 1000 | L13: =A13*K13 -> 1000 | M13: 1 | N13: =IF(M13+M14=2,1,0) -> 1 | O13: 0 | P13: =G13*L13*N13 -> 3286 | Q13: 30000 | R13: =R11-L13+P13 -> 31084 | S13: =S11+A13 -> 4 | T13: =((R13-Q13)/Q13)*100 -> 3.613333333 | U13: =_xlfn.CEILING.PRECISE(R11,5000) -> 30000 | V13: =U11*0.06 -> 1800 | Y13: =IF(T13<T11,(T13-T11),0) -> 0 | AA13: 8 | AB13: 1
C14: 2013-12-11 | D14: Нью-Йорк Айлендерс @ Сан-Хосе Шаркс | E14: Меньше 5.5 | F14: 2.12 | I14: 0 | M14: 1 | O14: 0 | AA14: 8 | AB14: 1
A15: 1 | C15: 2013-12-11 | D15: Чикаго Блэкхокс @ Даллас Старз | E15: Больше 5.5 | F15: 1.86 | G15: =F15*F16 -> 3.1992 | I15: 0 | J15: =V15/G15 -> 562.6406602 | K15: 1000 | L15: =A15*K15 -> 1000 | M15: 1 | N15: =IF(M15+M16=2,1,0) -> 1 | O15: 0 | P15: =G15*L15*N15 -> 3199.2 | Q15: 30000 | R15: =R13-L15-I15-I16+P15+O15+O16 -> 33283.2 | S15: =S13+A15 -> 5 | T15: =((R15-Q15)/Q15)*100 -> 10.944 | U15: =_xlfn.CEILING.PRECISE(R13,5000) -> 35000 | V15: =U13*0.06 -> 1800 | Y15: =IF(T15<T13,(T15-T13),0) -> 0 | AA15: 8 | AB15: 1
C16: 2013-12-11 | D16: Бостон Брюинз @ Калгари Флеймз | E16: Меньше 5.5 | F16: 1.72 | I16: 0 | M16: 1 | O16: 0 | AA16: 8 | AB16: 1
A17: 1 | C17: 2013-12-12 | D17: Филадельфия Флайерз @ Чикаго Блэкхокс | E17: Больше 5.5 | F17: 2.04 | G17: =F17*F18 -> 3.2946 | I17: 0 | J17: =V17/G17 -> 637.4066655 | K17: 1000 | L17: =A17*K17 -> 1000 | M17: 1 | N17: =IF(M17+M18=2,1,0) -> 1 | O17: 0 | P17: =G17*L17*N17 -> 3294.6 | Q17: 30000 | R17: =R15-L17-I17-I18+P17+O17+O18 -> 35577.8 | S17: 6 | T17: =((R17-Q17)/Q17)*100 -> 18.59266667 | U17: =_xlfn.CEILING.PRECISE(R15,5000) -> 35000 | V17: =U15*0.06 -> 2100 | Y17: =IF(T17<T15,(T17-T15),0) -> 0 | AA17: 4 | AB17: 1
C18: 2013-12-12 | D18: Миннесота Уайлд @ Анахайм Дакс | E18: Меньше 5.5 | F18: 1.615 | I18: 0 | M18: 1 | O18: 0 | AA18: 4 | AB18: 1
A19: 1 | C19: 2013-12-12 | D19: Лос-Анджелес Кингз @ Торонто Мэйпл Лифс | E19: Меньше 5.5 | F19: 1.615 | G19: =F19*F20 -> 3.3592 | I19: 0 | J19: =V19/G19 -> 625.148845 | K19: 1000 | L19: =A19*K19 -> 1000 | M19: 1 | N19: =IF(M19+M20=2,1,0) -> 0 | O19: 0 | P19: =G19*L19*N19 -> 0 | Q19: 30000 | R19: =R17-L19-I19-I20+P19+O19+O20 -> 34577.8 | S19: 7 | T19: =((R19-Q19)/Q19)*100 -> 15.25933333 | U19: =_xlfn.CEILING.PRECISE(R17,5000) -> 40000 | V19: =U17*0.06 -> 2100 | Y19: =IF(T19<T17,(T19-T17),0) -> -3.333333333 | AA19: 4 | AB19: 1
C20: 2013-12-12 | D20: Нью-Йорк Айлендерс @ Финикс Койотс | E20: Меньше 5.5 | F20: 2.08 | I20: 0 | M20: 0 | O20: 0 | AA20: 4 | AB20: 1
A21: 1 | C21: 2013-12-12 | D21: Монреаль Канадиенс @ Филадельфия Флайерз | E21: Больше 5.5 | F21: 2.56 | G21: 4.8384 | I21: 0 | J21: =V21/G21 -> 496.031746 | K21: 1000 | L21: =A21*K21 -> 1000 | M21: 0 | N21: =IF(M21+M22=2,1,0) -> 0 | O21: 0 | P21: =G21*L21*N21 -> 0 | Q21: 30000 | R21: =R19-L21-I21-I22+P21+O21+O22 -> 33577.8 | S21: 8 | T21: =((R21-Q21)/Q21)*100 -> 11.926 | U21: =_xlfn.CEILING.PRECISE(R19,5000) -> 35000 | V21: =U19*0.06 -> 2400 | Y21: =IF(T21<T19,(T21-T19),0) -> -3.333333333 | AA21: 4 | AB21: 1
C22: 2013-12-12 | D22: Торонто Мэйпл Лифс @ Сент-Луис Блюз | E22: Меньше 5.5 | F22: 1.89 | I22: 0 | M22: 0 | O22: 0 | AA22: 4 | AB22: 1
A23: 1 | C23: 2013-12-12 | D23: Коламбус Блю Джекетс @ Нью-Йорк Рейнджерс | E23: Меньше 5.5 | F23: 1.6 | G23: 2.88 | I23: 0 | J23: =V23/G23 -> 729.1666667 | K23: 1000 | L23: =A23*K23 -> 1000 | M23: 0 | N23: =IF(M23+M24=2,1,0) -> 0 | O23: 0 | P23: =G23*L23*N23 -> 0 | Q23: 30000 | R23: =R21-L23-I23-I24+P23+O23+O24 -> 32577.8 | S23: 9 | T23: =((R23-Q23)/Q23)*100 -> 8.592666667 | U23: =_xlfn.CEILING.PRECISE(R21,5000) -> 35000 | V23: =U21*0.06 -> 2100 | Y23: =IF(T23<T21,(T23-T21),0) -> -3.333333333 | AA23: 4 | AB23: 1
C24: 2013-12-12 | D24: Даллас Старз @ Нэшвилл Предаторз | E24: Меньше 5.5 | F24: 1.8 | I24: 0 | M24: 1 | O24: 0 | AA24: 4 | AB24: 1
A25: 1 | C25: 2013-12-12 | D25: Колорадо Эвеланш @ Виннипег Джетс | E25: Меньше 5.5 | F25: 1.75 | G25: 3.2725 | I25: 0 | J25: =V25/G25 -> 641.7112299 | K25: 1000 | L25: =A25*K25 -> 1000 | M25: 0 | N25: =IF(M25+M26=2,1,0) -> 0 | O25: 0 | P25: =G25*L25*N25 -> 0 | Q25: 30000 | R25: =R23-L25-I25-I26+P25+O25+O26 -> 31577.8 | S25: 10 | T25: =((R25-Q25)/Q25)*100 -> 5.259333333 | U25: =_xlfn.CEILING.PRECISE(R23,5000) -> 35000 | V25: =U23*0.06 -> 2100 | Y25: =IF(T25<T23,(T25-T23),0) -> -3.333333333 | Z25: -13 | AA25: 4 | AB25: 1
C26: 2013-12-12 | D26: Каролина Харрикейнз @ Калгари Флеймз | E26: Меньше 5.5 | F26: 1.87 | I26: 0 | M26: 1 | O26: 0 | AA26: 4 | AB26: 1
A27: 1 | C27: 2013-12-13 | D27: Баффало Сейбрз @ Оттава Сенаторз | E27: Меньше 5.5 | F27: 1.71 | G27: 2.7873 | I27: 0 | J27: =V27/G27 -> 753.4172855 | K27: 1000 | L27: =A27*K27 -> 1000 | M27: 1 | N27: =IF(M27+M28=2,1,0) -> 1 | O27: 0 | P27: =G27*L27*N27 -> 2787.3 | Q27: 30000 | R27: =R25-L27-I27-I28+P27+O27+O28 -> 33365.1 | S27: 11 | T27: =((R27-Q27)/Q27)*100 -> 11.217 | U27: =_xlfn.CEILING.PRECISE(R25,5000) -> 35000 | V27: =U25*0.06 -> 2100 | Y27: =IF(T27<T25,(T27-T25),0) -> 0 | AA27: 8 | AB27: 1
C28: 2013-12-13 | D28: Миннесота Уайлд @ Сан-Хосе Шаркс | E28: Меньше 5.5 | F28: 1.63 | I28: 0 | M28: 1 | O28: 0 | AA28: 8 | AB28: 1
A29: 1 | C29: 2013-12-13 | D29: Детройт Ред Уингз @ Тампа Бэй Лайтнинг | E29: Меньше 5.5 | F29: 1.75 | G29: =F29*F30 -> 3.99 | I29: 0 | J29: =V29/G29 -> 526.3157895 | K29: 100 | L29: =A29*K29 -> 100 | M29: 1 | N29: =IF(M29+M30=2,1,0) -> 1 | O29: 0 | P29: =G29*L29*N29 -> 399 | Q29: 30000 | R29: =R27-L29-I29-I30+P29+O29+O30 -> 33664.1 | S29: 12 | T29: =((R29-Q29)/Q29)*100 -> 12.21366667 | U29: =_xlfn.CEILING.PRECISE(R27,5000) -> 35000 | V29: =U27*0.06 -> 2100 | Y29: =IF(T29<T27,(T29-T27),0) -> 0 | AA29: 8 | AB29: 1
C30: 2013-12-13 | D30: Бостон Брюинз @ Эдмонтон Ойлерз | E30: Больше 5.5 | F30: 2.28 | I30: 0 | M30: 1 | O30: 0 | AA30: 8 | AB30: 1
A31: 1 | C31: 2013-12-14 | D31: Нью-Джерси Девилз @ Питтсбург Пингвинз | E31: Меньше 5.5 | F31: 1.63 | G31: 3.0807 | I31: 0 | J31: =V31/G31 -> 681.6632584 | K31: 1000 | L31: =A31*K31 -> 1000 | M31: 1 | N31: =IF(M31+M32=2,1,0) -> 1 | O31: 0 | P31: =G31*L31*N31 -> 3080.7 | Q31: 30000 | R31: =R29-L31-I31-I32+P31+O31+O32 -> 35744.8 | S31: 13 | T31: 19.14933333 | U31: =_xlfn.CEILING.PRECISE(R29,5000) -> 35000 | V31: =U29*0.06 -> 2100 | Y31: =IF(T31<T29,(T31-T29),0) -> 0 | AA31: 8 | AB31: 1
C32: 2013-12-14 | D32: Эдмонтон Ойлерз @ Ванкувер Кэнакс | E32: Меньше 5.5 | F32: 1.89 | I32: 0 | M32: 1 | O32: 0 | AA32: 8 | AB32: 1
A33: 1 | C33: 2013-12-14 | D33: Вашингтон Кэпиталз @ Флорида Пантерз | E33: Больше 5.5 | F33: 2.02 | G33: 3.333 | I33: 0 | J33: =V33/G33 -> 630.0630063 | K33: 1000 | L33: =A33*K33 -> 1000 | M33: 0 | N33: =IF(M33+M34=2,1,0) -> 0 | O33: 0 | P33: =G33*L33*N33 -> 0 | Q33: 30000 | R33: =R31-L33-I33-I34+P33+O33+O34 -> 34744.8 | S33: 14 | T33: 15.816 | U33: =_xlfn.CEILING.PRECISE(R31,5000) -> 40000 | V33: =U31*0.06 -> 2100 | Y33: =IF(T33<T31,(T33-T31),0) -> -3.333333333 | AA33: 8 | AB33: 1
C34: 2013-12-14 | D34: Лос-Анджелес Кингз @ Оттава Сенаторз | E34: Меньше 5.5 | F34: 1.65 | I34: 0 | M34: 0 | O34: 0 | AA34: 8 | AB34: 1
A35: 1 | C35: 2013-12-15 | D35: Калгари Флеймз @ Баффало Сейбрз | E35: Меньше 5.5 | F35: 1.72 | G35: 3.4056 | I35: 0 | J35: =V35/G35 -> 704.721635 | K35: 1000 | L35: =A35*K35 -> 1000 | M35: 1 | N35: =IF(M35+M36=2,1,0) -> 0 | O35: 0 | P35: =G35*L35*N35 -> 0 | Q35: 30000 | R35: =R33-L35-I35-I36+P35+O35+O36 -> 33744.8 | S35: 15 | T35: 12.48266667 | U35: =_xlfn.CEILING.PRECISE(R33,5000) -> 35000 | V35: =U33*0.06 -> 2400 | Y35: =IF(T35<T33,(T35-T33),0) -> -3.333333333 | Z35: -6 | AA35: 8 | AB35: 1
C36: 2013-12-15 | D36: Даллас Старз @ Виннипег Джетс | E36: Меньше 5.5 | F36: 1.98 | I36: 0 | M36: 0 | O36: 0 | AA36: 8 | AB36: 1
A37: 1 | C37: 2013-12-15 | D37: Чикаго Блэкхокс @ Торонто Мэйпл Лифс | E37: Больше 5.5 | F37: 1.89 | G37: 3.591 | I37: 0 | J37: =V37/G37 -> 584.7953216 | K37: 1000 | L37: =A37*K37 -> 1000 | M37: 1 | N37: =IF(M37+M38=2,1,0) -> 1 | O37: 0 | P37: =G37*L37*N37 -> 3591 | Q37: 30000 | R37: =R35-L37-I37-I38+P37+O37+O38 -> 36335.8 | S37: 16 | T37: 21.11933333 | U37: =_xlfn.CEILING.PRECISE(R35,5000) -> 35000 | V37: =U35*0.06 -> 2100 | Y37: =IF(T37<T35,(T37-T35),0) -> 0 | AA37: 8 | AB37: 1
C38: 2013-12-15 | D38: Каролина Харрикейнз @ Финикс Койотс | E38: Меньше 5.5 | F38: 1.9 | I38: 0 | M38: 1 | O38: 0 | AA38: 8 | AB38: 1
A39: 1 | C39: 2013-12-15 | D39: Монреаль Канадиенс @ Нью-Йорк Айлендерс | E39: Меньше 5.5 | F39: 1.75 | G39: 3.325 | I39: 0 | J39: =V39/G39 -> 631.5789474 | K39: 1000 | L39: =A39*K39 -> 1000 | M39: 1 | N39: =IF(M39+M40=2,1,0) -> 1 | O39: 0 | P39: =G39*L39*N39 -> 3325 | Q39: 30000 | R39: =R37-L39-I39-I40+P39+O39+O40 -> 38660.8 | S39: 17 | T39: =((R39-Q39)/Q39)*100 -> 28.86933333 | U39: =_xlfn.CEILING.PRECISE(R37,5000) -> 40000 | V39: =U37*0.06 -> 2100 | Y39: =IF(T39<T37,(T39-T37),0) -> 0 | AA39: 8 | AB39: 1
C40: 2013-12-15 | D40: Сан-Хосе Шаркс @ Нэшвилл Предаторз | E40: Меньше 5.5 | F40: 1.9 | I40: 0 | M40: 1 | O40: 0 | AA40: 8 | AB40: 1
A41: 1 | C41: 2013-12-15 | D41: Сент-Луис Блюз @ Коламбус Блю Джекетс | E41: Меньше 5.5 | F41: 1.81 | G41: 2.92315 | I41: 0 | J41: =V41/G41 -> 821.0321058 | K41: 1000 | L41: =A41*K41 -> 1000 | M41: 0 | N41: =IF(M41+M42=2,1,0) -> 0 | O41: 0 | P41: =G41*L41*N41 -> 0 | Q41: 30000 | R41: =R39-L41-I41-I42+P41+O41+O42 -> 37660.8 | S41: 18 | T41: 25.536 | U41: =_xlfn.CEILING.PRECISE(R39,5000) -> 40000 | V41: =U39*0.06 -> 2400 | Y41: =IF(T41<T39,(T41-T39),0) -> -3.333333333 | AA41: 8 | AB41: 1
C42: 2013-12-15 | D42: Тампа Бэй Лайтнинг @ Нью-Джерси Девилз | E42: Меньше 5.5 | F42: 1.615 | I42: 0 | M42: 1 | O42: 0 | AA42: 8 | AB42: 1
A43: 1 | C43: 2013-12-15 | D43: Питтсбург Пингвинз @ Детройт Ред Уингз | E43: Меньше 5.5 | F43: 1.81 | G43: 2.8236 | I43: 0 | J43: =V43/G43 -> 849.9787505 | K43: 1000 | L43: =A43*K43 -> 1000 | M43: 1 | N43: 1 | O43: 0 | P43: =G43*L43*N43 -> 2823.6 | Q43: 30000 | R43: =R41-L43-I43-I44+P43+O43+O44 -> 39484.4 | S43: 19 | T43: 31.61466667 | U43: =_xlfn.CEILING.PRECISE(R41,5000) -> 40000 | V43: =U41*0.06 -> 2400 | Y43: =IF(T43<T41,(T43-T41),0) -> 0 | AA43: 8 | AB43: 1
C44: 2013-12-15 | D44: Миннесота Уайлд @ Колорадо Эвеланш | E44: Меньше 5.5 | F44: 1.56 | I44: 0 | M44: 1 | O44: 0 | AA44: 8 | AB44: 1
A45: 1 | C45: 2013-12-16 | D45: Филадельфия Флайерз @ Вашингтон Кэпиталз | E45: Больше 5.5 | F45: 2.24 | G45: 3.808 | I45: 0 | J45: =V45/G45 -> 630.2521008 | K45: 1000 | L45: =A45*K45 -> 1000 | M45: 1 | N45: 1 | O45: 0 | P45: =G45*L45*N45 -> 3808 | Q45: 30000 | R45: =R43-L45-I45-I46+P45+O45+O46 -> 42292.4 | S45: 20 | T45: 40.97466667 | U45: =_xlfn.CEILING.PRECISE(R43,5000) -> 40000 | V45: =U43*0.06 -> 2400 | Y45: =IF(T45<T43,(T45-T43),0) -> 0 | AA45: -7 | AB45: 0
C46: 2013-12-16 | D46: Тампа Бэй Лайтнинг @ Детройт Ред Уингз | E46: Меньше 5.5 | F46: 1.7 | I46: 0 | M46: 1 | O46: 0 | AA46: -7 | AB46: 0
A47: 1 | C47: 2013-12-16 | D47: Лос-Анджелес Кингз @ Чикаго Блэкхокс | E47: Больше 5.5 | F47: 2.2 | G47: 4.488 | I47: 0 | J47: =V47/G47 -> 534.7593583 | K47: 1000 | L47: =A47*K47 -> 1000 | M47: 0 | N47: 0 | O47: 0 | P47: =G47*L47*N47 -> 0 | Q47: 30000 | R47: =R45-L47-I47-I48+P47+O47+O48 -> 41292.4 | S47: 21 | T47: 37.64133333 | U47: =_xlfn.CEILING.PRECISE(R45,5000) -> 45000 | V47: =U45*0.06 -> 2400 | Y47: =IF(T47<T45,(T47-T45),0) -> -3.333333333 | AA47: -7 | AB47: 0
C48: 2013-12-16 | D48: Эдмонтон Ойлерз @ Анахайм Дакс | E48: Меньше 5.5 | F48: 2.04 | I48: 0 | M48: 1 | O48: 0 | AA48: -7 | AB48: 0
A49: 1 | C49: 2013-12-16 | D49: Флорида Пантерз @ Монреаль Канадиенс | E49: Меньше 5.5 | F49: 1.64 | G49: 2.624 | I49: 0 | J49: =V49/G49 -> 1028.963415 | K49: 1000 | L49: =A49*K49 -> 1000 | M49: 1 | N49: 0 | O49: 0 | P49: =G49*L49*N49 -> 0 | Q49: 30000 | R49: =R47-L49-I49-I50+P49+O49+O50 -> 40292.4 | S49: 22 | T49: =((R49-Q49)/Q49)*100 -> 34.308 | U49: =_xlfn.CEILING.PRECISE(R47,5000) -> 45000 | V49: =U47*0.06 -> 2700 | Y49: =IF(T49<T47,(T49-T47),0) -> -3.333333333 | AA49: -7 | AB49: 0
C50: 2013-12-16 | D50: Калгари Флеймз @ Нью-Йорк Рейнджерс | E50: Меньше 5.5 | F50: 1.6 | I50: 0 | M50: 0 | O50: 0 | AA50: -7 | AB50: 0
A51: 1 | C51: 2013-12-17 | D51: Торонто Мэйпл Лифс @ Питтсбург Пингвинз | E51: Больше 5.5 | F51: 2.12 | G51: 3.816 | I51: 0 | J51: =V51/G51 -> 707.5471698 | K51: 1000 | L51: =A51*K51 -> 1000 | M51: 0 | N51: 0 | O51: 0 | P51: =G51*L51*N51 -> 0 | Q51: 30000 | R51: =R49-L51-I51-I52+P51+O51+O52 -> 39292.4 | S51: 23 | T51: 30.97466667 | U51: =_xlfn.CEILING.PRECISE(R49,5000) -> 45000 | V51: =U49*0.06 -> 2700 | Y51: =IF(T51<T49,(T51-T49),0) -> -3.333333333 | AA51: 5 | AB51: 1
C52: 2013-12-17 | D52: Даллас Старз @ Колорадо Эвеланш | E52: Меньше 5.5 | F52: 1.8 | I52: 0 | M52: 0 | O52: 0 | AA52: 5 | AB52: 1
A53: 1 | C53: 2013-12-18 | D53: Торонто Мейпл Лифс - Флорида Пантерз | E53: Больше 5.5 | F53: 2.06 | G53: 3.77598 | I53: 0 | J53: =V53/G53 -> 715.0461602 | K53: 450 | L53: =A53*K53 -> 450 | M53: 0 | N53: 0 | O53: 0 | P53: =G53*L53*N53 -> 0 | Q53: 30000 | R53: =R51-L53-I53-I54+P53+O53+O54 -> 38842.4 | S53: 24 | T53: 29.47466667 | U53: =_xlfn.CEILING.PRECISE(R51,5000) -> 40000 | V53: =U51*0.06 -> 2700 | Y53: =IF(T53<T51,(T53-T51),0) -> -1.5 | AA53: 5 | AB53: 1
C54: 2013-12-18 | D54: Сент-Луис Блюз - Сан-Хосе Шаркс | E54: Меньше 5.5 | F54: 1.833 | I54: 0 | M54: 0 | O54: 0 | AA54: 5 | AB54: 1
A55: 1 | C55: 2013-12-18 | D55: Торонто Мейпл Лифс - Флорида Пантерз | E55: Больше 5.5 | F55: 2.06 | G55: 4.0788 | I55: 0 | J55: =V55/G55 -> 588.4083554 | K55: 450 | L55: =A55*K55 -> 450 | M55: 0 | N55: 0 | O55: 0 | P55: =G55*L55*N55 -> 0 | Q55: 30000 | R55: =R53-L55-I55-I56+P55+O55+O56 -> 38392.4 | S55: 25 | T55: 27.97466667 | U55: =_xlfn.CEILING.PRECISE(R53,5000) -> 40000 | V55: =U53*0.06 -> 2400 | Y55: =IF(T55<T53,(T55-T53),0) -> -1.5 | AA55: 5 | AB55: 1
C56: 2013-12-18 | D56: Нэшвилл Предаторз - Чикаго Блэкхокс | E56: Больше 5.5 | F56: 1.98 | I56: 0 | M56: 0 | O56: 0 | AA56: 5 | AB56: 1
A57: 1 | C57: 2013-12-18 | D57: Сент-Луис Блюз - Сан-Хосе Шаркс | E57: Меньше 5.5 | F57: 1.833 | G57: 3.62934 | I57: 0 | J57: =V57/G57 -> 661.277257 | K57: 450 | L57: =A57*K57 -> 450 | M57: 0 | N57: 0 | O57: 0 | P57: =G57*L57*N57 -> 0 | Q57: 30000 | R57: =R55-L57-I57-I58+P57+O57+O58 -> 37942.4 | S57: 26 | T57: 26.47466667 | U57: =_xlfn.CEILING.PRECISE(R55,5000) -> 40000 | V57: =U55*0.06 -> 2400 | Y57: =IF(T57<T55,(T57-T55),0) -> -1.5 | Z57: -15 | AA57: 5 | AB57: 1
C58: 2013-12-18 | D58: Нэшвилл Предаторз - Чикаго Блэкхокс | E58: Больше 5.5 | F58: 1.98 | I58: 0 | M58: 0 | O58: 0 | AA58: 5 | AB58: 1
A59: 1 | C59: 2013-12-18 | D59: Нью-Йорк Айлендерс -Тампа Бэй Лайтнинг | E59: Меньше 5.5 | F59: 1.833 | G59: 2.7495 | I59: 0 | J59: =V59/G59 -> 872.8859793 | K59: 450 | L59: =A59*K59 -> 450 | M59: 1 | N59: 1 | O59: 0 | P59: =G59*L59*N59 -> 1237.275 | Q59: 30000 | R59: =R57-L59-I59-I60+P59+O59+O60 -> 38729.675 | S59: 27 | T59: =((R59-Q59)/Q59)*100 -> 29.09891667 | U59: =_xlfn.CEILING.PRECISE(R57,5000) -> 40000 | V59: =U57*0.06 -> 2400 | Y59: =IF(T59<T57,(T59-T57),0) -> 0 | AA59: 5 | AB59: 1
C60: 2013-12-18 | D60: Миннесота Уайлд - Ванкувер Кэнакс | E60: Меньше 5.5 | F60: 1.5 | I60: 0 | M60: 1 | O60: 0 | AA60: 5 | AB60: 1
A61: 1 | C61: 2013-12-18 | D61: Нью-Йорк Айлендерс -Тампа Бэй Лайтнинг | E61: Меньше 5.5 | F61: 1.833 | G61: 3.18942 | I61: 0 | J61: =V61/G61 -> 752.4879132 | K61: 450 | L61: =A61*K61 -> 450 | M61: 1 | N61: 1 | O61: 0 | P61: =G61*L61*N61 -> 1435.239 | Q61: 30000 | R61: =R59-L61-I61-I62+P61+O61+O62 -> 39714.914 | S61: 28 | T61: 32.38304667 | U61: =_xlfn.CEILING.PRECISE(R59,5000) -> 40000 | V61: =U59*0.06 -> 2400 | Y61: =IF(T61<T59,(T61-T59),0) -> 0 | AA61: 5 | AB61: 1
C62: 2013-12-18 | D62: Бостон Брюинз - Калгари Флэймз | E62: Меньше 5.5 | F62: 1.74 | I62: 0 | M62: 1 | O62: 0 | AA62: 5 | AB62: 1
A63: 1 | C63: 2013-12-18 | D63: Миннесота Уайлд - Ванкувер Кэнакс | E63: Меньше 5.5 | F63: 1.5 | G63: 2.61 | I63: 0 | J63: =V63/G63 -> 919.5402299 | K63: 450 | L63: =A63*K63 -> 450 | M63: 1 | N63: 1 | O63: 0 | P63: =G63*L63*N63 -> 1174.5 | Q63: 30000 | R63: =R61-L63-I63-I64+P63+O63+O64 -> 40439.414 | S63: 29 | T63: 34.79804667 | U63: =_xlfn.CEILING.PRECISE(R61,5000) -> 40000 | V63: =U61*0.06 -> 2400 | Y63: =IF(T63<T61,(T63-T61),0) -> 0 | AA63: 5 | AB63: 1
C64: 2013-12-18 | D64: Бостон Брюинз - Калгари Флэймз | E64: Меньше 5.5 | F64: 1.74 | I64: 0 | M64: 1 | O64: 0 | AA64: 5 | AB64: 1
A65: 1 | C65: 2013-12-18 | D65: Баффало Сейбрз - Виннипег Джетс | E65: Меньше 5.5 | F65: 1.571 | G65: 3.42478 | I65: 0 | J65: =V65/G65 -> 700.7749403 | K65: 450 | L65: =A65*K65 -> 450 | M65: 0 | N65: 0 | O65: 0 | P65: =G65*L65*N65 -> 0 | Q65: 30000 | R65: =R63-L65-I65-I66+P65+O65+O66 -> 39989.414 | S65: 30 | T65: 33.29804667 | U65: =_xlfn.CEILING.PRECISE(R63,5000) -> 45000 | V65: =U63*0.06 -> 2400 | Y65: =IF(T65<T63,(T65-T63),0) -> -1.5 | AA65: 5 | AB65: 1
C66: 2013-12-18 | D66: Филадельфия Флайерз -Вашингтон Кэпиталз | E66: Больше 5.5 | F66: 2.18 | I66: 0 | M66: 1 | O66: 0 | AA66: 5 | AB66: 1
A67: 1 | C67: 2013-12-18 | D67: Баффало Сейбрз - Виннипег Джетс | E67: Меньше 5.5 | F67: 1.571 | G67: 2.70212 | I67: 0 | J67: =V67/G67 -> 999.2154308 | K67: 450 | L67: =A67*K67 -> 450 | M67: 0 | N67: 0 | O67: 0 | P67: =G67*L67*N67 -> 0 | Q67: 30000 | R67: =R65-L67-I67-I68+P67+O67+O68 -> 39539.414 | S67: 31 | T67: 31.79804667 | U67: =_xlfn.CEILING.PRECISE(R65,5000) -> 40000 | V67: =U65*0.06 -> 2700 | Y67: =IF(T67<T65,(T67-T65),0) -> -1.5 | AA67: 5 | AB67: 1
C68: 2013-12-18 | D68: Монреаль Канадиенс - Финикс Койотс | E68: Меньше 5.5 | F68: 1.72 | I68: 0 | M68: 1 | O68: 0 | AA68: 5 | AB68: 1
A69: 1 | C69: 2013-12-18 | D69: Филадельфия Флайерз -Вашингтон Кэпиталз | E69: Больше 5.5 | F69: 2.18 | G69: 3.7496 | I69: 0 | J69: =V69/G69 -> 640.0682739 | K69: 450 | L69: =A69*K69 -> 450 | M69: 1 | N69: 1 | O69: 0 | P69: =G69*L69*N69 -> 1687.32 | Q69: 30000 | R69: =R67-L69-I69-I70+P69+O69+O70 -> 40776.734 | S69: 32 | T69: =((R69-Q69)/Q69)*100 -> 35.92244667 | U69: =_xlfn.CEILING.PRECISE(R67,5000) -> 40000 | V69: =U67*0.06 -> 2400 | Y69: =IF(T69<T67,(T69-T67),0) -> 0 | AA69: 5 | AB69: 1
C70: 2013-12-18 | D70: Монреаль Канадиенс - Финикс Койотс | E70: Меньше 5.5 | F70: 1.72 | I70: 0 | M70: 1 | O70: 0 | AA70: 5 | AB70: 1
A71: 1 | C71: 2013-12-18 | D71: Лос-Анджелес Кингз - Эдмонтон Ойлерз | E71: Меньше 5.5 | F71: 1.72 | G71: 3.0616 | I71: 0 | J71: =V71/G71 -> 783.9038411 | K71: 450 | L71: =A71*K71 -> 450 | M71: 1 | N71: 0 | O71: 0 | P71: =G71*L71*N71 -> 0 | Q71: 30000 | R71: =R69-L71-I71-I72+P71+O71+O72 -> 40326.734 | S71: 33 | T71: 34.42244667 | U71: =_xlfn.CEILING.PRECISE(R69,5000) -> 45000 | V71: =U69*0.06 -> 2400 | Y71: =IF(T71<T69,(T71-T69),0) -> -1.5 | AA71: 5 | AB71: 1
C72: 2013-12-18 | D72: Детройт Ред Уингз - Анахайм Дакс | E72: Меньше 5.5 | F72: 1.78 | I72: 0 | M72: 0 | O72: =F72*H72*M72 -> 0 | AA72: 5 | AB72: 1
A73: 1 | C73: 2013-12-18 | D73: Лос-Анджелес Кингз - Эдмонтон Ойлерз | E73: Меньше 5.5 | F73: 1.72 | G73: 3.0616 | I73: 0 | J73: =V73/G73 -> 881.8918213 | K73: 450 | L73: =A73*K73 -> 450 | M73: 1 | N73: 1 | O73: 0 | P73: =G73*L73*N73 -> 1377.72 | Q73: 30000 | R73: =R71-L73-I73-I74+P73+O73+O74 -> 41254.454 | S73: 34 | T73: 37.51484667 | U73: =_xlfn.CEILING.PRECISE(R71,5000) -> 45000 | V73: =U71*0.06 -> 2700 | Y73: =IF(T73<T71,(T73-T71),0) -> 0 | AA73: 5 | AB73: 1
C74: 2013-12-18 | D74: Даллас Старз - Колорадо Эвеланш | E74: Меньше 5.5 | F74: 1.78 | I74: =H74*B74 -> 0 | M74: 1 | O74: 0 | AA74: 5 | AB74: 1
A75: 1 | C75: 2013-12-18 | D75: Детройт Ред Уингз - Анахайм Дакс | E75: Меньше 5.5 | F75: 1.78 | G75: 3.1684 | I75: 0 | J75: =V75/G75 -> 852.1651307 | K75: 450 | L75: =A75*K75 -> 450 | M75: 0 | N75: 0 | O75: 0 | P75: =G75*L75*N75 -> 0 | Q75: 30000 | R75: =R73-L75-I75-I76+P75+O75+O76 -> 40804.454 | S75: 35 | T75: 36.01484667 | U75: =_xlfn.CEILING.PRECISE(R73,5000) -> 45000 | V75: =U73*0.06 -> 2700 | Y75: =IF(T75<T73,(T75-T73),0) -> -1.5 | AA75: 5 | AB75: 1
C76: 2013-12-18 | D76: Даллас Старз - Колорадо Эвеланш | E76: Меньше 5.5 | F76: 1.78 | I76: 0 | M76: 1 | O76: 0 | AA76: 5 | AB76: 1
A77: 1 | D77: Нью-Джерси Девилз - Оттава Сенаторз | E77: Меньше 5.5 | F77: 1.65 | G77: 2.66475 | I77: 0 | J77: =V77/G77 -> 1013.228258 | K77: 500 | L77: =A77*K77 -> 500 | M77: 0 | N77: 0 | O77: 0 | P77: =G77*L77*N77 -> 0 | Q77: 30000 | R77: =R75-L77-I77-I78+P77+O77+O78 -> 40304.454 | S77: 36 | T77: 34.34818 | U77: =_xlfn.CEILING.PRECISE(R75,5000) -> 45000 | V77: =U75*0.06 -> 2700 | Y77: =IF(T77<T75,(T77-T75),0) -> -1.666666667 | AA77: -13 | AB77: 0
D78: Нью-Йорк Рейнджерс - Питтсбург Пингвинз | E78: Меньше 5.5 | F78: 1.615 | I78: 0 | M78: 0 | O78: 0 | AA78: -13 | AB78: 0
A79: 1 | D79: Нью-Джерси Девилз - Оттава Сенаторз | E79: Меньше 5.5 | F79: 1.65 | G79: 4.092 | I79: 0 | J79: =V79/G79 -> 659.8240469 | K79: 500 | L79: =A79*K79 -> 500 | M79: 0 | N79: 0 | O79: 0 | P79: =G79*L79*N79 -> 0 | Q79: 30000 | R79: =R77-L79-I79-I80+P79+O79+O80 -> 39804.454 | S79: =S77+A79 -> 37 | T79: =((R79-Q79)/Q79)*100 -> 32.68151333 | U79: =_xlfn.CEILING.PRECISE(R77,5000) -> 45000 | V79: =U77*0.06 -> 2700 | Y79: =IF(T79<T77,(T79-T77),0) -> -1.666666667 | AA79: -13 | AB79: 0
D80: Филадельфия Флайерз - Колумбус Блю Джекетс | E80: Больше 5.5 | F80: 2.48 | I80: 0 | M80: 1 | O80: 0 | AA80: -13 | AB80: 0
A81: 1 | D81: Нью-Йорк Рейнджерс - Питтсбург Пингвинз | E81: Меньше 5.5 | F81: 1.615 | G81: 4.0052 | I81: 0 | J81: =V81/G81 -> 674.1236393 | K81: 500 | L81: =A81*K81 -> 500 | M81: 0 | N81: 0 | O81: 0 | P81: =G81*L81*N81 -> 0 | Q81: 30000 | R81: =R79-L81-I81-I82+P81+O81+O82 -> 39304.454 | S81: 38 | T81: 31.01484667 | U81: =_xlfn.CEILING.PRECISE(R79,5000) -> 40000 | V81: =U79*0.06 -> 2700 | Y81: =IF(T81<T79,(T81-T79),0) -> -1.666666667 | AA81: -13 | AB81: 0
D82: Филадельфия Флайерз - Колумбус Блю Джекетс | E82: Больше 5.5 | F82: 2.48 | I82: 0 | M82: 1 | O82: 0 | AA82: -13 | AB82: 0
A83: 1 | D83: Торонто Мейпл Лифс - Финикс Койотс | E83: Меньше 5.5 | F83: 2.08 | G83: 3.4944 | I83: 0 | J83: =V83/G83 -> 686.8131868 | K83: 500 | L83: =A83*K83 -> 500 | M83: 1 | N83: 0 | O83: 0 | P83: =G83*L83*N83 -> 0 | Q83: 30000 | R83: =R81-L83-I83-I84+P83+O83+O84 -> 38804.454 | S83: 39 | T83: 29.34818 | U83: =_xlfn.CEILING.PRECISE(R81,5000) -> 40000 | V83: =U81*0.06 -> 2400 | Y83: =IF(T83<T81,(T83-T81),0) -> -1.666666667 | AA83: -13 | AB83: 0
D84: Сент-Луис Блюз - Монреаль Канадиенс | E84: Меньше 5.5 | F84: 1.68 | I84: 0 | M84: 0 | O84: 0 | AA84: -13 | AB84: 0
A85: 1 | D85: Торонто Мейпл Лифс - Финикс Койотс | E85: Меньше 5.5 | F85: 2.08 | G85: 3.3592 | I85: 0 | J85: =V85/G85 -> 714.4558228 | K85: 500 | L85: =A85*K85 -> 500 | M85: 1 | N85: 0 | O85: 0 | P85: =G85*L85*N85 -> 0 | Q85: 30000 | R85: =R83-L85-I85-I86+P85+O85+O86 -> 38304.454 | S85: 40 | T85: 27.68151333 | U85: =_xlfn.CEILING.PRECISE(R83,5000) -> 40000 | V85: =U83*0.06 -> 2400 | Y85: =IF(T85<T83,(T85-T83),0) -> -1.666666667 | AA85: -13 | AB85: 0
D86: Питтсбург Пингвинз - Миннесота Уайлд | E86: Меньше 5.5 | F86: 1.615 | I86: 0 | M86: 0 | O86: 0 | AA86: -13 | AB86: 0
A87: 1 | D87: Сент-Луис Блюз - Монреаль Канадиенс | E87: Меньше 5.5 | F87: 1.68 | G87: 2.7132 | I87: 0 | J87: =V87/G87 -> 884.5643521 | K87: 500 | L87: =A87*K87 -> 500 | M87: 0 | N87: 0 | O87: 0 | P87: =G87*L87*N87 -> 0 | Q87: 30000 | R87: =R85-L87-I87-I88+P87+O87+O88 -> 37804.454 | S87: 41 | T87: 26.01484667 | U87: =_xlfn.CEILING.PRECISE(R85,5000) -> 40000 | V87: =U85*0.06 -> 2400 | Y87: =IF(T87<T85,(T87-T85),0) -> -1.666666667 | AA87: -13 | AB87: 0
D88: Питтсбург Пингвинз - Миннесота Уайлд | E88: Меньше 5.5 | F88: 1.615 | I88: 0 | M88: 0 | O88: 0 | AA88: -13 | AB88: 0
A89: 1 | D89: Баффало Сейбрз - Бостон Брюинз | E89: Меньше 5.5 | F89: 1.55 | G89: 2.697 | I89: 0 | J89: =V89/G89 -> 889.8776418 | K89: 500 | L89: =A89*K89 -> 500 | M89: 0 | N89: 0 | O89: 0 | P89: =G89*L89*N89 -> 0 | Q89: 30000 | R89: =R87-L89-I89-I90+P89+O89+O90 -> 37304.454 | S89: 42 | T89: =((R89-Q89)/Q89)*100 -> 24.34818 | U89: =_xlfn.CEILING.PRECISE(R87,5000) -> 40000 | V89: =U87*0.06 -> 2400 | Y89: =IF(T89<T87,(T89-T87),0) -> -1.666666667 | AA89: -13 | AB89: 0
D90: Тампа Бэй Лайтнинг - Нэшвилл Предаторз | E90: Меньше 5.5 | F90: 1.74 | I90: 0 | M90: 0 | O90: 0 | AA90: -13 | AB90: 0
A91: 1 | D91: Баффало Сейбрз - Бостон Брюинз | E91: Меньше 5.5 | F91: 1.55 | G91: 3.131 | I91: 0 | J91: =V91/G91 -> 766.5282657 | K91: 500 | L91: =A91*K91 -> 500 | M91: 0 | N91: 0 | O91: 0 | P91: =G91*L91*N91 -> 0 | Q91: 30000 | R91: =R89-L91-I91-I92+P91+O91+O92 -> 36804.454 | S91: 43 | T91: =((R91-Q91)/Q91)*100 -> 22.68151333 | U91: =_xlfn.CEILING.PRECISE(R89,5000) -> 40000 | V91: =U89*0.06 -> 2400 | Y91: =IF(T91<T89,(T91-T89),0) -> -1.666666667 | AA91: -13 | AB91: 0
D92: Оттава Сенаторз - Флорида Пантерз | E92: Меньше 5.5 | F92: 2.02 | I92: 0 | M92: 0 | O92: 0 | AA92: -13 | AB92: 0
A93: 1 | D93: Тампа Бэй Лайтнинг - Нэшвилл Предаторз | E93: Меньше 5.5 | F93: 1.74 | G93: 3.5148 | I93: 0 | J93: =V93/G93 -> 682.8269034 | K93: 500 | L93: =A93*K93 -> 500 | M93: 0 | N93: 0 | O93: 0 | P93: =G93*L93*N93 -> 0 | Q93: 30000 | R93: =R91-L93-I93-I94+P93+O93+O94 -> 36304.454 | S93: 44 | T93: =((R93-Q93)/Q93)*100 -> 21.01484667 | U93: =_xlfn.CEILING.PRECISE(R91,5000) -> 40000 | V93: =U91*0.06 -> 2400 | Y93: =IF(T93<T91,(T93-T91),0) -> -1.666666667 | AA93: -13 | AB93: 0
D94: Оттава Сенаторз - Флорида Пантерз | E94: Меньше 5.5 | F94: 2.02 | I94: 0 | M94: 0 | O94: 0 | AA94: -13 | AB94: 0
A95: 1 | D95: Лос-Анджелес Кингз - Сан-Хосе Шаркс | E95: Меньше 5.5 | F95: 1.615 | G95: 3.1008 | I95: 0 | J95: =V95/G95 -> 773.993808 | K95: 500 | L95: =A95*K95 -> 500 | M95: 1 | N95: 0 | O95: 0 | P95: =G95*L95*N95 -> 0 | Q95: 30000 | R95: =R93-L95-I95-I96+P95+O95+O96 -> 35804.454 | S95: 45 | T95: =((R95-Q95)/Q95)*100 -> 19.34818 | U95: =_xlfn.CEILING.PRECISE(R93,5000) -> 40000 | V95: =U93*0.06 -> 2400 | Y95: =IF(T95<T93,(T95-T93),0) -> -1.666666667 | Z95: -18 | AA95: -13 | AB95: 0
D96: Колорадо Эвеланш - Эдмонтон Ойлерз | E96: Меньше 5.5 | F96: 1.92 | I96: 0 | M96: 0 | O96: 0 | AA96: -13 | AB96: 0
A97: 1 | D97: Лос-Анджелес Кингз - Сан-Хосе Шаркс | E97: Меньше 5.5 | F97: 1.615 | G97: 3.1008 | I97: 0 | J97: =V97/G97 -> 773.993808 | K97: 500 | L97: =A97*K97 -> 500 | M97: 1 | N97: 1 | O97: 0 | P97: =G97*L97*N97 -> 1550.4 | Q97: 30000 | R97: =R95-L97-I97-I98+P97+O97+O98 -> 36854.854 | S97: 46 | T97: =((R97-Q97)/Q97)*100 -> 22.84951333 | U97: =_xlfn.CEILING.PRECISE(R95,5000) -> 40000 | V97: =U95*0.06 -> 2400 | Y97: =IF(T97<T95,(T97-T95),0) -> 0 | AA97: -13 | AB97: 0
D98: Детройт Ред Уингз - Калгари Флэймз | E98: Меньше 5.5 | F98: 1.92 | I98: 0 | M98: 1 | O98: 0 | AA98: -13 | AB98: 0
A99: 1 | D99: Колорадо Эвеланш - Эдмонтон Ойлерз | E99: Меньше 5.5 | F99: 1.92 | G99: 3.6864 | I99: 0 | J99: =V99/G99 -> 651.0416667 | K99: 500 | L99: =A99*K99 -> 500 | M99: 0 | N99: 0 | O99: 0 | P99: =G99*L99*N99 -> 0 | Q99: 30000 | R99: =R97-L99-I99-I100+P99+O99+O100 -> 36354.854 | S99: 47 | T99: =((R99-Q99)/Q99)*100 -> 21.18284667 | U99: =_xlfn.CEILING.PRECISE(R97,5000) -> 40000 | V99: =U97*0.06 -> 2400 | Y99: =IF(T99<T97,(T99-T97),0) -> -1.666666667 | AA99: -13 | AB99: 0
D100: Детройт Ред Уингз - Калгари Флэймз | E100: Меньше 5.5 | F100: 1.92 | I100: 0 | M100: 1 | O100: 0 | AA100: -13 | AB100: 0
A101: 1 | D101: Чикаго Блэкхокс - Ванкувер Кэнакс | E101: Меньше 5.5 | F101: 1.92 | G101: 3.1872 | I101: 0 | J101: =V101/G101 -> 753.0120482 | K101: 500 | L101: =A101*K101 -> 500 | M101: 1 | N101: 0 | O101: 0 | P101: =G101*L101*N101 -> 0 | Q101: 30000 | R101: =R99-L101-I101-I102+P101+O101+O102 -> 35854.854 | S101: 48 | T101: 19.51618 | U101: =_xlfn.CEILING.PRECISE(R99,5000) -> 40000 | V101: =U99*0.06 -> 2400 | Y101: =IF(T101<T99,(T101-T99),0) -> -1.666666667 | AA101: 1 | AB101: 1
D102: Нью-Йорк Рейнджерс - Нью-Йорк Айлендерс | E102: Меньше 5.5 | F102: 1.66 | I102: 0 | M102: 0 | O102: 0 | AA102: 1 | AB102: 1
A103: 1 | D103: Чикаго Блэкхокс - Ванкувер Кэнакс | E103: Меньше 5.5 | F103: 1.92 | G103: 2.9952 | I103: 0 | J103: =V103/G103 -> 801.2820513 | K103: 500 | L103: =A103*K103 -> 500 | M103: 1 | N103: 1 | O103: 0 | P103: =G103*L103*N103 -> 1497.6 | Q103: 30000 | R103: =R101-L103-I103-I104+P103+O103+O104 -> 36852.454 | S103: 49 | T103: 22.84151333 | U103: =_xlfn.CEILING.PRECISE(R101,5000) -> 40000 | V103: =U101*0.06 -> 2400 | Y103: =IF(T103<T101,(T103-T101),0) -> 0 | AA103: 1 | AB103: 1
D104: Нью-Джерси Девилз - Анахайм Дакс | E104: Меньше 5.5 | F104: 1.56 | I104: 0 | M104: 1 | O104: 0 | AA104: 1 | AB104: 1
A105: 1 | D105: Нью-Йорк Рейнджерс - Нью-Йорк Айлендерс | E105: Меньше 5.5 | F105: 1.66 | G105: 2.5896 | I105: 0 | J105: =V105/G105 -> 926.7840593 | K105: 500 | L105: =A105*K105 -> 500 | M105: 0 | N105: =IF(M105+M106=2,1,0) -> 0 | O105: 0 | P105: =G105*L105*N105 -> 0 | Q105: 30000 | R105: =R103-L105-I105-I106+P105+O105+O106 -> 36352.454 | S105: 50 | T105: 21.17484667 | U105: =_xlfn.CEILING.PRECISE(R103,5000) -> 40000 | V105: =U103*0.06 -> 2400 | Y105: =IF(T105<T103,(T105-T103),0) -> -1.666666667 | AA105: 1 | AB105: 1
D106: Нью-Джерси Девилз - Анахайм Дакс | E106: Меньше 5.5 | F106: 1.56 | I106: 0 | M106: 1 | O106: 0 | AA106: 1 | AB106: 1
A107: 1 | D107: Каролина Харрикейнз - Вашингтон Кэпиталз | E107: Больше 5.5 | F107: 2.18 | G107: 3.8804 | I107: 0 | J107: =V107/G107 -> 618.4929389 | K107: 500 | L107: =A107*K107 -> 500 | M107: 1 | N107: 0 | O107: 0 | P107: =G107*L107*N107 -> 0 | Q107: 30000 | R107: =R105-L107-I107-I108+P107+O107+O108 -> 35852.454 | S107: 51 | T107: 19.50818 | U107: =_xlfn.CEILING.PRECISE(R105,5000) -> 40000 | V107: =U105*0.06 -> 2400 | Y107: =IF(T107<T105,(T107-T105),0) -> -1.666666667 | AA107: 3 | AB107: 1
D108: Виннипег Джетс - Флорида Пантерз | E108: Меньше 5.5 | F108: 1.78 | I108: 0 | M108: 0 | O108: 0 | AA108: 3 | AB108: 1
A109: 1 | D109: Каролина Харрикейнз - Вашингтон Кэпиталз | E109: Больше 5.5 | F109: 2.18 | G109: 4.1856 | I109: 0 | J109: =V109/G109 -> 573.3944954 | K109: 500 | L109: =A109*K109 -> 500 | M109: 1 | N109: 0 | O109: 0 | P109: =G109*L109*N109 -> 0 | Q109: 30000 | R109: =R107-L109-I109-I110+P109+O109+O110 -> 35352.454 | S109: 52 | T109: =((R109-Q109)/Q109)*100 -> 17.84151333 | U109: =_xlfn.CEILING.PRECISE(R107,5000) -> 40000 | V109: =U107*0.06 -> 2400 | Y109: =IF(T109<T107,(T109-T107),0) -> -1.666666667 | AA109: 3 | AB109: 1
D110: Питтсбург Пингвинз - Калгари Флэймз | E110: Меньше 5.5 | F110: 1.92 | I110: 0 | M110: 0 | O110: 0 | AA110: 3 | AB110: 1
A111: 1 | D111: Виннипег Джетс - Флорида Пантерз | E111: Меньше 5.5 | F111: 1.78 | G111: 3.8804 | I111: 0 | J111: =V111/G111 -> 618.4929389 | K111: 500 | L111: =A111*K111 -> 500 | M111: 0 | N111: 0 | O111: 0 | P111: =G111*L111*N111 -> 0 | Q111: 30000 | R111: =R109-L111-I111-I112+P111+O111+O112 -> 34852.454 | S111: 53 | T111: 16.17484667 | U111: =_xlfn.CEILING.PRECISE(R109,5000) -> 40000 | V111: =U109*0.06 -> 2400 | Y111: =IF(T111<T109,(T111-T109),0) -> -1.666666667 | AA111: 3 | AB111: 1
D112: Каролина Харрикейнз - Вашингтон Кэпиталз | E112: Больше 5.5 | F112: 2.18 | I112: 0 | M112: 1 | O112: 0 | AA112: 3 | AB112: 1
A113: 1 | D113: Лос-Анджелес Кингз - Колорадо Эвеланш | E113: Меньше 5.5 | F113: 1.533 | G113: 3.09666 | I113: 0 | J113: =V113/G113 -> 775.0285792 | K113: 500 | L113: =A113*K113 -> 500 | M113: 1 | N113: 0 | O113: 0 | P113: =G113*L113*N113 -> 0 | Q113: 30000 | R113: =R111-L113-I113-I114+P113+O113+O114 -> 34352.454 | S113: 54 | T113: 14.50818 | U113: =_xlfn.CEILING.PRECISE(R111,5000) -> 35000 | V113: =U111*0.06 -> 2400 | Y113: =IF(T113<T111,(T113-T111),0) -> -1.666666667 | AA113: 3 | AB113: 1
D114: Оттава Сенаторз - Финикс Койотс | E114: Меньше 5.5 | F114: 2.02 | I114: 0 | M114: 0 | O114: 0 | AA114: 3 | AB114: 1
A115: 1 | D115: Лос-Анджелес Кингз - Колорадо Эвеланш | E115: Меньше 5.5 | F115: 1.533 | G115: 2.33016 | I115: 0 | J115: =V115/G115 -> 901.2256669 | K115: 500 | L115: =A115*K115 -> 500 | M115: 1 | N115: 0 | O115: 0 | P115: =G115*L115*N115 -> 0 | Q115: 30000 | R115: =R113-L115-I115-I116+P115+O115+O116 -> 33852.454 | S115: 55 | T115: 12.84151333 | U115: =_xlfn.CEILING.PRECISE(R113,5000) -> 35000 | V115: =U113*0.06 -> 2100 | Y115: =IF(T115<T113,(T115-T113),0) -> -1.666666667 | AA115: 3 | AB115: 1
D116: Нэшвилл Предаторз - Монреаль Канадиенс | E116: Меньше 5.5 | F116: 1.52 | I116: 0 | M116: 0 | O116: 0 | AA116: 3 | AB116: 1
A117: 1 | D117: Оттава Сенаторз - Финикс Койотс | E117: Меньше 5.5 | F117: 2.02 | G117: 3.0704 | I117: 0 | J117: =V117/G117 -> 683.9499739 | K117: 500 | L117: =A117*K117 -> 500 | M117: 0 | N117: 0 | O117: 0 | P117: =G117*L117*N117 -> 0 | Q117: 30000 | R117: =R115-L117-I117-I118+P117+O117+O118 -> 33352.454 | S117: 56 | T117: 11.17484667 | U117: =_xlfn.CEILING.PRECISE(R115,5000) -> 35000 | V117: =U115*0.06 -> 2100 | Y117: =IF(T117<T115,(T117-T115),0) -> -1.666666667 | AA117: 3 | AB117: 1
D118: Нэшвилл Предаторз - Монреаль Канадиенс | E118: Меньше 5.5 | F118: 1.52 | I118: 0 | M118: 0 | O118: 0 | AA118: 3 | AB118: 1
A119: 1 | D119: Торонто Мейпл Лифс - Детройт Ред Уингз | E119: Меньше 5.5 | F119: 1.8 | G119: 3.24 | I119: 0 | J119: =V119/G119 -> 648.1481481 | K119: 500 | L119: =A119*K119 -> 500 | M119: 0 | N119: 0 | O119: 0 | P119: =G119*L119*N119 -> 0 | Q119: 30000 | R119: =R117-L119-I119-I120+P119+O119+O120 -> 32852.454 | S119: 57 | T119: =((R119-Q119)/Q119)*100 -> 9.50818 | U119: =_xlfn.CEILING.PRECISE(R117,5000) -> 35000 | V119: =U117*0.06 -> 2100 | Y119: =IF(T119<T117,(T119-T117),0) -> -1.666666667 | AA119: 3 | AB119: 1
D120: Тампа Бэй Лайтнинг - Каролина Харрикейнз | E120: Меньше 5.5 | F120: 1.8 | I120: 0 | M120: 1 | O120: 0 | AA120: 3 | AB120: 1
A121: 1 | D121: Торонто Мейпл Лифс - Детройт Ред Уингз | E121: Меньше 5.5 | F121: 1.8 | G121: 3.672 | I121: 0 | J121: =V121/G121 -> 571.8954248 | K121: 500 | L121: =A121*K121 -> 500 | M121: 0 | N121: 0 | O121: 0 | P121: =G121*L121*N121 -> 0 | Q121: 30000 | R121: =R119-L121-I121-I122+P121+O121+O122 -> 32352.454 | S121: 58 | T121: 7.841513333 | U121: =_xlfn.CEILING.PRECISE(R119,5000) -> 35000 | V121: =U119*0.06 -> 2100 | Y121: =IF(T121<T119,(T121-T119),0) -> -1.666666667 | AA121: 3 | AB121: 1
D122: Нью-Йорк Айлендерс - Анахайм Дакс | E122: Меньше 5.5 | F122: 2.04 | I122: 0 | M122: 0 | O122: 0 | AA122: 3 | AB122: 1
A123: 1 | D123: Тампа Бэй Лайтнинг - Каролина Харрикейнз | E123: Меньше 5.5 | F123: 1.8 | G123: 3.672 | I123: 0 | J123: =V123/G123 -> 571.8954248 | K123: 500 | L123: =A123*K123 -> 500 | M123: 1 | N123: 0 | O123: 0 | P123: =G123*L123*N123 -> 0 | Q123: 30000 | R123: =R121-L123-I123-I124+P123+O123+O124 -> 31852.454 | S123: 59 | T123: 6.174846667 | U123: =_xlfn.CEILING.PRECISE(R121,5000) -> 35000 | V123: =U121*0.06 -> 2100 | Y123: =IF(T123<T121,(T123-T121),0) -> -1.666666667 | Z123: -17 | AA123: 3 | AB123: 1
D124: Нью-Йорк Айлендерс - Анахайм Дакс | E124: Меньше 5.5 | F124: 2.04 | I124: 0 | M124: 0 | O124: 0 | AA124: 3 | AB124: 1
A125: 1 | D125: Колумбус Блю Джекетс - Филадельфия Флайерз | E125: Больше 5.5 | F125: 2.75 | G125: 6.985 | I125: 0 | J125: =V125/G125 -> 300.6442377 | K125: 500 | L125: =A125*K125 -> 500 | M125: 1 | N125: 1 | O125: 0 | P125: =G125*L125*N125 -> 3492.5 | Q125: 30000 | R125: =R123-L125-I125-I126+P125+O125+O126 -> 34844.954 | S125: 60 | T125: 16.14984667 | U125: =_xlfn.CEILING.PRECISE(R123,5000) -> 35000 | V125: =U123*0.06 -> 2100 | Y125: =IF(T125<T123,(T125-T123),0) -> 0 | AA125: 3 | AB125: 1
D126: Вашингтон Кэпиталз - Нью-Джерси Девилз | E126: Больше 5.5 | F126: 2.54 | I126: 0 | M126: 1 | O126: 0 | AA126: 3 | AB126: 1
A127: 1 | D127: Колумбус Блю Джекетс - Филадельфия Флайерз | E127: Больше 5.5 | F127: 2.75 | G127: 4.125 | I127: 0 | J127: =V127/G127 -> 509.0909091 | K127: 500 | L127: =A127*K127 -> 500 | M127: 1 | N127: 1 | O127: 0 | P127: =G127*L127*N127 -> 2062.5 | Q127: 30000 | R127: =R125-L127-I127-I128+P127+O127+O128 -> 36407.454 | S127: 61 | T127: 21.35818 | U127: =_xlfn.CEILING.PRECISE(R125,5000) -> 35000 | V127: =U125*0.06 -> 2100 | Y127: =IF(T127<T125,(T127-T125),0) -> 0 | AA127: 3 | AB127: 1
D128: Бостон Брюинз - Баффало Сейбрз | E128: Меньше 5.5 | F128: 1.5 | I128: 0 | M128: 1 | O128: 0 | AA128: 3 | AB128: 1
A129: 1 | D129: Вашингтон Кэпиталз - Нью-Джерси Девилз | E129: Больше 5.5 | F129: 2.54 | G129: 3.81 | I129: 0 | J129: =V129/G129 -> 551.1811024 | K129: 500 | L129: =A129*K129 -> 500 | M129: 1 | N129: 1 | O129: 0 | P129: =G129*L129*N129 -> 1905 | Q129: 30000 | R129: =R127-L129-I129-I130+P129+O129+O130 -> 37812.454 | S129: 62 | T129: =((R129-Q129)/Q129)*100 -> 26.04151333 | U129: =_xlfn.CEILING.PRECISE(R127,5000) -> 40000 | V129: =U127*0.06 -> 2100 | Y129: =IF(T129<T127,(T129-T127),0) -> 0 | AA129: 3 | AB129: 1
D130: Бостон Брюинз - Баффало Сейбрз | E130: Меньше 5.5 | F130: 1.5 | I130: 0 | M130: 1 | O130: 0 | AA130: 3 | AB130: 1
A131: 1 | D131: Сан-Хосе Шаркс - Даллас Старз | E131: Меньше 5.5 | F131: 1.92 | G131: 3.7248 | I131: 0 | J131: =V131/G131 -> 644.3298969 | K131: 500 | L131: =A131*K131 -> 500 | M131: 1 | N131: 0 | O131: 0 | P131: =G131*L131*N131 -> 0 | Q131: 30000 | R131: =R129-L131-I131-I132+P131+O131+O132 -> 37312.454 | S131: 63 | T131: 24.37484667 | U131: =_xlfn.CEILING.PRECISE(R129,5000) -> 40000 | V131: =U129*0.06 -> 2400 | Y131: =IF(T131<T129,(T131-T129),0) -> -1.666666667 | AA131: 3 | AB131: 1
D132: Эдмонтон Ойлерз - Сент-Луис Блюз | E132: Меньше 5.5 | F132: 1.94 | I132: 0 | M132: 0 | O132: 0 | AA132: 3 | AB132: 1
A133: 1 | D133: Сан-Хосе Шаркс - Даллас Старз | E133: Меньше 5.5 | F133: 1.92 | G133: 4.7232 | I133: 0 | J133: =V133/G133 -> 508.1300813 | K133: 500 | L133: =A133*K133 -> 500 | M133: 1 | N133: 0 | O133: 0 | P133: =G133*L133*N133 -> 0 | Q133: 30000 | R133: =R131-L133-I133-I134+P133+O133+O134 -> 36812.454 | S133: 64 | T133: 22.70818 | U133: =_xlfn.CEILING.PRECISE(R131,5000) -> 40000 | V133: =U131*0.06 -> 2400 | Y133: =IF(T133<T131,(T133-T131),0) -> -1.666666667 | AA133: 3 | AB133: 1
D134: Ванкувер Кэнакс - Виннипег Джетс | E134: Больше 5.5 | F134: 2.46 | I134: 0 | M134: 0 | O134: 0 | AA134: 3 | AB134: 1
D135: Эдмонтон Ойлерз - Сент-Луис Блюз | E135: Меньше 5.5 | F135: 1.94 | G135: =F135*F136 -> 4.7724 | I135: 0 | J135: =V135/G135 -> 502.8916269 | K135: 500 | L135: =A135*K135 -> 0 | M135: 0 | N135: 0 | O135: 0 | P135: =G135*L135*N135 -> 0 | Q135: 30000 | R135: =R133-L135-I135-I136+P135+O135+O136 -> 36812.454 | S135: 64 | T135: 22.70818 | U135: =_xlfn.CEILING.PRECISE(R133,5000) -> 40000 | V135: =U133*0.06 -> 2400 | Y135: =IF(T135<T133,(T135-T133),0) -> 0 | AA135: 3 | AB135: 1
D136: Ванкувер Кэнакс - Виннипег Джетс | E136: Больше 5.5 | F136: 2.46 | I136: 0 | M136: 0 | O136: =F136*H136*M136 -> 0 | AA136: 3 | AB136: 1
A137: 1 | D137: Нью-Йорк Рейнджерс - Миннесота Уайлд | E137: Меньше 5.5 | F137: 1.48 | G137: 2.4124 | I137: 0 | J137: =V137/G137 -> 994.8598906 | K137: 500 | L137: =A137*K137 -> 500 | M137: 1 | N137: 0 | O137: 0 | P137: =G137*L137*N137 -> 0 | Q137: 30000 | R137: =R135-L137-I137-I138+P137+O137+O138 -> 36312.454 | S137: 65 | T137: 21.04151333 | U137: =_xlfn.CEILING.PRECISE(R135,5000) -> 40000 | V137: =U135*0.06 -> 2400 | Y137: =IF(T137<T135,(T137-T135),0) -> -1.666666667 | AA137: -23 | AB137: 0
D138: Чикаго Блэкхокс - Нью-Джерси Девилз | E138: Меньше 5.5 | F138: 1.63 | I138: =H138*B138 -> 0 | M138: 0 | O138: 0 | AA138: -23 | AB138: 0
A139: 1 | D139: Нью-Йорк Рейнджерс - Миннесота Уайлд | E139: Меньше 5.5 | F139: 1.48 | G139: 2.26884 | I139: 0 | J139: =V139/G139 -> 1057.809277 | K139: 500 | L139: =A139*K139 -> 500 | M139: 1 | N139: 0 | O139: 0 | P139: =G139*L139*N139 -> 0 | Q139: 30000 | R139: =R137-L139-I139-I140+P139+O139+O140 -> 35812.454 | S139: 66 | T139: =((R139-Q139)/Q139)*100 -> 19.37484667 | U139: =_xlfn.CEILING.PRECISE(R137,5000) -> 40000 | V139: =U137*0.06 -> 2400 | Y139: =IF(T139<T137,(T139-T137),0) -> -1.666666667 | AA139: -23 | AB139: 0
D140: Нэшвилл Предаторз - Бостон Брюинз | E140: Меньше 5.5 | F140: 1.533 | I140: 0 | M140: 0 | O140: 0 | AA140: -23 | AB140: 0
A141: 1 | D141: Чикаго Блэкхокс - Нью-Джерси Девилз | E141: Меньше 5.5 | F141: 1.63 | G141: 2.49879 | I141: 0 | J141: =V141/G141 -> 960.464865 | K141: 500 | L141: =A141*K141 -> 500 | M141: 0 | N141: 0 | O141: 0 | P141: =G141*L141*N141 -> 0 | Q141: 30000 | R141: =R139-L141-I141-I142+P141+O141+O142 -> 35312.454 | S141: 67 | T141: 17.70818 | U141: =_xlfn.CEILING.PRECISE(R139,5000) -> 40000 | V141: =U139*0.06 -> 2400 | Y141: =IF(T141<T139,(T141-T139),0) -> -1.666666667 | AA141: -23 | AB141: 0
D142: Нэшвилл Предаторз - Бостон Брюинз | E142: Меньше 5.5 | F142: 1.533 | I142: 0 | M142: 0 | O142: 0 | AA142: -23 | AB142: 0
A143: 1 | D143: Нью-Йорк Рейнджерс - Торонто Мейпл Лифс | E143: Меньше 5.5 | F143: 1.533 | G143: 2.37615 | I143: 0 | J143: =V143/G143 -> 1010.037245 | K143: 500 | L143: =A143*K143 -> 500 | M143: 1 | N143: 0 | O143: 0 | P143: =G143*L143*N143 -> 0 | Q143: 30000 | R143: =R141-L143-I143-I144+P143+O143+O144 -> 34812.454 | S143: =S141+A143 -> 68 | T143: 16.04151333 | U143: =_xlfn.CEILING.PRECISE(R141,5000) -> 40000 | V143: =U141*0.06 -> 2400 | Y143: =IF(T143<T141,(T143-T141),0) -> -1.666666667 | AA143: -23 | AB143: 0
D144: Каролина Харрикейнз - Колумбус Блю Джекетс | E144: Меньше 5.5 | F144: 1.55 | I144: 0 | M144: 0 | O144: 0 | AA144: -23 | AB144: 0
A145: 1 | D145: Нью-Йорк Рейнджерс - Торонто Мейпл Лифс | E145: Меньше 5.5 | F145: 1.533 | G145: 2.992416 | I145: 0 | J145: =V145/G145 -> 802.0275256 | K145: 500 | L145: =A145*K145 -> 500 | M145: 1 | N145: 0 | O145: 0 | P145: =G145*L145*N145 -> 0 | Q145: 30000 | R145: =R143-L145-I145-I146+P145+O145+O146 -> 34312.454 | S145: 69 | T145: 14.37484667 | U145: =_xlfn.CEILING.PRECISE(R143,5000) -> 35000 | V145: =U143*0.06 -> 2400 | Y145: =IF(T145<T143,(T145-T143),0) -> -1.666666667 | AA145: -23 | AB145: 0
D146: Калгари Флэймз - Сент-Луис Блюз | E146: Меньше 5.5 | F146: 1.952 | I146: 0 | M146: 0 | O146: 0 | AA146: -23 | AB146: 0
A147: 1 | D147: Каролина Харрикейнз - Колумбус Блю Джекетс | E147: Меньше 5.5 | F147: 1.55 | G147: 3.0256 | I147: 0 | J147: =V147/G147 -> 694.0772078 | K147: 500 | L147: =A147*K147 -> 500 | M147: 0 | N147: 0 | O147: 0 | P147: =G147*L147*N147 -> 0 | Q147: 30000 | R147: =R145-L147-I147-I148+P147+O147+O148 -> 33812.454 | S147: 70 | T147: 12.70818 | U147: =_xlfn.CEILING.PRECISE(R145,5000) -> 35000 | V147: =U145*0.06 -> 2100 | Y147: =IF(T147<T145,(T147-T145),0) -> -1.666666667 | AA147: -23 | AB147: 0
D148: Калгари Флэймз - Сент-Луис Блюз | E148: Меньше 5.5 | F148: 1.952 | I148: 0 | M148: 0 | O148: 0 | AA148: -23 | AB148: 0
A149: 1 | D149: Вашингтон Кэпиталз - Анахайм Дакс | E149: Больше 5.5 | F149: 2 | G149: 3.332 | I149: 0 | J149: =V149/G149 -> 630.2521008 | K149: 500 | L149: =A149*K149 -> 500 | M149: 0 | N149: 0 | O149: 0 | P149: =G149*L149*N149 -> 0 | Q149: 30000 | R149: =R147-L149-I149-I150+P149+O149+O150 -> 33312.454 | S149: 71 | T149: =((R149-Q149)/Q149)*100 -> 11.04151333 | U149: =_xlfn.CEILING.PRECISE(R147,5000) -> 35000 | V149: =U147*0.06 -> 2100 | Y149: =IF(T149<T147,(T149-T147),0) -> -1.666666667 | AA149: -23 | AB149: 0
D150: Баффало Сейбрз - Финикс Койотс | E150: Меньше 5.5 | F150: 1.666 | I150: 0 | M150: 1 | O150: 0 | AA150: -23 | AB150: 0
A151: 1 | D151: Вашингтон Кэпиталз - Анахайм Дакс | E151: Больше 5.5 | F151: 2 | G151: 3.62 | I151: 0 | J151: =V151/G151 -> 580.1104972 | K151: 500 | L151: =A151*K151 -> 500 | M151: 0 | N151: 0 | O151: 0 | P151: =G151*L151*N151 -> 0 | Q151: 30000 | R151: =R149-L151-I151-I152+P151+O151+O152 -> 32812.454 | S151: 72 | T151: 9.374846667 | U151: =_xlfn.CEILING.PRECISE(R149,5000) -> 35000 | V151: =U149*0.06 -> 2100 | Y151: =IF(T151<T149,(T151-T149),0) -> -1.666666667 | AA151: -23 | AB151: 0
D152: Эдмонтон Ойлерз - Виннипег Джетс | E152: Меньше 5.5 | F152: 1.81 | I152: 0 | M152: 0 | O152: 0 | AA152: -23 | AB152: 0
A153: 1 | D153: Баффало Сейбрз - Финикс Койотс | E153: Меньше 5.5 | F153: 1.666 | G153: 3.01546 | I153: 0 | J153: =V153/G153 -> 696.4111611 | K153: 500 | L153: =A153*K153 -> 500 | M153: 1 | N153: 0 | O153: 0 | P153: =G153*L153*N153 -> 0 | Q153: 30000 | R153: =R151-L153-I153-I154+P153+O153+O154 -> 32312.454 | S153: 73 | T153: 7.70818 | U153: =_xlfn.CEILING.PRECISE(R151,5000) -> 35000 | V153: =U151*0.06 -> 2100 | Y153: =IF(T153<T151,(T153-T151),0) -> -1.666666667 | AA153: -23 | AB153: 0
D154: Эдмонтон Ойлерз - Виннипег Джетс | E154: Меньше 5.5 | F154: 1.81 | I154: 0 | M154: 0 | O154: 0 | AA154: -23 | AB154: 0
A155: 1 | D155: Флорида Пантерз - Тампа Бэй Лайтнинг | E155: Меньше 5.5 | F155: 1.78 | G155: 5.0552 | I155: 0 | J155: =V155/G155 -> 415.4138313 | K155: 500 | L155: =A155*K155 -> 500 | M155: 0 | N155: 0 | O155: 0 | P155: =G155*L155*N155 -> 0 | Q155: 30000 | R155: =R153-L155-I155-I156+P155+O155+O156 -> 31812.454 | S155: 74 | T155: 6.041513333 | U155: =_xlfn.CEILING.PRECISE(R153,5000) -> 35000 | V155: =U153*0.06 -> 2100 | Y155: =IF(T155<T153,(T155-T153),0) -> -1.666666667 | AA155: -23 | AB155: 0
D156: Филадельфия Флайерз - Миннесота Уайлд | E156: Больше 5.5 | F156: 2.84 | I156: 0 | M156: 0 | O156: 0 | AA156: -23 | AB156: 0
A157: 1 | D157: Флорида Пантерз - Тампа Бэй Лайтнинг | E157: Меньше 5.5 | F157: 1.78 | G157: 3.204 | I157: 0 | J157: =V157/G157 -> 655.4307116 | K157: 500 | L157: =A157*K157 -> 500 | M157: 0 | N157: 0 | O157: 0 | P157: =G157*L157*N157 -> 0 | Q157: 30000 | R157: =R155-L157-I157-I158+P157+O157+O158 -> 31312.454 | S157: 75 | T157: 4.374846667 | U157: =_xlfn.CEILING.PRECISE(R155,5000) -> 35000 | V157: =U155*0.06 -> 2100 | Y157: =IF(T157<T155,(T157-T155),0) -> -1.666666667 | AA157: -23 | AB157: 0
D158: Сан-Хосе Шаркс - Колорадо Эвеланш | E158: Меньше 5.5 | F158: 1.8 | I158: 0 | M158: 0 | O158: 0 | AA158: -23 | AB158: 0
A159: 1 | D159: Филадельфия Флайерз - Миннесота Уайлд | E159: Больше 5.5 | F159: 2.84 | G159: 5.112 | I159: 0 | J159: =V159/G159 -> 410.7981221 | K159: 500 | L159: =A159*K159 -> 500 | M159: 0 | N159: 0 | O159: 0 | P159: =G159*L159*N159 -> 0 | Q159: 30000 | R159: =R157-L159-I159-I160+P159+O159+O160 -> 30812.454 | S159: 76 | T159: =((R159-Q159)/Q159)*100 -> 2.70818 | U159: =_xlfn.CEILING.PRECISE(R157,5000) -> 35000 | V159: =U157*0.06 -> 2100 | Y159: =IF(T159<T157,(T159-T157),0) -> -1.666666667 | AA159: -23 | AB159: 0
D160: Сан-Хосе Шаркс - Колорадо Эвеланш | E160: Меньше 5.5 | F160: 1.8 | I160: 0 | M160: 0 | O160: 0 | AA160: -23 | AB160: 0
A161: 1 | D161: Оттава Сенаторз - Питтсбург Пингвинз | E161: Больше 5.5 | F161: 2.1 | G161: 3.444 | I161: 0 | J161: =V161/G161 -> 609.7560976 | K161: 500 | L161: =A161*K161 -> 500 | M161: 0 | N161: 0 | O161: 0 | P161: =G161*L161*N161 -> 0 | Q161: 30000 | R161: =R159-L161-I161-I162+P161+O161+O162 -> 30312.454 | S161: 77 | T161: =((R161-Q161)/Q161)*100 -> 1.041513333 | U161: =_xlfn.CEILING.PRECISE(R159,5000) -> 35000 | V161: =U159*0.06 -> 2100 | Y161: =IF(T161<T159,(T161-T159),0) -> -1.666666667 | AA161: -23 | AB161: 0
D162: Лос-Анджелес Кингз - Даллас Старз | E162: Меньше 5.5 | F162: 1.64 | I162: 0 | M162: 0 | O162: 0 | AA162: -23 | AB162: 0
A163: 1 | D163: Оттава Сенаторз - Питтсбург Пингвинз | E163: Больше 5.5 | F163: 2.1 | G163: 3.738 | I163: 0 | J163: =V163/G163 -> 561.7977528 | K163: 500 | L163: =A163*K163 -> 500 | M163: 0 | N163: 0 | O163: 0 | P163: =G163*L163*N163 -> 0 | Q163: 30000 | R163: =R161-L163-I163-I164+P163+O163+O164 -> 29812.454 | S163: 78 | T163: =((R163-Q163)/Q163)*100 -> -0.6251533333 | U163: =_xlfn.CEILING.PRECISE(R161,5000) -> 35000 | V163: =U161*0.06 -> 2100 | Y163: =IF(T163<T161,(T163-T161),0) -> -1.666666667 | AA163: -23 | AB163: 0
D164: Детройт Ред Уингз - Нью-Йорк Айлендерс | E164: Меньше 5.5 | F164: 1.78 | I164: 0 | M164: 1 | O164: 0 | AA164: -23 | AB164: 0
A165: 1 | D165: Лос-Анджелес Кингз - Даллас Старз | E165: Меньше 5.5 | F165: 1.64 | G165: 3.444 | I165: 0 | J165: =V165/G165 -> 609.7560976 | K165: 500 | L165: =A165*K165 -> 500 | M165: 0 | N165: 0 | O165: 0 | P165: =G165*L165*N165 -> 0 | Q165: 30000 | R165: =R163-L165-I165-I166+P165+O165+O166 -> 29312.454 | S165: 79 | T165: =((R165-Q165)/Q165)*100 -> -2.29182 | U165: =_xlfn.CEILING.PRECISE(R163,5000) -> 30000 | V165: =U163*0.06 -> 2100 | Y165: =IF(T165<T163,(T165-T163),0) -> -1.666666667 | AA165: -23 | AB165: 0
D166: Оттава Сенаторз - Питтсбург Пингвинз | E166: Больше 5.5 | F166: 2.1 | I166: 0 | M166: 0 | O166: 0 | AA166: -23 | AB166: 0
A167: 1 | D167: Чикаго Блэкхокс - Колорадо Эвеланш | E167: Меньше 5.5 | F167: 1.92 | G167: 3.7824 | I167: 0 | J167: =V167/G167 -> 475.8883249 | K167: 500 | L167: =A167*K167 -> 500 | M167: 0 | N167: 0 | O167: 0 | P167: =G167*L167*N167 -> 0 | Q167: 30000 | R167: =R165-L167-I167-I168+P167+O167+O168 -> 28812.454 | S167: 80 | T167: =((R167-Q167)/Q167)*100 -> -3.958486667 | U167: =_xlfn.CEILING.PRECISE(R165,5000) -> 30000 | V167: =U165*0.06 -> 1800 | Y167: =IF(T167<T165,(T167-T165),0) -> -1.666666667 | AA167: -3 | AB167: 0
D168: Финикс Койотс - Сан-Хосе Шаркс | E168: Меньше 5.5 | F168: 1.97 | I168: 0 | M168: 0 | O168: 0 | AA168: -3 | AB168: 0
A169: 1 | D169: Чикаго Блэкхокс - Колорадо Эвеланш | E169: Меньше 5.5 | F169: 1.92 | G169: 3.1296 | I169: 0 | J169: =V169/G169 -> 575.1533742 | K169: 500 | L169: =A169*K169 -> 500 | M169: 0 | N169: =IF(M169+M170=2,1,0) -> 0 | O169: 0 | P169: =G169*L169*N169 -> 0 | Q169: 30000 | R169: =R167-L169-I169-I170+P169+O169+O170 -> 28312.454 | S169: 81 | T169: -5.625153333 | U169: =_xlfn.CEILING.PRECISE(R167,5000) -> 30000 | V169: =U167*0.06 -> 1800 | Y169: =IF(T169<T167,(T169-T167),0) -> -1.666666667 | AA169: -3 | AB169: 0
D170: Торонто Мейпл Лифс - Баффало Сейбрз | E170: Меньше 5.5 | F170: 1.63 | I170: 0 | M170: 0 | O170: 0 | AA170: -3 | AB170: 0
A171: 1 | D171: Финикс Койотс - Сан-Хосе Шаркс | E171: Меньше 5.5 | F171: 1.97 | G171: 3.2111 | I171: 0 | J171: =V171/G171 -> 560.5555729 | K171: 500 | L171: =A171*K171 -> 500 | M171: 0 | N171: 0 | O171: 0 | P171: =G171*L171*N171 -> 0 | Q171: 30000 | R171: =R169-L171-I171-I172+P171+O171+O172 -> 27812.454 | S171: 82 | T171: -7.29182 | U171: =_xlfn.CEILING.PRECISE(R169,5000) -> 30000 | V171: =U169*0.06 -> 1800 | Y171: =IF(T171<T169,(T171-T169),0) -> -1.666666667 | AA171: -3 | AB171: 0
D172: Торонто Мейпл Лифс - Баффало Сейбрз | E172: Меньше 5.5 | F172: 1.63 | I172: 0 | M172: 0 | O172: 0 | AA172: -3 | AB172: 0
A173: 1 | D173: Нью-Джерси Девилз - Колумбус Блю Джекетс | E173: Больше 5.5 | F173: 2.48 | G173: 5.5056 | I173: 0 | J173: =V173/G173 -> 326.9398431 | K173: 500 | L173: =A173*K173 -> 500 | M173: 0 | N173: 0 | O173: 0 | P173: =G173*L173*N173 -> 0 | Q173: 30000 | R173: =R171-L173-I173-I174+P173+O173+O174 -> 27312.454 | S173: 83 | T173: -8.958486667 | U173: =_xlfn.CEILING.PRECISE(R171,5000) -> 30000 | V173: =U171*0.06 -> 1800 | Y173: =IF(T173<T171,(T173-T171),0) -> -1.666666667 | AA173: -3 | AB173: 0
D174: Каролина Харрикейнз - Питтсбург Пингвинз | E174: Больше 5.5 | F174: 2.22 | I174: 0 | M174: 1 | O174: 0 | AA174: -3 | AB174: 0
A175: 1 | D175: Нью-Джерси Девилз - Колумбус Блю Джекетс | E175: Больше 5.5 | F175: 2.48 | G175: 4.8112 | I175: 0 | J175: =V175/G175 -> 374.1270369 | K175: 500 | L175: =A175*K175 -> 500 | M175: 0 | N175: 0 | O175: 0 | P175: =G175*L175*N175 -> 0 | Q175: 30000 | R175: =R173-L175-I175-I176+P175+O175+O176 -> 26812.454 | S175: 84 | T175: -10.62515333 | U175: =_xlfn.CEILING.PRECISE(R173,5000) -> 30000 | V175: =U173*0.06 -> 1800 | Y175: =IF(T175<T173,(T175-T173),0) -> -1.666666667 | Z175: -33 | AA175: -3 | AB175: 0
D176: Калгари Флэймз - Эдмонтон Ойлерз | E176: Меньше 5.5 | F176: 1.94 | I176: 0 | M176: 1 | O176: 0 | AA176: -3 | AB176: 0
A177: 1 | D177: Каролина Харрикейнз - Питтсбург Пингвинз | E177: Больше 5.5 | F177: 2.22 | G177: 4.3068 | I177: 0 | J177: =V177/G177 -> 417.9437169 | K177: 500 | L177: =A177*K177 -> 500 | M177: 1 | N177: 1 | O177: 0 | P177: =G177*L177*N177 -> 2153.4 | Q177: 30000 | R177: =R175-L177-I177-I178+P177+O177+O178 -> 28465.854 | S177: 85 | T177: -5.11382 | U177: =_xlfn.CEILING.PRECISE(R175,5000) -> 30000 | V177: =U175*0.06 -> 1800 | Y177: =IF(T177<T175,(T177-T175),0) -> 0 | AA177: -3 | AB177: 0
D178: Калгари Флэймз - Эдмонтон Ойлерз | E178: Меньше 5.5 | F178: 1.94 | I178: 0 | M178: 1 | O178: 0 | AA178: -3 | AB178: 0
A179: 1 | C179: мен 5,5 | D179: Виннипег Джетс - Миннесота Уайлд | E179: Больше 5 | F179: 1.94 | G179: 1.94 | I179: 0 | J179: =V179/G179 -> 927.8350515 | K179: 500 | L179: =A179*K179 -> 500 | M179: 1 | N179: 1 | O179: 0 | P179: =G179*L179*N179 -> 970 | Q179: 30000 | R179: =R177-L179-I179-I180+P179+O179+O180 -> 28935.854 | S179: 86 | T179: -3.547153333 | U179: =_xlfn.CEILING.PRECISE(R177,5000) -> 30000 | V179: =U177*0.06 -> 1800 | Y179: =IF(T179<T177,(T179-T177),0) -> 0 | AA179: -3 | AB179: 0
C180: бол 5,5 | D180: Вашингтон Кэпиталз - Нью-Йорк Рейнджерс | E180: Больше 5 | F180: 1 | I180: 0 | M180: 1 | O180: 0 | AA180: -3 | AB180: 0
A181: 1 | C181: мен 5,5 | D181: Виннипег Джетс - Миннесота Уайлд | E181: Больше 5 | F181: 1.94 | G181: 1.94 | I181: 0 | J181: =V181/G181 -> 927.8350515 | K181: 500 | L181: =A181*K181 -> 500 | M181: 1 | N181: 1 | O181: 0 | P181: =G181*L181*N181 -> 970 | Q181: 30000 | R181: =R179-L181-I181-I182+P181+O181+O182 -> 29405.854 | S181: 87 | T181: -1.980486667 | U181: =_xlfn.CEILING.PRECISE(R179,5000) -> 30000 | V181: =U179*0.06 -> 1800 | Y181: =IF(T181<T179,(T181-T179),0) -> 0 | AA181: -3 | AB181: 0
C182: мен 5,5 | D182: Бостон Брюинз - Оттава Сенаторз | E182: Больше 5 | F182: 1 | I182: 0 | M182: 1 | O182: 0 | AA182: -3 | AB182: 0
A183: 1 | C183: бол 5,5 | D183: Вашингтон Кэпиталз - Нью-Йорк Рейнджерс | E183: Больше 5 | F183: 1 | G183: 1 | I183: 0 | J183: =V183/G183 -> 1800 | K183: 500 | L183: =A183*K183 -> 500 | M183: 1 | N183: 1 | O183: 0 | P183: =G183*L183*N183 -> 500 | Q183: 30000 | R183: =R181-L183-I183-I184+P183+O183+O184 -> 29405.854 | S183: 88 | T183: -1.980486667 | U183: =_xlfn.CEILING.PRECISE(R181,5000) -> 30000 | V183: =U181*0.06 -> 1800 | Y183: =IF(T183<T181,(T183-T181),0) -> 0 | AA183: -3 | AB183: 0
C184: мен 5,5 | D184: Бостон Брюинз - Оттава Сенаторз | E184: Больше 5 | F184: 1 | I184: 0 | M184: 1 | O184: 0 | AA184: -3 | AB184: 0
A185: 1 | C185: мен 5,5 | D185: Бостон Брюинз - Оттава Сенаторз | E185: Больше 5 | F185: 1 | G185: 1 | I185: 0 | J185: =V185/G185 -> 1800 | K185: 500 | L185: =A185*K185 -> 500 | M185: 1 | N185: 1 | O185: 0 | P185: =G185*L185*N185 -> 500 | Q185: 30000 | R185: =R183-L185-I185-I186+P185+O185+O186 -> 29405.854 | S185: 89 | T185: -1.980486667 | U185: =_xlfn.CEILING.PRECISE(R183,5000) -> 30000 | V185: =U183*0.06 -> 1800 | Y185: =IF(T185<T183,(T185-T183),0) -> 0 | AA185: -3 | AB185: 0
C186: мен 5,5 | D186: Даллас Старз - Нэшвилл Предаторз | E186: Больше 5 | F186: 1 | I186: 0 | M186: 1 | O186: 0 | AA186: -3 | AB186: 0
A187: 1 | D187: Детройт Ред Уингз - Торонто Мейпл Лифс | E187: Больше 5 | F187: 5.6 | G187: 9.016 | I187: 0 | J187: =V187/G187 -> 199.6450754 | K187: 200 | L187: =A187*K187 -> 200 | M187: 0 | N187: 0 | O187: 0 | P187: 0 | Q187: 30000 | R187: =R185-L187-I187-I188+P187+O187+O188 -> 29205.854 | S187: =S185+A187 -> 90 | T187: -2.647153333 | U187: =_xlfn.CEILING.PRECISE(R185,5000) -> 30000 | V187: =U185*0.06 -> 1800 | Y187: =IF(T187<T185,(T187-T185),0) -> -0.6666666667 | AA187: -2 | AB187: 0
D188: Ванкувер Кэнакс - Тампа Бэй Лайтнинг | E188: Меньше 5.5 | F188: 1.61 | I188: 0 | M188: 0 | O188: 0 | AA188: -2 | AB188: 0
A189: 1 | D189: Детройт Ред Уингз - Торонто Мейпл Лифс | E189: Больше 5 | F189: 5.3 | G189: 9.222 | I189: 0 | J189: =V189/G189 -> 195.1854262 | K189: 200 | L189: =A189*K189 -> 200 | M189: 0 | N189: 0 | O189: 0 | P189: 0 | Q189: 30000 | R189: =R187-L189-I189-I190+P189+O189+O190 -> 29005.854 | S189: 91 | T189: -3.31382 | U189: =_xlfn.CEILING.PRECISE(R187,5000) -> 30000 | V189: =U187*0.06 -> 1800 | Y189: =IF(T189<T187,(T189-T187),0) -> -0.6666666667 | AA189: -2 | AB189: 0
D190: Финикс Койотс - Колумбус Блю Джекетс | E190: больше 5 | F190: 1.74 | I190: 0 | O190: 0 | AA190: -2 | AB190: 0
A191: 1 | D191: Ванкувер Кэнакс - Тампа Бэй Лайтнинг | E191: Меньше 5.5 | F191: 1.61 | G191: 2.8014 | I191: 0 | J191: =V191/G191 -> 642.5358749 | K191: 144 | L191: =A191*K191 -> 144 | M191: 0 | N191: 0 | O191: 0 | P191: 0 | Q191: 30000 | R191: =R189-L191-I191-I192+P191+O191+O192 -> 28861.854 | S191: 92 | T191: -3.79382 | U191: =_xlfn.CEILING.PRECISE(R189,5000) -> 30000 | V191: =U189*0.06 -> 1800 | Y191: =IF(T191<T189,(T191-T189),0) -> -0.48 | AA191: -2 | AB191: 0
D192: Финикс Койотс - Колумбус Блю Джекетс | E192: больше 5 | F192: 1.74 | I192: 0 | O192: 0 | AA192: -2 | AB192: 0
A193: 1 | D193: Сент-Луис Блюз - Лос-Анджелес Кингз | E193: больше 5 | F193: 1 | G193: 1.5 | I193: 0 | J193: =V193/G193 -> 1200 | K193: 200 | L193: =A193*K193 -> 200 | M193: 1 | N193: 0 | O193: 0 | P193: 0 | Q193: 30000 | R193: =R191-L193-I193-I194+P193+O193+O194 -> 28661.854 | S193: 93 | T193: -4.460486667 | U193: =_xlfn.CEILING.PRECISE(R191,5000) -> 30000 | V193: =U191*0.06 -> 1800 | Y193: =IF(T193<T191,(T193-T191),0) -> -0.6666666667 | AA193: 2 | AB193: 1
D194: Нью-Йорк Айлендерс - Чикаго Блэкхокс | E194: больше 5 | F194: 1.5 | I194: 0 | M194: 0 | O194: 0 | AA194: 2 | AB194: 1
A195: 1 | D195: Сент-Луис Блюз - Лос-Анджелес Кингз | E195: больше 5 | F195: 1 | G195: 1.9 | I195: 0 | J195: =V195/G195 -> 947.3684211 | K195: 200 | L195: =A195*K195 -> 200 | M195: 1 | N195: 1 | O195: 0 | P195: 380 | Q195: 30000 | R195: =R193-L195-I195-I196+P195+O195+O196 -> 28841.854 | S195: 94 | T195: -3.860486667 | U195: =_xlfn.CEILING.PRECISE(R193,5000) -> 30000 | V195: =U193*0.06 -> 1800 | Y195: =IF(T195<T193,(T195-T193),0) -> 0 | AA195: 2 | AB195: 1
D196: Миннесота Уайлд - Баффало Сейбрз | E196: больше 4,5 | F196: 1.9 | I196: 0 | M196: 1 | O196: 0 | AA196: 2 | AB196: 1
A197: 1 | D197: Нью-Йорк Айлендерс - Чикаго Блэкхокс | E197: больше 5 | F197: 1.5 | G197: 2.85 | I197: 0 | J197: =V197/G197 -> 631.5789474 | K197: 200 | L197: =A197*K197 -> 200 | M197: 0 | N197: 0 | O197: 0 | P197: 0 | Q197: 30000 | R197: =R195-L197-I197-I198+P197+O197+O198 -> 28641.854 | S197: 95 | T197: -4.527153333 | U197: =_xlfn.CEILING.PRECISE(R195,5000) -> 30000 | V197: =U195*0.06 -> 1800 | Y197: =IF(T197<T195,(T197-T195),0) -> -0.6666666667 | AA197: 2 | AB197: 1
D198: Миннесота Уайлд - Баффало Сейбрз | E198: больше 4,5 | F198: 1.9 | I198: 0 | M198: 1 | O198: 0 | AA198: 2 | AB198: 1
A199: 1 | D199: Колорадо Эвеланш - Филадельфия Флайерз | E199: больше 5 | F199: 1.77 | G199: 3.0798 | I199: 0 | J199: =V199/G199 -> 584.4535359 | K199: 200 | L199: =A199*K199 -> 200 | M199: 0 | N199: 0 | O199: 0 | P199: 0 | Q199: 30000 | R199: =R197-L199-I199-I200+P199+O199+O200 -> 28441.854 | S199: 96 | T199: -5.19382 | U199: =_xlfn.CEILING.PRECISE(R197,5000) -> 30000 | V199: =U197*0.06 -> 1800 | Y199: =IF(T199<T197,(T199-T197),0) -> -0.6666666667 | AA199: 2 | AB199: 1
D200: Вашингтон Кэпиталз - Каролина Харрикейнз | E200: больше 5 | F200: 1.74 | I200: 0 | M200: 1 | O200: =F200*H200*M200 -> 0 | AA200: 2 | AB200: 1
A201: 1 | D201: Колорадо Эвеланш - Филадельфия Флайерз | E201: больше 5 | F201: 1.77 | G201: 3.45504 | I201: 0 | J201: =V201/G201 -> 520.9780495 | K201: 200 | L201: =A201*K201 -> 200 | M201: 0 | N201: 0 | O201: 0 | P201: 0 | Q201: 30000 | R201: =R199-L201-I201-I202+P201+O201+O202 -> 28241.854 | S201: 97 | T201: -5.860486667 | U201: =_xlfn.CEILING.PRECISE(R199,5000) -> 30000 | V201: =U199*0.06 -> 1800 | Y201: =IF(T201<T199,(T201-T199),0) -> -0.6666666667 | AA201: 2 | AB201: 1
... 573 more rows

Sheet Сезон 2010
AO1: Предпологаемый счет | AU1: =SUM(AU71:AU1233) -> 916 | AV1: =SUM(AZ71:AZ1233) -> 602 | AX1: =SUM(AX71:AX1233) -> 246 | AY1: =SUM(BA71:BA1233) -> 145 | AZ1: Процент прохода | BC1: РЕЗУЛЬТАТЫ ИГР
E2: посл 4 игры | W2: посл 4 игры | AV2: =AU1+AX1 -> 1162 | AW2: =SUM(BB71:BB1233) -> 747 | AZ2: =(AV1/AU1)*100 -> 65.72052402 | BA2: =(AY1/AX1)*100 -> 58.94308943 | BB2: =AW2/AV2*100 -> 64.28571429
C3: Команда 1 | D3: Турн.полож. | E3: 1 | G3: 2 | I3: 3 | K3: 4 | M3: Победы | Q3: Выигр.матч. + 1 | R3: Забито ср | S3: Пропущ. Ср | U3: Команда 2 | V3: Турн.полож. | W3: 1 | Y3: 2 | AA3: 3 | AC3: 4 | AI3: Выигр.матч. | AJ3: Забито ср | AK3: Пропущ. Ср | AM3: сумма забитых | AN3: сумма прпущенных | AO3: 1 | AP3: 2 | AQ3: Прогноз общих голов | AR3: Ставка тотал больше | AS3: Ставка тотал меньше | AT3: ЭТО ДЛЯ РАСЧЕТОВ,МОЖЕШЬ НЕ СМОТРЕТЬ | AZ3: больше | BA3: меньше | BB3: ОБЩИЙ ИТОГ СОВПАДЕНИЯ.1 - да.0-нет | BC3: Результат | BD3: 1 | BE3: 2 | BF3: Сумма голов | BG3: Исход Победа 1,2
A4: 1 | B4: 1 | C4: Бостон Брюинз | M4: =IF(E4>F4,1,0) -> 0 | N4: =IF(G4>H4,1,0) -> 0 | O4: =IF(I4>J4,1,0) -> 0 | P4: =IF(K4>L4,1,0) -> 0 | Q4: =SUM(M4:P4)+1 -> 1 | R4: =(E4+G4+I4+K4)/4 -> 0 | S4: =(F4+H4+J4+L4)/4 -> 0 | U4: Вашингтон Кэпиталз | AE4: =IF(W4>X4,1,0) -> 0 | AF4: =IF(Y4>Z4,1,0) -> 0 | AG4: =IF(AA4>AB4,1,0) -> 0 | AH4: =IF(AC4>AD4,1,0) -> 0 | AI4: =SUM(AE4:AH4) -> 0 | AJ4: =(W4+Y4+AA4+AC4)/4 -> 0 | AK4: =(X4+Z4+AB4+AD4)/4 -> 0 | BC4: 1:4 (0:1, 0:1, 1:2) | BD4: 1 | BE4: 4 | BF4: =BD4+BE4 -> 5 | BG4: =IF(AND(BD4>BE4),1,IF(AND(BD4<BE4),2,IF(AND(BD4=BE4),3))) -> 2
A5: 2 | B5: 1 | C5: Торонто Мейпл Лифс | M5: =IF(E5>F5,1,0) -> 0 | N5: =IF(G5>H5,1,0) -> 0 | O5: =IF(I5>J5,1,0) -> 0 | P5: =IF(K5>L5,1,0) -> 0 | Q5: =SUM(M5:P5)+1 -> 1 | R5: =(E5+G5+I5+K5)/4 -> 0 | S5: =(F5+H5+J5+L5)/4 -> 0 | U5: Монреаль Канадиенс | AE5: =IF(W5>X5,1,0) -> 0 | AF5: =IF(Y5>Z5,1,0) -> 0 | AG5: =IF(AA5>AB5,1,0) -> 0 | AH5: =IF(AC5>AD5,1,0) -> 0 | AI5: =SUM(AE5:AH5) -> 0 | AJ5: =(W5+Y5+AA5+AC5)/4 -> 0 | AK5: =(X5+Z5+AB5+AD5)/4 -> 0 | BC5: 3:4 ОТ | BD5: 3 | BE5: 3 | BF5: =BD5+BE5 -> 6 | BG5: =IF(AND(BD5>BE5),1,IF(AND(BD5<BE5),2,IF(AND(BD5=BE5),3))) -> 3
A6: 3 | B6: 1 | C6: Колорадо Эвеланш | M6: =IF(E6>F6,1,0) -> 0 | N6: =IF(G6>H6,1,0) -> 0 | O6: =IF(I6>J6,1,0) -> 0 | P6: =IF(K6>L6,1,0) -> 0 | Q6: =SUM(M6:P6)+1 -> 1 | R6: =(E6+G6+I6+K6)/4 -> 0 | S6: =(F6+H6+J6+L6)/4 -> 0 | U6: Сан-Хосе Шаркс | AE6: =IF(W6>X6,1,0) -> 0 | AF6: =IF(Y6>Z6,1,0) -> 0 | AG6: =IF(AA6>AB6,1,0) -> 0 | AH6: =IF(AC6>AD6,1,0) -> 0 | AI6: =SUM(AE6:AH6) -> 0 | AJ6: =(W6+Y6+AA6+AC6)/4 -> 0 | AK6: =(X6+Z6+AB6+AD6)/4 -> 0 | BC6: 5:2 (2:1, 3:1, 0:0) | BD6: 5 | BE6: 2 | BF6: =BD6+BE6 -> 7 | BG6: =IF(AND(BD6>BE6),1,IF(AND(BD6<BE6),2,IF(AND(BD6=BE6),3))) -> 1
A7: 4 | B7: 1 | C7: Калгари Флэймз | M7: =IF(E7>F7,1,0) -> 0 | N7: =IF(G7>H7,1,0) -> 0 | O7: =IF(I7>J7,1,0) -> 0 | P7: =IF(K7>L7,1,0) -> 0 | Q7: =SUM(M7:P7)+1 -> 1 | R7: =(E7+G7+I7+K7)/4 -> 0 | S7: =(F7+H7+J7+L7)/4 -> 0 | U7: Ванкувер Кэнакс | AE7: =IF(W7>X7,1,0) -> 0 | AF7: =IF(Y7>Z7,1,0) -> 0 | AG7: =IF(AA7>AB7,1,0) -> 0 | AH7: =IF(AC7>AD7,1,0) -> 0 | AI7: =SUM(AE7:AH7) -> 0 | AJ7: =(W7+Y7+AA7+AC7)/4 -> 0 | AK7: =(X7+Z7+AB7+AD7)/4 -> 0 | BC7: 5:3 (3:0, 1:2, 1:1) | BD7: 5 | BE7: 3 | BF7: =BD7+BE7 -> 8 | BG7: =IF(AND(BD7>BE7),1,IF(AND(BD7<BE7),2,IF(AND(BD7=BE7),3))) -> 1
A8: 5 | B8: 1 | C8: Каролина Харрикейнз | M8: =IF(E8>F8,1,0) -> 0 | N8: =IF(G8>H8,1,0) -> 0 | O8: =IF(I8>J8,1,0) -> 0 | P8: =IF(K8>L8,1,0) -> 0 | Q8: =SUM(M8:P8)+1 -> 1 | R8: =(E8+G8+I8+K8)/4 -> 0 | S8: =(F8+H8+J8+L8)/4 -> 0 | U8: Филадельфия Флайерз | AE8: =IF(W8>X8,1,0) -> 0 | AF8: =IF(Y8>Z8,1,0) -> 0 | AG8: =IF(AA8>AB8,1,0) -> 0 | AH8: =IF(AC8>AD8,1,0) -> 0 | AI8: =SUM(AE8:AH8) -> 0 | AJ8: =(W8+Y8+AA8+AC8)/4 -> 0 | AK8: =(X8+Z8+AB8+AD8)/4 -> 0 | BC8: 0:2 (0:0, 0:2, 0:0) | BD8: 0 | BE8: 2 | BF8: =BD8+BE8 -> 2 | BG8: =IF(AND(BD8>BE8),1,IF(AND(BD8<BE8),2,IF(AND(BD8=BE8),3))) -> 2
A9: 6 | B9: 1 | C9: Чикаго Блэкхокс | M9: =IF(E9>F9,1,0) -> 0 | N9: =IF(G9>H9,1,0) -> 0 | O9: =IF(I9>J9,1,0) -> 0 | P9: =IF(K9>L9,1,0) -> 0 | Q9: =SUM(M9:P9)+1 -> 1 | R9: =(E9+G9+I9+K9)/4 -> 0 | S9: =(F9+H9+J9+L9)/4 -> 0 | U9: Флорида Пантерз | AE9: =IF(W9>X9,1,0) -> 0 | AF9: =IF(Y9>Z9,1,0) -> 0 | AG9: =IF(AA9>AB9,1,0) -> 0 | AH9: =IF(AC9>AD9,1,0) -> 0 | AI9: =SUM(AE9:AH9) -> 0 | AJ9: =(W9+Y9+AA9+AC9)/4 -> 0 | AK9: =(X9+Z9+AB9+AD9)/4 -> 0 | BC9: 3:4 Б | BD9: 3 | BE9: 3 | BF9: =BD9+BE9 -> 6 | BG9: =IF(AND(BD9>BE9),1,IF(AND(BD9<BE9),2,IF(AND(BD9=BE9),3))) -> 3
A10: 7 | B10: 1 | C10: Питтсбург Пингвинз | M10: =IF(E10>F10,1,0) -> 0 | N10: =IF(G10>H10,1,0) -> 0 | O10: =IF(I10>J10,1,0) -> 0 | P10: =IF(K10>L10,1,0) -> 0 | Q10: =SUM(M10:P10)+1 -> 1 | R10: =(E10+G10+I10+K10)/4 -> 0 | S10: =(F10+H10+J10+L10)/4 -> 0 | U10: Нью-Йорк Рейнджерс | AE10: =IF(W10>X10,1,0) -> 0 | AF10: =IF(Y10>Z10,1,0) -> 0 | AG10: =IF(AA10>AB10,1,0) -> 0 | AH10: =IF(AC10>AD10,1,0) -> 0 | AI10: =SUM(AE10:AH10) -> 0 | AJ10: =(W10+Y10+AA10+AC10)/4 -> 0 | AK10: =(X10+Z10+AB10+AD10)/4 -> 0 | BC10: 3:2 (1:1, 2:0, 0:1) | BD10: 3 | BE10: 2 | BF10: =BD10+BE10 -> 5 | BG10: =IF(AND(BD10>BE10),1,IF(AND(BD10<BE10),2,IF(AND(BD10=BE10),3))) -> 1
A11: 8 | B11: 1 | C11: Детройт Ред Уингз | M11: =IF(E11>F11,1,0) -> 0 | N11: =IF(G11>H11,1,0) -> 0 | O11: =IF(I11>J11,1,0) -> 0 | P11: =IF(K11>L11,1,0) -> 0 | Q11: =SUM(M11:P11)+1 -> 1 | R11: =(E11+G11+I11+K11)/4 -> 0 | S11: =(F11+H11+J11+L11)/4 -> 0 | U11: Сент-Луис Блюз | AE11: =IF(W11>X11,1,0) -> 0 | AF11: =IF(Y11>Z11,1,0) -> 0 | AG11: =IF(AA11>AB11,1,0) -> 0 | AH11: =IF(AC11>AD11,1,0) -> 0 | AI11: =SUM(AE11:AH11) -> 0 | AJ11: =(W11+Y11+AA11+AC11)/4 -> 0 | AK11: =(X11+Z11+AB11+AD11)/4 -> 0 | BC11: 3:4 (2:1, 1:3, 0:0) | BD11: 3 | BE11: 4 | BF11: =BD11+BE11 -> 7 | BG11: =IF(AND(BD11>BE11),1,IF(AND(BD11<BE11),2,IF(AND(BD11=BE11),3))) -> 2
A12: 9 | B12: 1 | C12: Колорадо Эвеланш | M12: =IF(E12>F12,1,0) -> 0 | N12: =IF(G12>H12,1,0) -> 0 | O12: =IF(I12>J12,1,0) -> 0 | P12: =IF(K12>L12,1,0) -> 0 | Q12: =SUM(M12:P12)+1 -> 1 | R12: =(E12+G12+I12+K12)/4 -> 0 | S12: =(F12+H12+J12+L12)/4 -> 0 | U12: Ванкувер Кэнакс | AE12: =IF(W12>X12,1,0) -> 0 | AF12: =IF(Y12>Z12,1,0) -> 0 | AG12: =IF(AA12>AB12,1,0) -> 0 | AH12: =IF(AC12>AD12,1,0) -> 0 | AI12: =SUM(AE12:AH12) -> 0 | AJ12: =(W12+Y12+AA12+AC12)/4 -> 0 | AK12: =(X12+Z12+AB12+AD12)/4 -> 0 | BC12: 3:0 (1:0, 1:0, 1:0) | BD12: 3 | BE12: 0 | BF12: =BD12+BE12 -> 3 | BG12: =IF(AND(BD12>BE12),1,IF(AND(BD12<BE12),2,IF(AND(BD12=BE12),3))) -> 1
A13: 10 | B13: 1 | C13: Бостон Брюинз | M13: =IF(E13>F13,1,0) -> 0 | N13: =IF(G13>H13,1,0) -> 0 | O13: =IF(I13>J13,1,0) -> 0 | P13: =IF(K13>L13,1,0) -> 0 | Q13: =SUM(M13:P13)+1 -> 1 | R13: =(E13+G13+I13+K13)/4 -> 0 | S13: =(F13+H13+J13+L13)/4 -> 0 | U13: Каролина Харрикейнз | AE13: =IF(W13>X13,1,0) -> 0 | AF13: =IF(Y13>Z13,1,0) -> 0 | AG13: =IF(AA13>AB13,1,0) -> 0 | AH13: =IF(AC13>AD13,1,0) -> 0 | AI13: =SUM(AE13:AH13) -> 0 | AJ13: =(W13+Y13+AA13+AC13)/4 -> 0 | AK13: =(X13+Z13+AB13+AD13)/4 -> 0 | BC13: 7:2 (3:0, 3:1, 1:1) | BD13: 7 | BE13: 2 | BF13: =BD13+BE13 -> 9 | BG13: =IF(AND(BD13>BE13),1,IF(AND(BD13<BE13),2,IF(AND(BD13=BE13),3))) -> 1
A14: 11 | B14: 1 | C14: Флорида Пантерз | M14: =IF(E14>F14,1,0) -> 0 | N14: =IF(G14>H14,1,0) -> 0 | O14: =IF(I14>J14,1,0) -> 0 | P14: =IF(K14>L14,1,0) -> 0 | Q14: =SUM(M14:P14)+1 -> 1 | R14: =(E14+G14+I14+K14)/4 -> 0 | S14: =(F14+H14+J14+L14)/4 -> 0 | U14: Чикаго Блэкхокс | AE14: =IF(W14>X14,1,0) -> 0 | AF14: =IF(Y14>Z14,1,0) -> 0 | AG14: =IF(AA14>AB14,1,0) -> 0 | AH14: =IF(AC14>AD14,1,0) -> 0 | AI14: =SUM(AE14:AH14) -> 0 | AJ14: =(W14+Y14+AA14+AC14)/4 -> 0 | AK14: =(X14+Z14+AB14+AD14)/4 -> 0 | BC14: 0:4 (0:1, 0:2, 0:1) | BD14: 0 | BE14: 4 | BF14: =BD14+BE14 -> 4 | BG14: =IF(AND(BD14>BE14),1,IF(AND(BD14<BE14),2,IF(AND(BD14=BE14),3))) -> 2
A15: 12 | B15: 1 | C15: Даллас Старз | M15: =IF(E15>F15,1,0) -> 0 | N15: =IF(G15>H15,1,0) -> 0 | O15: =IF(I15>J15,1,0) -> 0 | P15: =IF(K15>L15,1,0) -> 0 | Q15: =SUM(M15:P15)+1 -> 1 | R15: =(E15+G15+I15+K15)/4 -> 0 | S15: =(F15+H15+J15+L15)/4 -> 0 | U15: Нэшвилл Предаторз | AE15: =IF(W15>X15,1,0) -> 0 | AF15: =IF(Y15>Z15,1,0) -> 0 | AG15: =IF(AA15>AB15,1,0) -> 0 | AH15: =IF(AC15>AD15,1,0) -> 0 | AI15: =SUM(AE15:AH15) -> 0 | AJ15: =(W15+Y15+AA15+AC15)/4 -> 0 | AK15: =(X15+Z15+AB15+AD15)/4 -> 0 | BC15: 2:3 Б | BD15: 2 | BE15: 2 | BF15: =BD15+BE15 -> 4 | BG15: =IF(AND(BD15>BE15),1,IF(AND(BD15<BE15),2,IF(AND(BD15=BE15),3))) -> 3
A16: 13 | B16: 1 | C16: Колумбус Блю Джекетс | M16: =IF(E16>F16,1,0) -> 0 | N16: =IF(G16>H16,1,0) -> 0 | O16: =IF(I16>J16,1,0) -> 0 | P16: =IF(K16>L16,1,0) -> 0 | Q16: =SUM(M16:P16)+1 -> 1 | R16: =(E16+G16+I16+K16)/4 -> 0 | S16: =(F16+H16+J16+L16)/4 -> 0 | U16: Миннесота Уайлд | AE16: =IF(W16>X16,1,0) -> 0 | AF16: =IF(Y16>Z16,1,0) -> 0 | AG16: =IF(AA16>AB16,1,0) -> 0 | AH16: =IF(AC16>AD16,1,0) -> 0 | AI16: =SUM(AE16:AH16) -> 0 | AJ16: =(W16+Y16+AA16+AC16)/4 -> 0 | AK16: =(X16+Z16+AB16+AD16)/4 -> 0 | BC16: 2:1 (0:0, 1:0, 1:1) | BD16: 2 | BE16: 1 | BF16: =BD16+BE16 -> 3 | BG16: =IF(AND(BD16>BE16),1,IF(AND(BD16<BE16),2,IF(AND(BD16=BE16),3))) -> 1
A17: 14 | B17: 1 | C17: Атланта Трэшерз | M17: =IF(E17>F17,1,0) -> 0 | N17: =IF(G17>H17,1,0) -> 0 | O17: =IF(I17>J17,1,0) -> 0 | P17: =IF(K17>L17,1,0) -> 0 | Q17: =SUM(M17:P17)+1 -> 1 | R17: =(E17+G17+I17+K17)/4 -> 0 | S17: =(F17+H17+J17+L17)/4 -> 0 | U17: Тампа Бэй Лайтнинг | AE17: =IF(W17>X17,1,0) -> 0 | AF17: =IF(Y17>Z17,1,0) -> 0 | AG17: =IF(AA17>AB17,1,0) -> 0 | AH17: =IF(AC17>AD17,1,0) -> 0 | AI17: =SUM(AE17:AH17) -> 0 | AJ17: =(W17+Y17+AA17+AC17)/4 -> 0 | AK17: =(X17+Z17+AB17+AD17)/4 -> 0 | BC17: 6:3 (2:0, 2:2, 2:1) | BD17: 6 | BE17: 3 | BF17: =BD17+BE17 -> 9 | BG17: =IF(AND(BD17>BE17),1,IF(AND(BD17<BE17),2,IF(AND(BD17=BE17),3))) -> 1
A18: 15 | B18: 1 | C18: Анахайм Дакс | M18: =IF(E18>F18,1,0) -> 0 | N18: =IF(G18>H18,1,0) -> 0 | O18: =IF(I18>J18,1,0) -> 0 | P18: =IF(K18>L18,1,0) -> 0 | Q18: =SUM(M18:P18)+1 -> 1 | R18: =(E18+G18+I18+K18)/4 -> 0 | S18: =(F18+H18+J18+L18)/4 -> 0 | U18: Сан-Хосе Шаркс | AE18: =IF(W18>X18,1,0) -> 0 | AF18: =IF(Y18>Z18,1,0) -> 0 | AG18: =IF(AA18>AB18,1,0) -> 0 | AH18: =IF(AC18>AD18,1,0) -> 0 | AI18: =SUM(AE18:AH18) -> 0 | AJ18: =(W18+Y18+AA18+AC18)/4 -> 0 | AK18: =(X18+Z18+AB18+AD18)/4 -> 0 | BC18: 1:4 (0:3, 0:1, 1:0) | BD18: 1 | BE18: 4 | BF18: =BD18+BE18 -> 5 | BG18: =IF(AND(BD18>BE18),1,IF(AND(BD18<BE18),2,IF(AND(BD18=BE18),3))) -> 2
A19: 16 | B19: 1 | C19: Вашингтон Кэпиталз | M19: =IF(E19>F19,1,0) -> 0 | N19: =IF(G19>H19,1,0) -> 0 | O19: =IF(I19>J19,1,0) -> 0 | P19: =IF(K19>L19,1,0) -> 0 | Q19: =SUM(M19:P19)+1 -> 1 | R19: =(E19+G19+I19+K19)/4 -> 0 | S19: =(F19+H19+J19+L19)/4 -> 0 | U19: Торонто Мейпл Лифс | AE19: =IF(W19>X19,1,0) -> 0 | AF19: =IF(Y19>Z19,1,0) -> 0 | AG19: =IF(AA19>AB19,1,0) -> 0 | AH19: =IF(AC19>AD19,1,0) -> 0 | AI19: =SUM(AE19:AH19) -> 0 | AJ19: =(W19+Y19+AA19+AC19)/4 -> 0 | AK19: =(X19+Z19+AB19+AD19)/4 -> 0 | BC19: 6:4 (3:0, 3:1, 0:3) | BD19: 6 | BE19: 4 | BF19: =BD19+BE19 -> 10 | BG19: =IF(AND(BD19>BE19),1,IF(AND(BD19<BE19),2,IF(AND(BD19=BE19),3))) -> 1
A20: 17 | B20: 1 | C20: Нью-Йорк Рейнджерс | M20: =IF(E20>F20,1,0) -> 0 | N20: =IF(G20>H20,1,0) -> 0 | O20: =IF(I20>J20,1,0) -> 0 | P20: =IF(K20>L20,1,0) -> 0 | Q20: =SUM(M20:P20)+1 -> 1 | R20: =(E20+G20+I20+K20)/4 -> 0 | S20: =(F20+H20+J20+L20)/4 -> 0 | U20: Оттава Сенаторз | AE20: =IF(W20>X20,1,0) -> 0 | AF20: =IF(Y20>Z20,1,0) -> 0 | AG20: =IF(AA20>AB20,1,0) -> 0 | AH20: =IF(AC20>AD20,1,0) -> 0 | AI20: =SUM(AE20:AH20) -> 0 | AJ20: =(W20+Y20+AA20+AC20)/4 -> 0 | AK20: =(X20+Z20+AB20+AD20)/4 -> 0 | BC20: 5:2 (0:0, 3:1, 2:1) | BD20: 5 | BE20: 2 | BF20: =BD20+BE20 -> 7 | BG20: =IF(AND(BD20>BE20),1,IF(AND(BD20<BE20),2,IF(AND(BD20=BE20),3))) -> 1
A21: 18 | B21: 1 | C21: Баффало Сейбрз | M21: =IF(E21>F21,1,0) -> 0 | N21: =IF(G21>H21,1,0) -> 0 | O21: =IF(I21>J21,1,0) -> 0 | P21: =IF(K21>L21,1,0) -> 0 | Q21: =SUM(M21:P21)+1 -> 1 | R21: =(E21+G21+I21+K21)/4 -> 0 | S21: =(F21+H21+J21+L21)/4 -> 0 | U21: Монреаль Канадиенс | AE21: =IF(W21>X21,1,0) -> 0 | AF21: =IF(Y21>Z21,1,0) -> 0 | AG21: =IF(AA21>AB21,1,0) -> 0 | AH21: =IF(AC21>AD21,1,0) -> 0 | AI21: =SUM(AE21:AH21) -> 0 | AJ21: =(W21+Y21+AA21+AC21)/4 -> 0 | AK21: =(X21+Z21+AB21+AD21)/4 -> 0 | BC21: 1:2 ОТ | BD21: 1 | BE21: 1 | BF21: =BD21+BE21 -> 2 | BG21: =IF(AND(BD21>BE21),1,IF(AND(BD21<BE21),2,IF(AND(BD21=BE21),3))) -> 3
A22: 19 | B22: 1 | C22: Лос-Анджелес Кингз | M22: =IF(E22>F22,1,0) -> 0 | N22: =IF(G22>H22,1,0) -> 0 | O22: =IF(I22>J22,1,0) -> 0 | P22: =IF(K22>L22,1,0) -> 0 | Q22: =SUM(M22:P22)+1 -> 1 | R22: =(E22+G22+I22+K22)/4 -> 0 | S22: =(F22+H22+J22+L22)/4 -> 0 | U22: Финикс Койотс | AE22: =IF(W22>X22,1,0) -> 0 | AF22: =IF(Y22>Z22,1,0) -> 0 | AG22: =IF(AA22>AB22,1,0) -> 0 | AH22: =IF(AC22>AD22,1,0) -> 0 | AI22: =SUM(AE22:AH22) -> 0 | AJ22: =(W22+Y22+AA22+AC22)/4 -> 0 | AK22: =(X22+Z22+AB22+AD22)/4 -> 0 | BC22: 3:6 (0:2, 2:2, 1:2) | BD22: 3 | BE22: 6 | BF22: =BD22+BE22 -> 9 | BG22: =IF(AND(BD22>BE22),1,IF(AND(BD22<BE22),2,IF(AND(BD22=BE22),3))) -> 2
A23: 20 | B23: 1 | C23: Эдмонтон Ойлерз | M23: =IF(E23>F23,1,0) -> 0 | N23: =IF(G23>H23,1,0) -> 0 | O23: =IF(I23>J23,1,0) -> 0 | P23: =IF(K23>L23,1,0) -> 0 | Q23: =SUM(M23:P23)+1 -> 1 | R23: =(E23+G23+I23+K23)/4 -> 0 | S23: =(F23+H23+J23+L23)/4 -> 0 | U23: Калгари Флэймз | AE23: =IF(W23>X23,1,0) -> 0 | AF23: =IF(Y23>Z23,1,0) -> 0 | AG23: =IF(AA23>AB23,1,0) -> 0 | AH23: =IF(AC23>AD23,1,0) -> 0 | AI23: =SUM(AE23:AH23) -> 0 | AJ23: =(W23+Y23+AA23+AC23)/4 -> 0 | AK23: =(X23+Z23+AB23+AD23)/4 -> 0 | BC23: 3:4 (1:2, 1:1, 1:1) | BD23: 3 | BE23: 4 | BF23: =BD23+BE23 -> 7 | BG23: =IF(AND(BD23>BE23),1,IF(AND(BD23<BE23),2,IF(AND(BD23=BE23),3))) -> 2
A24: 21 | B24: 1 | C24: Сент-Луис Блюз | M24: =IF(E24>F24,1,0) -> 0 | N24: =IF(G24>H24,1,0) -> 0 | O24: =IF(I24>J24,1,0) -> 0 | P24: =IF(K24>L24,1,0) -> 0 | Q24: =SUM(M24:P24)+1 -> 1 | R24: =(E24+G24+I24+K24)/4 -> 0 | S24: =(F24+H24+J24+L24)/4 -> 0 | U24: Детройт Ред Уингз | AE24: =IF(W24>X24,1,0) -> 0 | AF24: =IF(Y24>Z24,1,0) -> 0 | AG24: =IF(AA24>AB24,1,0) -> 0 | AH24: =IF(AC24>AD24,1,0) -> 0 | AI24: =SUM(AE24:AH24) -> 0 | AJ24: =(W24+Y24+AA24+AC24)/4 -> 0 | AK24: =(X24+Z24+AB24+AD24)/4 -> 0 | BC24: 5:3 (1:2, 3:1, 1:0) | BD24: 5 | BE24: 3 | BF24: =BD24+BE24 -> 8 | BG24: =IF(AND(BD24>BE24),1,IF(AND(BD24<BE24),2,IF(AND(BD24=BE24),3))) -> 1
A25: 22 | B25: 1 | C25: Нью-Джерси Девилз | M25: =IF(E25>F25,1,0) -> 0 | N25: =IF(G25>H25,1,0) -> 0 | O25: =IF(I25>J25,1,0) -> 0 | P25: =IF(K25>L25,1,0) -> 0 | Q25: =SUM(M25:P25)+1 -> 1 | R25: =(E25+G25+I25+K25)/4 -> 0 | S25: =(F25+H25+J25+L25)/4 -> 0 | U25: Филадельфия Флайерз | AE25: =IF(W25>X25,1,0) -> 0 | AF25: =IF(Y25>Z25,1,0) -> 0 | AG25: =IF(AA25>AB25,1,0) -> 0 | AH25: =IF(AC25>AD25,1,0) -> 0 | AI25: =SUM(AE25:AH25) -> 0 | AJ25: =(W25+Y25+AA25+AC25)/4 -> 0 | AK25: =(X25+Z25+AB25+AD25)/4 -> 0 | BC25: 2:5 (0:1, 0:2, 2:2) | BD25: 2 | BE25: 5 | BF25: =BD25+BE25 -> 7 | BG25: =IF(AND(BD25>BE25),1,IF(AND(BD25<BE25),2,IF(AND(BD25=BE25),3))) -> 2
A26: 23 | B26: 1 | C26: Нью-Йорк Айлендерс | M26: =IF(E26>F26,1,0) -> 0 | N26: =IF(G26>H26,1,0) -> 0 | O26: =IF(I26>J26,1,0) -> 0 | P26: =IF(K26>L26,1,0) -> 0 | Q26: =SUM(M26:P26)+1 -> 1 | R26: =(E26+G26+I26+K26)/4 -> 0 | S26: =(F26+H26+J26+L26)/4 -> 0 | U26: Питтсбург Пингвинз | AE26: =IF(W26>X26,1,0) -> 0 | AF26: =IF(Y26>Z26,1,0) -> 0 | AG26: =IF(AA26>AB26,1,0) -> 0 | AH26: =IF(AC26>AD26,1,0) -> 0 | AI26: =SUM(AE26:AH26) -> 0 | AJ26: =(W26+Y26+AA26+AC26)/4 -> 0 | AK26: =(X26+Z26+AB26+AD26)/4 -> 0 | BC26: 3:4 Б | BD26: 3 | BE26: 3 | BF26: =BD26+BE26 -> 6 | BG26: =IF(AND(BD26>BE26),1,IF(AND(BD26<BE26),2,IF(AND(BD26=BE26),3))) -> 3
A27: 24 | B27: 1 | C27: Ванкувер Кэнакс | M27: =IF(E27>F27,1,0) -> 0 | N27: =IF(G27>H27,1,0) -> 0 | O27: =IF(I27>J27,1,0) -> 0 | P27: =IF(K27>L27,1,0) -> 0 | Q27: =SUM(M27:P27)+1 -> 1 | R27: =(E27+G27+I27+K27)/4 -> 0 | S27: =(F27+H27+J27+L27)/4 -> 0 | U27: Колумбус Блю Джекетс | AE27: =IF(W27>X27,1,0) -> 0 | AF27: =IF(Y27>Z27,1,0) -> 0 | AG27: =IF(AA27>AB27,1,0) -> 0 | AH27: =IF(AC27>AD27,1,0) -> 0 | AI27: =SUM(AE27:AH27) -> 0 | AJ27: =(W27+Y27+AA27+AC27)/4 -> 0 | AK27: =(X27+Z27+AB27+AD27)/4 -> 0 | BC27: 3:5 (1:1, 1:3, 1:1) | BD27: 3 | BE27: 5 | BF27: =BD27+BE27 -> 8 | BG27: =IF(AND(BD27>BE27),1,IF(AND(BD27<BE27),2,IF(AND(BD27=BE27),3))) -> 2
A28: 25 | B28: 1 | C28: Нью-Джерси Девилз | M28: =IF(E28>F28,1,0) -> 0 | N28: =IF(G28>H28,1,0) -> 0 | O28: =IF(I28>J28,1,0) -> 0 | P28: =IF(K28>L28,1,0) -> 0 | Q28: =SUM(M28:P28)+1 -> 1 | R28: =(E28+G28+I28+K28)/4 -> 0 | S28: =(F28+H28+J28+L28)/4 -> 0 | U28: Нью-Йорк Рейнджерс | AE28: =IF(W28>X28,1,0) -> 0 | AF28: =IF(Y28>Z28,1,0) -> 0 | AG28: =IF(AA28>AB28,1,0) -> 0 | AH28: =IF(AC28>AD28,1,0) -> 0 | AI28: =SUM(AE28:AH28) -> 0 | AJ28: =(W28+Y28+AA28+AC28)/4 -> 0 | AK28: =(X28+Z28+AB28+AD28)/4 -> 0 | BC28: 2:3 (2:2, 0:1, 0:0) | BD28: 2 | BE28: 3 | BF28: =BD28+BE28 -> 5 | BG28: =IF(AND(BD28>BE28),1,IF(AND(BD28<BE28),2,IF(AND(BD28=BE28),3))) -> 2
A29: 26 | B29: 1 | C29: Торонто Мейпл Лифс | M29: =IF(E29>F29,1,0) -> 0 | N29: =IF(G29>H29,1,0) -> 0 | O29: =IF(I29>J29,1,0) -> 0 | P29: =IF(K29>L29,1,0) -> 0 | Q29: =SUM(M29:P29)+1 -> 1 | R29: =(E29+G29+I29+K29)/4 -> 0 | S29: =(F29+H29+J29+L29)/4 -> 0 | U29: Оттава Сенаторз | AE29: =IF(W29>X29,1,0) -> 0 | AF29: =IF(Y29>Z29,1,0) -> 0 | AG29: =IF(AA29>AB29,1,0) -> 0 | AH29: =IF(AC29>AD29,1,0) -> 0 | AI29: =SUM(AE29:AH29) -> 0 | AJ29: =(W29+Y29+AA29+AC29)/4 -> 0 | AK29: =(X29+Z29+AB29+AD29)/4 -> 0 | BC29: 1:2 (0:0, 0:2, 1:0) | BD29: 1 | BE29: 2 | BF29: =BD29+BE29 -> 3 | BG29: =IF(AND(BD29>BE29),1,IF(AND(BD29<BE29),2,IF(AND(BD29=BE29),3))) -> 2
A30: 27 | B30: 1 | C30: Каролина Харрикейнз | M30: =IF(E30>F30,1,0) -> 0 | N30: =IF(G30>H30,1,0) -> 0 | O30: =IF(I30>J30,1,0) -> 0 | P30: =IF(K30>L30,1,0) -> 0 | Q30: =SUM(M30:P30)+1 -> 1 | R30: =(E30+G30+I30+K30)/4 -> 0 | S30: =(F30+H30+J30+L30)/4 -> 0 | U30: Тампа Бэй Лайтнинг | AE30: =IF(W30>X30,1,0) -> 0 | AF30: =IF(Y30>Z30,1,0) -> 0 | AG30: =IF(AA30>AB30,1,0) -> 0 | AH30: =IF(AC30>AD30,1,0) -> 0 | AI30: =SUM(AE30:AH30) -> 0 | AJ30: =(W30+Y30+AA30+AC30)/4 -> 0 | AK30: =(X30+Z30+AB30+AD30)/4 -> 0 | BC30: 2:1 Б | BD30: 1 | BE30: 1 | BF30: =BD30+BE30 -> 2 | BG30: =IF(AND(BD30>BE30),1,IF(AND(BD30<BE30),2,IF(AND(BD30=BE30),3))) -> 3
A31: 28 | B31: 1 | C31: Калгари Флэймз | M31: =IF(E31>F31,1,0) -> 0 | N31: =IF(G31>H31,1,0) -> 0 | O31: =IF(I31>J31,1,0) -> 0 | P31: =IF(K31>L31,1,0) -> 0 | Q31: =SUM(M31:P31)+1 -> 1 | R31: =(E31+G31+I31+K31)/4 -> 0 | S31: =(F31+H31+J31+L31)/4 -> 0 | U31: Монреаль Канадиенс | AE31: =IF(W31>X31,1,0) -> 0 | AF31: =IF(Y31>Z31,1,0) -> 0 | AG31: =IF(AA31>AB31,1,0) -> 0 | AH31: =IF(AC31>AD31,1,0) -> 0 | AI31: =SUM(AE31:AH31) -> 0 | AJ31: =(W31+Y31+AA31+AC31)/4 -> 0 | AK31: =(X31+Z31+AB31+AD31)/4 -> 0 | BC31: 4:3 (1:2, 2:1, 1:0) | BD31: 4 | BE31: 3 | BF31: =BD31+BE31 -> 7 | BG31: =IF(AND(BD31>BE31),1,IF(AND(BD31<BE31),2,IF(AND(BD31=BE31),3))) -> 1
A32: 29 | B32: 1 | C32: Филадельфия Флайерз | M32: =IF(E32>F32,1,0) -> 0 | N32: =IF(G32>H32,1,0) -> 0 | O32: =IF(I32>J32,1,0) -> 0 | P32: =IF(K32>L32,1,0) -> 0 | Q32: =SUM(M32:P32)+1 -> 1 | R32: =(E32+G32+I32+K32)/4 -> 0 | S32: =(F32+H32+J32+L32)/4 -> 0 | U32: Вашингтон Кэпиталз | AE32: =IF(W32>X32,1,0) -> 0 | AF32: =IF(Y32>Z32,1,0) -> 0 | AG32: =IF(AA32>AB32,1,0) -> 0 | AH32: =IF(AC32>AD32,1,0) -> 0 | AI32: =SUM(AE32:AH32) -> 0 | AJ32: =(W32+Y32+AA32+AC32)/4 -> 0 | AK32: =(X32+Z32+AB32+AD32)/4 -> 0 | BC32: 6:5 ОТ | BD32: 5 | BE32: 5 | BF32: =BD32+BE32 -> 10 | BG32: =IF(AND(BD32>BE32),1,IF(AND(BD32<BE32),2,IF(AND(BD32=BE32),3))) -> 3
A33: 30 | B33: 1 | C33: Эдмонтон Ойлерз | M33: =IF(E33>F33,1,0) -> 0 | N33: =IF(G33>H33,1,0) -> 0 | O33: =IF(I33>J33,1,0) -> 0 | P33: =IF(K33>L33,1,0) -> 0 | Q33: =SUM(M33:P33)+1 -> 1 | R33: =(E33+G33+I33+K33)/4 -> 0 | S33: =(F33+H33+J33+L33)/4 -> 0 | U33: Даллас Старз | AE33: =IF(W33>X33,1,0) -> 0 | AF33: =IF(Y33>Z33,1,0) -> 0 | AG33: =IF(AA33>AB33,1,0) -> 0 | AH33: =IF(AC33>AD33,1,0) -> 0 | AI33: =SUM(AE33:AH33) -> 0 | AJ33: =(W33+Y33+AA33+AC33)/4 -> 0 | AK33: =(X33+Z33+AB33+AD33)/4 -> 0 | BC33: 5:4 Б | BD33: 4 | BE33: 4 | BF33: =BD33+BE33 -> 8 | BG33: =IF(AND(BD33>BE33),1,IF(AND(BD33<BE33),2,IF(AND(BD33=BE33),3))) -> 3
A34: 31 | B34: 1 | C34: Лос-Анджелес Кингз | M34: =IF(E34>F34,1,0) -> 0 | N34: =IF(G34>H34,1,0) -> 0 | O34: =IF(I34>J34,1,0) -> 0 | P34: =IF(K34>L34,1,0) -> 0 | Q34: =SUM(M34:P34)+1 -> 1 | R34: =(E34+G34+I34+K34)/4 -> 0 | S34: =(F34+H34+J34+L34)/4 -> 0 | U34: Сан-Хосе Шаркс | AE34: =IF(W34>X34,1,0) -> 0 | AF34: =IF(Y34>Z34,1,0) -> 0 | AG34: =IF(AA34>AB34,1,0) -> 0 | AH34: =IF(AC34>AD34,1,0) -> 0 | AI34: =SUM(AE34:AH34) -> 0 | AJ34: =(W34+Y34+AA34+AC34)/4 -> 0 | AK34: =(X34+Z34+AB34+AD34)/4 -> 0 | BC34: 6:4 (1:0, 3:2, 2:2) | BD34: 6 | BE34: 4 | BF34: =BD34+BE34 -> 10 | BG34: =IF(AND(BD34>BE34),1,IF(AND(BD34<BE34),2,IF(AND(BD34=BE34),3))) -> 1
A35: 32 | B35: 1 | C35: Миннесота Уайлд | M35: =IF(E35>F35,1,0) -> 0 | N35: =IF(G35>H35,1,0) -> 0 | O35: =IF(I35>J35,1,0) -> 0 | P35: =IF(K35>L35,1,0) -> 0 | Q35: =SUM(M35:P35)+1 -> 1 | R35: =(E35+G35+I35+K35)/4 -> 0 | S35: =(F35+H35+J35+L35)/4 -> 0 | U35: Анахайм Дакс | AE35: =IF(W35>X35,1,0) -> 0 | AF35: =IF(Y35>Z35,1,0) -> 0 | AG35: =IF(AA35>AB35,1,0) -> 0 | AH35: =IF(AC35>AD35,1,0) -> 0 | AI35: =SUM(AE35:AH35) -> 0 | AJ35: =(W35+Y35+AA35+AC35)/4 -> 0 | AK35: =(X35+Z35+AB35+AD35)/4 -> 0 | BC35: 4:3 ОТ | BD35: 3 | BE35: 3 | BF35: =BD35+BE35 -> 6 | BG35: =IF(AND(BD35>BE35),1,IF(AND(BD35<BE35),2,IF(AND(BD35=BE35),3))) -> 3
A36: 33 | B36: 1 | C36: Ванкувер Кэнакс | M36: =IF(E36>F36,1,0) -> 0 | N36: =IF(G36>H36,1,0) -> 0 | O36: =IF(I36>J36,1,0) -> 0 | P36: =IF(K36>L36,1,0) -> 0 | Q36: =SUM(M36:P36)+1 -> 1 | R36: =(E36+G36+I36+K36)/4 -> 0 | S36: =(F36+H36+J36+L36)/4 -> 0 | U36: Монреаль Канадиенс | AE36: =IF(W36>X36,1,0) -> 0 | AF36: =IF(Y36>Z36,1,0) -> 0 | AG36: =IF(AA36>AB36,1,0) -> 0 | AH36: =IF(AC36>AD36,1,0) -> 0 | AI36: =SUM(AE36:AH36) -> 0 | AJ36: =(W36+Y36+AA36+AC36)/4 -> 0 | AK36: =(X36+Z36+AB36+AD36)/4 -> 0 | BC36: 7:1 (3:0, 2:1, 2:0) | BD36: 7 | BE36: 1 | BF36: =BD36+BE36 -> 8 | BG36: =IF(AND(BD36>BE36),1,IF(AND(BD36<BE36),2,IF(AND(BD36=BE36),3))) -> 1
A37: 34 | B37: 1 | C37: Питтсбург Пингвинз | M37: =IF(E37>F37,1,0) -> 0 | N37: =IF(G37>H37,1,0) -> 0 | O37: =IF(I37>J37,1,0) -> 0 | P37: =IF(K37>L37,1,0) -> 0 | Q37: =SUM(M37:P37)+1 -> 1 | R37: =(E37+G37+I37+K37)/4 -> 0 | S37: =(F37+H37+J37+L37)/4 -> 0 | U37: Финикс Койотс | AE37: =IF(W37>X37,1,0) -> 0 | AF37: =IF(Y37>Z37,1,0) -> 0 | AG37: =IF(AA37>AB37,1,0) -> 0 | AH37: =IF(AC37>AD37,1,0) -> 0 | AI37: =SUM(AE37:AH37) -> 0 | AJ37: =(W37+Y37+AA37+AC37)/4 -> 0 | AK37: =(X37+Z37+AB37+AD37)/4 -> 0 | BC37: 0:3 (0:1, 0:1, 0:1) | BD37: 0 | BE37: 3 | BF37: =BD37+BE37 -> 3 | BG37: =IF(AND(BD37>BE37),1,IF(AND(BD37<BE37),2,IF(AND(BD37=BE37),3))) -> 2
A38: 35 | B38: 1 | C38: Филадельфия Флайерз | M38: =IF(E38>F38,1,0) -> 0 | N38: =IF(G38>H38,1,0) -> 0 | O38: =IF(I38>J38,1,0) -> 0 | P38: =IF(K38>L38,1,0) -> 0 | Q38: =SUM(M38:P38)+1 -> 1 | R38: =(E38+G38+I38+K38)/4 -> 0 | S38: =(F38+H38+J38+L38)/4 -> 0 | U38: Питтсбург Пингвинз | AE38: =IF(W38>X38,1,0) -> 0 | AF38: =IF(Y38>Z38,1,0) -> 0 | AG38: =IF(AA38>AB38,1,0) -> 0 | AH38: =IF(AC38>AD38,1,0) -> 0 | AI38: =SUM(AE38:AH38) -> 0 | AJ38: =(W38+Y38+AA38+AC38)/4 -> 0 | AK38: =(X38+Z38+AB38+AD38)/4 -> 0 | BC38: 4:5 (1:2, 2:2, 1:1) | BD38: 4 | BE38: 5 | BF38: =BD38+BE38 -> 9 | BG38: =IF(AND(BD38>BE38),1,IF(AND(BD38<BE38),2,IF(AND(BD38=BE38),3))) -> 2
A39: 36 | B39: 1 | C39: Нэшвилл Предаторз | M39: =IF(E39>F39,1,0) -> 0 | N39: =IF(G39>H39,1,0) -> 0 | O39: =IF(I39>J39,1,0) -> 0 | P39: =IF(K39>L39,1,0) -> 0 | Q39: =SUM(M39:P39)+1 -> 1 | R39: =(E39+G39+I39+K39)/4 -> 0 | S39: =(F39+H39+J39+L39)/4 -> 0 | U39: Колорадо Эвеланш | AE39: =IF(W39>X39,1,0) -> 0 | AF39: =IF(Y39>Z39,1,0) -> 0 | AG39: =IF(AA39>AB39,1,0) -> 0 | AH39: =IF(AC39>AD39,1,0) -> 0 | AI39: =SUM(AE39:AH39) -> 0 | AJ39: =(W39+Y39+AA39+AC39)/4 -> 0 | AK39: =(X39+Z39+AB39+AD39)/4 -> 0 | BC39: 3:2 (0:0, 1:1, 2:1) | BD39: 3 | BE39: 2 | BF39: =BD39+BE39 -> 5 | BG39: =IF(AND(BD39>BE39),1,IF(AND(BD39<BE39),2,IF(AND(BD39=BE39),3))) -> 1
A40: 37 | B40: 1 | C40: Вашингтон Кэпиталз | M40: =IF(E40>F40,1,0) -> 0 | N40: =IF(G40>H40,1,0) -> 0 | O40: =IF(I40>J40,1,0) -> 0 | P40: =IF(K40>L40,1,0) -> 0 | Q40: =SUM(M40:P40)+1 -> 1 | R40: =(E40+G40+I40+K40)/4 -> 0 | S40: =(F40+H40+J40+L40)/4 -> 0 | U40: Нью-Йорк Рейнджерс | AE40: =IF(W40>X40,1,0) -> 0 | AF40: =IF(Y40>Z40,1,0) -> 0 | AG40: =IF(AA40>AB40,1,0) -> 0 | AH40: =IF(AC40>AD40,1,0) -> 0 | AI40: =SUM(AE40:AH40) -> 0 | AJ40: =(W40+Y40+AA40+AC40)/4 -> 0 | AK40: =(X40+Z40+AB40+AD40)/4 -> 0 | BC40: 3:4 (1:0, 0:2, 2:2) | BD40: 3 | BE40: 4 | BF40: =BD40+BE40 -> 7 | BG40: =IF(AND(BD40>BE40),1,IF(AND(BD40<BE40),2,IF(AND(BD40=BE40),3))) -> 2
A41: 38 | B41: 1 | C41: Баффало Сейбрз | M41: =IF(E41>F41,1,0) -> 0 | N41: =IF(G41>H41,1,0) -> 0 | O41: =IF(I41>J41,1,0) -> 0 | P41: =IF(K41>L41,1,0) -> 0 | Q41: =SUM(M41:P41)+1 -> 1 | R41: =(E41+G41+I41+K41)/4 -> 0 | S41: =(F41+H41+J41+L41)/4 -> 0 | U41: Финикс Койотс | AE41: =IF(W41>X41,1,0) -> 0 | AF41: =IF(Y41>Z41,1,0) -> 0 | AG41: =IF(AA41>AB41,1,0) -> 0 | AH41: =IF(AC41>AD41,1,0) -> 0 | AI41: =SUM(AE41:AH41) -> 0 | AJ41: =(W41+Y41+AA41+AC41)/4 -> 0 | AK41: =(X41+Z41+AB41+AD41)/4 -> 0 | BC41: 2:1 (0:0, 0:0, 2:1) | BD41: 2 | BE41: 1 | BF41: =BD41+BE41 -> 3 | BG41: =IF(AND(BD41>BE41),1,IF(AND(BD41<BE41),2,IF(AND(BD41=BE41),3))) -> 1
A42: 39 | B42: 1 | C42: Бостон Брюинз | M42: =IF(E42>F42,1,0) -> 0 | N42: =IF(G42>H42,1,0) -> 0 | O42: =IF(I42>J42,1,0) -> 0 | P42: =IF(K42>L42,1,0) -> 0 | Q42: =SUM(M42:P42)+1 -> 1 | R42: =(E42+G42+I42+K42)/4 -> 0 | S42: =(F42+H42+J42+L42)/4 -> 0 | U42: Анахайм Дакс | AE42: =IF(W42>X42,1,0) -> 0 | AF42: =IF(Y42>Z42,1,0) -> 0 | AG42: =IF(AA42>AB42,1,0) -> 0 | AH42: =IF(AC42>AD42,1,0) -> 0 | AI42: =SUM(AE42:AH42) -> 0 | AJ42: =(W42+Y42+AA42+AC42)/4 -> 0 | AK42: =(X42+Z42+AB42+AD42)/4 -> 0 | BC42: 1:6 (1:0, 0:3, 0:3) | BD42: 1 | BE42: 6 | BF42: =BD42+BE42 -> 7 | BG42: =IF(AND(BD42>BE42),1,IF(AND(BD42<BE42),2,IF(AND(BD42=BE42),3))) -> 2
A43: 40 | B43: 1 | C43: Сент-Луис Блюз | M43: =IF(E43>F43,1,0) -> 0 | N43: =IF(G43>H43,1,0) -> 0 | O43: =IF(I43>J43,1,0) -> 0 | P43: =IF(K43>L43,1,0) -> 0 | Q43: =SUM(M43:P43)+1 -> 1 | R43: =(E43+G43+I43+K43)/4 -> 0 | S43: =(F43+H43+J43+L43)/4 -> 0 | U43: Атланта Трэшерз | AE43: =IF(W43>X43,1,0) -> 0 | AF43: =IF(Y43>Z43,1,0) -> 0 | AG43: =IF(AA43>AB43,1,0) -> 0 | AH43: =IF(AC43>AD43,1,0) -> 0 | AI43: =SUM(AE43:AH43) -> 0 | AJ43: =(W43+Y43+AA43+AC43)/4 -> 0 | AK43: =(X43+Z43+AB43+AD43)/4 -> 0 | BC43: 2:4 (1:2, 0:1, 1:1) | BD43: 2 | BE43: 4 | BF43: =BD43+BE43 -> 6 | BG43: =IF(AND(BD43>BE43),1,IF(AND(BD43<BE43),2,IF(AND(BD43=BE43),3))) -> 2
A44: 41 | B44: 1 | C44: Оттава Сенаторз | M44: =IF(E44>F44,1,0) -> 0 | N44: =IF(G44>H44,1,0) -> 0 | O44: =IF(I44>J44,1,0) -> 0 | P44: =IF(K44>L44,1,0) -> 0 | Q44: =SUM(M44:P44)+1 -> 1 | R44: =(E44+G44+I44+K44)/4 -> 0 | S44: =(F44+H44+J44+L44)/4 -> 0 | U44: Нью-Йорк Айлендерс | AE44: =IF(W44>X44,1,0) -> 0 | AF44: =IF(Y44>Z44,1,0) -> 0 | AG44: =IF(AA44>AB44,1,0) -> 0 | AH44: =IF(AC44>AD44,1,0) -> 0 | AI44: =SUM(AE44:AH44) -> 0 | AJ44: =(W44+Y44+AA44+AC44)/4 -> 0 | AK44: =(X44+Z44+AB44+AD44)/4 -> 0 | BC44: 3:2 ОТ | BD44: 2 | BE44: 2 | BF44: =BD44+BE44 -> 4 | BG44: =IF(AND(BD44>BE44),1,IF(AND(BD44<BE44),2,IF(AND(BD44=BE44),3))) -> 3
A45: 42 | B45: 1 | C45: Эдмонтон Ойлерз | M45: =IF(E45>F45,1,0) -> 0 | N45: =IF(G45>H45,1,0) -> 0 | O45: =IF(I45>J45,1,0) -> 0 | P45: =IF(K45>L45,1,0) -> 0 | Q45: =SUM(M45:P45)+1 -> 1 | R45: =(E45+G45+I45+K45)/4 -> 0 | S45: =(F45+H45+J45+L45)/4 -> 0 | U45: Калгари Флэймз | AE45: =IF(W45>X45,1,0) -> 0 | AF45: =IF(Y45>Z45,1,0) -> 0 | AG45: =IF(AA45>AB45,1,0) -> 0 | AH45: =IF(AC45>AD45,1,0) -> 0 | AI45: =SUM(AE45:AH45) -> 0 | AJ45: =(W45+Y45+AA45+AC45)/4 -> 0 | AK45: =(X45+Z45+AB45+AD45)/4 -> 0 | BC45: 3:4 Б | BD45: 3 | BE45: 3 | BF45: =BD45+BE45 -> 6 | BG45: =IF(AND(BD45>BE45),1,IF(AND(BD45<BE45),2,IF(AND(BD45=BE45),3))) -> 3
A46: 43 | B46: 1 | C46: Лос-Анджелес Кингз | M46: =IF(E46>F46,1,0) -> 0 | N46: =IF(G46>H46,1,0) -> 0 | O46: =IF(I46>J46,1,0) -> 0 | P46: =IF(K46>L46,1,0) -> 0 | Q46: =SUM(M46:P46)+1 -> 1 | R46: =(E46+G46+I46+K46)/4 -> 0 | S46: =(F46+H46+J46+L46)/4 -> 0 | U46: Миннесота Уайлд | AE46: =IF(W46>X46,1,0) -> 0 | AF46: =IF(Y46>Z46,1,0) -> 0 | AG46: =IF(AA46>AB46,1,0) -> 0 | AH46: =IF(AC46>AD46,1,0) -> 0 | AI46: =SUM(AE46:AH46) -> 0 | AJ46: =(W46+Y46+AA46+AC46)/4 -> 0 | AK46: =(X46+Z46+AB46+AD46)/4 -> 0 | BC46: 6:3 (3:0, 1:2, 2:1) | BD46: 6 | BE46: 3 | BF46: =BD46+BE46 -> 9 | BG46: =IF(AND(BD46>BE46),1,IF(AND(BD46<BE46),2,IF(AND(BD46=BE46),3))) -> 1
A47: 44 | B47: 1 | C47: Детройт Ред Уингз | M47: =IF(E47>F47,1,0) -> 0 | N47: =IF(G47>H47,1,0) -> 0 | O47: =IF(I47>J47,1,0) -> 0 | P47: =IF(K47>L47,1,0) -> 0 | Q47: =SUM(M47:P47)+1 -> 1 | R47: =(E47+G47+I47+K47)/4 -> 0 | S47: =(F47+H47+J47+L47)/4 -> 0 | U47: Чикаго Блэкхокс | AE47: =IF(W47>X47,1,0) -> 0 | AF47: =IF(Y47>Z47,1,0) -> 0 | AG47: =IF(AA47>AB47,1,0) -> 0 | AH47: =IF(AC47>AD47,1,0) -> 0 | AI47: =SUM(AE47:AH47) -> 0 | AJ47: =(W47+Y47+AA47+AC47)/4 -> 0 | AK47: =(X47+Z47+AB47+AD47)/4 -> 0 | BC47: 3:2 (0:0, 3:1, 0:1) | BD47: 3 | BE47: 2 | BF47: =BD47+BE47 -> 5 | BG47: =IF(AND(BD47>BE47),1,IF(AND(BD47<BE47),2,IF(AND(BD47=BE47),3))) -> 1
A48: 45 | B48: 1 | C48: Тампа Бэй Лайтнинг | M48: =IF(E48>F48,1,0) -> 0 | N48: =IF(G48>H48,1,0) -> 0 | O48: =IF(I48>J48,1,0) -> 0 | P48: =IF(K48>L48,1,0) -> 0 | Q48: =SUM(M48:P48)+1 -> 1 | R48: =(E48+G48+I48+K48)/4 -> 0 | S48: =(F48+H48+J48+L48)/4 -> 0 | U48: Нью-Джерси Девилз | AE48: =IF(W48>X48,1,0) -> 0 | AF48: =IF(Y48>Z48,1,0) -> 0 | AG48: =IF(AA48>AB48,1,0) -> 0 | AH48: =IF(AC48>AD48,1,0) -> 0 | AI48: =SUM(AE48:AH48) -> 0 | AJ48: =(W48+Y48+AA48+AC48)/4 -> 0 | AK48: =(X48+Z48+AB48+AD48)/4 -> 0 | BC48: 3:4 Б | BD48: 3 | BE48: 3 | BF48: =BD48+BE48 -> 6 | BG48: =IF(AND(BD48>BE48),1,IF(AND(BD48<BE48),2,IF(AND(BD48=BE48),3))) -> 3
A49: 46 | B49: 1 | C49: Сан-Хосе Шаркс | M49: =IF(E49>F49,1,0) -> 0 | N49: =IF(G49>H49,1,0) -> 0 | O49: =IF(I49>J49,1,0) -> 0 | P49: =IF(K49>L49,1,0) -> 0 | Q49: =SUM(M49:P49)+1 -> 1 | R49: =(E49+G49+I49+K49)/4 -> 0 | S49: =(F49+H49+J49+L49)/4 -> 0 | U49: Колумбус Блю Джекетс | AE49: =IF(W49>X49,1,0) -> 0 | AF49: =IF(Y49>Z49,1,0) -> 0 | AG49: =IF(AA49>AB49,1,0) -> 0 | AH49: =IF(AC49>AD49,1,0) -> 0 | AI49: =SUM(AE49:AH49) -> 0 | AJ49: =(W49+Y49+AA49+AC49)/4 -> 0 | AK49: =(X49+Z49+AB49+AD49)/4 -> 0 | BC49: 6:3 (0:1, 4:1, 2:1) | BD49: 6 | BE49: 3 | BF49: =BD49+BE49 -> 9 | BG49: =IF(AND(BD49>BE49),1,IF(AND(BD49<BE49),2,IF(AND(BD49=BE49),3))) -> 1
A50: 47 | B50: 1 | C50: Калгари Флэймз | E50: 4 | F50: 3 | G50: 4 | H50: 3 | I50: 4 | J50: 3 | K50: 5 | L50: 3 | M50: =IF(E50>F50,1,0) -> 1 | N50: =IF(G50>H50,1,0) -> 1 | O50: =IF(I50>J50,1,0) -> 1 | P50: =IF(K50>L50,1,0) -> 1 | Q50: =SUM(M50:P50)+1 -> 5 | R50: =(E50+G50+I50+K50)/4 -> 4.25 | S50: =(F50+H50+J50+L50)/4 -> 3 | U50: Даллас Старз | AE50: =IF(W50>X50,1,0) -> 0 | AF50: =IF(Y50>Z50,1,0) -> 0 | AG50: =IF(AA50>AB50,1,0) -> 0 | AH50: =IF(AC50>AD50,1,0) -> 0 | AI50: =SUM(AE50:AH50) -> 0 | AJ50: =(W50+Y50+AA50+AC50)/4 -> 0 | AK50: =(X50+Z50+AB50+AD50)/4 -> 0 | BC50: 2:5 (0:1, 1:2, 1:2) | BD50: 2 | BE50: 5 | BF50: =BD50+BE50 -> 7 | BG50: =IF(AND(BD50>BE50),1,IF(AND(BD50<BE50),2,IF(AND(BD50=BE50),3))) -> 2
A51: 48 | B51: 1 | C51: Каролина Харрикейнз | M51: =IF(E51>F51,1,0) -> 0 | N51: =IF(G51>H51,1,0) -> 0 | O51: =IF(I51>J51,1,0) -> 0 | P51: =IF(K51>L51,1,0) -> 0 | Q51: =SUM(M51:P51)+1 -> 1 | R51: =(E51+G51+I51+K51)/4 -> 0 | S51: =(F51+H51+J51+L51)/4 -> 0 | U51: Флорида Пантерз | AE51: =IF(W51>X51,1,0) -> 0 | AF51: =IF(Y51>Z51,1,0) -> 0 | AG51: =IF(AA51>AB51,1,0) -> 0 | AH51: =IF(AC51>AD51,1,0) -> 0 | AI51: =SUM(AE51:AH51) -> 0 | AJ51: =(W51+Y51+AA51+AC51)/4 -> 0 | AK51: =(X51+Z51+AB51+AD51)/4 -> 0 | BC51: 7:2 (3:0, 1:1, 3:1) | BD51: 7 | BE51: 2 | BF51: =BD51+BE51 -> 9 | BG51: =IF(AND(BD51>BE51),1,IF(AND(BD51<BE51),2,IF(AND(BD51=BE51),3))) -> 1
A52: 49 | B52: 1 | C52: Финикс Койотс | M52: =IF(E52>F52,1,0) -> 0 | N52: =IF(G52>H52,1,0) -> 0 | O52: =IF(I52>J52,1,0) -> 0 | P52: =IF(K52>L52,1,0) -> 0 | Q52: =SUM(M52:P52)+1 -> 1 | R52: =(E52+G52+I52+K52)/4 -> 0 | S52: =(F52+H52+J52+L52)/4 -> 0 | U52: Колумбус Блю Джекетс | AE52: =IF(W52>X52,1,0) -> 0 | AF52: =IF(Y52>Z52,1,0) -> 0 | AG52: =IF(AA52>AB52,1,0) -> 0 | AH52: =IF(AC52>AD52,1,0) -> 0 | AI52: =SUM(AE52:AH52) -> 0 | AJ52: =(W52+Y52+AA52+AC52)/4 -> 0 | AK52: =(X52+Z52+AB52+AD52)/4 -> 0 | BC52: 0:2 (0:1, 0:0, 0:1) | BD52: 0 | BE52: 2 | BF52: =BD52+BE52 -> 2 | BG52: =IF(AND(BD52>BE52),1,IF(AND(BD52<BE52),2,IF(AND(BD52=BE52),3))) -> 2
A53: 50 | B53: 1 | C53: Сент-Луис Блюз | M53: =IF(E53>F53,1,0) -> 0 | N53: =IF(G53>H53,1,0) -> 0 | O53: =IF(I53>J53,1,0) -> 0 | P53: =IF(K53>L53,1,0) -> 0 | Q53: =SUM(M53:P53)+1 -> 1 | R53: =(E53+G53+I53+K53)/4 -> 0 | S53: =(F53+H53+J53+L53)/4 -> 0 | U53: Лос-Анджелес Кингз | AE53: =IF(W53>X53,1,0) -> 0 | AF53: =IF(Y53>Z53,1,0) -> 0 | AG53: =IF(AA53>AB53,1,0) -> 0 | AH53: =IF(AC53>AD53,1,0) -> 0 | AI53: =SUM(AE53:AH53) -> 0 | AJ53: =(W53+Y53+AA53+AC53)/4 -> 0 | AK53: =(X53+Z53+AB53+AD53)/4 -> 0 | BC53: 1:2 (0:1, 0:1, 1:0) | BD53: 1 | BE53: 2 | BF53: =BD53+BE53 -> 3 | BG53: =IF(AND(BD53>BE53),1,IF(AND(BD53<BE53),2,IF(AND(BD53=BE53),3))) -> 2
A54: 51 | B54: 1 | C54: Детройт Ред Уингз | M54: =IF(E54>F54,1,0) -> 0 | N54: =IF(G54>H54,1,0) -> 0 | O54: =IF(I54>J54,1,0) -> 0 | P54: =IF(K54>L54,1,0) -> 0 | Q54: =SUM(M54:P54)+1 -> 1 | R54: =(E54+G54+I54+K54)/4 -> 0 | S54: =(F54+H54+J54+L54)/4 -> 0 | U54: Вашингтон Кэпиталз | W54: 3 | X54: 4 | Y54: 5 | Z54: 6 | AA54: 6 | AB54: 4 | AC54: 4 | AD54: 1 | AE54: =IF(W54>X54,1,0) -> 0 | AF54: =IF(Y54>Z54,1,0) -> 0 | AG54: =IF(AA54>AB54,1,0) -> 1 | AH54: =IF(AC54>AD54,1,0) -> 1 | AI54: =SUM(AE54:AH54) -> 2 | AJ54: =(W54+Y54+AA54+AC54)/4 -> 4.5 | AK54: =(X54+Z54+AB54+AD54)/4 -> 3.75 | BC54: 3:2 (1:1, 1:0, 1:1) | BD54: 3 | BE54: 2 | BF54: =BD54+BE54 -> 5 | BG54: =IF(AND(BD54>BE54),1,IF(AND(BD54<BE54),2,IF(AND(BD54=BE54),3))) -> 1
A55: 52 | B55: 1 | C55: Бостон Брюинз | M55: =IF(E55>F55,1,0) -> 0 | N55: =IF(G55>H55,1,0) -> 0 | O55: =IF(I55>J55,1,0) -> 0 | P55: =IF(K55>L55,1,0) -> 0 | Q55: =SUM(M55:P55)+1 -> 1 | R55: =(E55+G55+I55+K55)/4 -> 0 | S55: =(F55+H55+J55+L55)/4 -> 0 | U55: Нью-Йорк Айлендерс | AE55: =IF(W55>X55,1,0) -> 0 | AF55: =IF(Y55>Z55,1,0) -> 0 | AG55: =IF(AA55>AB55,1,0) -> 0 | AH55: =IF(AC55>AD55,1,0) -> 0 | AI55: =SUM(AE55:AH55) -> 0 | AJ55: =(W55+Y55+AA55+AC55)/4 -> 0 | AK55: =(X55+Z55+AB55+AD55)/4 -> 0 | BC55: 4:3 Б | BD55: 3 | BE55: 3 | BF55: =BD55+BE55 -> 6 | BG55: =IF(AND(BD55>BE55),1,IF(AND(BD55<BE55),2,IF(AND(BD55=BE55),3))) -> 3
A56: 53 | B56: 1 | C56: Филадельфия Флайерз | E56: 4 | F56: 5 | G56: 6 | H56: 5 | I56: 5 | J56: 2 | K56: 2 | L56: 0 | M56: =IF(E56>F56,1,0) -> 0 | N56: =IF(G56>H56,1,0) -> 1 | O56: =IF(I56>J56,1,0) -> 1 | P56: =IF(K56>L56,1,0) -> 1 | Q56: =SUM(M56:P56)+1 -> 4 | R56: =(E56+G56+I56+K56)/4 -> 4.25 | S56: =(F56+H56+J56+L56)/4 -> 3 | U56: Анахайм Дакс | AE56: =IF(W56>X56,1,0) -> 0 | AF56: =IF(Y56>Z56,1,0) -> 0 | AG56: =IF(AA56>AB56,1,0) -> 0 | AH56: =IF(AC56>AD56,1,0) -> 0 | AI56: =SUM(AE56:AH56) -> 0 | AJ56: =(W56+Y56+AA56+AC56)/4 -> 0 | AK56: =(X56+Z56+AB56+AD56)/4 -> 0 | BC56: 2:3 Б | BD56: 2 | BE56: 2 | BF56: =BD56+BE56 -> 4 | BG56: =IF(AND(BD56>BE56),1,IF(AND(BD56<BE56),2,IF(AND(BD56=BE56),3))) -> 3
A57: 54 | B57: 1 | C57: Нэшвилл Предаторз | M57: =IF(E57>F57,1,0) -> 0 | N57: =IF(G57>H57,1,0) -> 0 | O57: =IF(I57>J57,1,0) -> 0 | P57: =IF(K57>L57,1,0) -> 0 | Q57: =SUM(M57:P57)+1 -> 1 | R57: =(E57+G57+I57+K57)/4 -> 0 | S57: =(F57+H57+J57+L57)/4 -> 0 | U57: Баффало Сейбрз | AE57: =IF(W57>X57,1,0) -> 0 | AF57: =IF(Y57>Z57,1,0) -> 0 | AG57: =IF(AA57>AB57,1,0) -> 0 | AH57: =IF(AC57>AD57,1,0) -> 0 | AI57: =SUM(AE57:AH57) -> 0 | AJ57: =(W57+Y57+AA57+AC57)/4 -> 0 | AK57: =(X57+Z57+AB57+AD57)/4 -> 0 | BC57: 0:1 (0:0, 0:0, 0:1) | BD57: 0 | BE57: 1 | BF57: =BD57+BE57 -> 1 | BG57: =IF(AND(BD57>BE57),1,IF(AND(BD57<BE57),2,IF(AND(BD57=BE57),3))) -> 2
A58: 55 | B58: 1 | C58: Оттава Сенаторз | M58: =IF(E58>F58,1,0) -> 0 | N58: =IF(G58>H58,1,0) -> 0 | O58: =IF(I58>J58,1,0) -> 0 | P58: =IF(K58>L58,1,0) -> 0 | Q58: =SUM(M58:P58)+1 -> 1 | R58: =(E58+G58+I58+K58)/4 -> 0 | S58: =(F58+H58+J58+L58)/4 -> 0 | U58: Атланта Трэшерз | AE58: =IF(W58>X58,1,0) -> 0 | AF58: =IF(Y58>Z58,1,0) -> 0 | AG58: =IF(AA58>AB58,1,0) -> 0 | AH58: =IF(AC58>AD58,1,0) -> 0 | AI58: =SUM(AE58:AH58) -> 0 | AJ58: =(W58+Y58+AA58+AC58)/4 -> 0 | AK58: =(X58+Z58+AB58+AD58)/4 -> 0 | BC58: 4:2 (2:2, 1:0, 1:0) | BD58: 4 | BE58: 2 | BF58: =BD58+BE58 -> 6 | BG58: =IF(AND(BD58>BE58),1,IF(AND(BD58<BE58),2,IF(AND(BD58=BE58),3))) -> 1
A59: 56 | B59: 1 | C59: Флорида Пантерз | M59: =IF(E59>F59,1,0) -> 0 | N59: =IF(G59>H59,1,0) -> 0 | O59: =IF(I59>J59,1,0) -> 0 | P59: =IF(K59>L59,1,0) -> 0 | Q59: =SUM(M59:P59)+1 -> 1 | R59: =(E59+G59+I59+K59)/4 -> 0 | S59: =(F59+H59+J59+L59)/4 -> 0 | U59: Нью-Джерси Девилз | AE59: =IF(W59>X59,1,0) -> 0 | AF59: =IF(Y59>Z59,1,0) -> 0 | AG59: =IF(AA59>AB59,1,0) -> 0 | AH59: =IF(AC59>AD59,1,0) -> 0 | AI59: =SUM(AE59:AH59) -> 0 | AJ59: =(W59+Y59+AA59+AC59)/4 -> 0 | AK59: =(X59+Z59+AB59+AD59)/4 -> 0 | BC59: 2:3 (0:0, 1:2, 1:1) | BD59: 2 | BE59: 3 | BF59: =BD59+BE59 -> 5 | BG59: =IF(AND(BD59>BE59),1,IF(AND(BD59<BE59),2,IF(AND(BD59=BE59),3))) -> 2
A60: 63 | B60: 1 | C60: Торонто Мейпл Лифс | M60: =IF(E60>F60,1,0) -> 0 | N60: =IF(G60>H60,1,0) -> 0 | O60: =IF(I60>J60,1,0) -> 0 | P60: =IF(K60>L60,1,0) -> 0 | Q60: =SUM(M60:P60)+1 -> 1 | R60: =(E60+G60+I60+K60)/4 -> 0 | S60: =(F60+H60+J60+L60)/4 -> 0 | U60: Питтсбург Пингвинз | W60: 5 | X60: 4 | Y60: 0 | Z60: 3 | AA60: 4 | AB60: 3 | AC60: 3 | AD60: 2 | AE60: =IF(W60>X60,1,0) -> 1 | AF60: =IF(Y60>Z60,1,0) -> 0 | AG60: =IF(AA60>AB60,1,0) -> 1 | AH60: =IF(AC60>AD60,1,0) -> 1 | AI60: =SUM(AE60:AH60) -> 3 | AJ60: =(W60+Y60+AA60+AC60)/4 -> 3 | AK60: =(X60+Z60+AB60+AD60)/4 -> 3 | AM60: =R60+AJ60 -> 3 | AN60: =S60+AK60 -> 3 | AO60: =(R60+AK60)/2+(Q60/10) -> 1.6 | AP60: =(S60+AJ60)/2 -> 1.5 | AQ60: =AO60+AP60 -> 3.1 | AR60: =IF(AQ60>=5.3,5) -> FALSE | AS60: =IF(AQ60<5.3,6,0) -> 6 | BC60: 2:5 (0:2, 1:2, 1:1) | BD60: 2 | BE60: 5 | BF60: =BD60+BE60 -> 7 | BG60: =IF(AND(BD60>BE60),1,IF(AND(BD60<BE60),2,IF(AND(BD60=BE60),3))) -> 2
A61: 70 | B61: 1 | C61: Тампа Бэй Лайтнинг | M61: =IF(E61>F61,1,0) -> 0 | N61: =IF(G61>H61,1,0) -> 0 | O61: =IF(I61>J61,1,0) -> 0 | P61: =IF(K61>L61,1,0) -> 0 | Q61: =SUM(M61:P61)+1 -> 1 | R61: =(E61+G61+I61+K61)/4 -> 0 | S61: =(F61+H61+J61+L61)/4 -> 0 | U61: Каролина Харрикейнз | W61: 7 | X61: 2 | Y61: 2 | Z61: 1 | AA61: 2 | AB61: 7 | AC61: 0 | AD61: 2 | AE61: =IF(W61>X61,1,0) -> 1 | AF61: =IF(Y61>Z61,1,0) -> 1 | AG61: =IF(AA61>AB61,1,0) -> 0 | AH61: =IF(AC61>AD61,1,0) -> 0 | AI61: =SUM(AE61:AH61) -> 2 | AJ61: =(W61+Y61+AA61+AC61)/4 -> 2.75 | AK61: =(X61+Z61+AB61+AD61)/4 -> 3 | AM61: =R61+AJ61 -> 2.75 | AN61: =S61+AK61 -> 3 | AO61: =(R61+AK61)/2+(Q61/10) -> 1.6 | AP61: =(S61+AJ61)/2 -> 1.375 | AQ61: =AO61+AP61 -> 2.975 | AR61: =IF(AQ61>=5.3,5) -> FALSE | AS61: =IF(AQ61<5.3,6,0) -> 6 | BC61: 5:2 (0:0, 2:2, 3:0) | BD61: 5 | BE61: 2 | BF61: =BD61+BE61 -> 7 | BG61: =IF(AND(BD61>BE61),1,IF(AND(BD61<BE61),2,IF(AND(BD61=BE61),3))) -> 1
A62: 64 | B62: 1 | C62: Сан-Хосе Шаркс | E62: 6 | F62: 3 | G62: 4 | H62: 6 | I62: 4 | J62: 1 | K62: 2 | L62: 5 | M62: =IF(E62>F62,1,0) -> 1 | N62: =IF(G62>H62,1,0) -> 0 | O62: =IF(I62>J62,1,0) -> 1 | P62: =IF(K62>L62,1,0) -> 0 | Q62: =SUM(M62:P62)+1 -> 3 | R62: =(E62+G62+I62+K62)/4 -> 4 | S62: =(F62+H62+J62+L62)/4 -> 3.75 | U62: Миннесота Уайлд | AE62: =IF(W62>X62,1,0) -> 0 | AF62: =IF(Y62>Z62,1,0) -> 0 | AG62: =IF(AA62>AB62,1,0) -> 0 | AH62: =IF(AC62>AD62,1,0) -> 0 | AI62: =SUM(AE62:AH62) -> 0 | AJ62: =(W62+Y62+AA62+AC62)/4 -> 0 | AK62: =(X62+Z62+AB62+AD62)/4 -> 0 | AM62: =R62+AJ62 -> 4 | AN62: =S62+AK62 -> 3.75 | AO62: =(R62+AK62)/2+(Q62/10) -> 2.3 | AP62: =(S62+AJ62)/2 -> 1.875 | AQ62: =AO62+AP62 -> 4.175 | AR62: =IF(AQ62>=5.3,5) -> FALSE | AS62: =IF(AQ62<5.3,6,0) -> 6 | BC62: 4:2 (0:1, 3:1, 1:0) | BD62: 4 | BE62: 2 | BF62: =BD62+BE62 -> 6 | BG62: =IF(AND(BD62>BE62),1,IF(AND(BD62<BE62),2,IF(AND(BD62=BE62),3))) -> 1
A63: 58 | B63: 1 | C63: Чикаго Блэкхокс | M63: =IF(E63>F63,1,0) -> 0 | N63: =IF(G63>H63,1,0) -> 0 | O63: =IF(I63>J63,1,0) -> 0 | P63: =IF(K63>L63,1,0) -> 0 | Q63: =SUM(M63:P63)+1 -> 1 | R63: =(E63+G63+I63+K63)/4 -> 0 | S63: =(F63+H63+J63+L63)/4 -> 0 | U63: Колорадо Эвеланш | AE63: =IF(W63>X63,1,0) -> 0 | AF63: =IF(Y63>Z63,1,0) -> 0 | AG63: =IF(AA63>AB63,1,0) -> 0 | AH63: =IF(AC63>AD63,1,0) -> 0 | AI63: =SUM(AE63:AH63) -> 0 | AJ63: =(W63+Y63+AA63+AC63)/4 -> 0 | AK63: =(X63+Z63+AB63+AD63)/4 -> 0 | BC63: 4:3 Б | BD63: 3 | BE63: 3 | BF63: =BD63+BE63 -> 6 | BG63: =IF(AND(BD63>BE63),1,IF(AND(BD63<BE63),2,IF(AND(BD63=BE63),3))) -> 3
C64: Эдмонтон Ойлерз | M64: =IF(E64>F64,1,0) -> 0 | N64: =IF(G64>H64,1,0) -> 0 | O64: =IF(I64>J64,1,0) -> 0 | P64: =IF(K64>L64,1,0) -> 0 | Q64: =SUM(M64:P64)+1 -> 1 | U64: Монреаль Канадиенс | W64: 1 | X64: 7 | Y64: 3 | Z64: 4 | AA64: 2 | AB64: 1 | AC64: 4 | AD64: 3 | AE64: =IF(W64>X64,1,0) -> 0 | AF64: =IF(Y64>Z64,1,0) -> 0 | AG64: =IF(AA64>AB64,1,0) -> 1 | AH64: =IF(AC64>AD64,1,0) -> 1 | AI64: =SUM(AE64:AH64) -> 2 | BC64: 3:2 (1:0, 2:1, 0:1) | BD64: 3 | BE64: 2 | BG64: =IF(AND(BD64>BE64),1,IF(AND(BD64<BE64),2,IF(AND(BD64=BE64),3))) -> 1
A65: 59 | B65: 1 | C65: Нью-Йорк Рейнджерс | E65: 4 | F65: 3 | G65: 3 | H65: 2 | I65: 5 | J65: 2 | K65: 2 | L65: 3 | M65: =IF(E65>F65,1,0) -> 1 | N65: =IF(G65>H65,1,0) -> 1 | O65: =IF(I65>J65,1,0) -> 1 | P65: =IF(K65>L65,1,0) -> 0 | Q65: =SUM(M65:P65)+1 -> 4 | R65: =(E65+G65+I65+K65)/4 -> 3.5 | S65: =(F65+H65+J65+L65)/4 -> 2.5 | T65: =R65-S65 -> 1 | U65: Анахайм Дакс | W65: 3 | X65: 2 | Y65: 6 | Z65: 1 | AA65: 4 | AB65: 3 | AC65: 1 | AD65: 4 | AE65: =IF(W65>X65,1,0) -> 1 | AF65: =IF(Y65>Z65,1,0) -> 1 | AG65: =IF(AA65>AB65,1,0) -> 1 | AH65: =IF(AC65>AD65,1,0) -> 0 | AI65: =SUM(AE65:AH65) -> 3 | AJ65: =(W65+Y65+AA65+AC65)/4 -> 3.5 | AK65: =(X65+Z65+AB65+AD65)/4 -> 2.5 | AL65: =AJ65-AK65 -> 1 | AM65: =R65+AJ65 -> 7 | AN65: =S65+AK65 -> 5 | AO65: =(R65+AK65)/2+(Q65/10) -> 3.4 | AP65: =(S65+AJ65)/2 -> 3 | AQ65: =AO65+AP65 -> 6.4 | BC65: 3:0 (0:0, 0:0, 3:0) | BD65: 3 | BE65: 0 | BF65: =BD65+BE65 -> 3 | BG65: =IF(AND(BD65>BE65),1,IF(AND(BD65<BE65),2,IF(AND(BD65=BE65),3))) -> 1
A66: 60 | B66: 1 | C66: Ванкувер Кэнакс | E66: 7 | F66: 1 | G66: 3 | H66: 5 | I66: 0 | J66: 3 | K66: 3 | L66: 5 | M66: =IF(E66>F66,1,0) -> 1 | N66: =IF(G66>H66,1,0) -> 0 | O66: =IF(I66>J66,1,0) -> 0 | P66: =IF(K66>L66,1,0) -> 0 | Q66: =SUM(M66:P66)+1 -> 2 | R66: =(E66+G66+I66+K66)/4 -> 3.25 | S66: =(F66+H66+J66+L66)/4 -> 3.5 | T66: =R66-S66 -> -0.25 | U66: Даллас Старз | AE66: =IF(W66>X66,1,0) -> 0 | AF66: =IF(Y66>Z66,1,0) -> 0 | AG66: =IF(AA66>AB66,1,0) -> 0 | AH66: =IF(AC66>AD66,1,0) -> 0 | AI66: =SUM(AE66:AH66) -> 0 | AJ66: =(W66+Y66+AA66+AC66)/4 -> 0 | AK66: =(X66+Z66+AB66+AD66)/4 -> 0 | AL66: =AJ66-AK66 -> 0 | AM66: =R66+AJ66 -> 3.25 | AN66: =S66+AK66 -> 3.5 | AO66: =(R66+AK66)/2+(Q66/10)-0.5 -> 1.325 | AP66: =(S66+AJ66)/2 -> 1.75 | AQ66: =AO66+AP66 -> 3.075 | BC66: 4:3 Б | BD66: 3 | BE66: 3 | BF66: =BD66+BE66 -> 6 | BG66: =IF(AND(BD66>BE66),1,IF(AND(BD66<BE66),2,IF(AND(BD66=BE66),3))) -> 3
A67: 61 | B67: 1 | C67: Бостон Брюинз | E67: 4 | F67: 3 | G67: 1 | H67: 6 | I67: 7 | J67: 2 | K67: 1 | L67: 4 | M67: =IF(E67>F67,1,0) -> 1 | N67: =IF(G67>H67,1,0) -> 0 | O67: =IF(I67>J67,1,0) -> 1 | P67: =IF(K67>L67,1,0) -> 0 | Q67: =SUM(M67:P67)+1 -> 3 | R67: =(E67+G67+I67+K67)/4 -> 3.25 | S67: =(F67+H67+J67+L67)/4 -> 3.75 | T67: =R67-S67 -> -0.5 | U67: Колорадо Эвеланш | W67: 3 | X67: 4 | Y67: 2 | Z67: 3 | AA67: 3 | AB67: 0 | AC67: 5 | AD67: 2 | AE67: =IF(W67>X67,1,0) -> 0 | AF67: =IF(Y67>Z67,1,0) -> 0 | AG67: =IF(AA67>AB67,1,0) -> 1 | AH67: =IF(AC67>AD67,1,0) -> 1 | AI67: =SUM(AE67:AH67) -> 2 | AJ67: =(W67+Y67+AA67+AC67)/4 -> 3.25 | AK67: =(X67+Z67+AB67+AD67)/4 -> 2.25 | AL67: =AJ67-AK67 -> 1 | AM67: =R67+AJ67 -> 6.5 | AN67: =S67+AK67 -> 6 | AO67: =(R67+AK67)/2+(Q67/10)-0.5 -> 2.55 | AP67: =(S67+AJ67)/2 -> 3.5 | AQ67: =AO67+AP67 -> 6.05 | BC67: 3:4 (0:2, 2:2, 1:0) | BD67: 3 | BE67: 4 | BF67: =BD67+BE67 -> 7 | BG67: =IF(AND(BD67>BE67),1,IF(AND(BD67<BE67),2,IF(AND(BD67=BE67),3))) -> 2
A68: 62 | B68: 1 | C68: Нью-Йорк Айлендерс | M68: =IF(E68>F68,1,0) -> 0 | N68: =IF(G68>H68,1,0) -> 0 | O68: =IF(I68>J68,1,0) -> 0 | P68: =IF(K68>L68,1,0) -> 0 | Q68: =SUM(M68:P68)+1 -> 1 | R68: =(E68+G68+I68+K68)/4 -> 0 | S68: =(F68+H68+J68+L68)/4 -> 0 | T68: =R68-S68 -> 0 | U68: Лос-Анджелес Кингз | W68: 2 | X68: 1 | Y68: 6 | Z68: 3 | AA68: 6 | AB68: 4 | AC68: 3 | AD68: 6 | AE68: =IF(W68>X68,1,0) -> 1 | AF68: =IF(Y68>Z68,1,0) -> 1 | AG68: =IF(AA68>AB68,1,0) -> 1 | AH68: =IF(AC68>AD68,1,0) -> 0 | AI68: =SUM(AE68:AH68) -> 3 | AJ68: =(W68+Y68+AA68+AC68)/4 -> 4.25 | AK68: =(X68+Z68+AB68+AD68)/4 -> 3.5 | AL68: =AJ68-AK68 -> 0.75 | AM68: =R68+AJ68 -> 4.25 | AN68: =S68+AK68 -> 3.5 | AO68: =(R68+AK68)/2+(Q68/10)-0.5 -> 1.35 | AP68: =(S68+AJ68)/2 -> 2.125 | AQ68: =AO68+AP68 -> 3.475 | BC68: 1:2 (0:0, 0:1, 1:1) | BD68: 1 | BE68: 2 | BF68: =BD68+BE68 -> 3 | BG68: =IF(AND(BD68>BE68),1,IF(AND(BD68<BE68),2,IF(AND(BD68=BE68),3))) -> 2
A69: 65 | B69: 1 | C69: Нэшвилл Предаторз | M69: =IF(E69>F69,1,0) -> 0 | N69: =IF(G69>H69,1,0) -> 0 | O69: =IF(I69>J69,1,0) -> 0 | P69: =IF(K69>L69,1,0) -> 0 | Q69: =SUM(M69:P69)+1 -> 1 | R69: =(E69+G69+I69+K69)/4 -> 0 | S69: =(F69+H69+J69+L69)/4 -> 0 | T69: =R69-S69 -> 0 | U69: Эдмонтон Ойлерз | W69: 3 | X69: 2 | Y69: 3 | Z69: 4 | AA69: 5 | AB69: 4 | AC69: 3 | AD69: 4 | AE69: =IF(W69>X69,1,0) -> 1 | AF69: =IF(Y69>Z69,1,0) -> 0 | AG69: =IF(AA69>AB69,1,0) -> 1 | AH69: =IF(AC69>AD69,1,0) -> 0 | AI69: =SUM(AE69:AH69) -> 2 | AJ69: =(W69+Y69+AA69+AC69)/4 -> 3.5 | AK69: =(X69+Z69+AB69+AD69)/4 -> 3.5 | AL69: =AJ69-AK69 -> 0 | AM69: =R69+AJ69 -> 3.5 | AN69: =S69+AK69 -> 3.5 | AO69: =(R69+AK69)/2+(Q69/10)-0.5 -> 1.35 | AP69: =(S69+AJ69)/2 -> 1.75 | AQ69: =AO69+AP69 -> 3.1 | BC69: 1:6 (0:4, 1:2, 0:0) | BD69: 1 | BE69: 6 | BF69: =BD69+BE69 -> 7 | BG69: =IF(AND(BD69>BE69),1,IF(AND(BD69<BE69),2,IF(AND(BD69=BE69),3))) -> 2
A70: 66 | B70: 1 | C70: Вашингтон Кэпиталз | E70: 2 | F70: 3 | G70: 3 | H70: 4 | I70: 5 | J70: 6 | K70: 6 | L70: 4 | M70: =IF(E70>F70,1,0) -> 0 | N70: =IF(G70>H70,1,0) -> 0 | O70: =IF(I70>J70,1,0) -> 0 | P70: =IF(K70>L70,1,0) -> 1 | Q70: =SUM(M70:P70)+1 -> 2 | R70: =(E70+G70+I70+K70)/4 -> 4 | S70: =(F70+H70+J70+L70)/4 -> 4.25 | T70: =R70-S70 -> -0.25 | U70: Нью-Джерси Девилз | W70: 3 | X70: 2 | Y70: 4 | Z70: 3 | AA70: 2 | AB70: 3 | AC70: 2 | AD70: 5 | AE70: =IF(W70>X70,1,0) -> 1 | AF70: =IF(Y70>Z70,1,0) -> 1 | AG70: =IF(AA70>AB70,1,0) -> 0 | AH70: =IF(AC70>AD70,1,0) -> 0 | AI70: =SUM(AE70:AH70) -> 2 | AJ70: =(W70+Y70+AA70+AC70)/4 -> 2.75 | AK70: =(X70+Z70+AB70+AD70)/4 -> 3.25 | AL70: =AJ70-AK70 -> -0.5 | AM70: =R70+AJ70 -> 6.75 | AN70: =S70+AK70 -> 7.5 | AO70: =(R70+AK70)/2+(Q70/10)-0.5 -> 3.325 | AP70: =(S70+AJ70)/2 -> 3.5 | AQ70: =AO70+AP70 -> 6.825 | BC70: 2:3 Б | BD70: 2 | BE70: 2 | BF70: =BD70+BE70 -> 4 | BG70: =IF(AND(BD70>BE70),1,IF(AND(BD70<BE70),2,IF(AND(BD70=BE70),3))) -> 3
A71: 67 | B71: 1 | C71: Нью-Йорк Рейнджерс | E71: 3 | F71: 0 | G71: 4 | H71: 3 | I71: 3 | J71: 2 | K71: 5 | L71: 2 | M71: =IF(E71>F71,1,0) -> 1 | N71: =IF(G71>H71,1,0) -> 1 | O71: =IF(I71>J71,1,0) -> 1 | P71: =IF(K71>L71,1,0) -> 1 | Q71: =SUM(M71:P71)+1 -> 5 | R71: =(E71+G71+I71+K71)/4 -> 3.75 | S71: =(F71+H71+J71+L71)/4 -> 1.75 | T71: =R71-S71 -> 2 | U71: Торонто Мейпл Лифс | W71: 2 | X71: 5 | Y71: 1 | Z71: 2 | AA71: 4 | AB71: 6 | AC71: 3 | AD71: 4 | AE71: =IF(W71>X71,1,0) -> 0 | AF71: =IF(Y71>Z71,1,0) -> 0 | AG71: =IF(AA71>AB71,1,0) -> 0 | AH71: =IF(AC71>AD71,1,0) -> 0 | AI71: =SUM(AE71:AH71) -> 0 | AJ71: =(W71+Y71+AA71+AC71)/4 -> 2.5 | AK71: =(X71+Z71+AB71+AD71)/4 -> 4.25 | AL71: =AJ71-AK71 -> -1.75 | AM71: =R71+AJ71 -> 6.25 | AN71: =S71+AK71 -> 6 | AO71: =(R71+AK71)/2+(Q71/10)-0.5 -> 4 | AP71: =(S71+AJ71)/2 -> 2.125 | AQ71: =AO71+AP71 -> 6.125 | AR71: =IF(AQ71>=[1]Пременные!B44+[1]Пременные!G44,5) -> 5 | AS71: =IF(AQ71<[1]Пременные!B44+[1]Пременные!J44,5.5,0) -> 0 | AT71: =IF(BJ71=1,AR71,100) -> 100 | AU71: =IF(AR71=5,1,0) -> 1 | AV71: =IF(AT71=5,1,0) -> 0 | AW71: =IF(BJ71=1,AS71,0) -> 0 | AX71: =IF(AS71=5.5,1,0) -> 0 | AY71: =IF(AW71=5.5,1,0) -> 0 | AZ71: =IF(BF71>=AR71,1,0) -> 1 | BA71: =IF(BF71<AS71,1,0) -> 0 | BB71: =AZ71+BA71 -> 1 | BC71: 7:2 (2:1, 1:1, 4:0) | BD71: 7 | BE71: 2 | BF71: =BD71+BE71 -> 9 | BG71: =IF(AND(BD71>BE71),1,IF(AND(BD71<BE71),2,IF(AND(BD71=BE71),3))) -> 1
A72: 68 | B72: 2 | C72: Чикаго Блэкхокс | E72: 4 | F72: 3 | G72: 2 | H72: 3 | I72: 4 | J72: 0 | K72: 3 | L72: 4 | M72: =IF(E72>F72,1,0) -> 1 | N72: =IF(G72>H72,1,0) -> 0 | O72: =IF(I72>J72,1,0) -> 1 | P72: =IF(K72>L72,1,0) -> 0 | Q72: =SUM(M72:P72)+1 -> 3 | R72: =(E72+G72+I72+K72)/4 -> 3.25 | S72: =(F72+H72+J72+L72)/4 -> 2.5 | T72: =R72-S72 -> 0.75 | U72: Калгари Флэймз | W72: 2 | X72: 5 | Y72: 4 | Z72: 3 | AA72: 4 | AB72: 3 | AC72: 4 | AD72: 3 | AE72: =IF(W72>X72,1,0) -> 0 | AF72: =IF(Y72>Z72,1,0) -> 1 | AG72: =IF(AA72>AB72,1,0) -> 1 | AH72: =IF(AC72>AD72,1,0) -> 1 | AI72: =SUM(AE72:AH72) -> 3 | AJ72: =(W72+Y72+AA72+AC72)/4 -> 3.5 | AK72: =(X72+Z72+AB72+AD72)/4 -> 3.5 | AL72: =AJ72-AK72 -> 0 | AM72: =R72+AJ72 -> 6.75 | AN72: =S72+AK72 -> 6 | AO72: =(R72+AK72)/2+(Q72/10)-0.5 -> 3.175 | AP72: =(S72+AJ72)/2 -> 3 | AQ72: =AO72+AP72 -> 6.175 | AR72: =IF(AQ72>=[1]Пременные!B45+[1]Пременные!G45,5) -> 5 | AS72: =IF(AQ72<[1]Пременные!B45+[1]Пременные!J45,5.5,0) -> 0 | AT72: =IF(BJ72=1,AR72,100) -> 100 | AU72: =IF(AR72=5,1,0) -> 1 | AV72: =IF(AT72=5,1,0) -> 0 | AW72: =IF(BJ72=1,AS72,0) -> 0 | AX72: =IF(AS72=5.5,1,0) -> 0 | AY72: =IF(AW72=5.5,1,0) -> 0 | AZ72: =IF(BF72>=AR72,1,0) -> 1 | BA72: =IF(BF72<AS72,1,0) -> 0 | BB72: =AZ72+BA72 -> 1 | BC72: 6:5 ОТ | BD72: 5 | BE72: 5 | BF72: =BD72+BE72 -> 10 | BG72: =IF(AND(BD72>BE72),1,IF(AND(BD72<BE72),2,IF(AND(BD72=BE72),3))) -> 3
A73: 69 | B73: 3 | C73: Оттава Сенаторз | E73: 4 | F73: 2 | G73: 3 | H73: 2 | I73: 2 | J73: 1 | K73: 2 | L73: 5 | M73: =IF(E73>F73,1,0) -> 1 | N73: =IF(G73>H73,1,0) -> 1 | O73: =IF(I73>J73,1,0) -> 1 | P73: =IF(K73>L73,1,0) -> 0 | Q73: =SUM(M73:P73)+1 -> 4 | R73: =(E73+G73+I73+K73)/4 -> 2.75 | S73: =(F73+H73+J73+L73)/4 -> 2.5 | T73: =R73-S73 -> 0.25 | U73: Питтсбург Пингвинз | W73: 5 | X73: 2 | Y73: 5 | Z73: 4 | AA73: 0 | AB73: 3 | AC73: 4 | AD73: 3 | AE73: =IF(W73>X73,1,0) -> 1 | AF73: =IF(Y73>Z73,1,0) -> 1 | AG73: =IF(AA73>AB73,1,0) -> 0 | AH73: =IF(AC73>AD73,1,0) -> 1 | AI73: =SUM(AE73:AH73) -> 3 | AJ73: =(W73+Y73+AA73+AC73)/4 -> 3.5 | AK73: =(X73+Z73+AB73+AD73)/4 -> 3 | AL73: =AJ73-AK73 -> 0.5 | AM73: =R73+AJ73 -> 6.25 | AN73: =S73+AK73 -> 5.5 | AO73: =(R73+AK73)/2+(Q73/10)-0.5 -> 2.775 | AP73: =(S73+AJ73)/2 -> 3 | AQ73: =AO73+AP73 -> 5.775 | AR73: =IF(AQ73>=[1]Пременные!B46+[1]Пременные!G46,5) -> 5 | AS73: =IF(AQ73<[1]Пременные!B46+[1]Пременные!J46,5.5,0) -> 0 | AT73: =IF(BJ73=1,AR73,100) -> 100 | AU73: =IF(AR73=5,1,0) -> 1 | AV73: =IF(AT73=5,1,0) -> 0 | AW73: =IF(BJ73=1,AS73,0) -> 0 | AX73: =IF(AS73=5.5,1,0) -> 0 | AY73: =IF(AW73=5.5,1,0) -> 0 | AZ73: =IF(BF73>=AR73,1,0) -> 1 | BA73: =IF(BF73<AS73,1,0) -> 0 | BB73: =AZ73+BA73 -> 1 | BC73: 1:4 (1:1, 0:2, 0:1) | BD73: 1 | BE73: 4 | BF73: =BD73+BE73 -> 5 | BG73: =IF(AND(BD73>BE73),1,IF(AND(BD73<BE73),2,IF(AND(BD73=BE73),3))) -> 2
A74: 71 | B74: 1 | C74: Тампа Бэй Лайтнинг | E74: 5 | F74: 2 | G74: 3 | H74: 4 | I74: 1 | J74: 2 | K74: 3 | L74: 6 | M74: =IF(E74>F74,1,0) -> 1 | N74: =IF(G74>H74,1,0) -> 0 | O74: =IF(I74>J74,1,0) -> 0 | P74: =IF(K74>L74,1,0) -> 0 | Q74: =SUM(M74:P74)+1 -> 2 | R74: =(E74+G74+I74+K74)/4 -> 3 | S74: =(F74+H74+J74+L74)/4 -> 3.5 | T74: =R74-S74 -> -0.5 | U74: Флорида Пантерз | W74: 2 | X74: 3 | Y74: 2 | Z74: 7 | AA74: 0 | AB74: 4 | AC74: 4 | AD74: 3 | AE74: =IF(W74>X74,1,0) -> 0 | AF74: =IF(Y74>Z74,1,0) -> 0 | AG74: =IF(AA74>AB74,1,0) -> 0 | AH74: =IF(AC74>AD74,1,0) -> 1 | AI74: =SUM(AE74:AH74) -> 1 | AJ74: =(W74+Y74+AA74+AC74)/4 -> 2 | AK74: =(X74+Z74+AB74+AD74)/4 -> 4.25 | AL74: =AJ74-AK74 -> -2.25 | AM74: =R74+AJ74 -> 5 | AN74: =S74+AK74 -> 7.75 | AO74: =(R74+AK74)/2+(Q74/10)-0.5 -> 3.325 | AP74: =(S74+AJ74)/2 -> 2.75 | AQ74: =AO74+AP74 -> 6.075 | AR74: =IF(AQ74>=[1]Пременные!B47+[1]Пременные!G47,5) -> 5 | AS74: =IF(AQ74<[1]Пременные!B47+[1]Пременные!J47,5.5,0) -> 0 | AT74: =IF(BJ74=1,AR74,100) -> 100 | AU74: =IF(AR74=5,1,0) -> 1 | AV74: =IF(AT74=5,1,0) -> 0 | AW74: =IF(BJ74=1,AS74,0) -> 0 | AX74: =IF(AS74=5.5,1,0) -> 0 | AY74: =IF(AW74=5.5,1,0) -> 0 | AZ74: =IF(BF74>=AR74,1,0) -> 1 | BA74: =IF(BF74<AS74,1,0) -> 0 | BB74: =AZ74+BA74 -> 1 | BC74: 3:2 (1:1, 0:1, 2:0) | BD74: 3 | BE74: 2 | BF74: =BD74+BE74 -> 5 | BG74: =IF(AND(BD74>BE74),1,IF(AND(BD74<BE74),2,IF(AND(BD74=BE74),3))) -> 1
A75: 72 | B75: 2 | C75: Сан-Хосе Шаркс | E75: 4 | F75: 2 | G75: 6 | H75: 3 | I75: 4 | J75: 6 | K75: 4 | L75: 1 | M75: =IF(E75>F75,1,0) -> 1 | N75: =IF(G75>H75,1,0) -> 1 | O75: =IF(I75>J75,1,0) -> 0 | P75: =IF(K75>L75,1,0) -> 1 | Q75: =SUM(M75:P75)+1 -> 4 | R75: =(E75+G75+I75+K75)/4 -> 4.5 | S75: =(F75+H75+J75+L75)/4 -> 3 | T75: =R75-S75 -> 1.5 | U75: Финикс Койотс | W75: 0 | X75: 2 | Y75: 1 | Z75: 2 | AA75: 3 | AB75: 0 | AC75: 6 | AD75: 3 | AE75: =IF(W75>X75,1,0) -> 0 | AF75: =IF(Y75>Z75,1,0) -> 0 | AG75: =IF(AA75>AB75,1,0) -> 1 | AH75: =IF(AC75>AD75,1,0) -> 1 | AI75: =SUM(AE75:AH75) -> 2 | AJ75: =(W75+Y75+AA75+AC75)/4 -> 2.5 | AK75: =(X75+Z75+AB75+AD75)/4 -> 1.75 | AL75: =AJ75-AK75 -> 0.75 | AM75: =R75+AJ75 -> 7 | AN75: =S75+AK75 -> 4.75 | AO75: =(R75+AK75)/2+(Q75/10)-0.5 -> 3.025 | AP75: =(S75+AJ75)/2 -> 2.75 | AQ75: =AO75+AP75 -> 5.775 | AR75: =IF(AQ75>=[1]Пременные!B48+[1]Пременные!G48,5) -> 5 | AS75: =IF(AQ75<[1]Пременные!B48+[1]Пременные!J48,5.5,0) -> 0 | AT75: =IF(BJ75=1,AR75,100) -> 100 | AU75: =IF(AR75=5,1,0) -> 1 | AV75: =IF(AT75=5,1,0) -> 0 | AW75: =IF(BJ75=1,AS75,0) -> 0 | AX75: =IF(AS75=5.5,1,0) -> 0 | AY75: =IF(AW75=5.5,1,0) -> 0 | AZ75: =IF(BF75>=AR75,1,0) -> 0 | BA75: =IF(BF75<AS75,1,0) -> 0 | BB75: =AZ75+BA75 -> 0 | BC75: 0:1 Б | BD75: 0 | BE75: 0 | BF75: =BD75+BE75 -> 0 | BG75: =IF(AND(BD75>BE75),1,IF(AND(BD75<BE75),2,IF(AND(BD75=BE75),3))) -> 3
A76: 73 | B76: 3 | C76: Колумбус Блю Джекетс | E76: 2 | F76: 0 | G76: 3 | H76: 6 | I76: 5 | J76: 3 | K76: 2 | L76: 1 | M76: =IF(E76>F76,1,0) -> 1 | N76: =IF(G76>H76,1,0) -> 0 | O76: =IF(I76>J76,1,0) -> 1 | P76: =IF(K76>L76,1,0) -> 1 | Q76: =SUM(M76:P76)+1 -> 4 | R76: =(E76+G76+I76+K76)/4 -> 3 | S76: =(F76+H76+J76+L76)/4 -> 2.5 | T76: =R76-S76 -> 0.5 | U76: Калгари Флэймз | W76: 5 | X76: 6 | Y76: 2 | Z76: 5 | AA76: 4 | AB76: 3 | AC76: 4 | AD76: 3 | AE76: =IF(W76>X76,1,0) -> 0 | AF76: =IF(Y76>Z76,1,0) -> 0 | AG76: =IF(AA76>AB76,1,0) -> 1 | AH76: =IF(AC76>AD76,1,0) -> 1 | AI76: =SUM(AE76:AH76) -> 2 | AJ76: =(W76+Y76+AA76+AC76)/4 -> 3.75 | AK76: =(X76+Z76+AB76+AD76)/4 -> 4.25 | AL76: =AJ76-AK76 -> -0.5 | AM76: =R76+AJ76 -> 6.75 | AN76: =S76+AK76 -> 6.75 | AO76: =(R76+AK76)/2+(Q76/10)-0.5 -> 3.525 | AP76: =(S76+AJ76)/2 -> 3.125 | AQ76: =AO76+AP76 -> 6.65 | AR76: =IF(AQ76>=[1]Пременные!B49+[1]Пременные!G49,5) -> 5 | AS76: =IF(AQ76<[1]Пременные!B49+[1]Пременные!J49,5.5,0) -> 0 | AT76: =IF(BJ76=1,AR76,100) -> 100 | AU76: =IF(AR76=5,1,0) -> 1 | AV76: =IF(AT76=5,1,0) -> 0 | AW76: =IF(BJ76=1,AS76,0) -> 0 | AX76: =IF(AS76=5.5,1,0) -> 0 | AY76: =IF(AW76=5.5,1,0) -> 0 | AZ76: =IF(BF76>=AR76,1,0) -> 0 | BA76: =IF(BF76<AS76,1,0) -> 0 | BB76: =AZ76+BA76 -> 0 | BC76: 2:1 (0:1, 2:0, 0:0) | BD76: 2 | BE76: 1 | BF76: =BD76+BE76 -> 3 | BG76: =IF(AND(BD76>BE76),1,IF(AND(BD76<BE76),2,IF(AND(BD76=BE76),3))) -> 1
A77: 75 | B77: 1 | C77: Торонто Мейпл Лифс | E77: 2 | F77: 7 | G77: 2 | H77: 5 | I77: 1 | J77: 2 | K77: 4 | L77: 6 | M77: =IF(E77>F77,1,0) -> 0 | N77: =IF(G77>H77,1,0) -> 0 | O77: =IF(I77>J77,1,0) -> 0 | P77: =IF(K77>L77,1,0) -> 0 | Q77: =SUM(M77:P77)+1 -> 1 | R77: =(E77+G77+I77+K77)/4 -> 2.25 | S77: =(F77+H77+J77+L77)/4 -> 5 | T77: =R77-S77 -> -2.75 | U77: Колорадо Эвеланш | W77: 4 | X77: 3 | Y77: 3 | Z77: 4 | AA77: 2 | AB77: 3 | AC77: 3 | AD77: 0 | AE77: =IF(W77>X77,1,0) -> 1 | AF77: =IF(Y77>Z77,1,0) -> 0 | AG77: =IF(AA77>AB77,1,0) -> 0 | AH77: =IF(AC77>AD77,1,0) -> 1 | AI77: =SUM(AE77:AH77) -> 2 | AJ77: =(W77+Y77+AA77+AC77)/4 -> 3 | AK77: =(X77+Z77+AB77+AD77)/4 -> 2.5 | AL77: =AJ77-AK77 -> 0.5 | AM77: =R77+AJ77 -> 5.25 | AN77: =S77+AK77 -> 7.5 | AO77: =(R77+AK77)/2+(Q77/10)-0.5 -> 1.975 | AP77: =(S77+AJ77)/2 -> 4 | AQ77: =AO77+AP77 -> 5.975 | AR77: =IF(AQ77>=[1]Пременные!B51+[1]Пременные!G51,5) -> 5 | AS77: =IF(AQ77<[1]Пременные!B51+[1]Пременные!J51,5.5,0) -> 0 | AT77: =IF(BJ77=1,AR77,100) -> 100 | AU77: =IF(AR77=5,1,0) -> 1 | AV77: =IF(AT77=5,1,0) -> 0 | AW77: =IF(BJ77=1,AS77,0) -> 0 | AX77: =IF(AS77=5.5,1,0) -> 0 | AY77: =IF(AW77=5.5,1,0) -> 0 | AZ77: =IF(BF77>=AR77,1,0) -> 1 | BA77: =IF(BF77<AS77,1,0) -> 0 | BB77: =AZ77+BA77 -> 1 | BC77: 1:4 (0:2, 1:2, 0:0) | BD77: 1 | BE77: 4 | BF77: =BD77+BE77 -> 5 | BG77: =IF(AND(BD77>BE77),1,IF(AND(BD77<BE77),2,IF(AND(BD77=BE77),3))) -> 2
A78: 76 | B78: 2 | C78: Нью-Йорк Рейнджерс | E78: 7 | F78: 2 | G78: 3 | H78: 0 | I78: 4 | J78: 3 | K78: 3 | L78: 2 | M78: =IF(E78>F78,1,0) -> 1 | N78: =IF(G78>H78,1,0) -> 1 | O78: =IF(I78>J78,1,0) -> 1 | P78: =IF(K78>L78,1,0) -> 1 | Q78: =SUM(M78:P78)+1 -> 5 | R78: =(E78+G78+I78+K78)/4 -> 4.25 | S78: =(F78+H78+J78+L78)/4 -> 1.75 | T78: =R78-S78 -> 2.5 | U78: Лос-Анджелес Кингз | W78: 2 | X78: 1 | Y78: 2 | Z78: 1 | AA78: 6 | AB78: 3 | AC78: 6 | AD78: 4 | AE78: =IF(W78>X78,1,0) -> 1 | AF78: =IF(Y78>Z78,1,0) -> 1 | AG78: =IF(AA78>AB78,1,0) -> 1 | AH78: =IF(AC78>AD78,1,0) -> 1 | AI78: =SUM(AE78:AH78) -> 4 | AJ78: =(W78+Y78+AA78+AC78)/4 -> 4 | AK78: =(X78+Z78+AB78+AD78)/4 -> 2.25 | AL78: =AJ78-AK78 -> 1.75 | AM78: =R78+AJ78 -> 8.25 | AN78: =S78+AK78 -> 4 | AO78: =(R78+AK78)/2+(Q78/10)-0.5 -> 3.25 | AP78: =(S78+AJ78)/2 -> 2.875 | AQ78: =AO78+AP78 -> 6.125 | AR78: =IF(AQ78>=[1]Пременные!B52+[1]Пременные!G52,5) -> 5 | AS78: =IF(AQ78<[1]Пременные!B52+[1]Пременные!J52,5.5,0) -> 0 | AT78: =IF(BJ78=1,AR78,100) -> 100 | AU78: =IF(AR78=5,1,0) -> 1 | AV78: =IF(AT78=5,1,0) -> 0 | AW78: =IF(BJ78=1,AS78,0) -> 0 | AX78: =IF(AS78=5.5,1,0) -> 0 | AY78: =IF(AW78=5.5,1,0) -> 0 | AZ78: =IF(BF78>=AR78,1,0) -> 1 | BA78: =IF(BF78<AS78,1,0) -> 0 | BB78: =AZ78+BA78 -> 1 | BC78: 4:2 (2:1, 1:1, 1:0) | BD78: 4 | BE78: 2 | BF78: =BD78+BE78 -> 6 | BG78: =IF(AND(BD78>BE78),1,IF(AND(BD78<BE78),2,IF(AND(BD78=BE78),3))) -> 1
A79: 77 | B79: 3 | C79: Каролина Харрикейнз | E79: 2 | F79: 5 | G79: 7 | H79: 2 | I79: 2 | J79: 1 | K79: 2 | L79: 7 | M79: =IF(E79>F79,1,0) -> 0 | N79: =IF(G79>H79,1,0) -> 1 | O79: =IF(I79>J79,1,0) -> 1 | P79: =IF(K79>L79,1,0) -> 0 | Q79: =SUM(M79:P79)+1 -> 3 | R79: =(E79+G79+I79+K79)/4 -> 3.25 | S79: =(F79+H79+J79+L79)/4 -> 3.75 | T79: =R79-S79 -> -0.5 | U79: Питтсбург Пингвинз | W79: 4 | X79: 1 | Y79: 5 | Z79: 2 | AA79: 5 | AB79: 4 | AC79: 0 | AD79: 3 | AE79: =IF(W79>X79,1,0) -> 1 | AF79: =IF(Y79>Z79,1,0) -> 1 | AG79: =IF(AA79>AB79,1,0) -> 1 | AH79: =IF(AC79>AD79,1,0) -> 0 | AI79: =SUM(AE79:AH79) -> 3 | AJ79: =(W79+Y79+AA79+AC79)/4 -> 3.5 | AK79: =(X79+Z79+AB79+AD79)/4 -> 2.5 | AL79: =AJ79-AK79 -> 1 | AM79: =R79+AJ79 -> 6.75 | AN79: =S79+AK79 -> 6.25 | AO79: =(R79+AK79)/2+(Q79/10)-0.5 -> 2.675 | AP79: =(S79+AJ79)/2 -> 3.625 | AQ79: =AO79+AP79 -> 6.3 | AR79: =IF(AQ79>=[1]Пременные!B53+[1]Пременные!G53,5) -> 5 | AS79: =IF(AQ79<[1]Пременные!B53+[1]Пременные!J53,5.5,0) -> 0 | AT79: =IF(BJ79=1,AR79,100) -> 100 | AU79: =IF(AR79=5,1,0) -> 1 | AV79: =IF(AT79=5,1,0) -> 0 | AW79: =IF(BJ79=1,AS79,0) -> 0 | AX79: =IF(AS79=5.5,1,0) -> 0 | AY79: =IF(AW79=5.5,1,0) -> 0 | AZ79: =IF(BF79>=AR79,1,0) -> 0 | BA79: =IF(BF79<AS79,1,0) -> 0 | BB79: =AZ79+BA79 -> 0 | BC79: 2:3 Б | BD79: 2 | BE79: 2 | BF79: =BD79+BE79 -> 4 | BG79: =IF(AND(BD79>BE79),1,IF(AND(BD79<BE79),2,IF(AND(BD79=BE79),3))) -> 3
A80: 78 | B80: 1 | C80: Анахайм Дакс | E80: 0 | F80: 3 | G80: 3 | H80: 2 | I80: 6 | J80: 1 | K80: 3 | L80: 4 | M80: =IF(E80>F80,1,0) -> 0 | N80: =IF(G80>H80,1,0) -> 1 | O80: =IF(I80>J80,1,0) -> 1 | P80: =IF(K80>L80,1,0) -> 0 | Q80: =SUM(M80:P80)+1 -> 3 | R80: =(E80+G80+I80+K80)/4 -> 3 | S80: =(F80+H80+J80+L80)/4 -> 2.5 | T80: =R80-S80 -> 0.5 | U80: Миннесота Уайлд | W80: 2 | X80: 4 | Y80: 3 | Z80: 6 | AA80: 4 | AB80: 3 | AC80: 1 | AD80: 2 | AE80: =IF(W80>X80,1,0) -> 0 | AF80: =IF(Y80>Z80,1,0) -> 0 | AG80: =IF(AA80>AB80,1,0) -> 1 | AH80: =IF(AC80>AD80,1,0) -> 0 | AI80: =SUM(AE80:AH80) -> 1 | AJ80: =(W80+Y80+AA80+AC80)/4 -> 2.5 | AK80: =(X80+Z80+AB80+AD80)/4 -> 3.75 | AL80: =AJ80-AK80 -> -1.25 | AM80: =R80+AJ80 -> 5.5 | AN80: =S80+AK80 -> 6.25 | AO80: =(R80+AK80)/2+(Q80/10)-0.5 -> 3.175 | AP80: =(S80+AJ80)/2 -> 2.5 | AQ80: =AO80+AP80 -> 5.675 | AR80: =IF(AQ80>=[1]Пременные!B54+[1]Пременные!G54,5) -> 5 | AS80: =IF(AQ80<[1]Пременные!B54+[1]Пременные!J54,5.5,0) -> 0 | AT80: =IF(BJ80=1,AR80,100) -> 100 | AU80: =IF(AR80=5,1,0) -> 1 | AV80: =IF(AT80=5,1,0) -> 0 | AW80: =IF(BJ80=1,AS80,0) -> 0 | AX80: =IF(AS80=5.5,1,0) -> 0 | AY80: =IF(AW80=5.5,1,0) -> 0 | AZ80: =IF(BF80>=AR80,1,0) -> 1 | BA80: =IF(BF80<AS80,1,0) -> 0 | BB80: =AZ80+BA80 -> 1 | BC80: 3:2 (2:0, 1:1, 0:1) | BD80: 3 | BE80: 2 | BF80: =BD80+BE80 -> 5 | BG80: =IF(AND(BD80>BE80),1,IF(AND(BD80<BE80),2,IF(AND(BD80=BE80),3))) -> 1
A81: 79 | B81: 2 | C81: Даллас Старз | E81: 3 | F81: 4 | G81: 5 | H81: 2 | I81: 4 | J81: 5 | K81: 2 | L81: 3 | M81: =IF(E81>F81,1,0) -> 0 | N81: =IF(G81>H81,1,0) -> 1 | O81: =IF(I81>J81,1,0) -> 0 | P81: =IF(K81>L81,1,0) -> 0 | Q81: =SUM(M81:P81)+1 -> 2 | R81: =(E81+G81+I81+K81)/4 -> 3.5 | S81: =(F81+H81+J81+L81)/4 -> 3.5 | T81: =R81-S81 -> 0 | U81: Нэшвилл Предаторз | W81: 1 | X81: 6 | Y81: 0 | Z81: 1 | AA81: 3 | AB81: 2 | AC81: 3 | AD81: 2 | AE81: =IF(W81>X81,1,0) -> 0 | AF81: =IF(Y81>Z81,1,0) -> 0 | AG81: =IF(AA81>AB81,1,0) -> 1 | AH81: =IF(AC81>AD81,1,0) -> 1 | AI81: =SUM(AE81:AH81) -> 2 | AJ81: =(W81+Y81+AA81+AC81)/4 -> 1.75 | AK81: =(X81+Z81+AB81+AD81)/4 -> 2.75 | AL81: =AJ81-AK81 -> -1 | AM81: =R81+AJ81 -> 5.25 | AN81: =S81+AK81 -> 6.25 | AO81: =(R81+AK81)/2+(Q81/10)-0.5 -> 2.825 | AP81: =(S81+AJ81)/2 -> 2.625 | AQ81: =AO81+AP81 -> 5.45 | AR81: =IF(AQ81>=[1]Пременные!B55+[1]Пременные!G55,5) -> 5 | AS81: =IF(AQ81<[1]Пременные!B55+[1]Пременные!J55,5.5,0) -> 0 | AT81: =IF(BJ81=1,AR81,100) -> 100 | AU81: =IF(AR81=5,1,0) -> 1 | AV81: =IF(AT81=5,1,0) -> 0 | AW81: =IF(BJ81=1,AS81,0) -> 0 | AX81: =IF(AS81=5.5,1,0) -> 0 | AY81: =IF(AW81=5.5,1,0) -> 0 | AZ81: =IF(BF81>=AR81,1,0) -> 1 | BA81: =IF(BF81<AS81,1,0) -> 0 | BB81: =AZ81+BA81 -> 1 | BC81: 6:0 (4:0, 1:0, 1:0) | BD81: 6 | BE81: 0 | BF81: =BD81+BE81 -> 6 | BG81: =IF(AND(BD81>BE81),1,IF(AND(BD81<BE81),2,IF(AND(BD81=BE81),3))) -> 1
A82: 80 | B82: 3 | C82: Чикаго Блэкхокс | E82: 6 | F82: 5 | G82: 4 | H82: 3 | I82: 2 | J82: 3 | K82: 4 | L82: 0 | M82: =IF(E82>F82,1,0) -> 1 | N82: =IF(G82>H82,1,0) -> 1 | O82: =IF(I82>J82,1,0) -> 0 | P82: =IF(K82>L82,1,0) -> 1 | Q82: =SUM(M82:P82)+1 -> 4 | R82: =(E82+G82+I82+K82)/4 -> 4 | S82: =(F82+H82+J82+L82)/4 -> 2.75 | T82: =R82-S82 -> 1.25 | U82: Эдмонтон Ойлерз | W82: 6 | X82: 1 | Y82: 3 | Z82: 2 | AA82: 3 | AB82: 4 | AC82: 5 | AD82: 4 | AE82: =IF(W82>X82,1,0) -> 1 | AF82: =IF(Y82>Z82,1,0) -> 1 | AG82: =IF(AA82>AB82,1,0) -> 0 | AH82: =IF(AC82>AD82,1,0) -> 1 | AI82: =SUM(AE82:AH82) -> 3 | AJ82: =(W82+Y82+AA82+AC82)/4 -> 4.25 | AK82: =(X82+Z82+AB82+AD82)/4 -> 2.75 | AL82: =AJ82-AK82 -> 1.5 | AM82: =R82+AJ82 -> 8.25 | AN82: =S82+AK82 -> 5.5 | AO82: =(R82+AK82)/2+(Q82/10)-0.5 -> 3.275 | AP82: =(S82+AJ82)/2 -> 3.5 | AQ82: =AO82+AP82 -> 6.775 | AR82: =IF(AQ82>=[1]Пременные!B56+[1]Пременные!G56,5) -> 5 | AS82: =IF(AQ82<[1]Пременные!B56+[1]Пременные!J56,5.5,0) -> 0 | AT82: =IF(BJ82=1,AR82,100) -> 100 | AU82: =IF(AR82=5,1,0) -> 1 | AV82: =IF(AT82=5,1,0) -> 0 | AW82: =IF(BJ82=1,AS82,0) -> 0 | AX82: =IF(AS82=5.5,1,0) -> 0 | AY82: =IF(AW82=5.5,1,0) -> 0 | AZ82: =IF(BF82>=AR82,1,0) -> 1 | BA82: =IF(BF82<AS82,1,0) -> 0 | BB82: =AZ82+BA82 -> 1 | BC82: 4:3 (2:1, 1:0, 1:2) | BD82: 4 | BE82: 3 | BF82: =BD82+BE82 -> 7 | BG82: =IF(AND(BD82>BE82),1,IF(AND(BD82<BE82),2,IF(AND(BD82=BE82),3))) -> 1
A83: 81 | B83: 1 | C83: Финикс Койотс | E83: 1 | F83: 0 | G83: 0 | H83: 2 | I83: 1 | J83: 2 | K83: 3 | L83: 0 | M83: =IF(E83>F83,1,0) -> 1 | N83: =IF(G83>H83,1,0) -> 0 | O83: =IF(I83>J83,1,0) -> 0 | P83: =IF(K83>L83,1,0) -> 1 | Q83: =SUM(M83:P83)+1 -> 3 | R83: =(E83+G83+I83+K83)/4 -> 1.25 | S83: =(F83+H83+J83+L83)/4 -> 1 | T83: =R83-S83 -> 0.25 | U83: Сент-Луис Блюз | W83: 1 | X83: 2 | Y83: 2 | Z83: 4 | AA83: 5 | AB83: 3 | AC83: 4 | AD83: 3 | AE83: =IF(W83>X83,1,0) -> 0 | AF83: =IF(Y83>Z83,1,0) -> 0 | AG83: =IF(AA83>AB83,1,0) -> 1 | AH83: =IF(AC83>AD83,1,0) -> 1 | AI83: =SUM(AE83:AH83) -> 2 | AJ83: =(W83+Y83+AA83+AC83)/4 -> 3 | AK83: =(X83+Z83+AB83+AD83)/4 -> 3 | AL83: =AJ83-AK83 -> 0 | AM83: =R83+AJ83 -> 4.25 | AN83: =S83+AK83 -> 4 | AO83: =(R83+AK83)/2+(Q83/10)-0.5 -> 1.925 | AP83: =(S83+AJ83)/2 -> 2 | AQ83: =AO83+AP83 -> 3.925 | AR83: =IF(AQ83>=[1]Пременные!B57+[1]Пременные!G57,5) -> FALSE | AS83: =IF(AQ83<[1]Пременные!B57+[1]Пременные!J57,5.5,0) -> 5.5 | AT83: =IF(BJ83=1,AR83,100) -> 100 | AU83: =IF(AR83=5,1,0) -> 0 | AV83: =IF(AT83=5,1,0) -> 0 | AW83: =IF(BJ83=1,AS83,0) -> 0 | AX83: =IF(AS83=5.5,1,0) -> 1 | AY83: =IF(AW83=5.5,1,0) -> 0 | AZ83: =IF(BF83>=AR83,1,0) -> 0 | BA83: =IF(BF83<AS83,1,0) -> 1 | BB83: =AZ83+BA83 -> 1 | BC83: 3:2 ОТ | BD83: 2 | BE83: 2 | BF83: =BD83+BE83 -> 4 | BG83: =IF(AND(BD83>BE83),1,IF(AND(BD83<BE83),2,IF(AND(BD83=BE83),3))) -> 3
A84: 82 | B84: 2 | C84: Вашингтон Кэпиталз | E84: 2 | F84: 3 | G84: 2 | H84: 3 | I84: 3 | J84: 4 | K84: 5 | L84: 6 | M84: =IF(E84>F84,1,0) -> 0 | N84: =IF(G84>H84,1,0) -> 0 | O84: =IF(I84>J84,1,0) -> 0 | P84: =IF(K84>L84,1,0) -> 0 | Q84: =SUM(M84:P84)+1 -> 1 | R84: =(E84+G84+I84+K84)/4 -> 3 | S84: =(F84+H84+J84+L84)/4 -> 4 | T84: =R84-S84 -> -1 | U84: Сан-Хосе Шаркс | W84: 0 | X84: 1 | Y84: 4 | Z84: 2 | AA84: 6 | AB84: 3 | AC84: 4 | AD84: 6 | AE84: =IF(W84>X84,1,0) -> 0 | AF84: =IF(Y84>Z84,1,0) -> 1 | AG84: =IF(AA84>AB84,1,0) -> 1 | AH84: =IF(AC84>AD84,1,0) -> 0 | AI84: =SUM(AE84:AH84) -> 2 | AJ84: =(W84+Y84+AA84+AC84)/4 -> 3.5 | AK84: =(X84+Z84+AB84+AD84)/4 -> 3 | AL84: =AJ84-AK84 -> 0.5 | AM84: =R84+AJ84 -> 6.5 | AN84: =S84+AK84 -> 7 | AO84: =(R84+AK84)/2+(Q84/10)-0.5 -> 2.6 | AP84: =(S84+AJ84)/2 -> 3.75 | AQ84: =AO84+AP84 -> 6.35 | AR84: =IF(AQ84>=[1]Пременные!B58+[1]Пременные!G58,5) -> 5 | AS84: =IF(AQ84<[1]Пременные!B58+[1]Пременные!J58,5.5,0) -> 0 | AT84: =IF(BJ84=1,AR84,100) -> 100 | AU84: =IF(AR84=5,1,0) -> 1 | AV84: =IF(AT84=5,1,0) -> 0 | AW84: =IF(BJ84=1,AS84,0) -> 0 | AX84: =IF(AS84=5.5,1,0) -> 0 | AY84: =IF(AW84=5.5,1,0) -> 0 | AZ84: =IF(BF84>=AR84,1,0) -> 1 | BA84: =IF(BF84<AS84,1,0) -> 0 | BB84: =AZ84+BA84 -> 1 | BC84: 4:1 (1:1, 2:0, 1:0) | BD84: 4 | BE84: 1 | BF84: =BD84+BE84 -> 5 | BG84: =IF(AND(BD84>BE84),1,IF(AND(BD84<BE84),2,IF(AND(BD84=BE84),3))) -> 1
A85: 83 | B85: 3 | C85: Нэшвилл Предаторз | E85: 0 | F85: 6 | G85: 1 | H85: 6 | I85: 0 | J85: 1 | K85: 3 | L85: 2 | M85: =IF(E85>F85,1,0) -> 0 | N85: =IF(G85>H85,1,0) -> 0 | O85: =IF(I85>J85,1,0) -> 0 | P85: =IF(K85>L85,1,0) -> 1 | Q85: =SUM(M85:P85)+1 -> 2 | R85: =(E85+G85+I85+K85)/4 -> 1 | S85: =(F85+H85+J85+L85)/4 -> 3.75 | T85: =R85-S85 -> -2.75 | U85: Чикаго Блэкхокс | W85: 4 | X85: 3 | Y85: 6 | Z85: 5 | AA85: 4 | AB85: 3 | AC85: 2 | AD85: 3 | AE85: =IF(W85>X85,1,0) -> 1 | AF85: =IF(Y85>Z85,1,0) -> 1 | AG85: =IF(AA85>AB85,1,0) -> 1 | AH85: =IF(AC85>AD85,1,0) -> 0 | AI85: =SUM(AE85:AH85) -> 3 | AJ85: =(W85+Y85+AA85+AC85)/4 -> 4 | AK85: =(X85+Z85+AB85+AD85)/4 -> 3.5 | AL85: =AJ85-AK85 -> 0.5 | AM85: =R85+AJ85 -> 5 | AN85: =S85+AK85 -> 7.25 | AO85: =(R85+AK85)/2+(Q85/10)-0.5 -> 1.95 | AP85: =(S85+AJ85)/2 -> 3.875 | AQ85: =AO85+AP85 -> 5.825 | AR85: =IF(AQ85>=[1]Пременные!B59+[1]Пременные!G59,5) -> 5 | AS85: =IF(AQ85<[1]Пременные!B59+[1]Пременные!J59,5.5,0) -> 0 | AT85: =IF(BJ85=1,AR85,100) -> 100 | AU85: =IF(AR85=5,1,0) -> 1 | AV85: =IF(AT85=5,1,0) -> 0 | AW85: =IF(BJ85=1,AS85,0) -> 0 | AX85: =IF(AS85=5.5,1,0) -> 0 | AY85: =IF(AW85=5.5,1,0) -> 0 | AZ85: =IF(BF85>=AR85,1,0) -> 0 | BA85: =IF(BF85<AS85,1,0) -> 0 | BB85: =AZ85+BA85 -> 0 | BC85: 1:3 (0:0, 1:2, 0:1) | BD85: 1 | BE85: 3 | BF85: =BD85+BE85 -> 4 | BG85: =IF(AND(BD85>BE85),1,IF(AND(BD85<BE85),2,IF(AND(BD85=BE85),3))) -> 2
A86: 84 | B86: 1 | C86: Детройт Ред Уингз | E86: 2 | F86: 6 | G86: 3 | H86: 2 | I86: 3 | J86: 2 | K86: 3 | L86: 5 | M86: =IF(E86>F86,1,0) -> 0 | N86: =IF(G86>H86,1,0) -> 1 | O86: =IF(I86>J86,1,0) -> 1 | P86: =IF(K86>L86,1,0) -> 0 | Q86: =SUM(M86:P86)+1 -> 3 | R86: =(E86+G86+I86+K86)/4 -> 2.75 | S86: =(F86+H86+J86+L86)/4 -> 3.75 | T86: =R86-S86 -> -1 | U86: Лос-Анджелес Кингз | W86: 2 | X86: 4 | Y86: 2 | Z86: 1 | AA86: 2 | AB86: 1 | AC86: 6 | AD86: 3 | AE86: =IF(W86>X86,1,0) -> 0 | AF86: =IF(Y86>Z86,1,0) -> 1 | AG86: =IF(AA86>AB86,1,0) -> 1 | AH86: =IF(AC86>AD86,1,0) -> 1 | AI86: =SUM(AE86:AH86) -> 3 | AJ86: =(W86+Y86+AA86+AC86)/4 -> 3 | AK86: =(X86+Z86+AB86+AD86)/4 -> 2.25 | AL86: =AJ86-AK86 -> 0.75 | AM86: =R86+AJ86 -> 5.75 | AN86: =S86+AK86 -> 6 | AO86: =(R86+AK86)/2+(Q86/10)-0.5 -> 2.3 | AP86: =(S86+AJ86)/2 -> 3.375 | AQ86: =AO86+AP86 -> 5.675 | AR86: =IF(AQ86>=[1]Пременные!B60+[1]Пременные!G60,5) -> 5 | AS86: =IF(AQ86<[1]Пременные!B60+[1]Пременные!J60,5.5,0) -> 0 | AT86: =IF(BJ86=1,AR86,100) -> 100 | AU86: =IF(AR86=5,1,0) -> 1 | AV86: =IF(AT86=5,1,0) -> 0 | AW86: =IF(BJ86=1,AS86,0) -> 0 | AX86: =IF(AS86=5.5,1,0) -> 0 | AY86: =IF(AW86=5.5,1,0) -> 0 | AZ86: =IF(BF86>=AR86,1,0) -> 1 | BA86: =IF(BF86<AS86,1,0) -> 0 | BB86: =AZ86+BA86 -> 1 | BC86: 5:2 (0:1, 2:0, 3:1) | BD86: 5 | BE86: 2 | BF86: =BD86+BE86 -> 7 | BG86: =IF(AND(BD86>BE86),1,IF(AND(BD86<BE86),2,IF(AND(BD86=BE86),3))) -> 1
A87: 85 | B87: 2 | C87: Оттава Сенаторз | E87: 1 | F87: 4 | G87: 4 | H87: 2 | I87: 3 | J87: 2 | K87: 2 | L87: 1 | M87: =IF(E87>F87,1,0) -> 0 | N87: =IF(G87>H87,1,0) -> 1 | O87: =IF(I87>J87,1,0) -> 1 | P87: =IF(K87>L87,1,0) -> 1 | Q87: =SUM(M87:P87)+1 -> 4 | R87: =(E87+G87+I87+K87)/4 -> 2.5 | S87: =(F87+H87+J87+L87)/4 -> 2.25 | T87: =R87-S87 -> 0.25 | U87: Тампа Бэй Лайтнинг | W87: 3 | X87: 2 | Y87: 5 | Z87: 2 | AA87: 3 | AB87: 4 | AC87: 1 | AD87: 2 | AE87: =IF(W87>X87,1,0) -> 1 | AF87: =IF(Y87>Z87,1,0) -> 1 | AG87: =IF(AA87>AB87,1,0) -> 0 | AH87: =IF(AC87>AD87,1,0) -> 0 | AI87: =SUM(AE87:AH87) -> 2 | AJ87: =(W87+Y87+AA87+AC87)/4 -> 3 | AK87: =(X87+Z87+AB87+AD87)/4 -> 2.5 | AL87: =AJ87-AK87 -> 0.5 | AM87: =R87+AJ87 -> 5.5 | AN87: =S87+AK87 -> 4.75 | AO87: =(R87+AK87)/2+(Q87/10)-0.5 -> 2.4 | AP87: =(S87+AJ87)/2 -> 2.625 | AQ87: =AO87+AP87 -> 5.025 | AR87: =IF(AQ87>=[1]Пременные!B61+[1]Пременные!G61,5) -> 5 | AS87: =IF(AQ87<[1]Пременные!B61+[1]Пременные!J61,5.5,0) -> 0 | AT87: =IF(BJ87=1,AR87,100) -> 100 | AU87: =IF(AR87=5,1,0) -> 1 | AV87: =IF(AT87=5,1,0) -> 0 | AW87: =IF(BJ87=1,AS87,0) -> 0 | AX87: =IF(AS87=5.5,1,0) -> 0 | AY87: =IF(AW87=5.5,1,0) -> 0 | AZ87: =IF(BF87>=AR87,1,0) -> 1 | BA87: =IF(BF87<AS87,1,0) -> 0 | BB87: =AZ87+BA87 -> 1 | BC87: 7:1 (2:0, 3:1, 2:0) | BD87: 7 | BE87: 1 | BF87: =BD87+BE87 -> 8 | BG87: =IF(AND(BD87>BE87),1,IF(AND(BD87<BE87),2,IF(AND(BD87=BE87),3))) -> 1
A88: 86 | B88: 3 | C88: Монреаль Канадиенс | E88: 2 | F88: 3 | G88: 1 | H88: 7 | I88: 3 | J88: 4 | K88: 2 | L88: 1 | M88: =IF(E88>F88,1,0) -> 0 | N88: =IF(G88>H88,1,0) -> 0 | O88: =IF(I88>J88,1,0) -> 0 | P88: =IF(K88>L88,1,0) -> 1 | Q88: =SUM(M88:P88)+1 -> 2 | R88: =(E88+G88+I88+K88)/4 -> 2 | S88: =(F88+H88+J88+L88)/4 -> 3.75 | T88: =R88-S88 -> -1.75 | U88: Колорадо Эвеланш | W88: 4 | X88: 1 | Y88: 4 | Z88: 3 | AA88: 3 | AB88: 4 | AC88: 2 | AD88: 3 | AE88: =IF(W88>X88,1,0) -> 1 | AF88: =IF(Y88>Z88,1,0) -> 1 | AG88: =IF(AA88>AB88,1,0) -> 0 | AH88: =IF(AC88>AD88,1,0) -> 0 | AI88: =SUM(AE88:AH88) -> 2 | AJ88: =(W88+Y88+AA88+AC88)/4 -> 3.25 | AK88: =(X88+Z88+AB88+AD88)/4 -> 2.75 | AL88: =AJ88-AK88 -> 0.5 | AM88: =R88+AJ88 -> 5.25 | AN88: =S88+AK88 -> 6.5 | AO88: =(R88+AK88)/2+(Q88/10)-0.5 -> 2.075 | AP88: =(S88+AJ88)/2 -> 3.5 | AQ88: =AO88+AP88 -> 5.575 | AR88: =IF(AQ88>=[1]Пременные!B62+[1]Пременные!G62,5) -> 5 | AS88: =IF(AQ88<[1]Пременные!B62+[1]Пременные!J62,5.5,0) -> 0 | AT88: =IF(BJ88=1,AR88,100) -> 100 | AU88: =IF(AR88=5,1,0) -> 1 | AV88: =IF(AT88=5,1,0) -> 0 | AW88: =IF(BJ88=1,AS88,0) -> 0 | AX88: =IF(AS88=5.5,1,0) -> 0 | AY88: =IF(AW88=5.5,1,0) -> 0 | AZ88: =IF(BF88>=AR88,1,0) -> 1 | BA88: =IF(BF88<AS88,1,0) -> 0 | BB88: =AZ88+BA88 -> 1 | BC88: 2:3 (1:0, 0:2, 1:1) | BD88: 2 | BE88: 3 | BF88: =BD88+BE88 -> 5 | BG88: =IF(AND(BD88>BE88),1,IF(AND(BD88<BE88),2,IF(AND(BD88=BE88),3))) -> 2
A89: 87 | B89: 1 | C89: Эдмонтон Ойлерз | E89: 3 | F89: 4 | G89: 6 | H89: 1 | I89: 3 | J89: 2 | K89: 3 | L89: 4 | M89: =IF(E89>F89,1,0) -> 0 | N89: =IF(G89>H89,1,0) -> 1 | O89: =IF(I89>J89,1,0) -> 1 | P89: =IF(K89>L89,1,0) -> 0 | Q89: =SUM(M89:P89)+1 -> 3 | R89: =(E89+G89+I89+K89)/4 -> 3.75 | S89: =(F89+H89+J89+L89)/4 -> 2.75 | T89: =R89-S89 -> 1 | U89: Миннесота Уайлд | W89: 2 | X89: 3 | Y89: 2 | Z89: 4 | AA89: 3 | AB89: 6 | AC89: 4 | AD89: 3 | AE89: =IF(W89>X89,1,0) -> 0 | AF89: =IF(Y89>Z89,1,0) -> 0 | AG89: =IF(AA89>AB89,1,0) -> 0 | AH89: =IF(AC89>AD89,1,0) -> 1 | AI89: =SUM(AE89:AH89) -> 1 | AJ89: =(W89+Y89+AA89+AC89)/4 -> 2.75 | AK89: =(X89+Z89+AB89+AD89)/4 -> 4 | AL89: =AJ89-AK89 -> -1.25 | AM89: =R89+AJ89 -> 6.5 | AN89: =S89+AK89 -> 6.75 | AO89: =(R89+AK89)/2+(Q89/10)-0.5 -> 3.675 | AP89: =(S89+AJ89)/2 -> 2.75 | AQ89: =AO89+AP89 -> 6.425 | AR89: =IF(AQ89>=[1]Пременные!B63+[1]Пременные!G63,5) -> 5 | AS89: =IF(AQ89<[1]Пременные!B63+[1]Пременные!J63,5.5,0) -> 0 | AT89: =IF(BJ89=1,AR89,100) -> 100 | AU89: =IF(AR89=5,1,0) -> 1 | AV89: =IF(AT89=5,1,0) -> 0 | AW89: =IF(BJ89=1,AS89,0) -> 0 | AX89: =IF(AS89=5.5,1,0) -> 0 | AY89: =IF(AW89=5.5,1,0) -> 0 | AZ89: =IF(BF89>=AR89,1,0) -> 1 | BA89: =IF(BF89<AS89,1,0) -> 0 | BB89: =AZ89+BA89 -> 1 | BC89: 5:2 (0:0, 3:1, 2:1) | BD89: 5 | BE89: 2 | BF89: =BD89+BE89 -> 7 | BG89: =IF(AND(BD89>BE89),1,IF(AND(BD89<BE89),2,IF(AND(BD89=BE89),3))) -> 1
A90: 88 | B90: 2 | C90: Нью-Джерси Девилз | E90: 3 | F90: 2 | G90: 3 | H90: 2 | I90: 4 | J90: 3 | K90: 2 | L90: 3 | M90: =IF(E90>F90,1,0) -> 1 | N90: =IF(G90>H90,1,0) -> 1 | O90: =IF(I90>J90,1,0) -> 1 | P90: =IF(K90>L90,1,0) -> 0 | Q90: =SUM(M90:P90)+1 -> 4 | R90: =(E90+G90+I90+K90)/4 -> 3 | S90: =(F90+H90+J90+L90)/4 -> 2.5 | T90: =R90-S90 -> 0.5 | U90: Атланта Трэшерз | AE90: =IF(W90>X90,1,0) -> 0 | AF90: =IF(Y90>Z90,1,0) -> 0 | AG90: =IF(AA90>AB90,1,0) -> 0 | AH90: =IF(AC90>AD90,1,0) -> 0 | AI90: =SUM(AE90:AH90) -> 0 | AJ90: =(W90+Y90+AA90+AC90)/4 -> 0 | AK90: =(X90+Z90+AB90+AD90)/4 -> 0 | AL90: =AJ90-AK90 -> 0 | AM90: =R90+AJ90 -> 3 | AN90: =S90+AK90 -> 2.5 | AO90: =(R90+AK90)/2+(Q90/10)-0.5 -> 1.4 | AP90: =(S90+AJ90)/2 -> 1.25 | AQ90: =AO90+AP90 -> 2.65 | AR90: =IF(AQ90>=[1]Пременные!B64+[1]Пременные!G64,5) -> FALSE | AS90: =IF(AQ90<[1]Пременные!B64+[1]Пременные!J64,5.5,0) -> 5.5 | AT90: =IF(BJ90=1,AR90,100) -> 100 | AU90: =IF(AR90=5,1,0) -> 0 | AV90: =IF(AT90=5,1,0) -> 0 | AW90: =IF(BJ90=1,AS90,0) -> 0 | AX90: =IF(AS90=5.5,1,0) -> 1 | AY90: =IF(AW90=5.5,1,0) -> 0 | AZ90: =IF(BF90>=AR90,1,0) -> 0 | BA90: =IF(BF90<AS90,1,0) -> 0 | BB90: =AZ90+BA90 -> 0 | BC90: 2:4 (0:0, 1:1, 1:3) | BD90: 2 | BE90: 4 | BF90: =BD90+BE90 -> 6 | BG90: =IF(AND(BD90>BE90),1,IF(AND(BD90<BE90),2,IF(AND(BD90=BE90),3))) -> 2
A91: 89 | B91: 3 | C91: Калгари Флэймз | E91: 1 | F91: 2 | G91: 5 | H91: 6 | I91: 2 | J91: 5 | K91: 4 | L91: 3 | M91: =IF(E91>F91,1,0) -> 0 | N91: =IF(G91>H91,1,0) -> 0 | O91: =IF(I91>J91,1,0) -> 0 | P91: =IF(K91>L91,1,0) -> 1 | Q91: =SUM(M91:P91)+1 -> 2 | R91: =(E91+G91+I91+K91)/4 -> 3 | S91: =(F91+H91+J91+L91)/4 -> 4 | T91: =R91-S91 -> -1 | U91: Ванкувер Кэнакс | W91: 4 | X91: 3 | Y91: 7 | Z91: 1 | AA91: 3 | AB91: 5 | AC91: 0 | AD91: 3 | AE91: =IF(W91>X91,1,0) -> 1 | AF91: =IF(Y91>Z91,1,0) -> 1 | AG91: =IF(AA91>AB91,1,0) -> 0 | AH91: =IF(AC91>AD91,1,0) -> 0 | AI91: =SUM(AE91:AH91) -> 2 | AJ91: =(W91+Y91+AA91+AC91)/4 -> 3.5 | AK91: =(X91+Z91+AB91+AD91)/4 -> 3 | AL91: =AJ91-AK91 -> 0.5 | AM91: =R91+AJ91 -> 6.5 | AN91: =S91+AK91 -> 7 | AO91: =(R91+AK91)/2+(Q91/10)-0.5 -> 2.7 | AP91: =(S91+AJ91)/2 -> 3.75 | AQ91: =AO91+AP91 -> 6.45 | AR91: =IF(AQ91>=[1]Пременные!B65+[1]Пременные!G65,5) -> 5 | AS91: =IF(AQ91<[1]Пременные!B65+[1]Пременные!J65,5.5,0) -> 0 | AT91: =IF(BJ91=1,AR91,100) -> 100 | AU91: =IF(AR91=5,1,0) -> 1 | AV91: =IF(AT91=5,1,0) -> 0 | AW91: =IF(BJ91=1,AS91,0) -> 0 | AX91: =IF(AS91=5.5,1,0) -> 0 | AY91: =IF(AW91=5.5,1,0) -> 0 | AZ91: =IF(BF91>=AR91,1,0) -> 1 | BA91: =IF(BF91<AS91,1,0) -> 0 | BB91: =AZ91+BA91 -> 1 | BC91: 5:3 (2:0, 3:0, 0:3) | BD91: 5 | BE91: 3 | BF91: =BD91+BE91 -> 8 | BG91: =IF(AND(BD91>BE91),1,IF(AND(BD91<BE91),2,IF(AND(BD91=BE91),3))) -> 1
A92: 90 | B92: 1 | C92: Даллас Старз | E92: 6 | F92: 0 | G92: 3 | H92: 4 | I92: 5 | J92: 2 | K92: 4 | L92: 5 | M92: =IF(E92>F92,1,0) -> 1 | N92: =IF(G92>H92,1,0) -> 0 | O92: =IF(I92>J92,1,0) -> 1 | P92: =IF(K92>L92,1,0) -> 0 | Q92: =SUM(M92:P92)+1 -> 3 | R92: =(E92+G92+I92+K92)/4 -> 4.5 | S92: =(F92+H92+J92+L92)/4 -> 2.75 | T92: =R92-S92 -> 1.75 | U92: Бостон Брюинз | W92: 3 | X92: 4 | Y92: 4 | Z92: 3 | AA92: 1 | AB92: 6 | AC92: 7 | AD92: 2 | AE92: =IF(W92>X92,1,0) -> 0 | AF92: =IF(Y92>Z92,1,0) -> 1 | AG92: =IF(AA92>AB92,1,0) -> 0 | AH92: =IF(AC92>AD92,1,0) -> 1 | AI92: =SUM(AE92:AH92) -> 2 | AJ92: =(W92+Y92+AA92+AC92)/4 -> 3.75 | AK92: =(X92+Z92+AB92+AD92)/4 -> 3.75 | AL92: =AJ92-AK92 -> 0 | AM92: =R92+AJ92 -> 8.25 | AN92: =S92+AK92 -> 6.5 | AO92: =(R92+AK92)/2+(Q92/10)-0.5 -> 3.925 | AP92: =(S92+AJ92)/2 -> 3.25 | AQ92: =AO92+AP92 -> 7.175 | AR92: =IF(AQ92>=[1]Пременные!B66+[1]Пременные!G66,5) -> 5 | AS92: =IF(AQ92<[1]Пременные!B66+[1]Пременные!J66,5.5,0) -> 0 | AT92: =IF(BJ92=1,AR92,100) -> 100 | AU92: =IF(AR92=5,1,0) -> 1 | AV92: =IF(AT92=5,1,0) -> 0 | AW92: =IF(BJ92=1,AS92,0) -> 0 | AX92: =IF(AS92=5.5,1,0) -> 0 | AY92: =IF(AW92=5.5,1,0) -> 0 | AZ92: =IF(BF92>=AR92,1,0) -> 0 | BA92: =IF(BF92<AS92,1,0) -> 0 | BB92: =AZ92+BA92 -> 0 | BC92: 0:3 (0:1, 0:2, 0:0) | BD92: 0 | BE92: 3 | BF92: =BD92+BE92 -> 3 | BG92: =IF(AND(BD92>BE92),1,IF(AND(BD92<BE92),2,IF(AND(BD92=BE92),3))) -> 2
A93: 91 | B93: 2 | C93: Баффало Сейбрз | E93: 6 | F93: 2 | G93: 1 | H93: 0 | I93: 2 | J93: 1 | K93: 1 | L93: 2 | M93: =IF(E93>F93,1,0) -> 1 | N93: =IF(G93>H93,1,0) -> 1 | O93: =IF(I93>J93,1,0) -> 1 | P93: =IF(K93>L93,1,0) -> 0 | Q93: =SUM(M93:P93)+1 -> 4 | R93: =(E93+G93+I93+K93)/4 -> 2.5 | S93: =(F93+H93+J93+L93)/4 -> 1.25 | T93: =R93-S93 -> 1.25 | U93: Нью-Йорк Айлендерс | W93: 1 | X93: 2 | Y93: 3 | Z93: 4 | AA93: 2 | AB93: 3 | AC93: 3 | AD93: 4 | AE93: =IF(W93>X93,1,0) -> 0 | AF93: =IF(Y93>Z93,1,0) -> 0 | AG93: =IF(AA93>AB93,1,0) -> 0 | AH93: =IF(AC93>AD93,1,0) -> 0 | AI93: =SUM(AE93:AH93) -> 0 | AJ93: =(W93+Y93+AA93+AC93)/4 -> 2.25 | AK93: =(X93+Z93+AB93+AD93)/4 -> 3.25 | AL93: =AJ93-AK93 -> -1 | AM93: =R93+AJ93 -> 4.75 | AN93: =S93+AK93 -> 4.5 | AO93: =(R93+AK93)/2+(Q93/10)-0.5 -> 2.775 | AP93: =(S93+AJ93)/2 -> 1.75 | AQ93: =AO93+AP93 -> 4.525 | AR93: =IF(AQ93>=[1]Пременные!B67+[1]Пременные!G67,5) -> FALSE | AS93: =IF(AQ93<[1]Пременные!B67+[1]Пременные!J67,5.5,0) -> 5.5 | AT93: =IF(BJ93=1,AR93,100) -> 100 | AU93: =IF(AR93=5,1,0) -> 0 | AV93: =IF(AT93=5,1,0) -> 0 | AW93: =IF(BJ93=1,AS93,0) -> 0 | AX93: =IF(AS93=5.5,1,0) -> 1 | AY93: =IF(AW93=5.5,1,0) -> 0 | AZ93: =IF(BF93>=AR93,1,0) -> 0 | BA93: =IF(BF93<AS93,1,0) -> 0 | BB93: =AZ93+BA93 -> 0 | BC93: 6:3 (2:0, 2:2, 2:1) | BD93: 6 | BE93: 3 | BF93: =BD93+BE93 -> 9 | BG93: =IF(AND(BD93>BE93),1,IF(AND(BD93<BE93),2,IF(AND(BD93=BE93),3))) -> 1
A94: 92 | B94: 3 | C94: Флорида Пантерз | E94: 2 | F94: 3 | G94: 2 | H94: 3 | I94: 2 | J94: 7 | K94: 0 | L94: 4 | M94: =IF(E94>F94,1,0) -> 0 | N94: =IF(G94>H94,1,0) -> 0 | O94: =IF(I94>J94,1,0) -> 0 | P94: =IF(K94>L94,1,0) -> 0 | Q94: =SUM(M94:P94)+1 -> 1 | R94: =(E94+G94+I94+K94)/4 -> 1.5 | S94: =(F94+H94+J94+L94)/4 -> 4.25 | T94: =R94-S94 -> -2.75 | U94: Филадельфия Флайерз | W94: 2 | X94: 3 | Y94: 4 | Z94: 5 | AA94: 6 | AB94: 5 | AC94: 5 | AD94: 2 | AE94: =IF(W94>X94,1,0) -> 0 | AF94: =IF(Y94>Z94,1,0) -> 0 | AG94: =IF(AA94>AB94,1,0) -> 1 | AH94: =IF(AC94>AD94,1,0) -> 1 | AI94: =SUM(AE94:AH94) -> 2 | AJ94: =(W94+Y94+AA94+AC94)/4 -> 4.25 | AK94: =(X94+Z94+AB94+AD94)/4 -> 3.75 | AL94: =AJ94-AK94 -> 0.5 | AM94: =R94+AJ94 -> 5.75 | AN94: =S94+AK94 -> 8 | AO94: =(R94+AK94)/2+(Q94/10)-0.5 -> 2.225 | AP94: =(S94+AJ94)/2 -> 4.25 | AQ94: =AO94+AP94 -> 6.475 | AR94: =IF(AQ94>=[1]Пременные!B68+[1]Пременные!G68,5) -> 5 | AS94: =IF(AQ94<[1]Пременные!B68+[1]Пременные!J68,5.5,0) -> 0 | AT94: =IF(BJ94=1,AR94,100) -> 100 | AU94: =IF(AR94=5,1,0) -> 1 | AV94: =IF(AT94=5,1,0) -> 0 | AW94: =IF(BJ94=1,AS94,0) -> 0 | AX94: =IF(AS94=5.5,1,0) -> 0 | AY94: =IF(AW94=5.5,1,0) -> 0 | AZ94: =IF(BF94>=AR94,1,0) -> 1 | BA94: =IF(BF94<AS94,1,0) -> 0 | BB94: =AZ94+BA94 -> 1 | BC94: 4:2 (0:1, 2:1, 2:0) | BD94: 4 | BE94: 2 | BF94: =BD94+BE94 -> 6 | BG94: =IF(AND(BD94>BE94),1,IF(AND(BD94<BE94),2,IF(AND(BD94=BE94),3))) -> 1
A95: 93 | B95: 1 | C95: Финикс Койотс | E95: 3 | F95: 2 | G95: 1 | H95: 0 | I95: 0 | J95: 2 | K95: 1 | L95: 2 | M95: =IF(E95>F95,1,0) -> 1 | N95: =IF(G95>H95,1,0) -> 1 | O95: =IF(I95>J95,1,0) -> 0 | P95: =IF(K95>L95,1,0) -> 0 | Q95: =SUM(M95:P95)+1 -> 3 | R95: =(E95+G95+I95+K95)/4 -> 1.25 | S95: =(F95+H95+J95+L95)/4 -> 1.5 | T95: =R95-S95 -> -0.25 | U95: Бостон Брюинз | W95: 3 | X95: 0 | Y95: 3 | Z95: 4 | AA95: 4 | AB95: 3 | AC95: 1 | AD95: 6 | AE95: =IF(W95>X95,1,0) -> 1 | AF95: =IF(Y95>Z95,1,0) -> 0 | AG95: =IF(AA95>AB95,1,0) -> 1 | AH95: =IF(AC95>AD95,1,0) -> 0 | AI95: =SUM(AE95:AH95) -> 2 | AJ95: =(W95+Y95+AA95+AC95)/4 -> 2.75 | AK95: =(X95+Z95+AB95+AD95)/4 -> 3.25 | AL95: =AJ95-AK95 -> -0.5 | AM95: =R95+AJ95 -> 4 | AN95: =S95+AK95 -> 4.75 | AO95: =(R95+AK95)/2+(Q95/10)-0.5 -> 2.05 | AP95: =(S95+AJ95)/2 -> 2.125 | AQ95: =AO95+AP95 -> 4.175 | AR95: =IF(AQ95>=[1]Пременные!B69+[1]Пременные!G69,5) -> FALSE | AS95: =IF(AQ95<[1]Пременные!B69+[1]Пременные!J69,5.5,0) -> 5.5 | AT95: =IF(BJ95=1,AR95,100) -> 100 | AU95: =IF(AR95=5,1,0) -> 0 | AV95: =IF(AT95=5,1,0) -> 0 | AW95: =IF(BJ95=1,AS95,0) -> 0 | AX95: =IF(AS95=5.5,1,0) -> 1 | AY95: =IF(AW95=5.5,1,0) -> 0 | AZ95: =IF(BF95>=AR95,1,0) -> 0 | BA95: =IF(BF95<AS95,1,0) -> 1 | BB95: =AZ95+BA95 -> 1 | BC95: 4:1 (1:0, 3:1, 0:0) | BD95: 4 | BE95: 1 | BF95: =BD95+BE95 -> 5 | BG95: =IF(AND(BD95>BE95),1,IF(AND(BD95<BE95),2,IF(AND(BD95=BE95),3))) -> 1
A96: 94 | B96: 2 | C96: Колумбус Блю Джекетс | E96: 2 | F96: 1 | G96: 2 | H96: 0 | I96: 3 | J96: 6 | K96: 5 | L96: 3 | M96: =IF(E96>F96,1,0) -> 1 | N96: =IF(G96>H96,1,0) -> 1 | O96: =IF(I96>J96,1,0) -> 0 | P96: =IF(K96>L96,1,0) -> 1 | Q96: =SUM(M96:P96)+1 -> 4 | R96: =(E96+G96+I96+K96)/4 -> 3 | S96: =(F96+H96+J96+L96)/4 -> 2.5 | T96: =R96-S96 -> 0.5 | U96: Лос-Анджелес Кингз | W96: 2 | X96: 5 | Y96: 2 | Z96: 4 | AA96: 2 | AB96: 1 | AC96: 2 | AD96: 1 | AE96: =IF(W96>X96,1,0) -> 0 | AF96: =IF(Y96>Z96,1,0) -> 0 | AG96: =IF(AA96>AB96,1,0) -> 1 | AH96: =IF(AC96>AD96,1,0) -> 1 | AI96: =SUM(AE96:AH96) -> 2 | AJ96: =(W96+Y96+AA96+AC96)/4 -> 2 | AK96: =(X96+Z96+AB96+AD96)/4 -> 2.75 | AL96: =AJ96-AK96 -> -0.75 | AM96: =R96+AJ96 -> 5 | AN96: =S96+AK96 -> 5.25 | AO96: =(R96+AK96)/2+(Q96/10)-0.5 -> 2.775 | AP96: =(S96+AJ96)/2 -> 2.25 | AQ96: =AO96+AP96 -> 5.025 | AR96: =IF(AQ96>=[1]Пременные!B70+[1]Пременные!G70,5) -> 5 | AS96: =IF(AQ96<[1]Пременные!B70+[1]Пременные!J70,5.5,0) -> 0 | AT96: =IF(BJ96=1,AR96,100) -> 100 | AU96: =IF(AR96=5,1,0) -> 1 | AV96: =IF(AT96=5,1,0) -> 0 | AW96: =IF(BJ96=1,AS96,0) -> 0 | AX96: =IF(AS96=5.5,1,0) -> 0 | AY96: =IF(AW96=5.5,1,0) -> 0 | AZ96: =IF(BF96>=AR96,1,0) -> 1 | BA96: =IF(BF96<AS96,1,0) -> 0 | BB96: =AZ96+BA96 -> 1 | BC96: 4:1 (1:1, 1:0, 2:0) | BD96: 4 | BE96: 1 | BF96: =BD96+BE96 -> 5 | BG96: =IF(AND(BD96>BE96),1,IF(AND(BD96<BE96),2,IF(AND(BD96=BE96),3))) -> 1
A97: 95 | B97: 3 | C97: Нью-Джерси Девилз | E97: 2 | F97: 4 | G97: 3 | H97: 2 | I97: 3 | J97: 2 | K97: 4 | L97: 3 | M97: =IF(E97>F97,1,0) -> 0 | N97: =IF(G97>H97,1,0) -> 1 | O97: =IF(I97>J97,1,0) -> 1 | P97: =IF(K97>L97,1,0) -> 1 | Q97: =SUM(M97:P97)+1 -> 4 | R97: =(E97+G97+I97+K97)/4 -> 3 | S97: =(F97+H97+J97+L97)/4 -> 2.75 | T97: =R97-S97 -> 0.25 | U97: Каролина Харрикейнз | W97: 2 | X97: 3 | Y97: 2 | Z97: 5 | AA97: 7 | AB97: 2 | AC97: 2 | AD97: 1 | AE97: =IF(W97>X97,1,0) -> 0 | AF97: =IF(Y97>Z97,1,0) -> 0 | AG97: =IF(AA97>AB97,1,0) -> 1 | AH97: =IF(AC97>AD97,1,0) -> 1 | AI97: =SUM(AE97:AH97) -> 2 | AJ97: =(W97+Y97+AA97+AC97)/4 -> 3.25 | AK97: =(X97+Z97+AB97+AD97)/4 -> 2.75 | AL97: =AJ97-AK97 -> 0.5 | AM97: =R97+AJ97 -> 6.25 | AN97: =S97+AK97 -> 5.5 | AO97: =(R97+AK97)/2+(Q97/10)-0.5 -> 2.775 | AP97: =(S97+AJ97)/2 -> 3 | AQ97: =AO97+AP97 -> 5.775 | AR97: =IF(AQ97>=[1]Пременные!B71+[1]Пременные!G71,5) -> 5 | AS97: =IF(AQ97<[1]Пременные!B71+[1]Пременные!J71,5.5,0) -> 0 | AT97: =IF(BJ97=1,AR97,100) -> 100 | AU97: =IF(AR97=5,1,0) -> 1 | AV97: =IF(AT97=5,1,0) -> 0 | AW97: =IF(BJ97=1,AS97,0) -> 0 | AX97: =IF(AS97=5.5,1,0) -> 0 | AY97: =IF(AW97=5.5,1,0) -> 0 | AZ97: =IF(BF97>=AR97,1,0) -> 0 | BA97: =IF(BF97<AS97,1,0) -> 0 | BB97: =AZ97+BA97 -> 0 | BC97: 2:0 (0:0, 0:0, 2:0) | BD97: 2 | BE97: 0 | BF97: =BD97+BE97 -> 2 | BG97: =IF(AND(BD97>BE97),1,IF(AND(BD97<BE97),2,IF(AND(BD97=BE97),3))) -> 1
A98: 96 | B98: 1 | C98: Вашингтон Кэпиталз | E98: 4 | F98: 1 | G98: 2 | H98: 3 | I98: 2 | J98: 3 | K98: 3 | L98: 4 | M98: =IF(E98>F98,1,0) -> 1 | N98: =IF(G98>H98,1,0) -> 0 | O98: =IF(I98>J98,1,0) -> 0 | P98: =IF(K98>L98,1,0) -> 0 | Q98: =SUM(M98:P98)+1 -> 2 | R98: =(E98+G98+I98+K98)/4 -> 2.75 | S98: =(F98+H98+J98+L98)/4 -> 2.75 | T98: =R98-S98 -> 0 | U98: Нэшвилл Предаторз | W98: 1 | X98: 3 | Y98: 0 | Z98: 6 | AA98: 1 | AB98: 6 | AC98: 0 | AD98: 1 | AE98: =IF(W98>X98,1,0) -> 0 | AF98: =IF(Y98>Z98,1,0) -> 0 | AG98: =IF(AA98>AB98,1,0) -> 0 | AH98: =IF(AC98>AD98,1,0) -> 0 | AI98: =SUM(AE98:AH98) -> 0 | AJ98: =(W98+Y98+AA98+AC98)/4 -> 0.5 | AK98: =(X98+Z98+AB98+AD98)/4 -> 4 | AL98: =AJ98-AK98 -> -3.5 | AM98: =R98+AJ98 -> 3.25 | AN98: =S98+AK98 -> 6.75 | AO98: =(R98+AK98)/2+(Q98/10)-0.5 -> 3.075 | AP98: =(S98+AJ98)/2 -> 1.625 | AQ98: =AO98+AP98 -> 4.7 | AR98: =IF(AQ98>=[1]Пременные!B72+[1]Пременные!G72,5) -> FALSE | AS98: =IF(AQ98<[1]Пременные!B72+[1]Пременные!J72,5.5,0) -> 5.5 | AT98: =IF(BJ98=1,AR98,100) -> 100 | AU98: =IF(AR98=5,1,0) -> 0 | AV98: =IF(AT98=5,1,0) -> 0 | AW98: =IF(BJ98=1,AS98,0) -> 0 | AX98: =IF(AS98=5.5,1,0) -> 1 | AY98: =IF(AW98=5.5,1,0) -> 0 | AZ98: =IF(BF98>=AR98,1,0) -> 0 | BA98: =IF(BF98<AS98,1,0) -> 1 | BB98: =AZ98+BA98 -> 1 | BC98: 3:2 Б | BD98: 2 | BE98: 2 | BF98: =BD98+BE98 -> 4 | BG98: =IF(AND(BD98>BE98),1,IF(AND(BD98<BE98),2,IF(AND(BD98=BE98),3))) -> 3
A99: 97 | B99: 2 | C99: Баффало Сейбрз | E99: 6 | F99: 3 | G99: 6 | H99: 2 | I99: 1 | J99: 0 | K99: 2 | L99: 1 | M99: =IF(E99>F99,1,0) -> 1 | N99: =IF(G99>H99,1,0) -> 1 | O99: =IF(I99>J99,1,0) -> 1 | P99: =IF(K99>L99,1,0) -> 1 | Q99: =SUM(M99:P99)+1 -> 5 | R99: =(E99+G99+I99+K99)/4 -> 3.75 | S99: =(F99+H99+J99+L99)/4 -> 1.5 | T99: =R99-S99 -> 2.25 | U99: Атланта Трэшерз | W99: 4 | X99: 2 | Y99: 2 | Z99: 4 | AA99: 4 | AB99: 2 | AC99: 6 | AD99: 3 | AE99: =IF(W99>X99,1,0) -> 1 | AF99: =IF(Y99>Z99,1,0) -> 0 | AG99: =IF(AA99>AB99,1,0) -> 1 | AH99: =IF(AC99>AD99,1,0) -> 1 | AI99: =SUM(AE99:AH99) -> 3 | AJ99: =(W99+Y99+AA99+AC99)/4 -> 4 | AK99: =(X99+Z99+AB99+AD99)/4 -> 2.75 | AL99: =AJ99-AK99 -> 1.25 | AM99: =R99+AJ99 -> 7.75 | AN99: =S99+AK99 -> 4.25 | AO99: =(R99+AK99)/2+(Q99/10)-0.5 -> 3.25 | AP99: =(S99+AJ99)/2 -> 2.75 | AQ99: =AO99+AP99 -> 6 | AR99: =IF(AQ99>=[1]Пременные!B73+[1]Пременные!G73,5) -> 5 | AS99: =IF(AQ99<[1]Пременные!B73+[1]Пременные!J73,5.5,0) -> 0 | AT99: =IF(BJ99=1,AR99,100) -> 100 | AU99: =IF(AR99=5,1,0) -> 1 | AV99: =IF(AT99=5,1,0) -> 0 | AW99: =IF(BJ99=1,AS99,0) -> 0 | AX99: =IF(AS99=5.5,1,0) -> 0 | AY99: =IF(AW99=5.5,1,0) -> 0 | AZ99: =IF(BF99>=AR99,1,0) -> 1 | BA99: =IF(BF99<AS99,1,0) -> 0 | BB99: =AZ99+BA99 -> 1 | BC99: 2:4 (0:2, 1:1, 1:1) | BD99: 2 | BE99: 4 | BF99: =BD99+BE99 -> 6 | BG99: =IF(AND(BD99>BE99),1,IF(AND(BD99<BE99),2,IF(AND(BD99=BE99),3))) -> 2
A100: 98 | B100: 3 | C100: Нью-Йорк Айлендерс | E100: 3 | F100: 6 | G100: 1 | H100: 2 | I100: 3 | J100: 4 | K100: 2 | L100: 3 | M100: =IF(E100>F100,1,0) -> 0 | N100: =IF(G100>H100,1,0) -> 0 | O100: =IF(I100>J100,1,0) -> 0 | P100: =IF(K100>L100,1,0) -> 0 | Q100: =SUM(M100:P100)+1 -> 1 | R100: =(E100+G100+I100+K100)/4 -> 2.25 | S100: =(F100+H100+J100+L100)/4 -> 3.75 | T100: =R100-S100 -> -1.5 | U100: Сан-Хосе Шаркс | W100: 1 | X100: 4 | Y100: 0 | Z100: 1 | AA100: 4 | AB100: 2 | AC100: 6 | AD100: 3 | AE100: =IF(W100>X100,1,0) -> 0 | AF100: =IF(Y100>Z100,1,0) -> 0 | AG100: =IF(AA100>AB100,1,0) -> 1 | AH100: =IF(AC100>AD100,1,0) -> 1 | AI100: =SUM(AE100:AH100) -> 2 | AJ100: =(W100+Y100+AA100+AC100)/4 -> 2.75 | AK100: =(X100+Z100+AB100+AD100)/4 -> 2.5 | AL100: =AJ100-AK100 -> 0.25 | AM100: =R100+AJ100 -> 5 | AN100: =S100+AK100 -> 6.25 | AO100: =(R100+AK100)/2+(Q100/10)-0.5 -> 1.975 | AP100: =(S100+AJ100)/2 -> 3.25 | AQ100: =AO100+AP100 -> 5.225 | AR100: =IF(AQ100>=[1]Пременные!B74+[1]Пременные!G74,5) -> 5 | AS100: =IF(AQ100<[1]Пременные!B74+[1]Пременные!J74,5.5,0) -> 0 | AT100: =IF(BJ100=1,AR100,100) -> 100 | AU100: =IF(AR100=5,1,0) -> 1 | AV100: =IF(AT100=5,1,0) -> 0 | AW100: =IF(BJ100=1,AS100,0) -> 0 | AX100: =IF(AS100=5.5,1,0) -> 0 | AY100: =IF(AW100=5.5,1,0) -> 0 | AZ100: =IF(BF100>=AR100,1,0) -> 1 | BA100: =IF(BF100<AS100,1,0) -> 0 | BB100: =AZ100+BA100 -> 1 | BC100: 1:4 (1:0, 0:2, 0:2) | BD100: 1 | BE100: 4 | BF100: =BD100+BE100 -> 5 | BG100: =IF(AND(BD100>BE100),1,IF(AND(BD100<BE100),2,IF(AND(BD100=BE100),3))) -> 2
A101: 99 | B101: 1 | C101: Детройт Ред Уингз | E101: 5 | F101: 2 | G101: 2 | H101: 6 | I101: 3 | J101: 2 | K101: 3 | L101: 2 | M101: =IF(E101>F101,1,0) -> 1 | N101: =IF(G101>H101,1,0) -> 0 | O101: =IF(I101>J101,1,0) -> 1 | P101: =IF(K101>L101,1,0) -> 1 | Q101: =SUM(M101:P101)+1 -> 4 | R101: =(E101+G101+I101+K101)/4 -> 3.25 | S101: =(F101+H101+J101+L101)/4 -> 3 | T101: =R101-S101 -> 0.25 | U101: Колорадо Эвеланш | W101: 3 | X101: 2 | Y101: 4 | Z101: 1 | AA101: 4 | AB101: 3 | AC101: 3 | AD101: 4 | AE101: =IF(W101>X101,1,0) -> 1 | AF101: =IF(Y101>Z101,1,0) -> 1 | AG101: =IF(AA101>AB101,1,0) -> 1 | AH101: =IF(AC101>AD101,1,0) -> 0 | AI101: =SUM(AE101:AH101) -> 3 | AJ101: =(W101+Y101+AA101+AC101)/4 -> 3.5 | AK101: =(X101+Z101+AB101+AD101)/4 -> 2.5 | AL101: =AJ101-AK101 -> 1 | AM101: =R101+AJ101 -> 6.75 | AN101: =S101+AK101 -> 5.5 | AO101: =(R101+AK101)/2+(Q101/10)-0.5 -> 2.775 | AP101: =(S101+AJ101)/2 -> 3.25 | AQ101: =AO101+AP101 -> 6.025 | AR101: =IF(AQ101>=[1]Пременные!B75+[1]Пременные!G75,5) -> 5 | AS101: =IF(AQ101<[1]Пременные!B75+[1]Пременные!J75,5.5,0) -> 0 | AT101: =IF(BJ101=1,AR101,100) -> 100 | AU101: =IF(AR101=5,1,0) -> 1 | AV101: =IF(AT101=5,1,0) -> 0 | AW101: =IF(BJ101=1,AS101,0) -> 0 | AX101: =IF(AS101=5.5,1,0) -> 0 | AY101: =IF(AW101=5.5,1,0) -> 0 | AZ101: =IF(BF101>=AR101,1,0) -> 1 | BA101: =IF(BF101<AS101,1,0) -> 0 | BB101: =AZ101+BA101 -> 1 | BC101: 3:4 Б | BD101: 3 | BE101: 3 | BF101: =BD101+BE101 -> 6 | BG101: =IF(AND(BD101>BE101),1,IF(AND(BD101<BE101),2,IF(AND(BD101=BE101),3))) -> 3
A102: 100 | B102: 2 | C102: Анахайм Дакс | E102: 3 | F102: 2 | G102: 0 | H102: 3 | I102: 3 | J102: 2 | K102: 6 | L102: 1 | M102: =IF(E102>F102,1,0) -> 1 | N102: =IF(G102>H102,1,0) -> 0 | O102: =IF(I102>J102,1,0) -> 1 | P102: =IF(K102>L102,1,0) -> 1 | Q102: =SUM(M102:P102)+1 -> 4 | R102: =(E102+G102+I102+K102)/4 -> 3 | S102: =(F102+H102+J102+L102)/4 -> 2 | T102: =R102-S102 -> 1 | U102: Сент-Луис Блюз | W102: 2 | X102: 3 | Y102: 1 | Z102: 2 | AA102: 2 | AB102: 4 | AC102: 5 | AD102: 3 | AE102: =IF(W102>X102,1,0) -> 0 | AF102: =IF(Y102>Z102,1,0) -> 0 | AG102: =IF(AA102>AB102,1,0) -> 0 | AH102: =IF(AC102>AD102,1,0) -> 1 | AI102: =SUM(AE102:AH102) -> 1 | AJ102: =(W102+Y102+AA102+AC102)/4 -> 2.5 | AK102: =(X102+Z102+AB102+AD102)/4 -> 3 | AL102: =AJ102-AK102 -> -0.5 | AM102: =R102+AJ102 -> 5.5 | AN102: =S102+AK102 -> 5 | AO102: =(R102+AK102)/2+(Q102/10)-0.5 -> 2.9 | AP102: =(S102+AJ102)/2 -> 2.25 | AQ102: =AO102+AP102 -> 5.15 | AR102: =IF(AQ102>=[1]Пременные!B76+[1]Пременные!G76,5) -> 5 | AS102: =IF(AQ102<[1]Пременные!B76+[1]Пременные!J76,5.5,0) -> 0 | AT102: =IF(BJ102=1,AR102,100) -> 100 | AU102: =IF(AR102=5,1,0) -> 1 | AV102: =IF(AT102=5,1,0) -> 0 | AW102: =IF(BJ102=1,AS102,0) -> 0 | AX102: =IF(AS102=5.5,1,0) -> 0 | AY102: =IF(AW102=5.5,1,0) -> 0 | AZ102: =IF(BF102>=AR102,1,0) -> 1 | BA102: =IF(BF102<AS102,1,0) -> 0 | BB102: =AZ102+BA102 -> 1 | BC102: 0:5 (0:1, 0:2, 0:2) | BD102: 0 | BE102: 5 | BF102: =BD102+BE102 -> 5 | BG102: =IF(AND(BD102>BE102),1,IF(AND(BD102<BE102),2,IF(AND(BD102=BE102),3))) -> 2
A103: 101 | B103: 3 | C103: Ванкувер Кэнакс | E103: 3 | F103: 5 | G103: 4 | H103: 3 | I103: 7 | J103: 1 | K103: 3 | L103: 5 | M103: =IF(E103>F103,1,0) -> 0 | N103: =IF(G103>H103,1,0) -> 1 | O103: =IF(I103>J103,1,0) -> 1 | P103: =IF(K103>L103,1,0) -> 0 | Q103: =SUM(M103:P103)+1 -> 3 | R103: =(E103+G103+I103+K103)/4 -> 4.25 | S103: =(F103+H103+J103+L103)/4 -> 3.5 | T103: =R103-S103 -> 0.75 | U103: Миннесота Уайлд | W103: 2 | X103: 5 | Y103: 2 | Z103: 3 | AA103: 2 | AB103: 4 | AC103: 3 | AD103: 6 | AE103: =IF(W103>X103,1,0) -> 0 | AF103: =IF(Y103>Z103,1,0) -> 0 | AG103: =IF(AA103>AB103,1,0) -> 0 | AH103: =IF(AC103>AD103,1,0) -> 0 | AI103: =SUM(AE103:AH103) -> 0 | AJ103: =(W103+Y103+AA103+AC103)/4 -> 2.25 | AK103: =(X103+Z103+AB103+AD103)/4 -> 4.5 | AL103: =AJ103-AK103 -> -2.25 | AM103: =R103+AJ103 -> 6.5 | AN103: =S103+AK103 -> 8 | AO103: =(R103+AK103)/2+(Q103/10)-0.5 -> 4.175 | AP103: =(S103+AJ103)/2 -> 2.875 | AQ103: =AO103+AP103 -> 7.05 | AR103: =IF(AQ103>=[1]Пременные!B77+[1]Пременные!G77,5) -> 5 | AS103: =IF(AQ103<[1]Пременные!B77+[1]Пременные!J77,5.5,0) -> 0 | AT103: =IF(BJ103=1,AR103,100) -> 100 | AU103: =IF(AR103=5,1,0) -> 1 | AV103: =IF(AT103=5,1,0) -> 0 | AW103: =IF(BJ103=1,AS103,0) -> 0 | AX103: =IF(AS103=5.5,1,0) -> 0 | AY103: =IF(AW103=5.5,1,0) -> 0 | AZ103: =IF(BF103>=AR103,1,0) -> 0 | BA103: =IF(BF103<AS103,1,0) -> 0 | BB103: =AZ103+BA103 -> 0 | BC103: 2:1 (0:1, 1:0, 1:0) | BD103: 2 | BE103: 1 | BF103: =BD103+BE103 -> 3 | BG103: =IF(AND(BD103>BE103),1,IF(AND(BD103<BE103),2,IF(AND(BD103=BE103),3))) -> 1
A104: 102 | B104: 1 | C104: Монреаль Канадиенс | E104: 2 | F104: 3 | G104: 2 | H104: 3 | I104: 1 | J104: 7 | K104: 3 | L104: 4 | M104: =IF(E104>F104,1,0) -> 0 | N104: =IF(G104>H104,1,0) -> 0 | O104: =IF(I104>J104,1,0) -> 0 | P104: =IF(K104>L104,1,0) -> 0 | Q104: =SUM(M104:P104)+1 -> 1 | R104: =(E104+G104+I104+K104)/4 -> 2 | S104: =(F104+H104+J104+L104)/4 -> 4.25 | T104: =R104-S104 -> -2.25 | U104: Оттава Сенаторз | W104: 7 | X104: 1 | Y104: 1 | Z104: 4 | AA104: 4 | AB104: 2 | AC104: 3 | AD104: 2 | AE104: =IF(W104>X104,1,0) -> 1 | AF104: =IF(Y104>Z104,1,0) -> 0 | AG104: =IF(AA104>AB104,1,0) -> 1 | AH104: =IF(AC104>AD104,1,0) -> 1 | AI104: =SUM(AE104:AH104) -> 3 | AJ104: =(W104+Y104+AA104+AC104)/4 -> 3.75 | AK104: =(X104+Z104+AB104+AD104)/4 -> 2.25 | AL104: =AJ104-AK104 -> 1.5 | AM104: =R104+AJ104 -> 5.75 | AN104: =S104+AK104 -> 6.5 | AO104: =(R104+AK104)/2+(Q104/10)-0.5 -> 1.725 | AP104: =(S104+AJ104)/2 -> 4 | AQ104: =AO104+AP104 -> 5.725 | AR104: =IF(AQ104>=[1]Пременные!B78+[1]Пременные!G78,5) -> 5 | AS104: =IF(AQ104<[1]Пременные!B78+[1]Пременные!J78,5.5,0) -> 0 | AT104: =IF(BJ104=1,AR104,100) -> 100 | AU104: =IF(AR104=5,1,0) -> 1 | AV104: =IF(AT104=5,1,0) -> 0 | AW104: =IF(BJ104=1,AS104,0) -> 0 | AX104: =IF(AS104=5.5,1,0) -> 0 | AY104: =IF(AW104=5.5,1,0) -> 0 | AZ104: =IF(BF104>=AR104,1,0) -> 0 | BA104: =IF(BF104<AS104,1,0) -> 0 | BB104: =AZ104+BA104 -> 0 | BC104: 1:3 (1:1, 0:1, 0:1) | BD104: 1 | BE104: 3 | BF104: =BD104+BE104 -> 4 | BG104: =IF(AND(BD104>BE104),1,IF(AND(BD104<BE104),2,IF(AND(BD104=BE104),3))) -> 2
A105: 103 | B105: 2 | C105: Торонто Мейпл Лифс | E105: 1 | F105: 4 | G105: 2 | H105: 7 | I105: 2 | J105: 5 | K105: 1 | L105: 2 | M105: =IF(E105>F105,1,0) -> 0 | N105: =IF(G105>H105,1,0) -> 0 | O105: =IF(I105>J105,1,0) -> 0 | P105: =IF(K105>L105,1,0) -> 0 | Q105: =SUM(M105:P105)+1 -> 1 | R105: =(E105+G105+I105+K105)/4 -> 1.5 | S105: =(F105+H105+J105+L105)/4 -> 4.5 | T105: =R105-S105 -> -3 | U105: Нью-Йорк Рейнджерс | W105: 4 | X105: 2 | Y105: 7 | Z105: 2 | AA105: 3 | AB105: 0 | AC105: 4 | AD105: 3 | AE105: =IF(W105>X105,1,0) -> 1 | AF105: =IF(Y105>Z105,1,0) -> 1 | AG105: =IF(AA105>AB105,1,0) -> 1 | AH105: =IF(AC105>AD105,1,0) -> 1 | AI105: =SUM(AE105:AH105) -> 4 | AJ105: =(W105+Y105+AA105+AC105)/4 -> 4.5 | AK105: =(X105+Z105+AB105+AD105)/4 -> 1.75 | AL105: =AJ105-AK105 -> 2.75 | AM105: =R105+AJ105 -> 6 | AN105: =S105+AK105 -> 6.25 | AO105: =(R105+AK105)/2+(Q105/10)-0.5 -> 1.225 | AP105: =(S105+AJ105)/2 -> 4.5 | AQ105: =AO105+AP105 -> 5.725 | AR105: =IF(AQ105>=[1]Пременные!B79+[1]Пременные!G79,5) -> 5 | AS105: =IF(AQ105<[1]Пременные!B79+[1]Пременные!J79,5.5,0) -> 0 | AT105: =IF(BJ105=1,AR105,100) -> 100 | AU105: =IF(AR105=5,1,0) -> 1 | AV105: =IF(AT105=5,1,0) -> 0 | AW105: =IF(BJ105=1,AS105,0) -> 0 | AX105: =IF(AS105=5.5,1,0) -> 0 | AY105: =IF(AW105=5.5,1,0) -> 0 | AZ105: =IF(BF105>=AR105,1,0) -> 1 | BA105: =IF(BF105<AS105,1,0) -> 0 | BB105: =AZ105+BA105 -> 1 | BC105: 1:4 (0:1, 1:2, 0:1) | BD105: 1 | BE105: 4 | BF105: =BD105+BE105 -> 5 | BG105: =IF(AND(BD105>BE105),1,IF(AND(BD105<BE105),2,IF(AND(BD105=BE105),3))) -> 2
A106: 104 | B106: 3 | C106: Чикаго Блэкхокс | E106: 3 | F106: 1 | G106: 4 | H106: 3 | I106: 6 | J106: 5 | K106: 4 | L106: 3 | M106: =IF(E106>F106,1,0) -> 1 | N106: =IF(G106>H106,1,0) -> 1 | O106: =IF(I106>J106,1,0) -> 1 | P106: =IF(K106>L106,1,0) -> 1 | Q106: =SUM(M106:P106)+1 -> 5 | R106: =(E106+G106+I106+K106)/4 -> 4.25 | S106: =(F106+H106+J106+L106)/4 -> 3 | T106: =R106-S106 -> 1.25 | U106: Даллас Старз | W106: 0 | X106: 3 | Y106: 6 | Z106: 0 | AA106: 3 | AB106: 4 | AC106: 5 | AD106: 2 | AE106: =IF(W106>X106,1,0) -> 0 | AF106: =IF(Y106>Z106,1,0) -> 1 | AG106: =IF(AA106>AB106,1,0) -> 0 | AH106: =IF(AC106>AD106,1,0) -> 1 | AI106: =SUM(AE106:AH106) -> 2 | AJ106: =(W106+Y106+AA106+AC106)/4 -> 3.5 | AK106: =(X106+Z106+AB106+AD106)/4 -> 2.25 | AL106: =AJ106-AK106 -> 1.25 | AM106: =R106+AJ106 -> 7.75 | AN106: =S106+AK106 -> 5.25 | AO106: =(R106+AK106)/2+(Q106/10)-0.5 -> 3.25 | AP106: =(S106+AJ106)/2 -> 3.25 | AQ106: =AO106+AP106 -> 6.5 | AR106: =IF(AQ106>=[1]Пременные!B80+[1]Пременные!G80,5) -> 5 | AS106: =IF(AQ106<[1]Пременные!B80+[1]Пременные!J80,5.5,0) -> 0 | AT106: =IF(BJ106=1,AR106,100) -> 100 | AU106: =IF(AR106=5,1,0) -> 1 | AV106: =IF(AT106=5,1,0) -> 0 | AW106: =IF(BJ106=1,AS106,0) -> 0 | AX106: =IF(AS106=5.5,1,0) -> 0 | AY106: =IF(AW106=5.5,1,0) -> 0 | AZ106: =IF(BF106>=AR106,1,0) -> 1 | BA106: =IF(BF106<AS106,1,0) -> 0 | BB106: =AZ106+BA106 -> 1 | BC106: 3:4 (0:0, 2:3, 1:1) | BD106: 3 | BE106: 4 | BF106: =BD106+BE106 -> 7 | BG106: =IF(AND(BD106>BE106),1,IF(AND(BD106<BE106),2,IF(AND(BD106=BE106),3))) -> 2
A107: 105 | B107: 1 | C107: Питтсбург Пингвинз | E107: 3 | F107: 2 | G107: 4 | H107: 1 | I107: 5 | J107: 2 | K107: 5 | L107: 4 | M107: =IF(E107>F107,1,0) -> 1 | N107: =IF(G107>H107,1,0) -> 1 | O107: =IF(I107>J107,1,0) -> 1 | P107: =IF(K107>L107,1,0) -> 1 | Q107: =SUM(M107:P107)+1 -> 5 | R107: =(E107+G107+I107+K107)/4 -> 4.25 | S107: =(F107+H107+J107+L107)/4 -> 2.25 | T107: =R107-S107 -> 2 | U107: Тампа Бэй Лайтнинг | W107: 1 | X107: 7 | Y107: 3 | Z107: 2 | AA107: 5 | AB107: 2 | AC107: 3 | AD107: 4 | AE107: =IF(W107>X107,1,0) -> 0 | AF107: =IF(Y107>Z107,1,0) -> 1 | AG107: =IF(AA107>AB107,1,0) -> 1 | AH107: =IF(AC107>AD107,1,0) -> 0 | AI107: =SUM(AE107:AH107) -> 2 | AJ107: =(W107+Y107+AA107+AC107)/4 -> 3 | AK107: =(X107+Z107+AB107+AD107)/4 -> 3.75 | AL107: =AJ107-AK107 -> -0.75 | AM107: =R107+AJ107 -> 7.25 | AN107: =S107+AK107 -> 6 | AO107: =(R107+AK107)/2+(Q107/10)-0.5 -> 4 | AP107: =(S107+AJ107)/2 -> 2.625 | AQ107: =AO107+AP107 -> 6.625 | AR107: =IF(AQ107>=[1]Пременные!B81+[1]Пременные!G81,5) -> 5 | AS107: =IF(AQ107<[1]Пременные!B81+[1]Пременные!J81,5.5,0) -> 0 | AT107: =IF(BJ107=1,AR107,100) -> 100 | AU107: =IF(AR107=5,1,0) -> 1 | AV107: =IF(AT107=5,1,0) -> 0 | AW107: =IF(BJ107=1,AS107,0) -> 0 | AX107: =IF(AS107=5.5,1,0) -> 0 | AY107: =IF(AW107=5.5,1,0) -> 0 | AZ107: =IF(BF107>=AR107,1,0) -> 1 | BA107: =IF(BF107<AS107,1,0) -> 0 | BB107: =AZ107+BA107 -> 1 | BC107: 4:1 (2:0, 1:1, 1:0) | BD107: 4 | BE107: 1 | BF107: =BD107+BE107 -> 5 | BG107: =IF(AND(BD107>BE107),1,IF(AND(BD107<BE107),2,IF(AND(BD107=BE107),3))) -> 1
A108: 106 | B108: 2 | C108: Эдмонтон Ойлерз | E108: 5 | F108: 2 | G108: 3 | H108: 4 | I108: 6 | J108: 1 | K108: 3 | L108: 2 | M108: =IF(E108>F108,1,0) -> 1 | N108: =IF(G108>H108,1,0) -> 0 | O108: =IF(I108>J108,1,0) -> 1 | P108: =IF(K108>L108,1,0) -> 1 | Q108: =SUM(M108:P108)+1 -> 4 | R108: =(E108+G108+I108+K108)/4 -> 4.25 | S108: =(F108+H108+J108+L108)/4 -> 2.25 | T108: =R108-S108 -> 2 | U108: Ванкувер Кэнакс | W108: 2 | X108: 1 | Y108: 3 | Z108: 5 | AA108: 4 | AB108: 3 | AC108: 7 | AD108: 1 | AE108: =IF(W108>X108,1,0) -> 1 | AF108: =IF(Y108>Z108,1,0) -> 0 | AG108: =IF(AA108>AB108,1,0) -> 1 | AH108: =IF(AC108>AD108,1,0) -> 1 | AI108: =SUM(AE108:AH108) -> 3 | AJ108: =(W108+Y108+AA108+AC108)/4 -> 4 | AK108: =(X108+Z108+AB108+AD108)/4 -> 2.5 | AL108: =AJ108-AK108 -> 1.5 | AM108: =R108+AJ108 -> 8.25 | AN108: =S108+AK108 -> 4.75 | AO108: =(R108+AK108)/2+(Q108/10)-0.5 -> 3.275 | AP108: =(S108+AJ108)/2 -> 3.125 | AQ108: =AO108+AP108 -> 6.4 | AR108: =IF(AQ108>=[1]Пременные!B82+[1]Пременные!G82,5) -> 5 | AS108: =IF(AQ108<[1]Пременные!B82+[1]Пременные!J82,5.5,0) -> 0 | AT108: =IF(BJ108=1,AR108,100) -> 100 | AU108: =IF(AR108=5,1,0) -> 1 | AV108: =IF(AT108=5,1,0) -> 0 | AW108: =IF(BJ108=1,AS108,0) -> 0 | AX108: =IF(AS108=5.5,1,0) -> 0 | AY108: =IF(AW108=5.5,1,0) -> 0 | AZ108: =IF(BF108>=AR108,1,0) -> 0 | BA108: =IF(BF108<AS108,1,0) -> 0 | BB108: =AZ108+BA108 -> 0 | BC108: 2:1 (0:1, 1:0, 1:0) | BD108: 2 | BE108: 1 | BF108: =BD108+BE108 -> 3 | BG108: =IF(AND(BD108>BE108),1,IF(AND(BD108<BE108),2,IF(AND(BD108=BE108),3))) -> 1
A109: 107 | B109: 3 | C109: Нью-Йорк Рейнджерс | E109: 4 | F109: 1 | G109: 4 | H109: 2 | I109: 7 | J109: 2 | K109: 3 | L109: 0 | M109: =IF(E109>F109,1,0) -> 1 | N109: =IF(G109>H109,1,0) -> 1 | O109: =IF(I109>J109,1,0) -> 1 | P109: =IF(K109>L109,1,0) -> 1 | Q109: =SUM(M109:P109)+1 -> 5 | R109: =(E109+G109+I109+K109)/4 -> 4.5 | S109: =(F109+H109+J109+L109)/4 -> 1.25 | T109: =R109-S109 -> 3.25 | U109: Сан-Хосе Шаркс | W109: 4 | X109: 1 | Y109: 1 | Z109: 4 | AA109: 0 | AB109: 1 | AC109: 4 | AD109: 2 | AE109: =IF(W109>X109,1,0) -> 1 | AF109: =IF(Y109>Z109,1,0) -> 0 | AG109: =IF(AA109>AB109,1,0) -> 0 | AH109: =IF(AC109>AD109,1,0) -> 1 | AI109: =SUM(AE109:AH109) -> 2 | AJ109: =(W109+Y109+AA109+AC109)/4 -> 2.25 | AK109: =(X109+Z109+AB109+AD109)/4 -> 2 | AL109: =AJ109-AK109 -> 0.25 | AM109: =R109+AJ109 -> 6.75 | AN109: =S109+AK109 -> 3.25 | AO109: =(R109+AK109)/2+(Q109/10)-0.5 -> 3.25 | AP109: =(S109+AJ109)/2 -> 1.75 | AQ109: =AO109+AP109 -> 5 | AR109: =IF(AQ109>=[1]Пременные!B83+[1]Пременные!G83,5) -> 5 | AS109: =IF(AQ109<[1]Пременные!B83+[1]Пременные!J83,5.5,0) -> 0 | AT109: =IF(BJ109=1,AR109,100) -> 100 | AU109: =IF(AR109=5,1,0) -> 1 | AV109: =IF(AT109=5,1,0) -> 0 | AW109: =IF(BJ109=1,AS109,0) -> 0 | AX109: =IF(AS109=5.5,1,0) -> 0 | AY109: =IF(AW109=5.5,1,0) -> 0 | AZ109: =IF(BF109>=AR109,1,0) -> 1 | BA109: =IF(BF109<AS109,1,0) -> 0 | BB109: =AZ109+BA109 -> 1 | BC109: 3:7 (2:2, 0:3, 1:2) | BD109: 3 | BE109: 7 | BF109: =BD109+BE109 -> 10 | BG109: =IF(AND(BD109>BE109),1,IF(AND(BD109<BE109),2,IF(AND(BD109=BE109),3))) -> 2
A110: 108 | B110: 1 | C110: Даллас Старз | E110: 4 | F110: 3 | G110: 0 | H110: 3 | I110: 6 | J110: 0 | K110: 3 | L110: 4 | M110: =IF(E110>F110,1,0) -> 1 | N110: =IF(G110>H110,1,0) -> 0 | O110: =IF(I110>J110,1,0) -> 1 | P110: =IF(K110>L110,1,0) -> 0 | Q110: =SUM(M110:P110)+1 -> 3 | R110: =(E110+G110+I110+K110)/4 -> 3.25 | S110: =(F110+H110+J110+L110)/4 -> 2.5 | T110: =R110-S110 -> 0.75 | U110: Лос-Анджелес Кингз | W110: 1 | X110: 4 | Y110: 2 | Z110: 5 | AA110: 2 | AB110: 4 | AC110: 2 | AD110: 1 | AE110: =IF(W110>X110,1,0) -> 0 | AF110: =IF(Y110>Z110,1,0) -> 0 | AG110: =IF(AA110>AB110,1,0) -> 0 | AH110: =IF(AC110>AD110,1,0) -> 1 | AI110: =SUM(AE110:AH110) -> 1 | AJ110: =(W110+Y110+AA110+AC110)/4 -> 1.75 | AK110: =(X110+Z110+AB110+AD110)/4 -> 3.5 | AL110: =AJ110-AK110 -> -1.75 | AM110: =R110+AJ110 -> 5 | AN110: =S110+AK110 -> 6 | AO110: =(R110+AK110)/2+(Q110/10)-0.5 -> 3.175 | AP110: =(S110+AJ110)/2 -> 2.125 | AQ110: =AO110+AP110 -> 5.3 | AR110: =IF(AQ110>=[1]Пременные!B84+[1]Пременные!G84,5) -> 5 | AS110: =IF(AQ110<[1]Пременные!B84+[1]Пременные!J84,5.5,0) -> 0 | AT110: =IF(BJ110=1,AR110,100) -> 100 | AU110: =IF(AR110=5,1,0) -> 1 | AV110: =IF(AT110=5,1,0) -> 0 | AW110: =IF(BJ110=1,AS110,0) -> 0 | AX110: =IF(AS110=5.5,1,0) -> 0 | AY110: =IF(AW110=5.5,1,0) -> 0 | AZ110: =IF(BF110>=AR110,1,0) -> 1 | BA110: =IF(BF110<AS110,1,0) -> 0 | BB110: =AZ110+BA110 -> 1 | BC110: 1:4 (1:0, 0:3, 0:1) | BD110: 1 | BE110: 4 | BF110: =BD110+BE110 -> 5 | BG110: =IF(AND(BD110>BE110),1,IF(AND(BD110<BE110),2,IF(AND(BD110=BE110),3))) -> 2
A111: 109 | B111: 2 | C111: Питтсбург Пингвинз | E111: 4 | F111: 1 | G111: 3 | H111: 2 | I111: 4 | J111: 1 | K111: 5 | L111: 2 | M111: =IF(E111>F111,1,0) -> 1 | N111: =IF(G111>H111,1,0) -> 1 | O111: =IF(I111>J111,1,0) -> 1 | P111: =IF(K111>L111,1,0) -> 1 | Q111: =SUM(M111:P111)+1 -> 5 | R111: =(E111+G111+I111+K111)/4 -> 4 | S111: =(F111+H111+J111+L111)/4 -> 1.5 | T111: =R111-S111 -> 2.5 | U111: Сент-Луис Блюз | W111: 5 | X111: 0 | Y111: 2 | Z111: 3 | AA111: 1 | AB111: 2 | AC111: 2 | AD111: 4 | AE111: =IF(W111>X111,1,0) -> 1 | AF111: =IF(Y111>Z111,1,0) -> 0 | AG111: =IF(AA111>AB111,1,0) -> 0 | AH111: =IF(AC111>AD111,1,0) -> 0 | AI111: =SUM(AE111:AH111) -> 1 | AJ111: =(W111+Y111+AA111+AC111)/4 -> 2.5 | AK111: =(X111+Z111+AB111+AD111)/4 -> 2.25 | AL111: =AJ111-AK111 -> 0.25 | AM111: =R111+AJ111 -> 6.5 | AN111: =S111+AK111 -> 3.75 | AO111: =(R111+AK111)/2+(Q111/10)-0.5 -> 3.125 | AP111: =(S111+AJ111)/2 -> 2 | AQ111: =AO111+AP111 -> 5.125 | AR111: =IF(AQ111>=[1]Пременные!B85+[1]Пременные!G85,5) -> 5 | AS111: =IF(AQ111<[1]Пременные!B85+[1]Пременные!J85,5.5,0) -> 0 | AT111: =IF(BJ111=1,AR111,100) -> 100 | AU111: =IF(AR111=5,1,0) -> 1 | AV111: =IF(AT111=5,1,0) -> 0 | AW111: =IF(BJ111=1,AS111,0) -> 0 | AX111: =IF(AS111=5.5,1,0) -> 0 | AY111: =IF(AW111=5.5,1,0) -> 0 | AZ111: =IF(BF111>=AR111,1,0) -> 1 | BA111: =IF(BF111<AS111,1,0) -> 0 | BB111: =AZ111+BA111 -> 1 | BC111: 5:1 (2:0, 2:1, 1:0) | BD111: 5 | BE111: 1 | BF111: =BD111+BE111 -> 6 | BG111: =IF(AND(BD111>BE111),1,IF(AND(BD111<BE111),2,IF(AND(BD111=BE111),3))) -> 1
A112: 110 | B112: 3 | C112: Калгари Флэймз | E112: 5 | F112: 3 | G112: 1 | H112: 2 | I112: 5 | J112: 6 | K112: 2 | L112: 5 | M112: =IF(E112>F112,1,0) -> 1 | N112: =IF(G112>H112,1,0) -> 0 | O112: =IF(I112>J112,1,0) -> 0 | P112: =IF(K112>L112,1,0) -> 0 | Q112: =SUM(M112:P112)+1 -> 2 | R112: =(E112+G112+I112+K112)/4 -> 3.25 | S112: =(F112+H112+J112+L112)/4 -> 4 | T112: =R112-S112 -> -0.75 | U112: Колумбус Блю Джекетс | W112: 4 | X112: 1 | Y112: 2 | Z112: 1 | AA112: 2 | AB112: 0 | AC112: 3 | AD112: 6 | AE112: =IF(W112>X112,1,0) -> 1 | AF112: =IF(Y112>Z112,1,0) -> 1 | AG112: =IF(AA112>AB112,1,0) -> 1 | AH112: =IF(AC112>AD112,1,0) -> 0 | AI112: =SUM(AE112:AH112) -> 3 | AJ112: =(W112+Y112+AA112+AC112)/4 -> 2.75 | AK112: =(X112+Z112+AB112+AD112)/4 -> 2 | AL112: =AJ112-AK112 -> 0.75 | AM112: =R112+AJ112 -> 6 | AN112: =S112+AK112 -> 6 | AO112: =(R112+AK112)/2+(Q112/10)-0.5 -> 2.325 | AP112: =(S112+AJ112)/2 -> 3.375 | AQ112: =AO112+AP112 -> 5.7 | AR112: =IF(AQ112>=[1]Пременные!B86+[1]Пременные!G86,5) -> 5 | AS112: =IF(AQ112<[1]Пременные!B86+[1]Пременные!J86,5.5,0) -> 0 | AT112: =IF(BJ112=1,AR112,100) -> 100 | AU112: =IF(AR112=5,1,0) -> 1 | AV112: =IF(AT112=5,1,0) -> 0 | AW112: =IF(BJ112=1,AS112,0) -> 0 | AX112: =IF(AS112=5.5,1,0) -> 0 | AY112: =IF(AW112=5.5,1,0) -> 0 | AZ112: =IF(BF112>=AR112,1,0) -> 1 | BA112: =IF(BF112<AS112,1,0) -> 0 | BB112: =AZ112+BA112 -> 1 | BC112: 6:3 (3:1, 1:2, 2:0) | BD112: 6 | BE112: 3 | BF112: =BD112+BE112 -> 9 | BG112: =IF(AND(BD112>BE112),1,IF(AND(BD112<BE112),2,IF(AND(BD112=BE112),3))) -> 1
A113: 111 | B113: 1 | C113: Монреаль Канадиенс | E113: 1 | F113: 3 | G113: 2 | H113: 3 | I113: 2 | J113: 3 | K113: 1 | L113: 7 | M113: =IF(E113>F113,1,0) -> 0 | N113: =IF(G113>H113,1,0) -> 0 | O113: =IF(I113>J113,1,0) -> 0 | P113: =IF(K113>L113,1,0) -> 0 | Q113: =SUM(M113:P113)+1 -> 1 | R113: =(E113+G113+I113+K113)/4 -> 1.5 | S113: =(F113+H113+J113+L113)/4 -> 4 | T113: =R113-S113 -> -2.5 | U113: Атланта Трэшерз | W113: 4 | X113: 2 | Y113: 4 | Z113: 2 | AA113: 2 | AB113: 4 | AC113: 4 | AD113: 2 | AE113: =IF(W113>X113,1,0) -> 1 | AF113: =IF(Y113>Z113,1,0) -> 1 | AG113: =IF(AA113>AB113,1,0) -> 0 | AH113: =IF(AC113>AD113,1,0) -> 1 | AI113: =SUM(AE113:AH113) -> 3 | AJ113: =(W113+Y113+AA113+AC113)/4 -> 3.5 | AK113: =(X113+Z113+AB113+AD113)/4 -> 2.5 | AL113: =AJ113-AK113 -> 1 | AM113: =R113+AJ113 -> 5 | AN113: =S113+AK113 -> 6.5 | AO113: =(R113+AK113)/2+(Q113/10)-0.5 -> 1.6 | AP113: =(S113+AJ113)/2 -> 3.75 | AQ113: =AO113+AP113 -> 5.35 | AR113: =IF(AQ113>=[1]Пременные!B87+[1]Пременные!G87,5) -> 5 | AS113: =IF(AQ113<[1]Пременные!B87+[1]Пременные!J87,5.5,0) -> 0 | AT113: =IF(BJ113=1,AR113,100) -> 100 | AU113: =IF(AR113=5,1,0) -> 1 | AV113: =IF(AT113=5,1,0) -> 0 | AW113: =IF(BJ113=1,AS113,0) -> 0 | AX113: =IF(AS113=5.5,1,0) -> 0 | AY113: =IF(AW113=5.5,1,0) -> 0 | AZ113: =IF(BF113>=AR113,1,0) -> 0 | BA113: =IF(BF113<AS113,1,0) -> 0 | BB113: =AZ113+BA113 -> 0 | BC113: 2:1 Б | BD113: 1 | BE113: 1 | BF113: =BD113+BE113 -> 2 | BG113: =IF(AND(BD113>BE113),1,IF(AND(BD113<BE113),2,IF(AND(BD113=BE113),3))) -> 3
A114: 112 | B114: 2 | C114: Бостон Брюинз | E114: 1 | F114: 4 | G114: 3 | H114: 0 | I114: 3 | J114: 4 | K114: 4 | L114: 3 | M114: =IF(E114>F114,1,0) -> 0 | N114: =IF(G114>H114,1,0) -> 1 | O114: =IF(I114>J114,1,0) -> 0 | P114: =IF(K114>L114,1,0) -> 1 | Q114: =SUM(M114:P114)+1 -> 3 | R114: =(E114+G114+I114+K114)/4 -> 2.75 | S114: =(F114+H114+J114+L114)/4 -> 2.75 | T114: =R114-S114 -> 0 | U114: Нэшвилл Предаторз | W114: 2 | X114: 3 | Y114: 1 | Z114: 3 | AA114: 0 | AB114: 6 | AC114: 1 | AD114: 6 | AE114: =IF(W114>X114,1,0) -> 0 | AF114: =IF(Y114>Z114,1,0) -> 0 | AG114: =IF(AA114>AB114,1,0) -> 0 | AH114: =IF(AC114>AD114,1,0) -> 0 | AI114: =SUM(AE114:AH114) -> 0 | AJ114: =(W114+Y114+AA114+AC114)/4 -> 1 | AK114: =(X114+Z114+AB114+AD114)/4 -> 4.5 | AL114: =AJ114-AK114 -> -3.5 | AM114: =R114+AJ114 -> 3.75 | AN114: =S114+AK114 -> 7.25 | AO114: =(R114+AK114)/2+(Q114/10)-0.5 -> 3.425 | AP114: =(S114+AJ114)/2 -> 1.875 | AQ114: =AO114+AP114 -> 5.3 | AR114: =IF(AQ114>=[1]Пременные!B88+[1]Пременные!G88,5) -> 5 | AS114: =IF(AQ114<[1]Пременные!B88+[1]Пременные!J88,5.5,0) -> 0 | AT114: =IF(BJ114=1,AR114,100) -> 100 | AU114: =IF(AR114=5,1,0) -> 1 | AV114: =IF(AT114=5,1,0) -> 0 | AW114: =IF(BJ114=1,AS114,0) -> 0 | AX114: =IF(AS114=5.5,1,0) -> 0 | AY114: =IF(AW114=5.5,1,0) -> 0 | AZ114: =IF(BF114>=AR114,1,0) -> 1 | BA114: =IF(BF114<AS114,1,0) -> 0 | BB114: =AZ114+BA114 -> 1 | BC114: 3:2 (0:1, 2:1, 1:0) | BD114: 3 | BE114: 2 | BF114: =BD114+BE114 -> 5 | BG114: =IF(AND(BD114>BE114),1,IF(AND(BD114<BE114),2,IF(AND(BD114=BE114),3))) -> 1
A115: 113 | B115: 3 | C115: Нью-Йорк Айлендерс | E115: 1 | F115: 4 | G115: 3 | H115: 6 | I115: 1 | J115: 2 | K115: 3 | L115: 4 | M115: =IF(E115>F115,1,0) -> 0 | N115: =IF(G115>H115,1,0) -> 0 | O115: =IF(I115>J115,1,0) -> 0 | P115: =IF(K115>L115,1,0) -> 0 | Q115: =SUM(M115:P115)+1 -> 1 | R115: =(E115+G115+I115+K115)/4 -> 2 | S115: =(F115+H115+J115+L115)/4 -> 4 | T115: =R115-S115 -> -2 | U115: Каролина Харрикейнз | W115: 0 | X115: 2 | Y115: 2 | Z115: 3 | AA115: 2 | AB115: 5 | AC115: 7 | AD115: 2 | AE115: =IF(W115>X115,1,0) -> 0 | AF115: =IF(Y115>Z115,1,0) -> 0 | AG115: =IF(AA115>AB115,1,0) -> 0 | AH115: =IF(AC115>AD115,1,0) -> 1 | AI115: =SUM(AE115:AH115) -> 1 | AJ115: =(W115+Y115+AA115+AC115)/4 -> 2.75 | AK115: =(X115+Z115+AB115+AD115)/4 -> 3 | AL115: =AJ115-AK115 -> -0.25 | AM115: =R115+AJ115 -> 4.75 | AN115: =S115+AK115 -> 7 | AO115: =(R115+AK115)/2+(Q115/10)-0.5 -> 2.1 | AP115: =(S115+AJ115)/2 -> 3.375 | AQ115: =AO115+AP115 -> 5.475 | AR115: =IF(AQ115>=[1]Пременные!B89+[1]Пременные!G89,5) -> 5 | AS115: =IF(AQ115<[1]Пременные!B89+[1]Пременные!J89,5.5,0) -> 0 | AT115: =IF(BJ115=1,AR115,100) -> 100 | AU115: =IF(AR115=5,1,0) -> 1 | AV115: =IF(AT115=5,1,0) -> 0 | AW115: =IF(BJ115=1,AS115,0) -> 0 | AX115: =IF(AS115=5.5,1,0) -> 0 | AY115: =IF(AW115=5.5,1,0) -> 0 | AZ115: =IF(BF115>=AR115,1,0) -> 1 | BA115: =IF(BF115<AS115,1,0) -> 0 | BB115: =AZ115+BA115 -> 1 | BC115: 4:3 Б | BD115: 3 | BE115: 3 | BF115: =BD115+BE115 -> 6 | BG115: =IF(AND(BD115>BE115),1,IF(AND(BD115<BE115),2,IF(AND(BD115=BE115),3))) -> 3
A116: 114 | B116: 1 | C116: Миннесота Уайлд | E116: 1 | F116: 2 | G116: 2 | H116: 5 | I116: 2 | J116: 3 | K116: 2 | L116: 4 | M116: =IF(E116>F116,1,0) -> 0 | N116: =IF(G116>H116,1,0) -> 0 | O116: =IF(I116>J116,1,0) -> 0 | P116: =IF(K116>L116,1,0) -> 0 | Q116: =SUM(M116:P116)+1 -> 1 | R116: =(E116+G116+I116+K116)/4 -> 1.75 | S116: =(F116+H116+J116+L116)/4 -> 3.5 | T116: =R116-S116 -> -1.75 | U116: Колорадо Эвеланш | W116: 4 | X116: 3 | Y116: 3 | Z116: 2 | AA116: 4 | AB116: 1 | AC116: 4 | AD116: 3 | AE116: =IF(W116>X116,1,0) -> 1 | AF116: =IF(Y116>Z116,1,0) -> 1 | AG116: =IF(AA116>AB116,1,0) -> 1 | AH116: =IF(AC116>AD116,1,0) -> 1 | AI116: =SUM(AE116:AH116) -> 4 | AJ116: =(W116+Y116+AA116+AC116)/4 -> 3.75 | AK116: =(X116+Z116+AB116+AD116)/4 -> 2.25 | AL116: =AJ116-AK116 -> 1.5 | AM116: =R116+AJ116 -> 5.5 | AN116: =S116+AK116 -> 5.75 | AO116: =(R116+AK116)/2+(Q116/10)-0.5 -> 1.6 | AP116: =(S116+AJ116)/2 -> 3.625 | AQ116: =AO116+AP116 -> 5.225 | AR116: =IF(AQ116>=[1]Пременные!B90+[1]Пременные!G90,5) -> 5 | AS116: =IF(AQ116<[1]Пременные!B90+[1]Пременные!J90,5.5,0) -> 0 | AT116: =IF(BJ116=1,AR116,100) -> 100 | AU116: =IF(AR116=5,1,0) -> 1 | AV116: =IF(AT116=5,1,0) -> 0 | AW116: =IF(BJ116=1,AS116,0) -> 0 | AX116: =IF(AS116=5.5,1,0) -> 0 | AY116: =IF(AW116=5.5,1,0) -> 0 | AZ116: =IF(BF116>=AR116,1,0) -> 0 | BA116: =IF(BF116<AS116,1,0) -> 0 | BB116: =AZ116+BA116 -> 0 | BC116: 3:2 Б | BD116: 2 | BE116: 2 | BF116: =BD116+BE116 -> 4 | BG116: =IF(AND(BD116>BE116),1,IF(AND(BD116<BE116),2,IF(AND(BD116=BE116),3))) -> 3
A117: 115 | B117: 2 | C117: Анахайм Дакс | E117: 0 | F117: 5 | G117: 3 | H117: 2 | I117: 0 | J117: 3 | K117: 3 | L117: 2 | M117: =IF(E117>F117,1,0) -> 0 | N117: =IF(G117>H117,1,0) -> 1 | O117: =IF(I117>J117,1,0) -> 0 | P117: =IF(K117>L117,1,0) -> 1 | Q117: =SUM(M117:P117)+1 -> 3 | R117: =(E117+G117+I117+K117)/4 -> 1.5 | S117: =(F117+H117+J117+L117)/4 -> 3 | T117: =R117-S117 -> -1.5 | U117: Даллас Старз | W117: 1 | X117: 4 | Y117: 4 | Z117: 3 | AA117: 0 | AB117: 3 | AC117: 6 | AD117: 0 | AE117: =IF(W117>X117,1,0) -> 0 | AF117: =IF(Y117>Z117,1,0) -> 1 | AG117: =IF(AA117>AB117,1,0) -> 0 | AH117: =IF(AC117>AD117,1,0) -> 1 | AI117: =SUM(AE117:AH117) -> 2 | AJ117: =(W117+Y117+AA117+AC117)/4 -> 2.75 | AK117: =(X117+Z117+AB117+AD117)/4 -> 2.5 | AL117: =AJ117-AK117 -> 0.25 | AM117: =R117+AJ117 -> 4.25 | AN117: =S117+AK117 -> 5.5 | AO117: =(R117+AK117)/2+(Q117/10)-0.5 -> 1.8 | AP117: =(S117+AJ117)/2 -> 2.875 | AQ117: =AO117+AP117 -> 4.675 | AR117: =IF(AQ117>=[1]Пременные!B91+[1]Пременные!G91,5) -> FALSE | AS117: =IF(AQ117<[1]Пременные!B91+[1]Пременные!J91,5.5,0) -> 5.5 | AT117: =IF(BJ117=1,AR117,100) -> 100 | AU117: =IF(AR117=5,1,0) -> 0 | AV117: =IF(AT117=5,1,0) -> 0 | AW117: =IF(BJ117=1,AS117,0) -> 0 | AX117: =IF(AS117=5.5,1,0) -> 1 | AY117: =IF(AW117=5.5,1,0) -> 0 | AZ117: =IF(BF117>=AR117,1,0) -> 0 | BA117: =IF(BF117<AS117,1,0) -> 0 | BB117: =AZ117+BA117 -> 0 | BC117: 2:4 (0:1, 1:2, 1:1) | BD117: 2 | BE117: 4 | BF117: =BD117+BE117 -> 6 | BG117: =IF(AND(BD117>BE117),1,IF(AND(BD117<BE117),2,IF(AND(BD117=BE117),3))) -> 2
A118: 116 | B118: 3 | C118: Флорида Пантерз | E118: 4 | F118: 2 | G118: 2 | H118: 3 | I118: 2 | J118: 3 | K118: 2 | L118: 7 | M118: =IF(E118>F118,1,0) -> 1 | N118: =IF(G118>H118,1,0) -> 0 | O118: =IF(I118>J118,1,0) -> 0 | P118: =IF(K118>L118,1,0) -> 0 | Q118: =SUM(M118:P118)+1 -> 2 | R118: =(E118+G118+I118+K118)/4 -> 2.5 | S118: =(F118+H118+J118+L118)/4 -> 3.75 | T118: =R118-S118 -> -1.25 | U118: Баффало Сейбрз | W118: 2 | X118: 4 | Y118: 6 | Z118: 3 | AA118: 6 | AB118: 2 | AC118: 1 | AD118: 0 | AE118: =IF(W118>X118,1,0) -> 0 | AF118: =IF(Y118>Z118,1,0) -> 1 | AG118: =IF(AA118>AB118,1,0) -> 1 | AH118: =IF(AC118>AD118,1,0) -> 1 | AI118: =SUM(AE118:AH118) -> 3 | AJ118: =(W118+Y118+AA118+AC118)/4 -> 3.75 | AK118: =(X118+Z118+AB118+AD118)/4 -> 2.25 | AL118: =AJ118-AK118 -> 1.5 | AM118: =R118+AJ118 -> 6.25 | AN118: =S118+AK118 -> 6 | AO118: =(R118+AK118)/2+(Q118/10)-0.5 -> 2.075 | AP118: =(S118+AJ118)/2 -> 3.75 | AQ118: =AO118+AP118 -> 5.825 | AR118: =IF(AQ118>=[1]Пременные!B92+[1]Пременные!G92,5) -> 5 | AS118: =IF(AQ118<[1]Пременные!B92+[1]Пременные!J92,5.5,0) -> 0 | AT118: =IF(BJ118=1,AR118,100) -> 100 | AU118: =IF(AR118=5,1,0) -> 1 | AV118: =IF(AT118=5,1,0) -> 0 | AW118: =IF(BJ118=1,AS118,0) -> 0 | AX118: =IF(AS118=5.5,1,0) -> 0 | AY118: =IF(AW118=5.5,1,0) -> 0 | AZ118: =IF(BF118>=AR118,1,0) -> 1 | BA118: =IF(BF118<AS118,1,0) -> 0 | BB118: =AZ118+BA118 -> 1 | BC118: 2:5 (1:5, 0:0, 1:0) | BD118: 2 | BE118: 5 | BF118: =BD118+BE118 -> 7 | BG118: =IF(AND(BD118>BE118),1,IF(AND(BD118<BE118),2,IF(AND(BD118=BE118),3))) -> 2
A119: 117 | B119: 1 | C119: Чикаго Блэкхокс | E119: 3 | F119: 4 | G119: 3 | H119: 1 | I119: 4 | J119: 3 | K119: 6 | L119: 5 | M119: =IF(E119>F119,1,0) -> 0 | N119: =IF(G119>H119,1,0) -> 1 | O119: =IF(I119>J119,1,0) -> 1 | P119: =IF(K119>L119,1,0) -> 1 | Q119: =SUM(M119:P119)+1 -> 4 | R119: =(E119+G119+I119+K119)/4 -> 4 | S119: =(F119+H119+J119+L119)/4 -> 3.25 | T119: =R119-S119 -> 0.75 | U119: Ванкувер Кэнакс | W119: 1 | X119: 2 | Y119: 2 | Z119: 1 | AA119: 3 | AB119: 5 | AC119: 4 | AD119: 3 | AE119: =IF(W119>X119,1,0) -> 0 | AF119: =IF(Y119>Z119,1,0) -> 1 | AG119: =IF(AA119>AB119,1,0) -> 0 | AH119: =IF(AC119>AD119,1,0) -> 1 | AI119: =SUM(AE119:AH119) -> 2 | AJ119: =(W119+Y119+AA119+AC119)/4 -> 2.5 | AK119: =(X119+Z119+AB119+AD119)/4 -> 2.75 | AL119: =AJ119-AK119 -> -0.25 | AM119: =R119+AJ119 -> 6.5 | AN119: =S119+AK119 -> 6 | AO119: =(R119+AK119)/2+(Q119/10)-0.5 -> 3.275 | AP119: =(S119+AJ119)/2 -> 2.875 | AQ119: =AO119+AP119 -> 6.15 | AR119: =IF(AQ119>=[1]Пременные!B93+[1]Пременные!G93,5) -> 5 | AS119: =IF(AQ119<[1]Пременные!B93+[1]Пременные!J93,5.5,0) -> 0 | AT119: =IF(BJ119=1,AR119,100) -> 100 | AU119: =IF(AR119=5,1,0) -> 1 | AV119: =IF(AT119=5,1,0) -> 0 | AW119: =IF(BJ119=1,AS119,0) -> 0 | AX119: =IF(AS119=5.5,1,0) -> 0 | AY119: =IF(AW119=5.5,1,0) -> 0 | AZ119: =IF(BF119>=AR119,1,0) -> 1 | BA119: =IF(BF119<AS119,1,0) -> 0 | BB119: =AZ119+BA119 -> 1 | BC119: 2:3 (1:0, 1:1, 0:2) | BD119: 2 | BE119: 3 | BF119: =BD119+BE119 -> 5 | BG119: =IF(AND(BD119>BE119),1,IF(AND(BD119<BE119),2,IF(AND(BD119=BE119),3))) -> 2
A120: 118 | B120: 2 | C120: Филадельфия Флайерз | E120: 2 | F120: 4 | G120: 2 | H120: 3 | I120: 4 | J120: 5 | K120: 6 | L120: 5 | M120: =IF(E120>F120,1,0) -> 0 | N120: =IF(G120>H120,1,0) -> 0 | O120: =IF(I120>J120,1,0) -> 0 | P120: =IF(K120>L120,1,0) -> 1 | Q120: =SUM(M120:P120)+1 -> 2 | R120: =(E120+G120+I120+K120)/4 -> 3.5 | S120: =(F120+H120+J120+L120)/4 -> 4.25 | T120: =R120-S120 -> -0.75 | U120: Бостон Брюинз | W120: 3 | X120: 2 | Y120: 1 | Z120: 4 | AA120: 3 | AB120: 0 | AC120: 3 | AD120: 4 | AE120: =IF(W120>X120,1,0) -> 1 | AF120: =IF(Y120>Z120,1,0) -> 0 | AG120: =IF(AA120>AB120,1,0) -> 1 | AH120: =IF(AC120>AD120,1,0) -> 0 | AI120: =SUM(AE120:AH120) -> 2 | AJ120: =(W120+Y120+AA120+AC120)/4 -> 2.5 | AK120: =(X120+Z120+AB120+AD120)/4 -> 2.5 | AL120: =AJ120-AK120 -> 0 | AM120: =R120+AJ120 -> 6 | AN120: =S120+AK120 -> 6.75 | AO120: =(R120+AK120)/2+(Q120/10)-0.5 -> 2.7 | AP120: =(S120+AJ120)/2 -> 3.375 | AQ120: =AO120+AP120 -> 6.075 | AR120: =IF(AQ120>=[1]Пременные!B94+[1]Пременные!G94,5) -> 5 | AS120: =IF(AQ120<[1]Пременные!B94+[1]Пременные!J94,5.5,0) -> 0 | AT120: =IF(BJ120=1,AR120,100) -> 100 | AU120: =IF(AR120=5,1,0) -> 1 | AV120: =IF(AT120=5,1,0) -> 0 | AW120: =IF(BJ120=1,AS120,0) -> 0 | AX120: =IF(AS120=5.5,1,0) -> 0 | AY120: =IF(AW120=5.5,1,0) -> 0 | AZ120: =IF(BF120>=AR120,1,0) -> 1 | BA120: =IF(BF120<AS120,1,0) -> 0 | BB120: =AZ120+BA120 -> 1 | BC120: 4:3 Б | BD120: 3 | BE120: 3 | BF120: =BD120+BE120 -> 6 | BG120: =IF(AND(BD120>BE120),1,IF(AND(BD120<BE120),2,IF(AND(BD120=BE120),3))) -> 3
A121: 119 | B121: 3 | C121: Нью-Йорк Рейнджерс | E121: 3 | F121: 7 | G121: 4 | H121: 1 | I121: 4 | J121: 2 | K121: 7 | L121: 2 | M121: =IF(E121>F121,1,0) -> 0 | N121: =IF(G121>H121,1,0) -> 1 | O121: =IF(I121>J121,1,0) -> 1 | P121: =IF(K121>L121,1,0) -> 1 | Q121: =SUM(M121:P121)+1 -> 4 | R121: =(E121+G121+I121+K121)/4 -> 4.5 | S121: =(F121+H121+J121+L121)/4 -> 3 | T121: =R121-S121 -> 1.5 | U121: Нью-Джерси Девилз | W121: 2 | X121: 0 | Y121: 2 | Z121: 4 | AA121: 3 | AB121: 2 | AC121: 3 | AD121: 2 | AE121: =IF(W121>X121,1,0) -> 1 | AF121: =IF(Y121>Z121,1,0) -> 0 | AG121: =IF(AA121>AB121,1,0) -> 1 | AH121: =IF(AC121>AD121,1,0) -> 1 | AI121: =SUM(AE121:AH121) -> 3 | AJ121: =(W121+Y121+AA121+AC121)/4 -> 2.5 | AK121: =(X121+Z121+AB121+AD121)/4 -> 2 | AL121: =AJ121-AK121 -> 0.5 | AM121: =R121+AJ121 -> 7 | AN121: =S121+AK121 -> 5 | AO121: =(R121+AK121)/2+(Q121/10)-0.5 -> 3.15 | AP121: =(S121+AJ121)/2 -> 2.75 | AQ121: =AO121+AP121 -> 5.9 | AR121: =IF(AQ121>=[1]Пременные!B95+[1]Пременные!G95,5) -> 5 | AS121: =IF(AQ121<[1]Пременные!B95+[1]Пременные!J95,5.5,0) -> 0 | AT121: =IF(BJ121=1,AR121,100) -> 100 | AU121: =IF(AR121=5,1,0) -> 1 | AV121: =IF(AT121=5,1,0) -> 0 | AW121: =IF(BJ121=1,AS121,0) -> 0 | AX121: =IF(AS121=5.5,1,0) -> 0 | AY121: =IF(AW121=5.5,1,0) -> 0 | AZ121: =IF(BF121>=AR121,1,0) -> 1 | BA121: =IF(BF121<AS121,1,0) -> 0 | BB121: =AZ121+BA121 -> 1 | BC121: 2:4 (0:2, 2:0, 0:2) | BD121: 2 | BE121: 4 | BF121: =BD121+BE121 -> 6 | BG121: =IF(AND(BD121>BE121),1,IF(AND(BD121<BE121),2,IF(AND(BD121=BE121),3))) -> 2
A122: 120 | B122: 1 | C122: Финикс Койотс | E122: 4 | F122: 1 | G122: 3 | H122: 2 | I122: 1 | J122: 0 | K122: 0 | L122: 2 | M122: =IF(E122>F122,1,0) -> 1 | N122: =IF(G122>H122,1,0) -> 1 | O122: =IF(I122>J122,1,0) -> 1 | P122: =IF(K122>L122,1,0) -> 0 | Q122: =SUM(M122:P122)+1 -> 4 | R122: =(E122+G122+I122+K122)/4 -> 2 | S122: =(F122+H122+J122+L122)/4 -> 1.25 | T122: =R122-S122 -> 0.75 | U122: Детройт Ред Уингз | W122: 3 | X122: 4 | Y122: 5 | Z122: 2 | AA122: 2 | AB122: 6 | AC122: 3 | AD122: 2 | AE122: =IF(W122>X122,1,0) -> 0 | AF122: =IF(Y122>Z122,1,0) -> 1 | AG122: =IF(AA122>AB122,1,0) -> 0 | AH122: =IF(AC122>AD122,1,0) -> 1 | AI122: =SUM(AE122:AH122) -> 2 | AJ122: =(W122+Y122+AA122+AC122)/4 -> 3.25 | AK122: =(X122+Z122+AB122+AD122)/4 -> 3.5 | AL122: =AJ122-AK122 -> -0.25 | AM122: =R122+AJ122 -> 5.25 | AN122: =S122+AK122 -> 4.75 | AO122: =(R122+AK122)/2+(Q122/10)-0.5 -> 2.65 | AP122: =(S122+AJ122)/2 -> 2.25 | AQ122: =AO122+AP122 -> 4.9 | AR122: =IF(AQ122>=[1]Пременные!B96+[1]Пременные!G96,5) -> 5 | AS122: =IF(AQ122<[1]Пременные!B96+[1]Пременные!J96,5.5,0) -> 0 | AT122: =IF(BJ122=1,AR122,100) -> 100 | AU122: =IF(AR122=5,1,0) -> 1 | AV122: =IF(AT122=5,1,0) -> 0 | AW122: =IF(BJ122=1,AS122,0) -> 0 | AX122: =IF(AS122=5.5,1,0) -> 0 | AY122: =IF(AW122=5.5,1,0) -> 0 | AZ122: =IF(BF122>=AR122,1,0) -> 0 | BA122: =IF(BF122<AS122,1,0) -> 0 | BB122: =AZ122+BA122 -> 0 | BC122: 3:2 ОТ | BD122: 2 | BE122: 2 | BF122: =BD122+BE122 -> 4 | BG122: =IF(AND(BD122>BE122),1,IF(AND(BD122<BE122),2,IF(AND(BD122=BE122),3))) -> 3
A123: 121 | B123: 2 | C123: Монреаль Канадиенс | E123: 2 | F123: 1 | G123: 1 | H123: 3 | I123: 2 | J123: 3 | K123: 2 | L123: 3 | M123: =IF(E123>F123,1,0) -> 1 | N123: =IF(G123>H123,1,0) -> 0 | O123: =IF(I123>J123,1,0) -> 0 | P123: =IF(K123>L123,1,0) -> 0 | Q123: =SUM(M123:P123)+1 -> 2 | R123: =(E123+G123+I123+K123)/4 -> 1.75 | S123: =(F123+H123+J123+L123)/4 -> 2.5 | T123: =R123-S123 -> -0.75 | U123: Нью-Йорк Айлендерс | W123: 4 | X123: 3 | Y123: 1 | Z123: 4 | AA123: 3 | AB123: 6 | AC123: 1 | AD123: 2 | AE123: =IF(W123>X123,1,0) -> 1 | AF123: =IF(Y123>Z123,1,0) -> 0 | AG123: =IF(AA123>AB123,1,0) -> 0 | AH123: =IF(AC123>AD123,1,0) -> 0 | AI123: =SUM(AE123:AH123) -> 1 | AJ123: =(W123+Y123+AA123+AC123)/4 -> 2.25 | AK123: =(X123+Z123+AB123+AD123)/4 -> 3.75 | AL123: =AJ123-AK123 -> -1.5 | AM123: =R123+AJ123 -> 4 | AN123: =S123+AK123 -> 6.25 | AO123: =(R123+AK123)/2+(Q123/10)-0.5 -> 2.45 | AP123: =(S123+AJ123)/2 -> 2.375 | AQ123: =AO123+AP123 -> 4.825 | AR123: =IF(AQ123>=[1]Пременные!B97+[1]Пременные!G97,5) -> FALSE | AS123: =IF(AQ123<[1]Пременные!B97+[1]Пременные!J97,5.5,0) -> 5.5 | AT123: =IF(BJ123=1,AR123,100) -> 100 | AU123: =IF(AR123=5,1,0) -> 0 | AV123: =IF(AT123=5,1,0) -> 0 | AW123: =IF(BJ123=1,AS123,0) -> 0 | AX123: =IF(AS123=5.5,1,0) -> 1 | AY123: =IF(AW123=5.5,1,0) -> 0 | AZ123: =IF(BF123>=AR123,1,0) -> 0 | BA123: =IF(BF123<AS123,1,0) -> 0 | BB123: =AZ123+BA123 -> 0 | BC123: 5:1 (2:0, 1:0, 2:1) | BD123: 5 | BE123: 1 | BF123: =BD123+BE123 -> 6 | BG123: =IF(AND(BD123>BE123),1,IF(AND(BD123<BE123),2,IF(AND(BD123=BE123),3))) -> 1
A124: 122 | B124: 3 | C124: Атланта Трэшерз | E124: 1 | F124: 2 | G124: 4 | H124: 2 | I124: 4 | J124: 2 | K124: 2 | L124: 4 | M124: =IF(E124>F124,1,0) -> 0 | N124: =IF(G124>H124,1,0) -> 1 | O124: =IF(I124>J124,1,0) -> 1 | P124: =IF(K124>L124,1,0) -> 0 | Q124: =SUM(M124:P124)+1 -> 3 | R124: =(E124+G124+I124+K124)/4 -> 2.75 | S124: =(F124+H124+J124+L124)/4 -> 2.5 | T124: =R124-S124 -> 0.25 | U124: Вашингтон Кэпиталз | W124: 3 | X124: 2 | Y124: 4 | Z124: 1 | AA124: 2 | AB124: 3 | AC124: 2 | AD124: 3 | AE124: =IF(W124>X124,1,0) -> 1 | AF124: =IF(Y124>Z124,1,0) -> 1 | AG124: =IF(AA124>AB124,1,0) -> 0 | AH124: =IF(AC124>AD124,1,0) -> 0 | AI124: =SUM(AE124:AH124) -> 2 | AJ124: =(W124+Y124+AA124+AC124)/4 -> 2.75 | AK124: =(X124+Z124+AB124+AD124)/4 -> 2.25 | AL124: =AJ124-AK124 -> 0.5 | AM124: =R124+AJ124 -> 5.5 | AN124: =S124+AK124 -> 4.75 | AO124: =(R124+AK124)/2+(Q124/10)-0.5 -> 2.3 | AP124: =(S124+AJ124)/2 -> 2.625 | AQ124: =AO124+AP124 -> 4.925 | AR124: =IF(AQ124>=[1]Пременные!B98+[1]Пременные!G98,5) -> 5 | AS124: =IF(AQ124<[1]Пременные!B98+[1]Пременные!J98,5.5,0) -> 0 | AT124: =IF(BJ124=1,AR124,100) -> 100 | AU124: =IF(AR124=5,1,0) -> 1 | AV124: =IF(AT124=5,1,0) -> 0 | AW124: =IF(BJ124=1,AS124,0) -> 0 | AX124: =IF(AS124=5.5,1,0) -> 0 | AY124: =IF(AW124=5.5,1,0) -> 0 | AZ124: =IF(BF124>=AR124,1,0) -> 1 | BA124: =IF(BF124<AS124,1,0) -> 0 | BB124: =AZ124+BA124 -> 1 | BC124: 4:5 (2:2, 0:3, 2:0) | BD124: 4 | BE124: 5 | BF124: =BD124+BE124 -> 9 | BG124: =IF(AND(BD124>BE124),1,IF(AND(BD124<BE124),2,IF(AND(BD124=BE124),3))) -> 2
A125: 123 | B125: 1 | C125: Тампа Бэй Лайтнинг | E125: 1 | F125: 4 | G125: 1 | H125: 7 | I125: 3 | J125: 2 | K125: 5 | L125: 2 | M125: =IF(E125>F125,1,0) -> 0 | N125: =IF(G125>H125,1,0) -> 0 | O125: =IF(I125>J125,1,0) -> 1 | P125: =IF(K125>L125,1,0) -> 1 | Q125: =SUM(M125:P125)+1 -> 3 | R125: =(E125+G125+I125+K125)/4 -> 2.5 | S125: =(F125+H125+J125+L125)/4 -> 3.75 | T125: =R125-S125 -> -1.25 | U125: Сан-Хосе Шаркс | W125: 7 | X125: 3 | Y125: 4 | Z125: 1 | AA125: 1 | AB125: 4 | AC125: 0 | AD125: 1 | AE125: =IF(W125>X125,1,0) -> 1 | AF125: =IF(Y125>Z125,1,0) -> 1 | AG125: =IF(AA125>AB125,1,0) -> 0 | AH125: =IF(AC125>AD125,1,0) -> 0 | AI125: =SUM(AE125:AH125) -> 2 | AJ125: =(W125+Y125+AA125+AC125)/4 -> 3 | AK125: =(X125+Z125+AB125+AD125)/4 -> 2.25 | AL125: =AJ125-AK125 -> 0.75 | AM125: =R125+AJ125 -> 5.5 | AN125: =S125+AK125 -> 6 | AO125: =(R125+AK125)/2+(Q125/10)-0.5 -> 2.175 | AP125: =(S125+AJ125)/2 -> 3.375 | AQ125: =AO125+AP125 -> 5.55 | AR125: =IF(AQ125>=[1]Пременные!B99+[1]Пременные!G99,5) -> 5 | AS125: =IF(AQ125<[1]Пременные!B99+[1]Пременные!J99,5.5,0) -> 0 | AT125: =IF(BJ125=1,AR125,100) -> 100 | AU125: =IF(AR125=5,1,0) -> 1 | AV125: =IF(AT125=5,1,0) -> 0 | AW125: =IF(BJ125=1,AS125,0) -> 0 | AX125: =IF(AS125=5.5,1,0) -> 0 | AY125: =IF(AW125=5.5,1,0) -> 0 | AZ125: =IF(BF125>=AR125,1,0) -> 1 | BA125: =IF(BF125<AS125,1,0) -> 0 | BB125: =AZ125+BA125 -> 1 | BC125: 5:2 (2:0, 1:1, 2:1) | BD125: 5 | BE125: 2 | BF125: =BD125+BE125 -> 7 | BG125: =IF(AND(BD125>BE125),1,IF(AND(BD125<BE125),2,IF(AND(BD125=BE125),3))) -> 1
A126: 124 | B126: 2 | C126: Оттава Сенаторз | E126: 3 | F126: 1 | G126: 7 | H126: 1 | I126: 1 | J126: 4 | K126: 4 | L126: 2 | M126: =IF(E126>F126,1,0) -> 1 | N126: =IF(G126>H126,1,0) -> 1 | O126: =IF(I126>J126,1,0) -> 0 | P126: =IF(K126>L126,1,0) -> 1 | Q126: =SUM(M126:P126)+1 -> 4 | R126: =(E126+G126+I126+K126)/4 -> 3.75 | S126: =(F126+H126+J126+L126)/4 -> 2 | T126: =R126-S126 -> 1.75 | U126: Нэшвилл Предаторз | W126: 2 | X126: 3 | Y126: 2 | Z126: 3 | AA126: 1 | AB126: 3 | AC126: 0 | AD126: 6 | AE126: =IF(W126>X126,1,0) -> 0 | AF126: =IF(Y126>Z126,1,0) -> 0 | AG126: =IF(AA126>AB126,1,0) -> 0 | AH126: =IF(AC126>AD126,1,0) -> 0 | AI126: =SUM(AE126:AH126) -> 0 | AJ126: =(W126+Y126+AA126+AC126)/4 -> 1.25 | AK126: =(X126+Z126+AB126+AD126)/4 -> 3.75 | AL126: =AJ126-AK126 -> -2.5 | AM126: =R126+AJ126 -> 5 | AN126: =S126+AK126 -> 5.75 | AO126: =(R126+AK126)/2+(Q126/10)-0.5 -> 3.65 | AP126: =(S126+AJ126)/2 -> 1.625 | AQ126: =AO126+AP126 -> 5.275 | AR126: =IF(AQ126>=[1]Пременные!B100+[1]Пременные!G100,5) -> 5 | AS126: =IF(AQ126<[1]Пременные!B100+[1]Пременные!J100,5.5,0) -> 0 | AT126: =IF(BJ126=1,AR126,100) -> 100 | AU126: =IF(AR126=5,1,0) -> 1 | AV126: =IF(AT126=5,1,0) -> 0 | AW126: =IF(BJ126=1,AS126,0) -> 0 | AX126: =IF(AS126=5.5,1,0) -> 0 | AY126: =IF(AW126=5.5,1,0) -> 0 | AZ126: =IF(BF126>=AR126,1,0) -> 1 | BA126: =IF(BF126<AS126,1,0) -> 0 | BB126: =AZ126+BA126 -> 1 | BC126: 5:6 ОТ | BD126: 5 | BE126: 5 | BF126: =BD126+BE126 -> 10 | BG126: =IF(AND(BD126>BE126),1,IF(AND(BD126<BE126),2,IF(AND(BD126=BE126),3))) -> 3
A127: 125 | B127: 3 | C127: Эдмонтон Ойлерз | E127: 2 | F127: 1 | G127: 5 | H127: 2 | I127: 3 | J127: 4 | K127: 6 | L127: 1 | M127: =IF(E127>F127,1,0) -> 1 | N127: =IF(G127>H127,1,0) -> 1 | O127: =IF(I127>J127,1,0) -> 0 | P127: =IF(K127>L127,1,0) -> 1 | Q127: =SUM(M127:P127)+1 -> 4 | R127: =(E127+G127+I127+K127)/4 -> 4 | S127: =(F127+H127+J127+L127)/4 -> 2 | T127: =R127-S127 -> 2 | U127: Колумбус Блю Джекетс | W127: 3 | X127: 6 | Y127: 4 | Z127: 1 | AA127: 2 | AB127: 1 | AC127: 2 | AD127: 0 | AE127: =IF(W127>X127,1,0) -> 0 | AF127: =IF(Y127>Z127,1,0) -> 1 | AG127: =IF(AA127>AB127,1,0) -> 1 | AH127: =IF(AC127>AD127,1,0) -> 1 | AI127: =SUM(AE127:AH127) -> 3 | AJ127: =(W127+Y127+AA127+AC127)/4 -> 2.75 | AK127: =(X127+Z127+AB127+AD127)/4 -> 2 | AL127: =AJ127-AK127 -> 0.75 | AM127: =R127+AJ127 -> 6.75 | AN127: =S127+AK127 -> 4 | AO127: =(R127+AK127)/2+(Q127/10)-0.5 -> 2.9 | AP127: =(S127+AJ127)/2 -> 2.375 | AQ127: =AO127+AP127 -> 5.275 | AR127: =IF(AQ127>=[1]Пременные!B101+[1]Пременные!G101,5) -> 5 | AS127: =IF(AQ127<[1]Пременные!B101+[1]Пременные!J101,5.5,0) -> 0 | AT127: =IF(BJ127=1,AR127,100) -> 100 | AU127: =IF(AR127=5,1,0) -> 1 | AV127: =IF(AT127=5,1,0) -> 0 | AW127: =IF(BJ127=1,AS127,0) -> 0 | AX127: =IF(AS127=5.5,1,0) -> 0 | AY127: =IF(AW127=5.5,1,0) -> 0 | AZ127: =IF(BF127>=AR127,1,0) -> 1 | BA127: =IF(BF127<AS127,1,0) -> 0 | BB127: =AZ127+BA127 -> 1 | BC127: 6:4 (1:2, 2:2, 3:0) | BD127: 6 | BE127: 4 | BF127: =BD127+BE127 -> 10 | BG127: =IF(AND(BD127>BE127),1,IF(AND(BD127<BE127),2,IF(AND(BD127=BE127),3))) -> 1
A128: 126 | B128: 1 | C128: Лос-Анджелес Кингз | E128: 4 | F128: 1 | G128: 1 | H128: 4 | I128: 2 | J128: 5 | K128: 2 | L128: 4 | M128: =IF(E128>F128,1,0) -> 1 | N128: =IF(G128>H128,1,0) -> 0 | O128: =IF(I128>J128,1,0) -> 0 | P128: =IF(K128>L128,1,0) -> 0 | Q128: =SUM(M128:P128)+1 -> 2 | R128: =(E128+G128+I128+K128)/4 -> 2.25 | S128: =(F128+H128+J128+L128)/4 -> 3.5 | T128: =R128-S128 -> -1.25 | U128: Даллас Старз | W128: 4 | X128: 2 | Y128: 1 | Z128: 4 | AA128: 4 | AB128: 3 | AC128: 0 | AD128: 3 | AE128: =IF(W128>X128,1,0) -> 1 | AF128: =IF(Y128>Z128,1,0) -> 0 | AG128: =IF(AA128>AB128,1,0) -> 1 | AH128: =IF(AC128>AD128,1,0) -> 0 | AI128: =SUM(AE128:AH128) -> 2 | AJ128: =(W128+Y128+AA128+AC128)/4 -> 2.25 | AK128: =(X128+Z128+AB128+AD128)/4 -> 3 | AL128: =AJ128-AK128 -> -0.75 | AM128: =R128+AJ128 -> 4.5 | AN128: =S128+AK128 -> 6.5 | AO128: =(R128+AK128)/2+(Q128/10)-0.5 -> 2.325 | AP128: =(S128+AJ128)/2 -> 2.875 | AQ128: =AO128+AP128 -> 5.2 | AR128: =IF(AQ128>=[1]Пременные!B102+[1]Пременные!G102,5) -> 5 | AS128: =IF(AQ128<[1]Пременные!B102+[1]Пременные!J102,5.5,0) -> 0 | AT128: =IF(BJ128=1,AR128,100) -> 100 | AU128: =IF(AR128=5,1,0) -> 1 | AV128: =IF(AT128=5,1,0) -> 0 | AW128: =IF(BJ128=1,AS128,0) -> 0 | AX128: =IF(AS128=5.5,1,0) -> 0 | AY128: =IF(AW128=5.5,1,0) -> 0 | AZ128: =IF(BF128>=AR128,1,0) -> 1 | BA128: =IF(BF128<AS128,1,0) -> 0 | BB128: =AZ128+BA128 -> 1 | BC128: 5:4 ОТ | BD128: 4 | BE128: 4 | BF128: =BD128+BE128 -> 8 | BG128: =IF(AND(BD128>BE128),1,IF(AND(BD128<BE128),2,IF(AND(BD128=BE128),3))) -> 3
A129: 127 | B129: 2 | C129: Сент-Луис Блюз | E129: 1 | F129: 5 | G129: 5 | H129: 0 | I129: 2 | J129: 3 | K129: 1 | L129: 2 | M129: =IF(E129>F129,1,0) -> 0 | N129: =IF(G129>H129,1,0) -> 1 | O129: =IF(I129>J129,1,0) -> 0 | P129: =IF(K129>L129,1,0) -> 0 | Q129: =SUM(M129:P129)+1 -> 2 | R129: =(E129+G129+I129+K129)/4 -> 2.25 | S129: =(F129+H129+J129+L129)/4 -> 2.5 | T129: =R129-S129 -> -0.25 | U129: Миннесота Уайлд | W129: 3 | X129: 2 | Y129: 1 | Z129: 2 | AA129: 2 | AB129: 5 | AC129: 2 | AD129: 3 | AE129: =IF(W129>X129,1,0) -> 1 | AF129: =IF(Y129>Z129,1,0) -> 0 | AG129: =IF(AA129>AB129,1,0) -> 0 | AH129: =IF(AC129>AD129,1,0) -> 0 | AI129: =SUM(AE129:AH129) -> 1 | AJ129: =(W129+Y129+AA129+AC129)/4 -> 2 | AK129: =(X129+Z129+AB129+AD129)/4 -> 3 | AL129: =AJ129-AK129 -> -1 | AM129: =R129+AJ129 -> 4.25 | AN129: =S129+AK129 -> 5.5 | AO129: =(R129+AK129)/2+(Q129/10)-0.5 -> 2.325 | AP129: =(S129+AJ129)/2 -> 2.25 | AQ129: =AO129+AP129 -> 4.575 | AR129: =IF(AQ129>=[1]Пременные!B103+[1]Пременные!G103,5) -> FALSE | AS129: =IF(AQ129<[1]Пременные!B103+[1]Пременные!J103,5.5,0) -> 5.5 | AT129: =IF(BJ129=1,AR129,100) -> 100 | AU129: =IF(AR129=5,1,0) -> 0 | AV129: =IF(AT129=5,1,0) -> 0 | AW129: =IF(BJ129=1,AS129,0) -> 0 | AX129: =IF(AS129=5.5,1,0) -> 1 | AY129: =IF(AW129=5.5,1,0) -> 0 | AZ129: =IF(BF129>=AR129,1,0) -> 0 | BA129: =IF(BF129<AS129,1,0) -> 1 | BB129: =AZ129+BA129 -> 1 | BC129: 3:1 (1:0, 1:1, 1:0) | BD129: 3 | BE129: 1 | BF129: =BD129+BE129 -> 4 | BG129: =IF(AND(BD129>BE129),1,IF(AND(BD129<BE129),2,IF(AND(BD129=BE129),3))) -> 1
A130: 128 | B130: 3 | C130: Колорадо Эвеланш | E130: 2 | F130: 3 | G130: 4 | H130: 3 | I130: 3 | J130: 2 | K130: 4 | L130: 1 | M130: =IF(E130>F130,1,0) -> 0 | N130: =IF(G130>H130,1,0) -> 1 | O130: =IF(I130>J130,1,0) -> 1 | P130: =IF(K130>L130,1,0) -> 1 | Q130: =SUM(M130:P130)+1 -> 4 | R130: =(E130+G130+I130+K130)/4 -> 3.25 | S130: =(F130+H130+J130+L130)/4 -> 2.25 | T130: =R130-S130 -> 1 | U130: Каролина Харрикейнз | W130: 3 | X130: 4 | Y130: 0 | Z130: 2 | AA130: 2 | AB130: 3 | AC130: 2 | AD130: 5 | AE130: =IF(W130>X130,1,0) -> 0 | AF130: =IF(Y130>Z130,1,0) -> 0 | AG130: =IF(AA130>AB130,1,0) -> 0 | AH130: =IF(AC130>AD130,1,0) -> 0 | AI130: =SUM(AE130:AH130) -> 0 | AJ130: =(W130+Y130+AA130+AC130)/4 -> 1.75 | AK130: =(X130+Z130+AB130+AD130)/4 -> 3.5 | AL130: =AJ130-AK130 -> -1.75 | AM130: =R130+AJ130 -> 5 | AN130: =S130+AK130 -> 5.75 | AO130: =(R130+AK130)/2+(Q130/10)-0.5 -> 3.275 | AP130: =(S130+AJ130)/2 -> 2 | AQ130: =AO130+AP130 -> 5.275 | AR130: =IF(AQ130>=[1]Пременные!B104+[1]Пременные!G104,5) -> 5 | AS130: =IF(AQ130<[1]Пременные!B104+[1]Пременные!J104,5.5,0) -> 0 | AT130: =IF(BJ130=1,AR130,100) -> 100 | AU130: =IF(AR130=5,1,0) -> 1 | AV130: =IF(AT130=5,1,0) -> 0 | AW130: =IF(BJ130=1,AS130,0) -> 0 | AX130: =IF(AS130=5.5,1,0) -> 0 | AY130: =IF(AW130=5.5,1,0) -> 0 | AZ130: =IF(BF130>=AR130,1,0) -> 1 | BA130: =IF(BF130<AS130,1,0) -> 0 | BB130: =AZ130+BA130 -> 1 | BC130: 5:4 (2:2, 2:1, 1:1) | BD130: 5 | BE130: 4 | BF130: =BD130+BE130 -> 9 | BG130: =IF(AND(BD130>BE130),1,IF(AND(BD130<BE130),2,IF(AND(BD130=BE130),3))) -> 1
A131: 129 | B131: 1 | C131: Питтсбург Пингвинз | E131: 5 | F131: 1 | G131: 4 | H131: 1 | I131: 3 | J131: 2 | K131: 4 | L131: 1 | M131: =IF(E131>F131,1,0) -> 1 | N131: =IF(G131>H131,1,0) -> 1 | O131: =IF(I131>J131,1,0) -> 1 | P131: =IF(K131>L131,1,0) -> 1 | Q131: =SUM(M131:P131)+1 -> 5 | R131: =(E131+G131+I131+K131)/4 -> 4 | S131: =(F131+H131+J131+L131)/4 -> 1.25 | T131: =R131-S131 -> 2.75 | U131: Флорида Пантерз | W131: 2 | X131: 5 | Y131: 4 | Z131: 2 | AA131: 2 | AB131: 3 | AC131: 2 | AD131: 3 | AE131: =IF(W131>X131,1,0) -> 0 | AF131: =IF(Y131>Z131,1,0) -> 1 | AG131: =IF(AA131>AB131,1,0) -> 0 | AH131: =IF(AC131>AD131,1,0) -> 0 | AI131: =SUM(AE131:AH131) -> 1 | AJ131: =(W131+Y131+AA131+AC131)/4 -> 2.5 | AK131: =(X131+Z131+AB131+AD131)/4 -> 3.25 | AL131: =AJ131-AK131 -> -0.75 | AM131: =R131+AJ131 -> 6.5 | AN131: =S131+AK131 -> 4.5 | AO131: =(R131+AK131)/2+(Q131/10)-0.5 -> 3.625 | AP131: =(S131+AJ131)/2 -> 1.875 | AQ131: =AO131+AP131 -> 5.5 | AR131: =IF(AQ131>=[1]Пременные!B105+[1]Пременные!G105,5) -> 5 | AS131: =IF(AQ131<[1]Пременные!B105+[1]Пременные!J105,5.5,0) -> 0 | AT131: =IF(BJ131=1,AR131,100) -> 100 | AU131: =IF(AR131=5,1,0) -> 1 | AV131: =IF(AT131=5,1,0) -> 0 | AW131: =IF(BJ131=1,AS131,0) -> 0 | AX131: =IF(AS131=5.5,1,0) -> 0 | AY131: =IF(AW131=5.5,1,0) -> 0 | AZ131: =IF(BF131>=AR131,1,0) -> 0 | BA131: =IF(BF131<AS131,1,0) -> 0 | BB131: =AZ131+BA131 -> 0 | BC131: 3:2 Б | BD131: 2 | BE131: 2 | BF131: =BD131+BE131 -> 4 | BG131: =IF(AND(BD131>BE131),1,IF(AND(BD131<BE131),2,IF(AND(BD131=BE131),3))) -> 3
A132: 130 | B132: 2 | C132: Ванкувер Кэнакс | E132: 3 | F132: 2 | G132: 1 | H132: 2 | I132: 2 | J132: 1 | K132: 3 | L132: 5 | M132: =IF(E132>F132,1,0) -> 1 | N132: =IF(G132>H132,1,0) -> 0 | O132: =IF(I132>J132,1,0) -> 1 | P132: =IF(K132>L132,1,0) -> 0 | Q132: =SUM(M132:P132)+1 -> 3 | R132: =(E132+G132+I132+K132)/4 -> 2.25 | S132: =(F132+H132+J132+L132)/4 -> 2.5 | T132: =R132-S132 -> -0.25 | U132: Торонто Мейпл Лифс | W132: 1 | X132: 4 | Y132: 1 | Z132: 4 | AA132: 2 | AB132: 7 | AC132: 2 | AD132: 5 | AE132: =IF(W132>X132,1,0) -> 0 | AF132: =IF(Y132>Z132,1,0) -> 0 | AG132: =IF(AA132>AB132,1,0) -> 0 | AH132: =IF(AC132>AD132,1,0) -> 0 | AI132: =SUM(AE132:AH132) -> 0 | AJ132: =(W132+Y132+AA132+AC132)/4 -> 1.5 | AK132: =(X132+Z132+AB132+AD132)/4 -> 5 | AL132: =AJ132-AK132 -> -3.5 | AM132: =R132+AJ132 -> 3.75 | AN132: =S132+AK132 -> 7.5 | AO132: =(R132+AK132)/2+(Q132/10)-0.5 -> 3.425 | AP132: =(S132+AJ132)/2 -> 2 | AQ132: =AO132+AP132 -> 5.425 | AR132: =IF(AQ132>=[1]Пременные!B106+[1]Пременные!G106,5) -> 5 | AS132: =IF(AQ132<[1]Пременные!B106+[1]Пременные!J106,5.5,0) -> 0 | AT132: =IF(BJ132=1,AR132,100) -> 100 | AU132: =IF(AR132=5,1,0) -> 1 | AV132: =IF(AT132=5,1,0) -> 0 | AW132: =IF(BJ132=1,AS132,0) -> 0 | AX132: =IF(AS132=5.5,1,0) -> 0 | AY132: =IF(AW132=5.5,1,0) -> 0 | AZ132: =IF(BF132>=AR132,1,0) -> 0 | BA132: =IF(BF132<AS132,1,0) -> 0 | BB132: =AZ132+BA132 -> 0 | BC132: 3:1 (2:0, 0:1, 1:0) | BD132: 3 | BE132: 1 | BF132: =BD132+BE132 -> 4 | BG132: =IF(AND(BD132>BE132),1,IF(AND(BD132<BE132),2,IF(AND(BD132=BE132),3))) -> 1
A133: 131 | B133: 3 | C133: Финикс Койотс | E133: 3 | F133: 2 | G133: 4 | H133: 1 | I133: 3 | J133: 2 | K133: 1 | L133: 0 | M133: =IF(E133>F133,1,0) -> 1 | N133: =IF(G133>H133,1,0) -> 1 | O133: =IF(I133>J133,1,0) -> 1 | P133: =IF(K133>L133,1,0) -> 1 | Q133: =SUM(M133:P133)+1 -> 5 | R133: =(E133+G133+I133+K133)/4 -> 2.75 | S133: =(F133+H133+J133+L133)/4 -> 1.25 | T133: =R133-S133 -> 1.5 | U133: Лос-Анджелес Кингз | W133: 5 | X133: 4 | Y133: 4 | Z133: 1 | AA133: 1 | AB133: 4 | AC133: 2 | AD133: 5 | AE133: =IF(W133>X133,1,0) -> 1 | AF133: =IF(Y133>Z133,1,0) -> 1 | AG133: =IF(AA133>AB133,1,0) -> 0 | AH133: =IF(AC133>AD133,1,0) -> 0 | AI133: =SUM(AE133:AH133) -> 2 | AJ133: =(W133+Y133+AA133+AC133)/4 -> 3 | AK133: =(X133+Z133+AB133+AD133)/4 -> 3.5 | AL133: =AJ133-AK133 -> -0.5 | AM133: =R133+AJ133 -> 5.75 | AN133: =S133+AK133 -> 4.75 | AO133: =(R133+AK133)/2+(Q133/10)-0.5 -> 3.125 | AP133: =(S133+AJ133)/2 -> 2.125 | AQ133: =AO133+AP133 -> 5.25 | AR133: =IF(AQ133>=[1]Пременные!B107+[1]Пременные!G107,5) -> 5 | AS133: =IF(AQ133<[1]Пременные!B107+[1]Пременные!J107,5.5,0) -> 0 | AT133: =IF(BJ133=1,AR133,100) -> 100 | AU133: =IF(AR133=5,1,0) -> 1 | AV133: =IF(AT133=5,1,0) -> 0 | AW133: =IF(BJ133=1,AS133,0) -> 0 | AX133: =IF(AS133=5.5,1,0) -> 0 | AY133: =IF(AW133=5.5,1,0) -> 0 | AZ133: =IF(BF133>=AR133,1,0) -> 1 | BA133: =IF(BF133<AS133,1,0) -> 0 | BB133: =AZ133+BA133 -> 1 | BC133: 3:5 (1:0, 1:2, 1:3) | BD133: 3 | BE133: 5 | BF133: =BD133+BE133 -> 8 | BG133: =IF(AND(BD133>BE133),1,IF(AND(BD133<BE133),2,IF(AND(BD133=BE133),3))) -> 2
A134: 132 | B134: 1 | C134: Сент-Луис Блюз | E134: 3 | F134: 1 | G134: 1 | H134: 5 | I134: 5 | J134: 0 | K134: 2 | L134: 3 | M134: =IF(E134>F134,1,0) -> 1 | N134: =IF(G134>H134,1,0) -> 0 | O134: =IF(I134>J134,1,0) -> 1 | P134: =IF(K134>L134,1,0) -> 0 | Q134: =SUM(M134:P134)+1 -> 3 | R134: =(E134+G134+I134+K134)/4 -> 2.75 | S134: =(F134+H134+J134+L134)/4 -> 2.25 | T134: =R134-S134 -> 0.5 | U134: Даллас Старз | W134: 4 | X134: 5 | Y134: 4 | Z134: 2 | AA134: 1 | AB134: 4 | AC134: 4 | AD134: 3 | AE134: =IF(W134>X134,1,0) -> 0 | AF134: =IF(Y134>Z134,1,0) -> 1 | AG134: =IF(AA134>AB134,1,0) -> 0 | AH134: =IF(AC134>AD134,1,0) -> 1 | AI134: =SUM(AE134:AH134) -> 2 | AJ134: =(W134+Y134+AA134+AC134)/4 -> 3.25 | AK134: =(X134+Z134+AB134+AD134)/4 -> 3.5 | AL134: =AJ134-AK134 -> -0.25 | AM134: =R134+AJ134 -> 6 | AN134: =S134+AK134 -> 5.75 | AO134: =(R134+AK134)/2+(Q134/10)-0.5 -> 2.925 | AP134: =(S134+AJ134)/2 -> 2.75 | AQ134: =AO134+AP134 -> 5.675 | AR134: =IF(AQ134>=[1]Пременные!B108+[1]Пременные!G108,5) -> 5 | AS134: =IF(AQ134<[1]Пременные!B108+[1]Пременные!J108,5.5,0) -> 0 | AT134: =IF(BJ134=1,AR134,100) -> 100 | AU134: =IF(AR134=5,1,0) -> 1 | AV134: =IF(AT134=5,1,0) -> 0 | AW134: =IF(BJ134=1,AS134,0) -> 0 | AX134: =IF(AS134=5.5,1,0) -> 0 | AY134: =IF(AW134=5.5,1,0) -> 0 | AZ134: =IF(BF134>=AR134,1,0) -> 1 | BA134: =IF(BF134<AS134,1,0) -> 0 | BB134: =AZ134+BA134 -> 1 | BC134: 1:4 (0:0, 0:2, 1:2) | BD134: 1 | BE134: 4 | BF134: =BD134+BE134 -> 5 | BG134: =IF(AND(BD134>BE134),1,IF(AND(BD134<BE134),2,IF(AND(BD134=BE134),3))) -> 2
A135: 133 | B135: 2 | C135: Колорадо Эвеланш | E135: 5 | F135: 4 | G135: 2 | H135: 3 | I135: 4 | J135: 3 | K135: 3 | L135: 2 | M135: =IF(E135>F135,1,0) -> 1 | N135: =IF(G135>H135,1,0) -> 0 | O135: =IF(I135>J135,1,0) -> 1 | P135: =IF(K135>L135,1,0) -> 1 | Q135: =SUM(M135:P135)+1 -> 4 | R135: =(E135+G135+I135+K135)/4 -> 3.5 | S135: =(F135+H135+J135+L135)/4 -> 3 | T135: =R135-S135 -> 0.5 | U135: Детройт Ред Уингз | W135: 2 | X135: 3 | Y135: 3 | Z135: 4 | AA135: 5 | AB135: 2 | AC135: 2 | AD135: 6 | AE135: =IF(W135>X135,1,0) -> 0 | AF135: =IF(Y135>Z135,1,0) -> 0 | AG135: =IF(AA135>AB135,1,0) -> 1 | AH135: =IF(AC135>AD135,1,0) -> 0 | AI135: =SUM(AE135:AH135) -> 1 | AJ135: =(W135+Y135+AA135+AC135)/4 -> 3 | AK135: =(X135+Z135+AB135+AD135)/4 -> 3.75 | AL135: =AJ135-AK135 -> -0.75 | AM135: =R135+AJ135 -> 6.5 | AN135: =S135+AK135 -> 6.75 | AO135: =(R135+AK135)/2+(Q135/10)-0.5 -> 3.525 | AP135: =(S135+AJ135)/2 -> 3 | AQ135: =AO135+AP135 -> 6.525 | AR135: =IF(AQ135>=[1]Пременные!B109+[1]Пременные!G109,5) -> 5 | AS135: =IF(AQ135<[1]Пременные!B109+[1]Пременные!J109,5.5,0) -> 0 | AT135: =IF(BJ135=1,AR135,100) -> 100 | AU135: =IF(AR135=5,1,0) -> 1 | AV135: =IF(AT135=5,1,0) -> 0 | AW135: =IF(BJ135=1,AS135,0) -> 0 | AX135: =IF(AS135=5.5,1,0) -> 0 | AY135: =IF(AW135=5.5,1,0) -> 0 | AZ135: =IF(BF135>=AR135,1,0) -> 0 | BA135: =IF(BF135<AS135,1,0) -> 0 | BB135: =AZ135+BA135 -> 0 | BC135: 3:1 (0:0, 1:1, 2:0) | BD135: 3 | BE135: 1 | BF135: =BD135+BE135 -> 4 | BG135: =IF(AND(BD135>BE135),1,IF(AND(BD135<BE135),2,IF(AND(BD135=BE135),3))) -> 1
A136: 134 | B136: 3 | C136: Филадельфия Флайерз | E136: 4 | F136: 3 | G136: 2 | H136: 4 | I136: 2 | J136: 3 | K136: 4 | L136: 5 | M136: =IF(E136>F136,1,0) -> 1 | N136: =IF(G136>H136,1,0) -> 0 | O136: =IF(I136>J136,1,0) -> 0 | P136: =IF(K136>L136,1,0) -> 0 | Q136: =SUM(M136:P136)+1 -> 2 | R136: =(E136+G136+I136+K136)/4 -> 3 | S136: =(F136+H136+J136+L136)/4 -> 3.75 | T136: =R136-S136 -> -0.75 | U136: Флорида Пантерз | W136: 2 | X136: 3 | Y136: 2 | Z136: 5 | AA136: 4 | AB136: 2 | AC136: 2 | AD136: 3 | AE136: =IF(W136>X136,1,0) -> 0 | AF136: =IF(Y136>Z136,1,0) -> 0 | AG136: =IF(AA136>AB136,1,0) -> 1 | AH136: =IF(AC136>AD136,1,0) -> 0 | AI136: =SUM(AE136:AH136) -> 1 | AJ136: =(W136+Y136+AA136+AC136)/4 -> 2.5 | AK136: =(X136+Z136+AB136+AD136)/4 -> 3.25 | AL136: =AJ136-AK136 -> -0.75 | AM136: =R136+AJ136 -> 5.5 | AN136: =S136+AK136 -> 7 | AO136: =(R136+AK136)/2+(Q136/10)-0.5 -> 2.825 | AP136: =(S136+AJ136)/2 -> 3.125 | AQ136: =AO136+AP136 -> 5.95 | AR136: =IF(AQ136>=[1]Пременные!B110+[1]Пременные!G110,5) -> 5 | AS136: =IF(AQ136<[1]Пременные!B110+[1]Пременные!J110,5.5,0) -> 0 | AT136: =IF(BJ136=1,AR136,100) -> 100 | AU136: =IF(AR136=5,1,0) -> 1 | AV136: =IF(AT136=5,1,0) -> 0 | AW136: =IF(BJ136=1,AS136,0) -> 0 | AX136: =IF(AS136=5.5,1,0) -> 0 | AY136: =IF(AW136=5.5,1,0) -> 0 | AZ136: =IF(BF136>=AR136,1,0) -> 1 | BA136: =IF(BF136<AS136,1,0) -> 0 | BB136: =AZ136+BA136 -> 1 | BC136: 5:1 (1:1, 2:0, 2:0) | BD136: 5 | BE136: 1 | BF136: =BD136+BE136 -> 6 | BG136: =IF(AND(BD136>BE136),1,IF(AND(BD136<BE136),2,IF(AND(BD136=BE136),3))) -> 1
A137: 135 | B137: 1 | C137: Нью-Йорк Айлендерс | E137: 1 | F137: 5 | G137: 4 | H137: 3 | I137: 1 | J137: 4 | K137: 3 | L137: 6 | M137: =IF(E137>F137,1,0) -> 0 | N137: =IF(G137>H137,1,0) -> 1 | O137: =IF(I137>J137,1,0) -> 0 | P137: =IF(K137>L137,1,0) -> 0 | Q137: =SUM(M137:P137)+1 -> 2 | R137: =(E137+G137+I137+K137)/4 -> 2.25 | S137: =(F137+H137+J137+L137)/4 -> 4.5 | T137: =R137-S137 -> -2.25 | U137: Вашингтон Кэпиталз | W137: 5 | X137: 4 | Y137: 3 | Z137: 2 | AA137: 4 | AB137: 1 | AC137: 2 | AD137: 3 | AE137: =IF(W137>X137,1,0) -> 1 | AF137: =IF(Y137>Z137,1,0) -> 1 | AG137: =IF(AA137>AB137,1,0) -> 1 | AH137: =IF(AC137>AD137,1,0) -> 0 | AI137: =SUM(AE137:AH137) -> 3 | AJ137: =(W137+Y137+AA137+AC137)/4 -> 3.5 | AK137: =(X137+Z137+AB137+AD137)/4 -> 2.5 | AL137: =AJ137-AK137 -> 1 | AM137: =R137+AJ137 -> 5.75 | AN137: =S137+AK137 -> 7 | AO137: =(R137+AK137)/2+(Q137/10)-0.5 -> 2.075 | AP137: =(S137+AJ137)/2 -> 4 | AQ137: =AO137+AP137 -> 6.075 | AR137: =IF(AQ137>=[1]Пременные!B111+[1]Пременные!G111,5) -> 5 | AS137: =IF(AQ137<[1]Пременные!B111+[1]Пременные!J111,5.5,0) -> 0 | AT137: =IF(BJ137=1,AR137,100) -> 100 | AU137: =IF(AR137=5,1,0) -> 1 | AV137: =IF(AT137=5,1,0) -> 0 | AW137: =IF(BJ137=1,AS137,0) -> 0 | AX137: =IF(AS137=5.5,1,0) -> 0 | AY137: =IF(AW137=5.5,1,0) -> 0 | AZ137: =IF(BF137>=AR137,1,0) -> 0 | BA137: =IF(BF137<AS137,1,0) -> 0 | BB137: =AZ137+BA137 -> 0 | BC137: 2:3 ОТ | BD137: 2 | BE137: 2 | BF137: =BD137+BE137 -> 4 | BG137: =IF(AND(BD137>BE137),1,IF(AND(BD137<BE137),2,IF(AND(BD137=BE137),3))) -> 3
A138: 136 | B138: 2 | C138: Миннесота Уайлд | E138: 1 | F138: 3 | G138: 3 | H138: 2 | I138: 1 | J138: 2 | K138: 2 | L138: 5 | M138: =IF(E138>F138,1,0) -> 0 | N138: =IF(G138>H138,1,0) -> 1 | O138: =IF(I138>J138,1,0) -> 0 | P138: =IF(K138>L138,1,0) -> 0 | Q138: =SUM(M138:P138)+1 -> 2 | R138: =(E138+G138+I138+K138)/4 -> 1.75 | S138: =(F138+H138+J138+L138)/4 -> 3 | T138: =R138-S138 -> -1.25 | U138: Каролина Харрикейнз | W138: 4 | X138: 5 | Y138: 3 | Z138: 4 | AA138: 0 | AB138: 2 | AC138: 2 | AD138: 3 | AE138: =IF(W138>X138,1,0) -> 0 | AF138: =IF(Y138>Z138,1,0) -> 0 | AG138: =IF(AA138>AB138,1,0) -> 0 | AH138: =IF(AC138>AD138,1,0) -> 0 | AI138: =SUM(AE138:AH138) -> 0 | AJ138: =(W138+Y138+AA138+AC138)/4 -> 2.25 | AK138: =(X138+Z138+AB138+AD138)/4 -> 3.5 | AL138: =AJ138-AK138 -> -1.25 | AM138: =R138+AJ138 -> 4 | AN138: =S138+AK138 -> 6.5 | AO138: =(R138+AK138)/2+(Q138/10)-0.5 -> 2.325 | AP138: =(S138+AJ138)/2 -> 2.625 | AQ138: =AO138+AP138 -> 4.95 | AR138: =IF(AQ138>=[1]Пременные!B112+[1]Пременные!G112,5) -> 5 | AS138: =IF(AQ138<[1]Пременные!B112+[1]Пременные!J112,5.5,0) -> 0 | AT138: =IF(BJ138=1,AR138,100) -> 100 | AU138: =IF(AR138=5,1,0) -> 1 | AV138: =IF(AT138=5,1,0) -> 0 | AW138: =IF(BJ138=1,AS138,0) -> 0 | AX138: =IF(AS138=5.5,1,0) -> 0 | AY138: =IF(AW138=5.5,1,0) -> 0 | AZ138: =IF(BF138>=AR138,1,0) -> 0 | BA138: =IF(BF138<AS138,1,0) -> 0 | BB138: =AZ138+BA138 -> 0 | BC138: 3:2 ОТ | BD138: 2 | BE138: 2 | BF138: =BD138+BE138 -> 4 | BG138: =IF(AND(BD138>BE138),1,IF(AND(BD138<BE138),2,IF(AND(BD138=BE138),3))) -> 3
A139: 137 | B139: 3 | C139: Анахайм Дакс | E139: 2 | F139: 4 | G139: 0 | H139: 5 | I139: 3 | J139: 2 | K139: 0 | L139: 3 | M139: =IF(E139>F139,1,0) -> 0 | N139: =IF(G139>H139,1,0) -> 0 | O139: =IF(I139>J139,1,0) -> 1 | P139: =IF(K139>L139,1,0) -> 0 | Q139: =SUM(M139:P139)+1 -> 2 | R139: =(E139+G139+I139+K139)/4 -> 1.25 | S139: =(F139+H139+J139+L139)/4 -> 3.5 | T139: =R139-S139 -> -2.25 | U139: Колумбус Блю Джекетс | W139: 4 | X139: 6 | Y139: 3 | Z139: 6 | AA139: 4 | AB139: 1 | AC139: 2 | AD139: 1 | AE139: =IF(W139>X139,1,0) -> 0 | AF139: =IF(Y139>Z139,1,0) -> 0 | AG139: =IF(AA139>AB139,1,0) -> 1 | AH139: =IF(AC139>AD139,1,0) -> 1 | AI139: =SUM(AE139:AH139) -> 2 | AJ139: =(W139+Y139+AA139+AC139)/4 -> 3.25 | AK139: =(X139+Z139+AB139+AD139)/4 -> 3.5 | AL139: =AJ139-AK139 -> -0.25 | AM139: =R139+AJ139 -> 4.5 | AN139: =S139+AK139 -> 7 | AO139: =(R139+AK139)/2+(Q139/10)-0.5 -> 2.075 | AP139: =(S139+AJ139)/2 -> 3.375 | AQ139: =AO139+AP139 -> 5.45 | AR139: =IF(AQ139>=[1]Пременные!B113+[1]Пременные!G113,5) -> 5 | AS139: =IF(AQ139<[1]Пременные!B113+[1]Пременные!J113,5.5,0) -> 0 | AT139: =IF(BJ139=1,AR139,100) -> 100 | AU139: =IF(AR139=5,1,0) -> 1 | AV139: =IF(AT139=5,1,0) -> 0 | AW139: =IF(BJ139=1,AS139,0) -> 0 | AX139: =IF(AS139=5.5,1,0) -> 0 | AY139: =IF(AW139=5.5,1,0) -> 0 | AZ139: =IF(BF139>=AR139,1,0) -> 1 | BA139: =IF(BF139<AS139,1,0) -> 0 | BB139: =AZ139+BA139 -> 1 | BC139: 4:6 (1:0, 1:4, 2:2) | BD139: 4 | BE139: 6 | BF139: =BD139+BE139 -> 10 | BG139: =IF(AND(BD139>BE139),1,IF(AND(BD139<BE139),2,IF(AND(BD139=BE139),3))) -> 2
A140: 138 | B140: 1 | C140: Атланта Трэшерз | E140: 4 | F140: 5 | G140: 1 | H140: 2 | I140: 4 | J140: 2 | K140: 4 | L140: 2 | M140: =IF(E140>F140,1,0) -> 0 | N140: =IF(G140>H140,1,0) -> 0 | O140: =IF(I140>J140,1,0) -> 1 | P140: =IF(K140>L140,1,0) -> 1 | Q140: =SUM(M140:P140)+1 -> 3 | R140: =(E140+G140+I140+K140)/4 -> 3.25 | S140: =(F140+H140+J140+L140)/4 -> 2.75 | T140: =R140-S140 -> 0.5 | U140: Сан-Хосе Шаркс | W140: 2 | X140: 5 | Y140: 7 | Z140: 3 | AA140: 4 | AB140: 1 | AC140: 1 | AD140: 4 | AE140: =IF(W140>X140,1,0) -> 0 | AF140: =IF(Y140>Z140,1,0) -> 1 | AG140: =IF(AA140>AB140,1,0) -> 1 | AH140: =IF(AC140>AD140,1,0) -> 0 | AI140: =SUM(AE140:AH140) -> 2 | AJ140: =(W140+Y140+AA140+AC140)/4 -> 3.5 | AK140: =(X140+Z140+AB140+AD140)/4 -> 3.25 | AL140: =AJ140-AK140 -> 0.25 | AM140: =R140+AJ140 -> 6.75 | AN140: =S140+AK140 -> 6 | AO140: =(R140+AK140)/2+(Q140/10)-0.5 -> 3.05 | AP140: =(S140+AJ140)/2 -> 3.125 | AQ140: =AO140+AP140 -> 6.175 | AR140: =IF(AQ140>=[1]Пременные!B114+[1]Пременные!G114,5) -> 5 | AS140: =IF(AQ140<[1]Пременные!B114+[1]Пременные!J114,5.5,0) -> 0 | AT140: =IF(BJ140=1,AR140,100) -> 100 | AU140: =IF(AR140=5,1,0) -> 1 | AV140: =IF(AT140=5,1,0) -> 0 | AW140: =IF(BJ140=1,AS140,0) -> 0 | AX140: =IF(AS140=5.5,1,0) -> 0 | AY140: =IF(AW140=5.5,1,0) -> 0 | AZ140: =IF(BF140>=AR140,1,0) -> 1 | BA140: =IF(BF140<AS140,1,0) -> 0 | BB140: =AZ140+BA140 -> 1 | BC140: 3:4 (0:2, 2:2, 1:0) | BD140: 3 | BE140: 4 | BF140: =BD140+BE140 -> 7 | BG140: =IF(AND(BD140>BE140),1,IF(AND(BD140<BE140),2,IF(AND(BD140=BE140),3))) -> 2
A141: 139 | B141: 2 | C141: Оттава Сенаторз | E141: 5 | F141: 6 | G141: 3 | H141: 1 | I141: 7 | J141: 1 | K141: 1 | L141: 4 | M141: =IF(E141>F141,1,0) -> 0 | N141: =IF(G141>H141,1,0) -> 1 | O141: =IF(I141>J141,1,0) -> 1 | P141: =IF(K141>L141,1,0) -> 0 | Q141: =SUM(M141:P141)+1 -> 3 | R141: =(E141+G141+I141+K141)/4 -> 4 | S141: =(F141+H141+J141+L141)/4 -> 3 | T141: =R141-S141 -> 1 | U141: Бостон Брюинз | W141: 3 | X141: 4 | Y141: 3 | Z141: 2 | AA141: 1 | AB141: 4 | AC141: 3 | AD141: 0 | AE141: =IF(W141>X141,1,0) -> 0 | AF141: =IF(Y141>Z141,1,0) -> 1 | AG141: =IF(AA141>AB141,1,0) -> 0 | AH141: =IF(AC141>AD141,1,0) -> 1 | AI141: =SUM(AE141:AH141) -> 2 | AJ141: =(W141+Y141+AA141+AC141)/4 -> 2.5 | AK141: =(X141+Z141+AB141+AD141)/4 -> 2.5 | AL141: =AJ141-AK141 -> 0 | AM141: =R141+AJ141 -> 6.5 | AN141: =S141+AK141 -> 5.5 | AO141: =(R141+AK141)/2+(Q141/10)-0.5 -> 3.05 | AP141: =(S141+AJ141)/2 -> 2.75 | AQ141: =AO141+AP141 -> 5.8 | AR141: =IF(AQ141>=[1]Пременные!B115+[1]Пременные!G115,5) -> 5 | AS141: =IF(AQ141<[1]Пременные!B115+[1]Пременные!J115,5.5,0) -> 0 | AT141: =IF(BJ141=1,AR141,100) -> 100 | AU141: =IF(AR141=5,1,0) -> 1 | AV141: =IF(AT141=5,1,0) -> 0 | AW141: =IF(BJ141=1,AS141,0) -> 0 | AX141: =IF(AS141=5.5,1,0) -> 0 | AY141: =IF(AW141=5.5,1,0) -> 0 | AZ141: =IF(BF141>=AR141,1,0) -> 1 | BA141: =IF(BF141<AS141,1,0) -> 0 | BB141: =AZ141+BA141 -> 1 | BC141: 3:4 Б | BD141: 3 | BE141: 3 | BF141: =BD141+BE141 -> 6 | BG141: =IF(AND(BD141>BE141),1,IF(AND(BD141<BE141),2,IF(AND(BD141=BE141),3))) -> 3
A142: 140 | B142: 3 | C142: Монреаль Канадиенс | E142: 5 | F142: 1 | G142: 2 | H142: 1 | I142: 1 | J142: 3 | K142: 2 | L142: 3 | M142: =IF(E142>F142,1,0) -> 1 | N142: =IF(G142>H142,1,0) -> 1 | O142: =IF(I142>J142,1,0) -> 0 | P142: =IF(K142>L142,1,0) -> 0 | Q142: =SUM(M142:P142)+1 -> 3 | R142: =(E142+G142+I142+K142)/4 -> 2.5 | S142: =(F142+H142+J142+L142)/4 -> 2 | T142: =R142-S142 -> 0.5 | U142: Нью-Йорк Рейнджерс | W142: 2 | X142: 4 | Y142: 3 | Z142: 7 | AA142: 4 | AB142: 1 | AC142: 4 | AD142: 2 | AE142: =IF(W142>X142,1,0) -> 0 | AF142: =IF(Y142>Z142,1,0) -> 0 | AG142: =IF(AA142>AB142,1,0) -> 1 | AH142: =IF(AC142>AD142,1,0) -> 1 | AI142: =SUM(AE142:AH142) -> 2 | AJ142: =(W142+Y142+AA142+AC142)/4 -> 3.25 | AK142: =(X142+Z142+AB142+AD142)/4 -> 3.5 | AL142: =AJ142-AK142 -> -0.25 | AM142: =R142+AJ142 -> 5.75 | AN142: =S142+AK142 -> 5.5 | AO142: =(R142+AK142)/2+(Q142/10)-0.5 -> 2.8 | AP142: =(S142+AJ142)/2 -> 2.625 | AQ142: =AO142+AP142 -> 5.425 | AR142: =IF(AQ142>=[1]Пременные!B116+[1]Пременные!G116,5) -> 5 | AS142: =IF(AQ142<[1]Пременные!B116+[1]Пременные!J116,5.5,0) -> 0 | AT142: =IF(BJ142=1,AR142,100) -> 100 | AU142: =IF(AR142=5,1,0) -> 1 | AV142: =IF(AT142=5,1,0) -> 0 | AW142: =IF(BJ142=1,AS142,0) -> 0 | AX142: =IF(AS142=5.5,1,0) -> 0 | AY142: =IF(AW142=5.5,1,0) -> 0 | AZ142: =IF(BF142>=AR142,1,0) -> 1 | BA142: =IF(BF142<AS142,1,0) -> 0 | BB142: =AZ142+BA142 -> 1 | BC142: 5:4 ОТ | BD142: 4 | BE142: 4 | BF142: =BD142+BE142 -> 8 | BG142: =IF(AND(BD142>BE142),1,IF(AND(BD142<BE142),2,IF(AND(BD142=BE142),3))) -> 3
A143: 141 | B143: 1 | C143: Тампа Бэй Лайтнинг | E143: 5 | F143: 2 | G143: 1 | H143: 4 | I143: 1 | J143: 7 | K143: 3 | L143: 2 | M143: =IF(E143>F143,1,0) -> 1 | N143: =IF(G143>H143,1,0) -> 0 | O143: =IF(I143>J143,1,0) -> 0 | P143: =IF(K143>L143,1,0) -> 1 | Q143: =SUM(M143:P143)+1 -> 3 | R143: =(E143+G143+I143+K143)/4 -> 2.5 | S143: =(F143+H143+J143+L143)/4 -> 3.75 | T143: =R143-S143 -> -1.25 | U143: Баффало Сейбрз | W143: 5 | X143: 2 | Y143: 2 | Z143: 4 | AA143: 6 | AB143: 3 | AC143: 6 | AD143: 2 | AE143: =IF(W143>X143,1,0) -> 1 | AF143: =IF(Y143>Z143,1,0) -> 0 | AG143: =IF(AA143>AB143,1,0) -> 1 | AH143: =IF(AC143>AD143,1,0) -> 1 | AI143: =SUM(AE143:AH143) -> 3 | AJ143: =(W143+Y143+AA143+AC143)/4 -> 4.75 | AK143: =(X143+Z143+AB143+AD143)/4 -> 2.75 | AL143: =AJ143-AK143 -> 2 | AM143: =R143+AJ143 -> 7.25 | AN143: =S143+AK143 -> 6.5 | AO143: =(R143+AK143)/2+(Q143/10)-0.5 -> 2.425 | AP143: =(S143+AJ143)/2 -> 4.25 | AQ143: =AO143+AP143 -> 6.675 | AR143: =IF(AQ143>=[1]Пременные!B117+[1]Пременные!G117,5) -> 5 | AS143: =IF(AQ143<[1]Пременные!B117+[1]Пременные!J117,5.5,0) -> 0 | AT143: =IF(BJ143=1,AR143,100) -> 100 | AU143: =IF(AR143=5,1,0) -> 1 | AV143: =IF(AT143=5,1,0) -> 0 | AW143: =IF(BJ143=1,AS143,0) -> 0 | AX143: =IF(AS143=5.5,1,0) -> 0 | AY143: =IF(AW143=5.5,1,0) -> 0 | AZ143: =IF(BF143>=AR143,1,0) -> 0 | BA143: =IF(BF143<AS143,1,0) -> 0 | BB143: =AZ143+BA143 -> 0 | BC143: 2:3 Б | BD143: 2 | BE143: 2 | BF143: =BD143+BE143 -> 4 | BG143: =IF(AND(BD143>BE143),1,IF(AND(BD143<BE143),2,IF(AND(BD143=BE143),3))) -> 3
A144: 142 | B144: 2 | C144: Питтсбург Пингвинз | E144: 3 | F144: 2 | G144: 5 | H144: 1 | I144: 4 | J144: 1 | K144: 3 | L144: 2 | M144: =IF(E144>F144,1,0) -> 1 | N144: =IF(G144>H144,1,0) -> 1 | O144: =IF(I144>J144,1,0) -> 1 | P144: =IF(K144>L144,1,0) -> 1 | Q144: =SUM(M144:P144)+1 -> 5 | R144: =(E144+G144+I144+K144)/4 -> 3.75 | S144: =(F144+H144+J144+L144)/4 -> 1.5 | T144: =R144-S144 -> 2.25 | U144: Нью-Джерси Девилз | W144: 4 | X144: 2 | Y144: 2 | Z144: 0 | AA144: 2 | AB144: 4 | AC144: 3 | AD144: 2 | AE144: =IF(W144>X144,1,0) -> 1 | AF144: =IF(Y144>Z144,1,0) -> 1 | AG144: =IF(AA144>AB144,1,0) -> 0 | AH144: =IF(AC144>AD144,1,0) -> 1 | AI144: =SUM(AE144:AH144) -> 3 | AJ144: =(W144+Y144+AA144+AC144)/4 -> 2.75 | AK144: =(X144+Z144+AB144+AD144)/4 -> 2 | AL144: =AJ144-AK144 -> 0.75 | AM144: =R144+AJ144 -> 6.5 | AN144: =S144+AK144 -> 3.5 | AO144: =(R144+AK144)/2+(Q144/10)-0.5 -> 2.875 | AP144: =(S144+AJ144)/2 -> 2.125 | AQ144: =AO144+AP144 -> 5 | AR144: =IF(AQ144>=[1]Пременные!B118+[1]Пременные!G118,5) -> 5 | AS144: =IF(AQ144<[1]Пременные!B118+[1]Пременные!J118,5.5,0) -> 0 | AT144: =IF(BJ144=1,AR144,100) -> 100 | AU144: =IF(AR144=5,1,0) -> 1 | AV144: =IF(AT144=5,1,0) -> 0 | AW144: =IF(BJ144=1,AS144,0) -> 0 | AX144: =IF(AS144=5.5,1,0) -> 0 | AY144: =IF(AW144=5.5,1,0) -> 0 | AZ144: =IF(BF144>=AR144,1,0) -> 1 | BA144: =IF(BF144<AS144,1,0) -> 0 | BB144: =AZ144+BA144 -> 1 | BC144: 1:4 (0:1, 0:1, 1:2) | BD144: 1 | BE144: 4 | BF144: =BD144+BE144 -> 5 | BG144: =IF(AND(BD144>BE144),1,IF(AND(BD144<BE144),2,IF(AND(BD144=BE144),3))) -> 2
A145: 143 | B145: 3 | C145: Чикаго Блэкхокс | E145: 2 | F145: 3 | G145: 3 | H145: 4 | I145: 3 | J145: 1 | K145: 4 | L145: 3 | M145: =IF(E145>F145,1,0) -> 0 | N145: =IF(G145>H145,1,0) -> 0 | O145: =IF(I145>J145,1,0) -> 1 | P145: =IF(K145>L145,1,0) -> 1 | Q145: =SUM(M145:P145)+1 -> 3 | R145: =(E145+G145+I145+K145)/4 -> 3 | S145: =(F145+H145+J145+L145)/4 -> 2.75 | T145: =R145-S145 -> 0.25 | U145: Нэшвилл Предаторз | W145: 6 | X145: 5 | Y145: 2 | Z145: 3 | AA145: 2 | AB145: 3 | AC145: 1 | AD145: 3 | AE145: =IF(W145>X145,1,0) -> 1 | AF145: =IF(Y145>Z145,1,0) -> 0 | AG145: =IF(AA145>AB145,1,0) -> 0 | AH145: =IF(AC145>AD145,1,0) -> 0 | AI145: =SUM(AE145:AH145) -> 1 | AJ145: =(W145+Y145+AA145+AC145)/4 -> 2.75 | AK145: =(X145+Z145+AB145+AD145)/4 -> 3.5 | AL145: =AJ145-AK145 -> -0.75 | AM145: =R145+AJ145 -> 5.75 | AN145: =S145+AK145 -> 6.25 | AO145: =(R145+AK145)/2+(Q145/10)-0.5 -> 3.05 | AP145: =(S145+AJ145)/2 -> 2.75 | AQ145: =AO145+AP145 -> 5.8 | AR145: =IF(AQ145>=[1]Пременные!B119+[1]Пременные!G119,5) -> 5 | AS145: =IF(AQ145<[1]Пременные!B119+[1]Пременные!J119,5.5,0) -> 0 | AT145: =IF(BJ145=1,AR145,100) -> 100 | AU145: =IF(AR145=5,1,0) -> 1 | AV145: =IF(AT145=5,1,0) -> 0 | AW145: =IF(BJ145=1,AS145,0) -> 0 | AX145: =IF(AS145=5.5,1,0) -> 0 | AY145: =IF(AW145=5.5,1,0) -> 0 | AZ145: =IF(BF145>=AR145,1,0) -> 0 | BA145: =IF(BF145<AS145,1,0) -> 0 | BB145: =AZ145+BA145 -> 0 | BC145: 2:0 (0:0, 2:0, 0:0) | BD145: 2 | BE145: 0 | BF145: =BD145+BE145 -> 2 | BG145: =IF(AND(BD145>BE145),1,IF(AND(BD145<BE145),2,IF(AND(BD145=BE145),3))) -> 1
A146: 144 | B146: 1 | C146: Калгари Флэймз | E146: 6 | F146: 3 | G146: 5 | H146: 3 | I146: 1 | J146: 2 | K146: 5 | L146: 6 | M146: =IF(E146>F146,1,0) -> 1 | N146: =IF(G146>H146,1,0) -> 1 | O146: =IF(I146>J146,1,0) -> 0 | P146: =IF(K146>L146,1,0) -> 0 | Q146: =SUM(M146:P146)+1 -> 3 | R146: =(E146+G146+I146+K146)/4 -> 4.25 | S146: =(F146+H146+J146+L146)/4 -> 3.5 | T146: =R146-S146 -> 0.75 | U146: Эдмонтон Ойлерз | W146: 6 | X146: 4 | Y146: 2 | Z146: 1 | AA146: 5 | AB146: 2 | AC146: 3 | AD146: 4 | AE146: =IF(W146>X146,1,0) -> 1 | AF146: =IF(Y146>Z146,1,0) -> 1 | AG146: =IF(AA146>AB146,1,0) -> 1 | AH146: =IF(AC146>AD146,1,0) -> 0 | AI146: =SUM(AE146:AH146) -> 3 | AJ146: =(W146+Y146+AA146+AC146)/4 -> 4 | AK146: =(X146+Z146+AB146+AD146)/4 -> 2.75 | AL146: =AJ146-AK146 -> 1.25 | AM146: =R146+AJ146 -> 8.25 | AN146: =S146+AK146 -> 6.25 | AO146: =(R146+AK146)/2+(Q146/10)-0.5 -> 3.3 | AP146: =(S146+AJ146)/2 -> 3.75 | AQ146: =AO146+AP146 -> 7.05 | AR146: =IF(AQ146>=[1]Пременные!B120+[1]Пременные!G120,5) -> 5 | AS146: =IF(AQ146<[1]Пременные!B120+[1]Пременные!J120,5.5,0) -> 0 | AT146: =IF(BJ146=1,AR146,100) -> 100 | AU146: =IF(AR146=5,1,0) -> 1 | AV146: =IF(AT146=5,1,0) -> 0 | AW146: =IF(BJ146=1,AS146,0) -> 0 | AX146: =IF(AS146=5.5,1,0) -> 0 | AY146: =IF(AW146=5.5,1,0) -> 0 | AZ146: =IF(BF146>=AR146,1,0) -> 1 | BA146: =IF(BF146<AS146,1,0) -> 0 | BB146: =AZ146+BA146 -> 1 | BC146: 5:2 (1:1, 3:1, 1:0) | BD146: 5 | BE146: 2 | BF146: =BD146+BE146 -> 7 | BG146: =IF(AND(BD146>BE146),1,IF(AND(BD146<BE146),2,IF(AND(BD146=BE146),3))) -> 1
A147: 145 | B147: 2 | C147: Лос-Анджелес Кингз | E147: 5 | F147: 3 | G147: 5 | H147: 4 | I147: 4 | J147: 1 | K147: 1 | L147: 4 | M147: =IF(E147>F147,1,0) -> 1 | N147: =IF(G147>H147,1,0) -> 1 | O147: =IF(I147>J147,1,0) -> 1 | P147: =IF(K147>L147,1,0) -> 0 | Q147: =SUM(M147:P147)+1 -> 4 | R147: =(E147+G147+I147+K147)/4 -> 3.75 | S147: =(F147+H147+J147+L147)/4 -> 3 | T147: =R147-S147 -> 0.75 | U147: Колумбус Блю Джекетс | W147: 6 | X147: 4 | Y147: 4 | Z147: 6 | AA147: 3 | AB147: 6 | AC147: 4 | AD147: 1 | AE147: =IF(W147>X147,1,0) -> 1 | AF147: =IF(Y147>Z147,1,0) -> 0 | AG147: =IF(AA147>AB147,1,0) -> 0 | AH147: =IF(AC147>AD147,1,0) -> 1 | AI147: =SUM(AE147:AH147) -> 2 | AJ147: =(W147+Y147+AA147+AC147)/4 -> 4.25 | AK147: =(X147+Z147+AB147+AD147)/4 -> 4.25 | AL147: =AJ147-AK147 -> 0 | AM147: =R147+AJ147 -> 8 | AN147: =S147+AK147 -> 7.25 | AO147: =(R147+AK147)/2+(Q147/10)-0.5 -> 3.9 | AP147: =(S147+AJ147)/2 -> 3.625 | AQ147: =AO147+AP147 -> 7.525 | AR147: =IF(AQ147>=[1]Пременные!B121+[1]Пременные!G121,5) -> 5 | AS147: =IF(AQ147<[1]Пременные!B121+[1]Пременные!J121,5.5,0) -> 0 | AT147: =IF(BJ147=1,AR147,100) -> 100 | AU147: =IF(AR147=5,1,0) -> 1 | AV147: =IF(AT147=5,1,0) -> 0 | AW147: =IF(BJ147=1,AS147,0) -> 0 | AX147: =IF(AS147=5.5,1,0) -> 0 | AY147: =IF(AW147=5.5,1,0) -> 0 | AZ147: =IF(BF147>=AR147,1,0) -> 1 | BA147: =IF(BF147<AS147,1,0) -> 0 | BB147: =AZ147+BA147 -> 1 | BC147: 6:2 (2:0, 2:1, 2:1) | BD147: 6 | BE147: 2 | BF147: =BD147+BE147 -> 8 | BG147: =IF(AND(BD147>BE147),1,IF(AND(BD147<BE147),2,IF(AND(BD147=BE147),3))) -> 1
A148: 146 | B148: 3 | C148: Филадельфия Флайерз | E148: 5 | F148: 1 | G148: 4 | H148: 3 | I148: 2 | J148: 4 | K148: 2 | L148: 3 | M148: =IF(E148>F148,1,0) -> 1 | N148: =IF(G148>H148,1,0) -> 1 | O148: =IF(I148>J148,1,0) -> 0 | P148: =IF(K148>L148,1,0) -> 0 | Q148: =SUM(M148:P148)+1 -> 3 | R148: =(E148+G148+I148+K148)/4 -> 3.25 | S148: =(F148+H148+J148+L148)/4 -> 2.75 | T148: =R148-S148 -> 0.5 | U148: Сан-Хосе Шаркс | W148: 4 | X148: 3 | Y148: 2 | Z148: 5 | AA148: 7 | AB148: 3 | AC148: 4 | AD148: 1 | AE148: =IF(W148>X148,1,0) -> 1 | AF148: =IF(Y148>Z148,1,0) -> 0 | AG148: =IF(AA148>AB148,1,0) -> 1 | AH148: =IF(AC148>AD148,1,0) -> 1 | AI148: =SUM(AE148:AH148) -> 3 | AJ148: =(W148+Y148+AA148+AC148)/4 -> 4.25 | AK148: =(X148+Z148+AB148+AD148)/4 -> 3 | AL148: =AJ148-AK148 -> 1.25 | AM148: =R148+AJ148 -> 7.5 | AN148: =S148+AK148 -> 5.75 | AO148: =(R148+AK148)/2+(Q148/10)-0.5 -> 2.925 | AP148: =(S148+AJ148)/2 -> 3.5 | AQ148: =AO148+AP148 -> 6.425 | AR148: =IF(AQ148>=[1]Пременные!B122+[1]Пременные!G122,5) -> 5 | AS148: =IF(AQ148<[1]Пременные!B122+[1]Пременные!J122,5.5,0) -> 0 | AT148: =IF(BJ148=1,AR148,100) -> 100 | AU148: =IF(AR148=5,1,0) -> 1 | AV148: =IF(AT148=5,1,0) -> 0 | AW148: =IF(BJ148=1,AS148,0) -> 0 | AX148: =IF(AS148=5.5,1,0) -> 0 | AY148: =IF(AW148=5.5,1,0) -> 0 | AZ148: =IF(BF148>=AR148,1,0) -> 1 | BA148: =IF(BF148<AS148,1,0) -> 0 | BB148: =AZ148+BA148 -> 1 | BC148: 1:4 (1:1, 0:2, 0:1) | BD148: 1 | BE148: 4 | BF148: =BD148+BE148 -> 5 | BG148: =IF(AND(BD148>BE148),1,IF(AND(BD148<BE148),2,IF(AND(BD148=BE148),3))) -> 2
A149: 147 | B149: 1 | C149: Ванкувер Кэнакс | E149: 3 | F149: 1 | G149: 3 | H149: 2 | I149: 1 | J149: 2 | K149: 2 | L149: 1 | M149: =IF(E149>F149,1,0) -> 1 | N149: =IF(G149>H149,1,0) -> 1 | O149: =IF(I149>J149,1,0) -> 0 | P149: =IF(K149>L149,1,0) -> 1 | Q149: =SUM(M149:P149)+1 -> 4 | R149: =(E149+G149+I149+K149)/4 -> 2.25 | S149: =(F149+H149+J149+L149)/4 -> 1.5 | T149: =R149-S149 -> 0.75 | U149: Эдмонтон Ойлерз | W149: 2 | X149: 5 | Y149: 6 | Z149: 4 | AA149: 2 | AB149: 1 | AC149: 5 | AD149: 2 | AE149: =IF(W149>X149,1,0) -> 0 | AF149: =IF(Y149>Z149,1,0) -> 1 | AG149: =IF(AA149>AB149,1,0) -> 1 | AH149: =IF(AC149>AD149,1,0) -> 1 | AI149: =SUM(AE149:AH149) -> 3 | AJ149: =(W149+Y149+AA149+AC149)/4 -> 3.75 | AK149: =(X149+Z149+AB149+AD149)/4 -> 3 | AL149: =AJ149-AK149 -> 0.75 | AM149: =R149+AJ149 -> 6 | AN149: =S149+AK149 -> 4.5 | AO149: =(R149+AK149)/2+(Q149/10)-0.5 -> 2.525 | AP149: =(S149+AJ149)/2 -> 2.625 | AQ149: =AO149+AP149 -> 5.15 | AR149: =IF(AQ149>=[1]Пременные!B123+[1]Пременные!G123,5) -> 5 | AS149: =IF(AQ149<[1]Пременные!B123+[1]Пременные!J123,5.5,0) -> 0 | AT149: =IF(BJ149=1,AR149,100) -> 100 | AU149: =IF(AR149=5,1,0) -> 1 | AV149: =IF(AT149=5,1,0) -> 0 | AW149: =IF(BJ149=1,AS149,0) -> 0 | AX149: =IF(AS149=5.5,1,0) -> 0 | AY149: =IF(AW149=5.5,1,0) -> 0 | AZ149: =IF(BF149>=AR149,1,0) -> 0 | BA149: =IF(BF149<AS149,1,0) -> 0 | BB149: =AZ149+BA149 -> 0 | BC149: 2:0 (1:0, 1:0, 0:0) | BD149: 2 | BE149: 0 | BF149: =BD149+BE149 -> 2 | BG149: =IF(AND(BD149>BE149),1,IF(AND(BD149<BE149),2,IF(AND(BD149=BE149),3))) -> 1
A150: 148 | B150: 2 | C150: Нью-Йорк Рейнджерс | E150: 4 | F150: 5 | G150: 2 | H150: 4 | I150: 3 | J150: 7 | K150: 4 | L150: 1 | M150: =IF(E150>F150,1,0) -> 0 | N150: =IF(G150>H150,1,0) -> 0 | O150: =IF(I150>J150,1,0) -> 0 | P150: =IF(K150>L150,1,0) -> 1 | Q150: =SUM(M150:P150)+1 -> 2 | R150: =(E150+G150+I150+K150)/4 -> 3.25 | S150: =(F150+H150+J150+L150)/4 -> 4.25 | T150: =R150-S150 -> -1 | U150: Финикс Койотс | W150: 3 | X150: 5 | Y150: 3 | Z150: 2 | AA150: 4 | AB150: 1 | AC150: 3 | AD150: 2 | AE150: =IF(W150>X150,1,0) -> 0 | AF150: =IF(Y150>Z150,1,0) -> 1 | AG150: =IF(AA150>AB150,1,0) -> 1 | AH150: =IF(AC150>AD150,1,0) -> 1 | AI150: =SUM(AE150:AH150) -> 3 | AJ150: =(W150+Y150+AA150+AC150)/4 -> 3.25 | AK150: =(X150+Z150+AB150+AD150)/4 -> 2.5 | AL150: =AJ150-AK150 -> 0.75 | AM150: =R150+AJ150 -> 6.5 | AN150: =S150+AK150 -> 6.75 | AO150: =(R150+AK150)/2+(Q150/10)-0.5 -> 2.575 | AP150: =(S150+AJ150)/2 -> 3.75 | AQ150: =AO150+AP150 -> 6.325 | AR150: =IF(AQ150>=[1]Пременные!B124+[1]Пременные!G124,5) -> 5 | AS150: =IF(AQ150<[1]Пременные!B124+[1]Пременные!J124,5.5,0) -> 0 | AT150: =IF(BJ150=1,AR150,100) -> 100 | AU150: =IF(AR150=5,1,0) -> 1 | AV150: =IF(AT150=5,1,0) -> 0 | AW150: =IF(BJ150=1,AS150,0) -> 0 | AX150: =IF(AS150=5.5,1,0) -> 0 | AY150: =IF(AW150=5.5,1,0) -> 0 | AZ150: =IF(BF150>=AR150,1,0) -> 1 | BA150: =IF(BF150<AS150,1,0) -> 0 | BB150: =AZ150+BA150 -> 1 | BC150: 5:2 (2:0, 2:2, 1:0) | BD150: 5 | BE150: 2 | BF150: =BD150+BE150 -> 7 | BG150: =IF(AND(BD150>BE150),1,IF(AND(BD150<BE150),2,IF(AND(BD150=BE150),3))) -> 1
A151: 149 | B151: 3 | C151: Анахайм Дакс | E151: 4 | F151: 6 | G151: 2 | H151: 4 | I151: 0 | J151: 5 | K151: 3 | L151: 2 | M151: =IF(E151>F151,1,0) -> 0 | N151: =IF(G151>H151,1,0) -> 0 | O151: =IF(I151>J151,1,0) -> 0 | P151: =IF(K151>L151,1,0) -> 1 | Q151: =SUM(M151:P151)+1 -> 2 | R151: =(E151+G151+I151+K151)/4 -> 2.25 | S151: =(F151+H151+J151+L151)/4 -> 4.25 | T151: =R151-S151 -> -2 | U151: Торонто Мейпл Лифс | W151: 1 | X151: 3 | Y151: 1 | Z151: 4 | AA151: 1 | AB151: 4 | AC151: 2 | AD151: 7 | AE151: =IF(W151>X151,1,0) -> 0 | AF151: =IF(Y151>Z151,1,0) -> 0 | AG151: =IF(AA151>AB151,1,0) -> 0 | AH151: =IF(AC151>AD151,1,0) -> 0 | AI151: =SUM(AE151:AH151) -> 0 | AJ151: =(W151+Y151+AA151+AC151)/4 -> 1.25 | AK151: =(X151+Z151+AB151+AD151)/4 -> 4.5 | AL151: =AJ151-AK151 -> -3.25 | AM151: =R151+AJ151 -> 3.5 | AN151: =S151+AK151 -> 8.75 | AO151: =(R151+AK151)/2+(Q151/10)-0.5 -> 3.075 | AP151: =(S151+AJ151)/2 -> 2.75 | AQ151: =AO151+AP151 -> 5.825 | AR151: =IF(AQ151>=[1]Пременные!B125+[1]Пременные!G125,5) -> 5 | AS151: =IF(AQ151<[1]Пременные!B125+[1]Пременные!J125,5.5,0) -> 0 | AT151: =IF(BJ151=1,AR151,100) -> 100 | AU151: =IF(AR151=5,1,0) -> 1 | AV151: =IF(AT151=5,1,0) -> 0 | AW151: =IF(BJ151=1,AS151,0) -> 0 | AX151: =IF(AS151=5.5,1,0) -> 0 | AY151: =IF(AW151=5.5,1,0) -> 0 | AZ151: =IF(BF151>=AR151,1,0) -> 1 | BA151: =IF(BF151<AS151,1,0) -> 0 | BB151: =AZ151+BA151 -> 1 | BC151: 3:6 (1:2, 1:1, 1:3) | BD151: 3 | BE151: 6 | BF151: =BD151+BE151 -> 9 | BG151: =IF(AND(BD151>BE151),1,IF(AND(BD151<BE151),2,IF(AND(BD151=BE151),3))) -> 2
A152: 150 | B152: 1 | C152: Чикаго Блэкхокс | E152: 2 | F152: 0 | G152: 2 | H152: 3 | I152: 3 | J152: 4 | K152: 3 | L152: 1 | M152: =IF(E152>F152,1,0) -> 1 | N152: =IF(G152>H152,1,0) -> 0 | O152: =IF(I152>J152,1,0) -> 0 | P152: =IF(K152>L152,1,0) -> 1 | Q152: =SUM(M152:P152)+1 -> 3 | R152: =(E152+G152+I152+K152)/4 -> 2.5 | S152: =(F152+H152+J152+L152)/4 -> 2 | T152: =R152-S152 -> 0.5 | U152: Миннесота Уайлд | W152: 3 | X152: 2 | Y152: 1 | Z152: 3 | AA152: 3 | AB152: 2 | AC152: 1 | AD152: 2 | AE152: =IF(W152>X152,1,0) -> 1 | AF152: =IF(Y152>Z152,1,0) -> 0 | AG152: =IF(AA152>AB152,1,0) -> 1 | AH152: =IF(AC152>AD152,1,0) -> 0 | AI152: =SUM(AE152:AH152) -> 2 | AJ152: =(W152+Y152+AA152+AC152)/4 -> 2 | AK152: =(X152+Z152+AB152+AD152)/4 -> 2.25 | AL152: =AJ152-AK152 -> -0.25 | AM152: =R152+AJ152 -> 4.5 | AN152: =S152+AK152 -> 4.25 | AO152: =(R152+AK152)/2+(Q152/10)-0.5 -> 2.175 | AP152: =(S152+AJ152)/2 -> 2 | AQ152: =AO152+AP152 -> 4.175 | AR152: =IF(AQ152>=[1]Пременные!B126+[1]Пременные!G126,5) -> FALSE | AS152: =IF(AQ152<[1]Пременные!B126+[1]Пременные!J126,5.5,0) -> 5.5 | AT152: =IF(BJ152=1,AR152,100) -> 100 | AU152: =IF(AR152=5,1,0) -> 0 | AV152: =IF(AT152=5,1,0) -> 0 | AW152: =IF(BJ152=1,AS152,0) -> 0 | AX152: =IF(AS152=5.5,1,0) -> 1 | AY152: =IF(AW152=5.5,1,0) -> 0 | AZ152: =IF(BF152>=AR152,1,0) -> 0 | BA152: =IF(BF152<AS152,1,0) -> 1 | BB152: =AZ152+BA152 -> 1 | BC152: 3:1 (2:0, 0:0, 1:1) | BD152: 3 | BE152: 1 | BF152: =BD152+BE152 -> 4 | BG152: =IF(AND(BD152>BE152),1,IF(AND(BD152<BE152),2,IF(AND(BD152=BE152),3))) -> 1
A153: 151 | B153: 2 | C153: Монреаль Канадиенс | E153: 5 | F153: 4 | G153: 5 | H153: 1 | I153: 2 | J153: 1 | K153: 1 | L153: 3 | M153: =IF(E153>F153,1,0) -> 1 | N153: =IF(G153>H153,1,0) -> 1 | O153: =IF(I153>J153,1,0) -> 1 | P153: =IF(K153>L153,1,0) -> 0 | Q153: =SUM(M153:P153)+1 -> 4 | R153: =(E153+G153+I153+K153)/4 -> 3.25 | S153: =(F153+H153+J153+L153)/4 -> 2.25 | T153: =R153-S153 -> 1 | U153: Нью-Йорк Айлендерс | W153: 2 | X153: 3 | Y153: 1 | Z153: 5 | AA153: 4 | AB153: 3 | AC153: 1 | AD153: 4 | AE153: =IF(W153>X153,1,0) -> 0 | AF153: =IF(Y153>Z153,1,0) -> 0 | AG153: =IF(AA153>AB153,1,0) -> 1 | AH153: =IF(AC153>AD153,1,0) -> 0 | AI153: =SUM(AE153:AH153) -> 1 | AJ153: =(W153+Y153+AA153+AC153)/4 -> 2 | AK153: =(X153+Z153+AB153+AD153)/4 -> 3.75 | AL153: =AJ153-AK153 -> -1.75 | AM153: =R153+AJ153 -> 5.25 | AN153: =S153+AK153 -> 6 | AO153: =(R153+AK153)/2+(Q153/10)-0.5 -> 3.4 | AP153: =(S153+AJ153)/2 -> 2.125 | AQ153: =AO153+AP153 -> 5.525 | AR153: =IF(AQ153>=[1]Пременные!B127+[1]Пременные!G127,5) -> 5 | AS153: =IF(AQ153<[1]Пременные!B127+[1]Пременные!J127,5.5,0) -> 0 | AT153: =IF(BJ153=1,AR153,100) -> 100 | AU153: =IF(AR153=5,1,0) -> 1 | AV153: =IF(AT153=5,1,0) -> 0 | AW153: =IF(BJ153=1,AS153,0) -> 0 | AX153: =IF(AS153=5.5,1,0) -> 0 | AY153: =IF(AW153=5.5,1,0) -> 0 | AZ153: =IF(BF153>=AR153,1,0) -> 0 | BA153: =IF(BF153<AS153,1,0) -> 0 | BB153: =AZ153+BA153 -> 0 | BC153: 3:2 ОТ | BD153: 2 | BE153: 2 | BF153: =BD153+BE153 -> 4 | BG153: =IF(AND(BD153>BE153),1,IF(AND(BD153<BE153),2,IF(AND(BD153=BE153),3))) -> 3
A154: 152 | B154: 3 | C154: Вашингтон Кэпиталз | E154: 3 | F154: 2 | G154: 5 | H154: 4 | I154: 3 | J154: 2 | K154: 4 | L154: 1 | M154: =IF(E154>F154,1,0) -> 1 | N154: =IF(G154>H154,1,0) -> 1 | O154: =IF(I154>J154,1,0) -> 1 | P154: =IF(K154>L154,1,0) -> 1 | Q154: =SUM(M154:P154)+1 -> 5 | R154: =(E154+G154+I154+K154)/4 -> 3.75 | S154: =(F154+H154+J154+L154)/4 -> 2.25 | T154: =R154-S154 -> 1.5 | U154: Филадельфия Флайерз | W154: 1 | X154: 4 | Y154: 5 | Z154: 1 | AA154: 4 | AB154: 3 | AC154: 2 | AD154: 4 | AE154: =IF(W154>X154,1,0) -> 0 | AF154: =IF(Y154>Z154,1,0) -> 1 | AG154: =IF(AA154>AB154,1,0) -> 1 | AH154: =IF(AC154>AD154,1,0) -> 0 | AI154: =SUM(AE154:AH154) -> 2 | AJ154: =(W154+Y154+AA154+AC154)/4 -> 3 | AK154: =(X154+Z154+AB154+AD154)/4 -> 3 | AL154: =AJ154-AK154 -> 0 | AM154: =R154+AJ154 -> 6.75 | AN154: =S154+AK154 -> 5.25 | AO154: =(R154+AK154)/2+(Q154/10)-0.5 -> 3.375 | AP154: =(S154+AJ154)/2 -> 2.625 | AQ154: =AO154+AP154 -> 6 | AR154: =IF(AQ154>=[1]Пременные!B128+[1]Пременные!G128,5) -> 5 | AS154: =IF(AQ154<[1]Пременные!B128+[1]Пременные!J128,5.5,0) -> 0 | AT154: =IF(BJ154=1,AR154,100) -> 100 | AU154: =IF(AR154=5,1,0) -> 1 | AV154: =IF(AT154=5,1,0) -> 0 | AW154: =IF(BJ154=1,AS154,0) -> 0 | AX154: =IF(AS154=5.5,1,0) -> 0 | AY154: =IF(AW154=5.5,1,0) -> 0 | AZ154: =IF(BF154>=AR154,1,0) -> 1 | BA154: =IF(BF154<AS154,1,0) -> 0 | BB154: =AZ154+BA154 -> 1 | BC154: 4:2 (0:0, 2:2, 2:0) | BD154: 4 | BE154: 2 | BF154: =BD154+BE154 -> 6 | BG154: =IF(AND(BD154>BE154),1,IF(AND(BD154<BE154),2,IF(AND(BD154=BE154),3))) -> 1
A155: 153 | B155: 1 | C155: Ванкувер Кэнакс | E155: 2 | F155: 0 | G155: 3 | H155: 1 | I155: 3 | J155: 2 | K155: 1 | L155: 2 | M155: =IF(E155>F155,1,0) -> 1 | N155: =IF(G155>H155,1,0) -> 1 | O155: =IF(I155>J155,1,0) -> 1 | P155: =IF(K155>L155,1,0) -> 0 | Q155: =SUM(M155:P155)+1 -> 4 | R155: =(E155+G155+I155+K155)/4 -> 2.25 | S155: =(F155+H155+J155+L155)/4 -> 1.25 | T155: =R155-S155 -> 1 | U155: Детройт Ред Уингз | W155: 1 | X155: 3 | Y155: 2 | Z155: 3 | AA155: 3 | AB155: 4 | AC155: 5 | AD155: 2 | AE155: =IF(W155>X155,1,0) -> 0 | AF155: =IF(Y155>Z155,1,0) -> 0 | AG155: =IF(AA155>AB155,1,0) -> 0 | AH155: =IF(AC155>AD155,1,0) -> 1 | AI155: =SUM(AE155:AH155) -> 1 | AJ155: =(W155+Y155+AA155+AC155)/4 -> 2.75 | AK155: =(X155+Z155+AB155+AD155)/4 -> 3 | AL155: =AJ155-AK155 -> -0.25 | AM155: =R155+AJ155 -> 5 | AN155: =S155+AK155 -> 4.25 | AO155: =(R155+AK155)/2+(Q155/10)-0.5 -> 2.525 | AP155: =(S155+AJ155)/2 -> 2 | AQ155: =AO155+AP155 -> 4.525 | AR155: =IF(AQ155>=[1]Пременные!B129+[1]Пременные!G129,5) -> FALSE | AS155: =IF(AQ155<[1]Пременные!B129+[1]Пременные!J129,5.5,0) -> 5.5 | AT155: =IF(BJ155=1,AR155,100) -> 100 | AU155: =IF(AR155=5,1,0) -> 0 | AV155: =IF(AT155=5,1,0) -> 0 | AW155: =IF(BJ155=1,AS155,0) -> 0 | AX155: =IF(AS155=5.5,1,0) -> 1 | AY155: =IF(AW155=5.5,1,0) -> 0 | AZ155: =IF(BF155>=AR155,1,0) -> 0 | BA155: =IF(BF155<AS155,1,0) -> 0 | BB155: =AZ155+BA155 -> 0 | BC155: 4:5 (2:1, 0:0, 2:4) | BD155: 4 | BE155: 5 | BF155: =BD155+BE155 -> 9 | BG155: =IF(AND(BD155>BE155),1,IF(AND(BD155<BE155),2,IF(AND(BD155=BE155),3))) -> 2
A156: 154 | B156: 2 | C156: Эдмонтон Ойлерз | E156: 0 | F156: 2 | G156: 2 | H156: 5 | I156: 6 | J156: 4 | K156: 2 | L156: 1 | M156: =IF(E156>F156,1,0) -> 0 | N156: =IF(G156>H156,1,0) -> 0 | O156: =IF(I156>J156,1,0) -> 1 | P156: =IF(K156>L156,1,0) -> 1 | Q156: =SUM(M156:P156)+1 -> 3 | R156: =(E156+G156+I156+K156)/4 -> 2.5 | S156: =(F156+H156+J156+L156)/4 -> 3 | T156: =R156-S156 -> -0.5 | U156: Колорадо Эвеланш | W156: 3 | X156: 1 | Y156: 5 | Z156: 4 | AA156: 2 | AB156: 3 | AC156: 4 | AD156: 3 | AE156: =IF(W156>X156,1,0) -> 1 | AF156: =IF(Y156>Z156,1,0) -> 1 | AG156: =IF(AA156>AB156,1,0) -> 0 | AH156: =IF(AC156>AD156,1,0) -> 1 | AI156: =SUM(AE156:AH156) -> 3 | AJ156: =(W156+Y156+AA156+AC156)/4 -> 3.5 | AK156: =(X156+Z156+AB156+AD156)/4 -> 2.75 | AL156: =AJ156-AK156 -> 0.75 | AM156: =R156+AJ156 -> 6 | AN156: =S156+AK156 -> 5.75 | AO156: =(R156+AK156)/2+(Q156/10)-0.5 -> 2.425 | AP156: =(S156+AJ156)/2 -> 3.25 | AQ156: =AO156+AP156 -> 5.675 | AR156: =IF(AQ156>=[1]Пременные!B130+[1]Пременные!G130,5) -> 5 | AS156: =IF(AQ156<[1]Пременные!B130+[1]Пременные!J130,5.5,0) -> 0 | AT156: =IF(BJ156=1,AR156,100) -> 100 | AU156: =IF(AR156=5,1,0) -> 1 | AV156: =IF(AT156=5,1,0) -> 0 | AW156: =IF(BJ156=1,AS156,0) -> 0 | AX156: =IF(AS156=5.5,1,0) -> 0 | AY156: =IF(AW156=5.5,1,0) -> 0 | AZ156: =IF(BF156>=AR156,1,0) -> 0 | BA156: =IF(BF156<AS156,1,0) -> 0 | BB156: =AZ156+BA156 -> 0 | BC156: 0:3 (0:1, 0:0, 0:2) | BD156: 0 | BE156: 3 | BF156: =BD156+BE156 -> 3 | BG156: =IF(AND(BD156>BE156),1,IF(AND(BD156<BE156),2,IF(AND(BD156=BE156),3))) -> 2
A157: 155 | B157: 3 | C157: Колумбус Блю Джекетс | E157: 2 | F157: 6 | G157: 6 | H157: 4 | I157: 4 | J157: 6 | K157: 3 | L157: 6 | M157: =IF(E157>F157,1,0) -> 0 | N157: =IF(G157>H157,1,0) -> 1 | O157: =IF(I157>J157,1,0) -> 0 | P157: =IF(K157>L157,1,0) -> 0 | Q157: =SUM(M157:P157)+1 -> 2 | R157: =(E157+G157+I157+K157)/4 -> 3.75 | S157: =(F157+H157+J157+L157)/4 -> 5.5 | T157: =R157-S157 -> -1.75 | U157: Финикс Койотс | W157: 2 | X157: 5 | Y157: 3 | Z157: 5 | AA157: 3 | AB157: 2 | AC157: 4 | AD157: 1 | AE157: =IF(W157>X157,1,0) -> 0 | AF157: =IF(Y157>Z157,1,0) -> 0 | AG157: =IF(AA157>AB157,1,0) -> 1 | AH157: =IF(AC157>AD157,1,0) -> 1 | AI157: =SUM(AE157:AH157) -> 2 | AJ157: =(W157+Y157+AA157+AC157)/4 -> 3 | AK157: =(X157+Z157+AB157+AD157)/4 -> 3.25 | AL157: =AJ157-AK157 -> -0.25 | AM157: =R157+AJ157 -> 6.75 | AN157: =S157+AK157 -> 8.75 | AO157: =(R157+AK157)/2+(Q157/10)-0.5 -> 3.2 | AP157: =(S157+AJ157)/2 -> 4.25 | AQ157: =AO157+AP157 -> 7.45 | AR157: =IF(AQ157>=[1]Пременные!B131+[1]Пременные!G131,5) -> 5 | AS157: =IF(AQ157<[1]Пременные!B131+[1]Пременные!J131,5.5,0) -> 0 | AT157: =IF(BJ157=1,AR157,100) -> 100 | AU157: =IF(AR157=5,1,0) -> 1 | AV157: =IF(AT157=5,1,0) -> 0 | AW157: =IF(BJ157=1,AS157,0) -> 0 | AX157: =IF(AS157=5.5,1,0) -> 0 | AY157: =IF(AW157=5.5,1,0) -> 0 | AZ157: =IF(BF157>=AR157,1,0) -> 1 | BA157: =IF(BF157<AS157,1,0) -> 0 | BB157: =AZ157+BA157 -> 1 | BC157: 1:4 (1:0, 0:2, 0:2) | BD157: 1 | BE157: 4 | BF157: =BD157+BE157 -> 5 | BG157: =IF(AND(BD157>BE157),1,IF(AND(BD157<BE157),2,IF(AND(BD157=BE157),3))) -> 2
A158: 156 | B158: 1 | C158: Нью-Джерси Девилз | E158: 4 | F158: 1 | G158: 4 | H158: 2 | I158: 2 | J158: 0 | K158: 2 | L158: 4 | M158: =IF(E158>F158,1,0) -> 1 | N158: =IF(G158>H158,1,0) -> 1 | O158: =IF(I158>J158,1,0) -> 1 | P158: =IF(K158>L158,1,0) -> 0 | Q158: =SUM(M158:P158)+1 -> 4 | R158: =(E158+G158+I158+K158)/4 -> 3 | S158: =(F158+H158+J158+L158)/4 -> 1.75 | T158: =R158-S158 -> 1.25 | U158: Баффало Сейбрз | W158: 3 | X158: 2 | Y158: 5 | Z158: 2 | AA158: 2 | AB158: 4 | AC158: 6 | AD158: 3 | AE158: =IF(W158>X158,1,0) -> 1 | AF158: =IF(Y158>Z158,1,0) -> 1 | AG158: =IF(AA158>AB158,1,0) -> 0 | AH158: =IF(AC158>AD158,1,0) -> 1 | AI158: =SUM(AE158:AH158) -> 3 | AJ158: =(W158+Y158+AA158+AC158)/4 -> 4 | AK158: =(X158+Z158+AB158+AD158)/4 -> 2.75 | AL158: =AJ158-AK158 -> 1.25 | AM158: =R158+AJ158 -> 7 | AN158: =S158+AK158 -> 4.5 | AO158: =(R158+AK158)/2+(Q158/10)-0.5 -> 2.775 | AP158: =(S158+AJ158)/2 -> 2.875 | AQ158: =AO158+AP158 -> 5.65 | AR158: =IF(AQ158>=[1]Пременные!B132+[1]Пременные!G132,5) -> 5 | AS158: =IF(AQ158<[1]Пременные!B132+[1]Пременные!J132,5.5,0) -> 0 | AT158: =IF(BJ158=1,AR158,100) -> 100 | AU158: =IF(AR158=5,1,0) -> 1 | AV158: =IF(AT158=5,1,0) -> 0 | AW158: =IF(BJ158=1,AS158,0) -> 0 | AX158: =IF(AS158=5.5,1,0) -> 0 | AY158: =IF(AW158=5.5,1,0) -> 0 | AZ158: =IF(BF158>=AR158,1,0) -> 1 | BA158: =IF(BF158<AS158,1,0) -> 0 | BB158: =AZ158+BA158 -> 1 | BC158: 1:4 (0:2, 1:0, 0:2) | BD158: 1 | BE158: 4 | BF158: =BD158+BE158 -> 5 | BG158: =IF(AND(BD158>BE158),1,IF(AND(BD158<BE158),2,IF(AND(BD158=BE158),3))) -> 2
A159: 157 | B159: 2 | C159: Миннесота Уайлд | E159: 1 | F159: 3 | G159: 3 | H159: 2 | I159: 1 | J159: 3 | K159: 3 | L159: 2 | M159: =IF(E159>F159,1,0) -> 0 | N159: =IF(G159>H159,1,0) -> 1 | O159: =IF(I159>J159,1,0) -> 0 | P159: =IF(K159>L159,1,0) -> 1 | Q159: =SUM(M159:P159)+1 -> 3 | R159: =(E159+G159+I159+K159)/4 -> 2 | S159: =(F159+H159+J159+L159)/4 -> 2.5 | T159: =R159-S159 -> -0.5 | U159: Нэшвилл Предаторз | W159: 0 | X159: 2 | Y159: 6 | Z159: 5 | AA159: 2 | AB159: 3 | AC159: 2 | AD159: 3 | AE159: =IF(W159>X159,1,0) -> 0 | AF159: =IF(Y159>Z159,1,0) -> 1 | AG159: =IF(AA159>AB159,1,0) -> 0 | AH159: =IF(AC159>AD159,1,0) -> 0 | AI159: =SUM(AE159:AH159) -> 1 | AJ159: =(W159+Y159+AA159+AC159)/4 -> 2.5 | AK159: =(X159+Z159+AB159+AD159)/4 -> 3.25 | AL159: =AJ159-AK159 -> -0.75 | AM159: =R159+AJ159 -> 4.5 | AN159: =S159+AK159 -> 5.75 | AO159: =(R159+AK159)/2+(Q159/10)-0.5 -> 2.425 | AP159: =(S159+AJ159)/2 -> 2.5 | AQ159: =AO159+AP159 -> 4.925 | AR159: =IF(AQ159>=[1]Пременные!B133+[1]Пременные!G133,5) -> 5 | AS159: =IF(AQ159<[1]Пременные!B133+[1]Пременные!J133,5.5,0) -> 0 | AT159: =IF(BJ159=1,AR159,100) -> 100 | AU159: =IF(AR159=5,1,0) -> 1 | AV159: =IF(AT159=5,1,0) -> 0 | AW159: =IF(BJ159=1,AS159,0) -> 0 | AX159: =IF(AS159=5.5,1,0) -> 0 | AY159: =IF(AW159=5.5,1,0) -> 0 | AZ159: =IF(BF159>=AR159,1,0) -> 1 | BA159: =IF(BF159<AS159,1,0) -> 0 | BB159: =AZ159+BA159 -> 1 | BC159: 3:4 (0:2, 3:1, 0:1) | BD159: 3 | BE159: 4 | BF159: =BD159+BE159 -> 7 | BG159: =IF(AND(BD159>BE159),1,IF(AND(BD159<BE159),2,IF(AND(BD159=BE159),3))) -> 2
A160: 158 | B160: 3 | C160: Каролина Харрикейнз | E160: 2 | F160: 3 | G160: 4 | H160: 5 | I160: 3 | J160: 4 | K160: 0 | L160: 2 | M160: =IF(E160>F160,1,0) -> 0 | N160: =IF(G160>H160,1,0) -> 0 | O160: =IF(I160>J160,1,0) -> 0 | P160: =IF(K160>L160,1,0) -> 0 | Q160: =SUM(M160:P160)+1 -> 1 | R160: =(E160+G160+I160+K160)/4 -> 2.25 | S160: =(F160+H160+J160+L160)/4 -> 3.5 | T160: =R160-S160 -> -1.25 | U160: Сент-Луис Блюз | W160: 1 | X160: 4 | Y160: 3 | Z160: 1 | AA160: 1 | AB160: 5 | AC160: 5 | AD160: 0 | AE160: =IF(W160>X160,1,0) -> 0 | AF160: =IF(Y160>Z160,1,0) -> 1 | AG160: =IF(AA160>AB160,1,0) -> 0 | AH160: =IF(AC160>AD160,1,0) -> 1 | AI160: =SUM(AE160:AH160) -> 2 | AJ160: =(W160+Y160+AA160+AC160)/4 -> 2.5 | AK160: =(X160+Z160+AB160+AD160)/4 -> 2.5 | AL160: =AJ160-AK160 -> 0 | AM160: =R160+AJ160 -> 4.75 | AN160: =S160+AK160 -> 6 | AO160: =(R160+AK160)/2+(Q160/10)-0.5 -> 1.975 | AP160: =(S160+AJ160)/2 -> 3 | AQ160: =AO160+AP160 -> 4.975 | AR160: =IF(AQ160>=[1]Пременные!B134+[1]Пременные!G134,5) -> 5 | AS160: =IF(AQ160<[1]Пременные!B134+[1]Пременные!J134,5.5,0) -> 0 | AT160: =IF(BJ160=1,AR160,100) -> 100 | AU160: =IF(AR160=5,1,0) -> 1 | AV160: =IF(AT160=5,1,0) -> 0 | AW160: =IF(BJ160=1,AS160,0) -> 0 | AX160: =IF(AS160=5.5,1,0) -> 0 | AY160: =IF(AW160=5.5,1,0) -> 0 | AZ160: =IF(BF160>=AR160,1,0) -> 1 | BA160: =IF(BF160<AS160,1,0) -> 0 | BB160: =AZ160+BA160 -> 1 | BC160: 2:5 (1:3, 0:1, 1:1) | BD160: 2 | BE160: 5 | BF160: =BD160+BE160 -> 7 | BG160: =IF(AND(BD160>BE160),1,IF(AND(BD160<BE160),2,IF(AND(BD160=BE160),3))) -> 2
A161: 159 | B161: 1 | C161: Даллас Старз | E161: 4 | F161: 1 | G161: 4 | H161: 5 | I161: 4 | J161: 2 | K161: 1 | L161: 4 | M161: =IF(E161>F161,1,0) -> 1 | N161: =IF(G161>H161,1,0) -> 0 | O161: =IF(I161>J161,1,0) -> 1 | P161: =IF(K161>L161,1,0) -> 0 | Q161: =SUM(M161:P161)+1 -> 3 | R161: =(E161+G161+I161+K161)/4 -> 3.25 | S161: =(F161+H161+J161+L161)/4 -> 3 | T161: =R161-S161 -> 0.25 | U161: Торонто Мейпл Лифс | W161: 6 | X161: 3 | Y161: 1 | Z161: 3 | AA161: 1 | AB161: 4 | AC161: 1 | AD161: 4 | AE161: =IF(W161>X161,1,0) -> 1 | AF161: =IF(Y161>Z161,1,0) -> 0 | AG161: =IF(AA161>AB161,1,0) -> 0 | AH161: =IF(AC161>AD161,1,0) -> 0 | AI161: =SUM(AE161:AH161) -> 1 | AJ161: =(W161+Y161+AA161+AC161)/4 -> 2.25 | AK161: =(X161+Z161+AB161+AD161)/4 -> 3.5 | AL161: =AJ161-AK161 -> -1.25 | AM161: =R161+AJ161 -> 5.5 | AN161: =S161+AK161 -> 6.5 | AO161: =(R161+AK161)/2+(Q161/10)-0.5 -> 3.175 | AP161: =(S161+AJ161)/2 -> 2.625 | AQ161: =AO161+AP161 -> 5.8 | AR161: =IF(AQ161>=[1]Пременные!B135+[1]Пременные!G135,5) -> 5 | AS161: =IF(AQ161<[1]Пременные!B135+[1]Пременные!J135,5.5,0) -> 0 | AT161: =IF(BJ161=1,AR161,100) -> 100 | AU161: =IF(AR161=5,1,0) -> 1 | AV161: =IF(AT161=5,1,0) -> 0 | AW161: =IF(BJ161=1,AS161,0) -> 0 | AX161: =IF(AS161=5.5,1,0) -> 0 | AY161: =IF(AW161=5.5,1,0) -> 0 | AZ161: =IF(BF161>=AR161,1,0) -> 1 | BA161: =IF(BF161<AS161,1,0) -> 0 | BB161: =AZ161+BA161 -> 1 | BC161: 4:3 ОТ | BD161: 3 | BE161: 3 | BF161: =BD161+BE161 -> 6 | BG161: =IF(AND(BD161>BE161),1,IF(AND(BD161<BE161),2,IF(AND(BD161=BE161),3))) -> 3
A162: 160 | B162: 2 | C162: Нью-Йорк Айлендерс | E162: 2 | F162: 3 | G162: 2 | H162: 3 | I162: 1 | J162: 5 | K162: 4 | L162: 3 | M162: =IF(E162>F162,1,0) -> 0 | N162: =IF(G162>H162,1,0) -> 0 | O162: =IF(I162>J162,1,0) -> 0 | P162: =IF(K162>L162,1,0) -> 1 | Q162: =SUM(M162:P162)+1 -> 2 | R162: =(E162+G162+I162+K162)/4 -> 2.25 | S162: =(F162+H162+J162+L162)/4 -> 3.5 | T162: =R162-S162 -> -1.25 | U162: Нью-Йорк Рейнджерс | W162: 5 | X162: 2 | Y162: 4 | Z162: 5 | AA162: 2 | AB162: 4 | AC162: 3 | AD162: 7 | AE162: =IF(W162>X162,1,0) -> 1 | AF162: =IF(Y162>Z162,1,0) -> 0 | AG162: =IF(AA162>AB162,1,0) -> 0 | AH162: =IF(AC162>AD162,1,0) -> 0 | AI162: =SUM(AE162:AH162) -> 1 | AJ162: =(W162+Y162+AA162+AC162)/4 -> 3.5 | AK162: =(X162+Z162+AB162+AD162)/4 -> 4.5 | AL162: =AJ162-AK162 -> -1 | AM162: =R162+AJ162 -> 5.75 | AN162: =S162+AK162 -> 8 | AO162: =(R162+AK162)/2+(Q162/10)-0.5 -> 3.075 | AP162: =(S162+AJ162)/2 -> 3.5 | AQ162: =AO162+AP162 -> 6.575 | AR162: =IF(AQ162>=[1]Пременные!B136+[1]Пременные!G136,5) -> 5 | AS162: =IF(AQ162<[1]Пременные!B136+[1]Пременные!J136,5.5,0) -> 0 | AT162: =IF(BJ162=1,AR162,100) -> 100 | AU162: =IF(AR162=5,1,0) -> 1 | AV162: =IF(AT162=5,1,0) -> 0 | AW162: =IF(BJ162=1,AS162,0) -> 0 | AX162: =IF(AS162=5.5,1,0) -> 0 | AY162: =IF(AW162=5.5,1,0) -> 0 | AZ162: =IF(BF162>=AR162,1,0) -> 0 | BA162: =IF(BF162<AS162,1,0) -> 0 | BB162: =AZ162+BA162 -> 0 | BC162: 3:1 (1:1, 1:0, 1:0) | BD162: 3 | BE162: 1 | BF162: =BD162+BE162 -> 4 | BG162: =IF(AND(BD162>BE162),1,IF(AND(BD162<BE162),2,IF(AND(BD162=BE162),3))) -> 1
A163: 161 | B163: 3 | C163: Питтсбург Пингвинз | E163: 1 | F163: 4 | G163: 3 | H163: 2 | I163: 5 | J163: 1 | K163: 4 | L163: 1 | M163: =IF(E163>F163,1,0) -> 0 | N163: =IF(G163>H163,1,0) -> 1 | O163: =IF(I163>J163,1,0) -> 1 | P163: =IF(K163>L163,1,0) -> 1 | Q163: =SUM(M163:P163)+1 -> 4 | R163: =(E163+G163+I163+K163)/4 -> 3.25 | S163: =(F163+H163+J163+L163)/4 -> 2 | T163: =R163-S163 -> 1.25 | U163: Монреаль Канадиенс | W163: 3 | X163: 2 | Y163: 5 | Z163: 4 | AA163: 5 | AB163: 1 | AC163: 2 | AD163: 1 | AE163: =IF(W163>X163,1,0) -> 1 | AF163: =IF(Y163>Z163,1,0) -> 1 | AG163: =IF(AA163>AB163,1,0) -> 1 | AH163: =IF(AC163>AD163,1,0) -> 1 | AI163: =SUM(AE163:AH163) -> 4 | AJ163: =(W163+Y163+AA163+AC163)/4 -> 3.75 | AK163: =(X163+Z163+AB163+AD163)/4 -> 2 | AL163: =AJ163-AK163 -> 1.75 | AM163: =R163+AJ163 -> 7 | AN163: =S163+AK163 -> 4 | AO163: =(R163+AK163)/2+(Q163/10)-0.5 -> 2.525 | AP163: =(S163+AJ163)/2 -> 2.875 | AQ163: =AO163+AP163 -> 5.4 | AR163: =IF(AQ163>=[1]Пременные!B137+[1]Пременные!G137,5) -> 5 | AS163: =IF(AQ163<[1]Пременные!B137+[1]Пременные!J137,5.5,0) -> 0 | AT163: =IF(BJ163=1,AR163,100) -> 100 | AU163: =IF(AR163=5,1,0) -> 1 | AV163: =IF(AT163=5,1,0) -> 0 | AW163: =IF(BJ163=1,AS163,0) -> 0 | AX163: =IF(AS163=5.5,1,0) -> 0 | AY163: =IF(AW163=5.5,1,0) -> 0 | AZ163: =IF(BF163>=AR163,1,0) -> 1 | BA163: =IF(BF163<AS163,1,0) -> 0 | BB163: =AZ163+BA163 -> 1 | BC163: 6:1 (1:0, 3:0, 2:1) | BD163: 6 | BE163: 1 | BF163: =BD163+BE163 -> 7 | BG163: =IF(AND(BD163>BE163),1,IF(AND(BD163<BE163),2,IF(AND(BD163=BE163),3))) -> 1
A164: 162 | B164: 1 | C164: Калгари Флэймз | E164: 5 | F164: 2 | G164: 6 | H164: 3 | I164: 5 | J164: 3 | K164: 1 | L164: 2 | M164: =IF(E164>F164,1,0) -> 1 | N164: =IF(G164>H164,1,0) -> 1 | O164: =IF(I164>J164,1,0) -> 1 | P164: =IF(K164>L164,1,0) -> 0 | Q164: =SUM(M164:P164)+1 -> 4 | R164: =(E164+G164+I164+K164)/4 -> 4.25 | S164: =(F164+H164+J164+L164)/4 -> 2.5 | T164: =R164-S164 -> 1.75 | U164: Колорадо Эвеланш | W164: 3 | X164: 0 | Y164: 3 | Z164: 1 | AA164: 5 | AB164: 4 | AC164: 2 | AD164: 3 | AE164: =IF(W164>X164,1,0) -> 1 | AF164: =IF(Y164>Z164,1,0) -> 1 | AG164: =IF(AA164>AB164,1,0) -> 1 | AH164: =IF(AC164>AD164,1,0) -> 0 | AI164: =SUM(AE164:AH164) -> 3 | AJ164: =(W164+Y164+AA164+AC164)/4 -> 3.25 | AK164: =(X164+Z164+AB164+AD164)/4 -> 2 | AL164: =AJ164-AK164 -> 1.25 | AM164: =R164+AJ164 -> 7.5 | AN164: =S164+AK164 -> 4.5 | AO164: =(R164+AK164)/2+(Q164/10)-0.5 -> 3.025 | AP164: =(S164+AJ164)/2 -> 2.875 | AQ164: =AO164+AP164 -> 5.9 | AR164: =IF(AQ164>=[1]Пременные!B138+[1]Пременные!G138,5) -> 5 | AS164: =IF(AQ164<[1]Пременные!B138+[1]Пременные!J138,5.5,0) -> 0 | AT164: =IF(BJ164=1,AR164,100) -> 100 | AU164: =IF(AR164=5,1,0) -> 1 | AV164: =IF(AT164=5,1,0) -> 0 | AW164: =IF(BJ164=1,AS164,0) -> 0 | AX164: =IF(AS164=5.5,1,0) -> 0 | AY164: =IF(AW164=5.5,1,0) -> 0 | AZ164: =IF(BF164>=AR164,1,0) -> 1 | BA164: =IF(BF164<AS164,1,0) -> 0 | BB164: =AZ164+BA164 -> 1 | BC164: 2:3 (2:2, 0:0, 0:1) | BD164: 2 | BE164: 3 | BF164: =BD164+BE164 -> 5 | BG164: =IF(AND(BD164>BE164),1,IF(AND(BD164<BE164),2,IF(AND(BD164=BE164),3))) -> 2
A165: 163 | B165: 2 | C165: Флорида Пантерз | E165: 1 | F165: 5 | G165: 2 | H165: 3 | I165: 2 | J165: 5 | K165: 4 | L165: 2 | M165: =IF(E165>F165,1,0) -> 0 | N165: =IF(G165>H165,1,0) -> 0 | O165: =IF(I165>J165,1,0) -> 0 | P165: =IF(K165>L165,1,0) -> 1 | Q165: =SUM(M165:P165)+1 -> 2 | R165: =(E165+G165+I165+K165)/4 -> 2.25 | S165: =(F165+H165+J165+L165)/4 -> 3.75 | T165: =R165-S165 -> -1.5 | U165: Оттава Сенаторз | W165: 3 | X165: 4 | Y165: 5 | Z165: 6 | AA165: 3 | AB165: 1 | AC165: 7 | AD165: 1 | AE165: =IF(W165>X165,1,0) -> 0 | AF165: =IF(Y165>Z165,1,0) -> 0 | AG165: =IF(AA165>AB165,1,0) -> 1 | AH165: =IF(AC165>AD165,1,0) -> 1 | AI165: =SUM(AE165:AH165) -> 2 | AJ165: =(W165+Y165+AA165+AC165)/4 -> 4.5 | AK165: =(X165+Z165+AB165+AD165)/4 -> 3 | AL165: =AJ165-AK165 -> 1.5 | AM165: =R165+AJ165 -> 6.75 | AN165: =S165+AK165 -> 6.75 | AO165: =(R165+AK165)/2+(Q165/10)-0.5 -> 2.325 | AP165: =(S165+AJ165)/2 -> 4.125 | AQ165: =AO165+AP165 -> 6.45 | AR165: =IF(AQ165>=[1]Пременные!B139+[1]Пременные!G139,5) -> 5 | AS165: =IF(AQ165<[1]Пременные!B139+[1]Пременные!J139,5.5,0) -> 0 | AT165: =IF(BJ165=1,AR165,100) -> 100 | AU165: =IF(AR165=5,1,0) -> 1 | AV165: =IF(AT165=5,1,0) -> 0 | AW165: =IF(BJ165=1,AS165,0) -> 0 | AX165: =IF(AS165=5.5,1,0) -> 0 | AY165: =IF(AW165=5.5,1,0) -> 0 | AZ165: =IF(BF165>=AR165,1,0) -> 1 | BA165: =IF(BF165<AS165,1,0) -> 0 | BB165: =AZ165+BA165 -> 1 | BC165: 3:4 (1:1, 1:3, 1:0) | BD165: 3 | BE165: 4 | BF165: =BD165+BE165 -> 7 | BG165: =IF(AND(BD165>BE165),1,IF(AND(BD165<BE165),2,IF(AND(BD165=BE165),3))) -> 2
A166: 164 | B166: 3 | C166: Сан-Хосе Шаркс | E166: 4 | F166: 1 | G166: 4 | H166: 3 | I166: 2 | J166: 5 | K166: 7 | L166: 3 | M166: =IF(E166>F166,1,0) -> 1 | N166: =IF(G166>H166,1,0) -> 1 | O166: =IF(I166>J166,1,0) -> 0 | P166: =IF(K166>L166,1,0) -> 1 | Q166: =SUM(M166:P166)+1 -> 4 | R166: =(E166+G166+I166+K166)/4 -> 4.25 | S166: =(F166+H166+J166+L166)/4 -> 3 | T166: =R166-S166 -> 1.25 | U166: Лос-Анджелес Кингз | W166: 6 | X166: 2 | Y166: 5 | Z166: 3 | AA166: 5 | AB166: 4 | AC166: 4 | AD166: 1 | AE166: =IF(W166>X166,1,0) -> 1 | AF166: =IF(Y166>Z166,1,0) -> 1 | AG166: =IF(AA166>AB166,1,0) -> 1 | AH166: =IF(AC166>AD166,1,0) -> 1 | AI166: =SUM(AE166:AH166) -> 4 | AJ166: =(W166+Y166+AA166+AC166)/4 -> 5 | AK166: =(X166+Z166+AB166+AD166)/4 -> 2.5 | AL166: =AJ166-AK166 -> 2.5 | AM166: =R166+AJ166 -> 9.25 | AN166: =S166+AK166 -> 5.5 | AO166: =(R166+AK166)/2+(Q166/10)-0.5 -> 3.275 | AP166: =(S166+AJ166)/2 -> 4 | AQ166: =AO166+AP166 -> 7.275 | AR166: =IF(AQ166>=[1]Пременные!B140+[1]Пременные!G140,5) -> 5 | AS166: =IF(AQ166<[1]Пременные!B140+[1]Пременные!J140,5.5,0) -> 0 | AT166: =IF(BJ166=1,AR166,100) -> 100 | AU166: =IF(AR166=5,1,0) -> 1 | AV166: =IF(AT166=5,1,0) -> 0 | AW166: =IF(BJ166=1,AS166,0) -> 0 | AX166: =IF(AS166=5.5,1,0) -> 0 | AY166: =IF(AW166=5.5,1,0) -> 0 | AZ166: =IF(BF166>=AR166,1,0) -> 0 | BA166: =IF(BF166<AS166,1,0) -> 0 | BB166: =AZ166+BA166 -> 0 | BC166: 2:1 Б | BD166: 1 | BE166: 1 | BF166: =BD166+BE166 -> 2 | BG166: =IF(AND(BD166>BE166),1,IF(AND(BD166<BE166),2,IF(AND(BD166=BE166),3))) -> 3
A167: 165 | B167: 1 | C167: Сент-Луис Блюз | E167: 5 | F167: 2 | G167: 1 | H167: 4 | I167: 3 | J167: 1 | K167: 1 | L167: 5 | M167: =IF(E167>F167,1,0) -> 1 | N167: =IF(G167>H167,1,0) -> 0 | O167: =IF(I167>J167,1,0) -> 1 | P167: =IF(K167>L167,1,0) -> 0 | Q167: =SUM(M167:P167)+1 -> 3 | R167: =(E167+G167+I167+K167)/4 -> 2.5 | S167: =(F167+H167+J167+L167)/4 -> 3 | T167: =R167-S167 -> -0.5 | U167: Финикс Койотс | W167: 4 | X167: 1 | Y167: 2 | Z167: 5 | AA167: 3 | AB167: 5 | AC167: 3 | AD167: 2 | AE167: =IF(W167>X167,1,0) -> 1 | AF167: =IF(Y167>Z167,1,0) -> 0 | AG167: =IF(AA167>AB167,1,0) -> 0 | AH167: =IF(AC167>AD167,1,0) -> 1 | AI167: =SUM(AE167:AH167) -> 2 | AJ167: =(W167+Y167+AA167+AC167)/4 -> 3 | AK167: =(X167+Z167+AB167+AD167)/4 -> 3.25 | AL167: =AJ167-AK167 -> -0.25 | AM167: =R167+AJ167 -> 5.5 | AN167: =S167+AK167 -> 6.25 | AO167: =(R167+AK167)/2+(Q167/10)-0.5 -> 2.675 | AP167: =(S167+AJ167)/2 -> 3 | AQ167: =AO167+AP167 -> 5.675 | AR167: =IF(AQ167>=[1]Пременные!B141+[1]Пременные!G141,5) -> 5 | AS167: =IF(AQ167<[1]Пременные!B141+[1]Пременные!J141,5.5,0) -> 0 | AT167: =IF(BJ167=1,AR167,100) -> 100 | AU167: =IF(AR167=5,1,0) -> 1 | AV167: =IF(AT167=5,1,0) -> 0 | AW167: =IF(BJ167=1,AS167,0) -> 0 | AX167: =IF(AS167=5.5,1,0) -> 0 | AY167: =IF(AW167=5.5,1,0) -> 0 | AZ167: =IF(BF167>=AR167,1,0) -> 0 | BA167: =IF(BF167<AS167,1,0) -> 0 | BB167: =AZ167+BA167 -> 0 | BC167: 0:2 (0:0, 0:1, 0:1) | BD167: 0 | BE167: 2 | BF167: =BD167+BE167 -> 2 | BG167: =IF(AND(BD167>BE167),1,IF(AND(BD167<BE167),2,IF(AND(BD167=BE167),3))) -> 2
A168: 166 | B168: 2 | C168: Бостон Брюинз | E168: 4 | F168: 3 | G168: 3 | H168: 4 | I168: 3 | J168: 2 | K168: 1 | L168: 4 | M168: =IF(E168>F168,1,0) -> 1 | N168: =IF(G168>H168,1,0) -> 0 | O168: =IF(I168>J168,1,0) -> 1 | P168: =IF(K168>L168,1,0) -> 0 | Q168: =SUM(M168:P168)+1 -> 3 | R168: =(E168+G168+I168+K168)/4 -> 2.75 | S168: =(F168+H168+J168+L168)/4 -> 3.25 | T168: =R168-S168 -> -0.5 | U168: Нью-Джерси Девилз | W168: 1 | X168: 4 | Y168: 4 | Z168: 1 | AA168: 4 | AB168: 2 | AC168: 2 | AD168: 0 | AE168: =IF(W168>X168,1,0) -> 0 | AF168: =IF(Y168>Z168,1,0) -> 1 | AG168: =IF(AA168>AB168,1,0) -> 1 | AH168: =IF(AC168>AD168,1,0) -> 1 | AI168: =SUM(AE168:AH168) -> 3 | AJ168: =(W168+Y168+AA168+AC168)/4 -> 2.75 | AK168: =(X168+Z168+AB168+AD168)/4 -> 1.75 | AL168: =AJ168-AK168 -> 1 | AM168: =R168+AJ168 -> 5.5 | AN168: =S168+AK168 -> 5 | AO168: =(R168+AK168)/2+(Q168/10)-0.5 -> 2.05 | AP168: =(S168+AJ168)/2 -> 3 | AQ168: =AO168+AP168 -> 5.05 | AR168: =IF(AQ168>=[1]Пременные!B142+[1]Пременные!G142,5) -> 5 | AS168: =IF(AQ168<[1]Пременные!B142+[1]Пременные!J142,5.5,0) -> 0 | AT168: =IF(BJ168=1,AR168,100) -> 100 | AU168: =IF(AR168=5,1,0) -> 1 | AV168: =IF(AT168=5,1,0) -> 0 | AW168: =IF(BJ168=1,AS168,0) -> 0 | AX168: =IF(AS168=5.5,1,0) -> 0 | AY168: =IF(AW168=5.5,1,0) -> 0 | AZ168: =IF(BF168>=AR168,1,0) -> 0 | BA168: =IF(BF168<AS168,1,0) -> 0 | BB168: =AZ168+BA168 -> 0 | BC168: 1:2 (0:1, 1:0, 0:1) | BD168: 1 | BE168: 2 | BF168: =BD168+BE168 -> 3 | BG168: =IF(AND(BD168>BE168),1,IF(AND(BD168<BE168),2,IF(AND(BD168=BE168),3))) -> 2
A169: 167 | B169: 3 | C169: Атланта Трэшерз | E169: 3 | F169: 4 | G169: 4 | H169: 5 | I169: 1 | J169: 2 | K169: 4 | L169: 2 | M169: =IF(E169>F169,1,0) -> 0 | N169: =IF(G169>H169,1,0) -> 0 | O169: =IF(I169>J169,1,0) -> 0 | P169: =IF(K169>L169,1,0) -> 1 | Q169: =SUM(M169:P169)+1 -> 2 | R169: =(E169+G169+I169+K169)/4 -> 3 | S169: =(F169+H169+J169+L169)/4 -> 3.25 | T169: =R169-S169 -> -0.25 | U169: Вашингтон Кэпиталз | W169: 4 | X169: 2 | Y169: 3 | Z169: 2 | AA169: 5 | AB169: 4 | AC169: 3 | AD169: 2 | AE169: =IF(W169>X169,1,0) -> 1 | AF169: =IF(Y169>Z169,1,0) -> 1 | AG169: =IF(AA169>AB169,1,0) -> 1 | AH169: =IF(AC169>AD169,1,0) -> 1 | AI169: =SUM(AE169:AH169) -> 4 | AJ169: =(W169+Y169+AA169+AC169)/4 -> 3.75 | AK169: =(X169+Z169+AB169+AD169)/4 -> 2.5 | AL169: =AJ169-AK169 -> 1.25 | AM169: =R169+AJ169 -> 6.75 | AN169: =S169+AK169 -> 5.75 | AO169: =(R169+AK169)/2+(Q169/10)-0.5 -> 2.45 | AP169: =(S169+AJ169)/2 -> 3.5 | AQ169: =AO169+AP169 -> 5.95 | AR169: =IF(AQ169>=[1]Пременные!B143+[1]Пременные!G143,5) -> 5 | AS169: =IF(AQ169<[1]Пременные!B143+[1]Пременные!J143,5.5,0) -> 0 | AT169: =IF(BJ169=1,AR169,100) -> 100 | AU169: =IF(AR169=5,1,0) -> 1 | AV169: =IF(AT169=5,1,0) -> 0 | AW169: =IF(BJ169=1,AS169,0) -> 0 | AX169: =IF(AS169=5.5,1,0) -> 0 | AY169: =IF(AW169=5.5,1,0) -> 0 | AZ169: =IF(BF169>=AR169,1,0) -> 1 | BA169: =IF(BF169<AS169,1,0) -> 0 | BB169: =AZ169+BA169 -> 1 | BC169: 3:4 (0:2, 0:1, 3:1) | BD169: 3 | BE169: 4 | BF169: =BD169+BE169 -> 7 | BG169: =IF(AND(BD169>BE169),1,IF(AND(BD169<BE169),2,IF(AND(BD169=BE169),3))) -> 2
A170: 168 | B170: 1 | C170: Тампа Бэй Лайтнинг | E170: 2 | F170: 3 | G170: 5 | H170: 2 | I170: 1 | J170: 4 | K170: 1 | L170: 7 | M170: =IF(E170>F170,1,0) -> 0 | N170: =IF(G170>H170,1,0) -> 1 | O170: =IF(I170>J170,1,0) -> 0 | P170: =IF(K170>L170,1,0) -> 0 | Q170: =SUM(M170:P170)+1 -> 2 | R170: =(E170+G170+I170+K170)/4 -> 2.25 | S170: =(F170+H170+J170+L170)/4 -> 4 | T170: =R170-S170 -> -1.75 | U170: Оттава Сенаторз | W170: 4 | X170: 3 | Y170: 3 | Z170: 4 | AA170: 5 | AB170: 6 | AC170: 3 | AD170: 1 | AE170: =IF(W170>X170,1,0) -> 1 | AF170: =IF(Y170>Z170,1,0) -> 0 | AG170: =IF(AA170>AB170,1,0) -> 0 | AH170: =IF(AC170>AD170,1,0) -> 1 | AI170: =SUM(AE170:AH170) -> 2 | AJ170: =(W170+Y170+AA170+AC170)/4 -> 3.75 | AK170: =(X170+Z170+AB170+AD170)/4 -> 3.5 | AL170: =AJ170-AK170 -> 0.25 | AM170: =R170+AJ170 -> 6 | AN170: =S170+AK170 -> 7.5 | AO170: =(R170+AK170)/2+(Q170/10)-0.5 -> 2.575 | AP170: =(S170+AJ170)/2 -> 3.875 | AQ170: =AO170+AP170 -> 6.45 | AR170: =IF(AQ170>=[1]Пременные!B144+[1]Пременные!G144,5) -> 5 | AS170: =IF(AQ170<[1]Пременные!B144+[1]Пременные!J144,5.5,0) -> 0 | AT170: =IF(BJ170=1,AR170,100) -> 100 | AU170: =IF(AR170=5,1,0) -> 1 | AV170: =IF(AT170=5,1,0) -> 0 | AW170: =IF(BJ170=1,AS170,0) -> 0 | AX170: =IF(AS170=5.5,1,0) -> 0 | AY170: =IF(AW170=5.5,1,0) -> 0 | AZ170: =IF(BF170>=AR170,1,0) -> 1 | BA170: =IF(BF170<AS170,1,0) -> 0 | BB170: =AZ170+BA170 -> 1 | BC170: 5:2 (1:0, 2:0, 2:2) | BD170: 5 | BE170: 2 | BF170: =BD170+BE170 -> 7 | BG170: =IF(AND(BD170>BE170),1,IF(AND(BD170<BE170),2,IF(AND(BD170=BE170),3))) -> 1
A171: 169 | B171: 2 | C171: Нэшвилл Предаторз | E171: 4 | F171: 3 | G171: 0 | H171: 2 | I171: 6 | J171: 5 | K171: 2 | L171: 3 | M171: =IF(E171>F171,1,0) -> 1 | N171: =IF(G171>H171,1,0) -> 0 | O171: =IF(I171>J171,1,0) -> 1 | P171: =IF(K171>L171,1,0) -> 0 | Q171: =SUM(M171:P171)+1 -> 3 | R171: =(E171+G171+I171+K171)/4 -> 3 | S171: =(F171+H171+J171+L171)/4 -> 3.25 | T171: =R171-S171 -> -0.25 | U171: Чикаго Блэкхокс | W171: 3 | X171: 1 | Y171: 2 | Z171: 0 | AA171: 2 | AB171: 3 | AC171: 3 | AD171: 4 | AE171: =IF(W171>X171,1,0) -> 1 | AF171: =IF(Y171>Z171,1,0) -> 1 | AG171: =IF(AA171>AB171,1,0) -> 0 | AH171: =IF(AC171>AD171,1,0) -> 0 | AI171: =SUM(AE171:AH171) -> 2 | AJ171: =(W171+Y171+AA171+AC171)/4 -> 2.5 | AK171: =(X171+Z171+AB171+AD171)/4 -> 2 | AL171: =AJ171-AK171 -> 0.5 | AM171: =R171+AJ171 -> 5.5 | AN171: =S171+AK171 -> 5.25 | AO171: =(R171+AK171)/2+(Q171/10)-0.5 -> 2.3 | AP171: =(S171+AJ171)/2 -> 2.875 | AQ171: =AO171+AP171 -> 5.175 | AR171: =IF(AQ171>=[1]Пременные!B145+[1]Пременные!G145,5) -> 5 | AS171: =IF(AQ171<[1]Пременные!B145+[1]Пременные!J145,5.5,0) -> 0 | AT171: =IF(BJ171=1,AR171,100) -> 100 | AU171: =IF(AR171=5,1,0) -> 1 | AV171: =IF(AT171=5,1,0) -> 0 | AW171: =IF(BJ171=1,AS171,0) -> 0 | AX171: =IF(AS171=5.5,1,0) -> 0 | AY171: =IF(AW171=5.5,1,0) -> 0 | AZ171: =IF(BF171>=AR171,1,0) -> 0 | BA171: =IF(BF171<AS171,1,0) -> 0 | BB171: =AZ171+BA171 -> 0 | BC171: 2:0 (0:0, 1:0, 1:0) | BD171: 2 | BE171: 0 | BF171: =BD171+BE171 -> 2 | BG171: =IF(AND(BD171>BE171),1,IF(AND(BD171<BE171),2,IF(AND(BD171=BE171),3))) -> 1
A172: 170 | B172: 3 | C172: Лос-Анджелес Кингз | E172: 1 | F172: 2 | G172: 6 | H172: 2 | I172: 5 | J172: 3 | K172: 5 | L172: 4 | M172: =IF(E172>F172,1,0) -> 0 | N172: =IF(G172>H172,1,0) -> 1 | O172: =IF(I172>J172,1,0) -> 1 | P172: =IF(K172>L172,1,0) -> 1 | Q172: =SUM(M172:P172)+1 -> 4 | R172: =(E172+G172+I172+K172)/4 -> 4.25 | S172: =(F172+H172+J172+L172)/4 -> 2.75 | T172: =R172-S172 -> 1.5 | U172: Ванкувер Кэнакс | W172: 4 | X172: 5 | Y172: 2 | Z172: 0 | AA172: 3 | AB172: 1 | AC172: 3 | AD172: 2 | AE172: =IF(W172>X172,1,0) -> 0 | AF172: =IF(Y172>Z172,1,0) -> 1 | AG172: =IF(AA172>AB172,1,0) -> 1 | AH172: =IF(AC172>AD172,1,0) -> 1 | AI172: =SUM(AE172:AH172) -> 3 | AJ172: =(W172+Y172+AA172+AC172)/4 -> 3 | AK172: =(X172+Z172+AB172+AD172)/4 -> 2 | AL172: =AJ172-AK172 -> 1 | AM172: =R172+AJ172 -> 7.25 | AN172: =S172+AK172 -> 4.75 | AO172: =(R172+AK172)/2+(Q172/10)-0.5 -> 3.025 | AP172: =(S172+AJ172)/2 -> 2.875 | AQ172: =AO172+AP172 -> 5.9 | AR172: =IF(AQ172>=[1]Пременные!B146+[1]Пременные!G146,5) -> 5 | AS172: =IF(AQ172<[1]Пременные!B146+[1]Пременные!J146,5.5,0) -> 0 | AT172: =IF(BJ172=1,AR172,100) -> 100 | AU172: =IF(AR172=5,1,0) -> 1 | AV172: =IF(AT172=5,1,0) -> 0 | AW172: =IF(BJ172=1,AS172,0) -> 0 | AX172: =IF(AS172=5.5,1,0) -> 0 | AY172: =IF(AW172=5.5,1,0) -> 0 | AZ172: =IF(BF172>=AR172,1,0) -> 0 | BA172: =IF(BF172<AS172,1,0) -> 0 | BB172: =AZ172+BA172 -> 0 | BC172: 1:2 Б | BD172: 1 | BE172: 1 | BF172: =BD172+BE172 -> 2 | BG172: =IF(AND(BD172>BE172),1,IF(AND(BD172<BE172),2,IF(AND(BD172=BE172),3))) -> 3
A173: 171 | B173: 1 | C173: Эдмонтон Ойлерз | E173: 0 | F173: 3 | G173: 0 | H173: 2 | I173: 2 | J173: 5 | K173: 6 | L173: 4 | M173: =IF(E173>F173,1,0) -> 0 | N173: =IF(G173>H173,1,0) -> 0 | O173: =IF(I173>J173,1,0) -> 0 | P173: =IF(K173>L173,1,0) -> 1 | Q173: =SUM(M173:P173)+1 -> 2 | R173: =(E173+G173+I173+K173)/4 -> 2 | S173: =(F173+H173+J173+L173)/4 -> 3.5 | T173: =R173-S173 -> -1.5 | U173: Детройт Ред Уингз | W173: 5 | X173: 4 | Y173: 1 | Z173: 3 | AA173: 2 | AB173: 3 | AC173: 3 | AD173: 4 | AE173: =IF(W173>X173,1,0) -> 1 | AF173: =IF(Y173>Z173,1,0) -> 0 | AG173: =IF(AA173>AB173,1,0) -> 0 | AH173: =IF(AC173>AD173,1,0) -> 0 | AI173: =SUM(AE173:AH173) -> 1 | AJ173: =(W173+Y173+AA173+AC173)/4 -> 2.75 | AK173: =(X173+Z173+AB173+AD173)/4 -> 3.5 | AL173: =AJ173-AK173 -> -0.75 | AM173: =R173+AJ173 -> 4.75 | AN173: =S173+AK173 -> 7 | AO173: =(R173+AK173)/2+(Q173/10)-0.5 -> 2.45 | AP173: =(S173+AJ173)/2 -> 3.125 | AQ173: =AO173+AP173 -> 5.575 | AR173: =IF(AQ173>=[1]Пременные!B147+[1]Пременные!G147,5) -> 5 | AS173: =IF(AQ173<[1]Пременные!B147+[1]Пременные!J147,5.5,0) -> 0 | AT173: =IF(BJ173=1,AR173,100) -> 100 | AU173: =IF(AR173=5,1,0) -> 1 | AV173: =IF(AT173=5,1,0) -> 0 | AW173: =IF(BJ173=1,AS173,0) -> 0 | AX173: =IF(AS173=5.5,1,0) -> 0 | AY173: =IF(AW173=5.5,1,0) -> 0 | AZ173: =IF(BF173>=AR173,1,0) -> 1 | BA173: =IF(BF173<AS173,1,0) -> 0 | BB173: =AZ173+BA173 -> 1 | BC173: 6:5 Б | BD173: 5 | BE173: 5 | BF173: =BD173+BE173 -> 10 | BG173: =IF(AND(BD173>BE173),1,IF(AND(BD173<BE173),2,IF(AND(BD173=BE173),3))) -> 3
A174: 172 | B174: 2 | C174: Миннесота Уайлд | E174: 3 | F174: 4 | G174: 1 | H174: 3 | I174: 3 | J174: 2 | K174: 1 | L174: 3 | M174: =IF(E174>F174,1,0) -> 0 | N174: =IF(G174>H174,1,0) -> 0 | O174: =IF(I174>J174,1,0) -> 1 | P174: =IF(K174>L174,1,0) -> 0 | Q174: =SUM(M174:P174)+1 -> 2 | R174: =(E174+G174+I174+K174)/4 -> 2 | S174: =(F174+H174+J174+L174)/4 -> 3 | T174: =R174-S174 -> -1 | U174: Нью-Йорк Рейнджерс | W174: 1 | X174: 3 | Y174: 5 | Z174: 2 | AA174: 4 | AB174: 5 | AC174: 2 | AD174: 4 | AE174: =IF(W174>X174,1,0) -> 0 | AF174: =IF(Y174>Z174,1,0) -> 1 | AG174: =IF(AA174>AB174,1,0) -> 0 | AH174: =IF(AC174>AD174,1,0) -> 0 | AI174: =SUM(AE174:AH174) -> 1 | AJ174: =(W174+Y174+AA174+AC174)/4 -> 3 | AK174: =(X174+Z174+AB174+AD174)/4 -> 3.5 | AL174: =AJ174-AK174 -> -0.5 | AM174: =R174+AJ174 -> 5 | AN174: =S174+AK174 -> 6.5 | AO174: =(R174+AK174)/2+(Q174/10)-0.5 -> 2.45 | AP174: =(S174+AJ174)/2 -> 3 | AQ174: =AO174+AP174 -> 5.45 | AR174: =IF(AQ174>=[1]Пременные!B148+[1]Пременные!G148,5) -> 5 | AS174: =IF(AQ174<[1]Пременные!B148+[1]Пременные!J148,5.5,0) -> 0 | AT174: =IF(BJ174=1,AR174,100) -> 100 | AU174: =IF(AR174=5,1,0) -> 1 | AV174: =IF(AT174=5,1,0) -> 0 | AW174: =IF(BJ174=1,AS174,0) -> 0 | AX174: =IF(AS174=5.5,1,0) -> 0 | AY174: =IF(AW174=5.5,1,0) -> 0 | AZ174: =IF(BF174>=AR174,1,0) -> 1 | BA174: =IF(BF174<AS174,1,0) -> 0 | BB174: =AZ174+BA174 -> 1 | BC174: 3:2 (1:0, 2:1, 0:1) | BD174: 3 | BE174: 2 | BF174: =BD174+BE174 -> 5 | BG174: =IF(AND(BD174>BE174),1,IF(AND(BD174<BE174),2,IF(AND(BD174=BE174),3))) -> 1
A175: 173 | B175: 3 | C175: Колумбус Блю Джекетс | E175: 1 | F175: 4 | G175: 2 | H175: 6 | I175: 6 | J175: 4 | K175: 4 | L175: 6 | M175: =IF(E175>F175,1,0) -> 0 | N175: =IF(G175>H175,1,0) -> 0 | O175: =IF(I175>J175,1,0) -> 1 | P175: =IF(K175>L175,1,0) -> 0 | Q175: =SUM(M175:P175)+1 -> 2 | R175: =(E175+G175+I175+K175)/4 -> 3.25 | S175: =(F175+H175+J175+L175)/4 -> 5 | T175: =R175-S175 -> -1.75 | U175: Питтсбург Пингвинз | W175: 6 | X175: 1 | Y175: 1 | Z175: 4 | AA175: 3 | AB175: 2 | AC175: 5 | AD175: 1 | AE175: =IF(W175>X175,1,0) -> 1 | AF175: =IF(Y175>Z175,1,0) -> 0 | AG175: =IF(AA175>AB175,1,0) -> 1 | AH175: =IF(AC175>AD175,1,0) -> 1 | AI175: =SUM(AE175:AH175) -> 3 | AJ175: =(W175+Y175+AA175+AC175)/4 -> 3.75 | AK175: =(X175+Z175+AB175+AD175)/4 -> 2 | AL175: =AJ175-AK175 -> 1.75 | AM175: =R175+AJ175 -> 7 | AN175: =S175+AK175 -> 7 | AO175: =(R175+AK175)/2+(Q175/10)-0.5 -> 2.325 | AP175: =(S175+AJ175)/2 -> 4.375 | AQ175: =AO175+AP175 -> 6.7 | AR175: =IF(AQ175>=[1]Пременные!B149+[1]Пременные!G149,5) -> 5 | AS175: =IF(AQ175<[1]Пременные!B149+[1]Пременные!J149,5.5,0) -> 0 | AT175: =IF(BJ175=1,AR175,100) -> 100 | AU175: =IF(AR175=5,1,0) -> 1 | AV175: =IF(AT175=5,1,0) -> 0 | AW175: =IF(BJ175=1,AS175,0) -> 0 | AX175: =IF(AS175=5.5,1,0) -> 0 | AY175: =IF(AW175=5.5,1,0) -> 0 | AZ175: =IF(BF175>=AR175,1,0) -> 1 | BA175: =IF(BF175<AS175,1,0) -> 0 | BB175: =AZ175+BA175 -> 1 | BC175: 3:4 Б | BD175: 3 | BE175: 3 | BF175: =BD175+BE175 -> 6 | BG175: =IF(AND(BD175>BE175),1,IF(AND(BD175<BE175),2,IF(AND(BD175=BE175),3))) -> 3
A176: 174 | B176: 1 | C176: Вашингтон Кэпиталз | E176: 4 | F176: 3 | G176: 4 | H176: 2 | I176: 3 | J176: 2 | K176: 5 | L176: 4 | M176: =IF(E176>F176,1,0) -> 1 | N176: =IF(G176>H176,1,0) -> 1 | O176: =IF(I176>J176,1,0) -> 1 | P176: =IF(K176>L176,1,0) -> 1 | Q176: =SUM(M176:P176)+1 -> 5 | R176: =(E176+G176+I176+K176)/4 -> 4 | S176: =(F176+H176+J176+L176)/4 -> 2.75 | T176: =R176-S176 -> 1.25 | U176: Нью-Йорк Айлендерс | W176: 3 | X176: 1 | Y176: 2 | Z176: 3 | AA176: 2 | AB176: 3 | AC176: 1 | AD176: 5 | AE176: =IF(W176>X176,1,0) -> 1 | AF176: =IF(Y176>Z176,1,0) -> 0 | AG176: =IF(AA176>AB176,1,0) -> 0 | AH176: =IF(AC176>AD176,1,0) -> 0 | AI176: =SUM(AE176:AH176) -> 1 | AJ176: =(W176+Y176+AA176+AC176)/4 -> 2 | AK176: =(X176+Z176+AB176+AD176)/4 -> 3 | AL176: =AJ176-AK176 -> -1 | AM176: =R176+AJ176 -> 6 | AN176: =S176+AK176 -> 5.75 | AO176: =(R176+AK176)/2+(Q176/10)-0.5 -> 3.5 | AP176: =(S176+AJ176)/2 -> 2.375 | AQ176: =AO176+AP176 -> 5.875 | AR176: =IF(AQ176>=[1]Пременные!B150+[1]Пременные!G150,5) -> 5 | AS176: =IF(AQ176<[1]Пременные!B150+[1]Пременные!J150,5.5,0) -> 0 | AT176: =IF(BJ176=1,AR176,100) -> 100 | AU176: =IF(AR176=5,1,0) -> 1 | AV176: =IF(AT176=5,1,0) -> 0 | AW176: =IF(BJ176=1,AS176,0) -> 0 | AX176: =IF(AS176=5.5,1,0) -> 0 | AY176: =IF(AW176=5.5,1,0) -> 0 | AZ176: =IF(BF176>=AR176,1,0) -> 1 | BA176: =IF(BF176<AS176,1,0) -> 0 | BB176: =AZ176+BA176 -> 1 | BC176: 3:4 ОТ | BD176: 3 | BE176: 3 | BF176: =BD176+BE176 -> 6 | BG176: =IF(AND(BD176>BE176),1,IF(AND(BD176<BE176),2,IF(AND(BD176=BE176),3))) -> 3
A177: 175 | B177: 2 | C177: Анахайм Дакс | E177: 3 | F177: 6 | G177: 4 | H177: 6 | I177: 2 | J177: 4 | K177: 0 | L177: 5 | M177: =IF(E177>F177,1,0) -> 0 | N177: =IF(G177>H177,1,0) -> 0 | O177: =IF(I177>J177,1,0) -> 0 | P177: =IF(K177>L177,1,0) -> 0 | Q177: =SUM(M177:P177)+1 -> 1 | R177: =(E177+G177+I177+K177)/4 -> 2.25 | S177: =(F177+H177+J177+L177)/4 -> 5.25 | T177: =R177-S177 -> -3 | U177: Ванкувер Кэнакс | W177: 2 | X177: 1 | Y177: 4 | Z177: 5 | AA177: 2 | AB177: 0 | AC177: 3 | AD177: 1 | AE177: =IF(W177>X177,1,0) -> 1 | AF177: =IF(Y177>Z177,1,0) -> 0 | AG177: =IF(AA177>AB177,1,0) -> 1 | AH177: =IF(AC177>AD177,1,0) -> 1 | AI177: =SUM(AE177:AH177) -> 3 | AJ177: =(W177+Y177+AA177+AC177)/4 -> 2.75 | AK177: =(X177+Z177+AB177+AD177)/4 -> 1.75 | AL177: =AJ177-AK177 -> 1 | AM177: =R177+AJ177 -> 5 | AN177: =S177+AK177 -> 7 | AO177: =(R177+AK177)/2+(Q177/10)-0.5 -> 1.6 | AP177: =(S177+AJ177)/2 -> 4 | AQ177: =AO177+AP177 -> 5.6 | AR177: =IF(AQ177>=[1]Пременные!B151+[1]Пременные!G151,5) -> 5 | AS177: =IF(AQ177<[1]Пременные!B151+[1]Пременные!J151,5.5,0) -> 0 | AT177: =IF(BJ177=1,AR177,100) -> 100 | AU177: =IF(AR177=5,1,0) -> 1 | AV177: =IF(AT177=5,1,0) -> 0 | AW177: =IF(BJ177=1,AS177,0) -> 0 | AX177: =IF(AS177=5.5,1,0) -> 0 | AY177: =IF(AW177=5.5,1,0) -> 0 | AZ177: =IF(BF177>=AR177,1,0) -> 1 | BA177: =IF(BF177<AS177,1,0) -> 0 | BB177: =AZ177+BA177 -> 1 | BC177: 7:2 (1:2, 3:0, 3:0) | BD177: 7 | BE177: 2 | BF177: =BD177+BE177 -> 9 | BG177: =IF(AND(BD177>BE177),1,IF(AND(BD177<BE177),2,IF(AND(BD177=BE177),3))) -> 1
A178: 176 | B178: 3 | C178: Даллас Старз | E178: 4 | F178: 3 | G178: 4 | H178: 1 | I178: 4 | J178: 5 | K178: 4 | L178: 2 | M178: =IF(E178>F178,1,0) -> 1 | N178: =IF(G178>H178,1,0) -> 1 | O178: =IF(I178>J178,1,0) -> 0 | P178: =IF(K178>L178,1,0) -> 1 | Q178: =SUM(M178:P178)+1 -> 4 | R178: =(E178+G178+I178+K178)/4 -> 4 | S178: =(F178+H178+J178+L178)/4 -> 2.75 | T178: =R178-S178 -> 1.25 | U178: Флорида Пантерз | W178: 3 | X178: 4 | Y178: 1 | Z178: 5 | AA178: 2 | AB178: 3 | AC178: 2 | AD178: 5 | AE178: =IF(W178>X178,1,0) -> 0 | AF178: =IF(Y178>Z178,1,0) -> 0 | AG178: =IF(AA178>AB178,1,0) -> 0 | AH178: =IF(AC178>AD178,1,0) -> 0 | AI178: =SUM(AE178:AH178) -> 0 | AJ178: =(W178+Y178+AA178+AC178)/4 -> 2 | AK178: =(X178+Z178+AB178+AD178)/4 -> 4.25 | AL178: =AJ178-AK178 -> -2.25 | AM178: =R178+AJ178 -> 6 | AN178: =S178+AK178 -> 7 | AO178: =(R178+AK178)/2+(Q178/10)-0.5 -> 4.025 | AP178: =(S178+AJ178)/2 -> 2.375 | AQ178: =AO178+AP178 -> 6.4 | AR178: =IF(AQ178>=[1]Пременные!B152+[1]Пременные!G152,5) -> 5 | AS178: =IF(AQ178<[1]Пременные!B152+[1]Пременные!J152,5.5,0) -> 0 | AT178: =IF(BJ178=1,AR178,100) -> 100 | AU178: =IF(AR178=5,1,0) -> 1 | AV178: =IF(AT178=5,1,0) -> 0 | AW178: =IF(BJ178=1,AS178,0) -> 0 | AX178: =IF(AS178=5.5,1,0) -> 0 | AY178: =IF(AW178=5.5,1,0) -> 0 | AZ178: =IF(BF178>=AR178,1,0) -> 1 | BA178: =IF(BF178<AS178,1,0) -> 0 | BB178: =AZ178+BA178 -> 1 | BC178: 5:6 Б | BD178: 5 | BE178: 5 | BF178: =BD178+BE178 -> 10 | BG178: =IF(AND(BD178>BE178),1,IF(AND(BD178<BE178),2,IF(AND(BD178=BE178),3))) -> 3
A179: 177 | B179: 1 | C179: Баффало Сейбрз | E179: 4 | F179: 1 | G179: 3 | H179: 2 | I179: 5 | J179: 2 | K179: 2 | L179: 4 | M179: =IF(E179>F179,1,0) -> 1 | N179: =IF(G179>H179,1,0) -> 1 | O179: =IF(I179>J179,1,0) -> 1 | P179: =IF(K179>L179,1,0) -> 0 | Q179: =SUM(M179:P179)+1 -> 4 | R179: =(E179+G179+I179+K179)/4 -> 3.5 | S179: =(F179+H179+J179+L179)/4 -> 2.25 | T179: =R179-S179 -> 1.25 | U179: Торонто Мейпл Лифс | W179: 3 | X179: 4 | Y179: 6 | Z179: 3 | AA179: 1 | AB179: 3 | AC179: 1 | AD179: 4 | AE179: =IF(W179>X179,1,0) -> 0 | AF179: =IF(Y179>Z179,1,0) -> 1 | AG179: =IF(AA179>AB179,1,0) -> 0 | AH179: =IF(AC179>AD179,1,0) -> 0 | AI179: =SUM(AE179:AH179) -> 1 | AJ179: =(W179+Y179+AA179+AC179)/4 -> 2.75 | AK179: =(X179+Z179+AB179+AD179)/4 -> 3.5 | AL179: =AJ179-AK179 -> -0.75 | AM179: =R179+AJ179 -> 6.25 | AN179: =S179+AK179 -> 5.75 | AO179: =(R179+AK179)/2+(Q179/10)-0.5 -> 3.4 | AP179: =(S179+AJ179)/2 -> 2.5 | AQ179: =AO179+AP179 -> 5.9 | AR179: =IF(AQ179>=[1]Пременные!B153+[1]Пременные!G153,5) -> 5 | AS179: =IF(AQ179<[1]Пременные!B153+[1]Пременные!J153,5.5,0) -> 0 | AT179: =IF(BJ179=1,AR179,100) -> 100 | AU179: =IF(AR179=5,1,0) -> 1 | AV179: =IF(AT179=5,1,0) -> 0 | AW179: =IF(BJ179=1,AS179,0) -> 0 | AX179: =IF(AS179=5.5,1,0) -> 0 | AY179: =IF(AW179=5.5,1,0) -> 0 | AZ179: =IF(BF179>=AR179,1,0) -> 0 | BA179: =IF(BF179<AS179,1,0) -> 0 | BB179: =AZ179+BA179 -> 0 | BC179: 3:2 ОТ | BD179: 2 | BE179: 2 | BF179: =BD179+BE179 -> 4 | BG179: =IF(AND(BD179>BE179),1,IF(AND(BD179<BE179),2,IF(AND(BD179=BE179),3))) -> 3
A180: 178 | B180: 2 | C180: Чикаго Блэкхокс | E180: 0 | F180: 2 | G180: 3 | H180: 1 | I180: 2 | J180: 0 | K180: 2 | L180: 3 | M180: =IF(E180>F180,1,0) -> 0 | N180: =IF(G180>H180,1,0) -> 1 | O180: =IF(I180>J180,1,0) -> 1 | P180: =IF(K180>L180,1,0) -> 0 | Q180: =SUM(M180:P180)+1 -> 3 | R180: =(E180+G180+I180+K180)/4 -> 1.75 | S180: =(F180+H180+J180+L180)/4 -> 1.5 | T180: =R180-S180 -> 0.25 | U180: Монреаль Канадиенс | W180: 1 | X180: 6 | Y180: 3 | Z180: 2 | AA180: 5 | AB180: 4 | AC180: 5 | AD180: 1 | AE180: =IF(W180>X180,1,0) -> 0 | AF180: =IF(Y180>Z180,1,0) -> 1 | AG180: =IF(AA180>AB180,1,0) -> 1 | AH180: =IF(AC180>AD180,1,0) -> 1 | AI180: =SUM(AE180:AH180) -> 3 | AJ180: =(W180+Y180+AA180+AC180)/4 -> 3.5 | AK180: =(X180+Z180+AB180+AD180)/4 -> 3.25 | AL180: =AJ180-AK180 -> 0.25 | AM180: =R180+AJ180 -> 5.25 | AN180: =S180+AK180 -> 4.75 | AO180: =(R180+AK180)/2+(Q180/10)-0.5 -> 2.3 | AP180: =(S180+AJ180)/2 -> 2.5 | AQ180: =AO180+AP180 -> 4.8 | AR180: =IF(AQ180>=[1]Пременные!B154+[1]Пременные!G154,5) -> FALSE | AS180: =IF(AQ180<[1]Пременные!B154+[1]Пременные!J154,5.5,0) -> 5.5 | AT180: =IF(BJ180=1,AR180,100) -> 100 | AU180: =IF(AR180=5,1,0) -> 0 | AV180: =IF(AT180=5,1,0) -> 0 | AW180: =IF(BJ180=1,AS180,0) -> 0 | AX180: =IF(AS180=5.5,1,0) -> 1 | AY180: =IF(AW180=5.5,1,0) -> 0 | AZ180: =IF(BF180>=AR180,1,0) -> 0 | BA180: =IF(BF180<AS180,1,0) -> 1 | BB180: =AZ180+BA180 -> 1 | BC180: 3:2 (1:0, 1:2, 1:0) | BD180: 3 | BE180: 2 | BF180: =BD180+BE180 -> 5 | BG180: =IF(AND(BD180>BE180),1,IF(AND(BD180<BE180),2,IF(AND(BD180=BE180),3))) -> 1
A181: 179 | B181: 3 | C181: Сан-Хосе Шаркс | E181: 2 | F181: 1 | G181: 4 | H181: 1 | I181: 4 | J181: 3 | K181: 2 | L181: 5 | M181: =IF(E181>F181,1,0) -> 1 | N181: =IF(G181>H181,1,0) -> 1 | O181: =IF(I181>J181,1,0) -> 1 | P181: =IF(K181>L181,1,0) -> 0 | Q181: =SUM(M181:P181)+1 -> 4 | R181: =(E181+G181+I181+K181)/4 -> 3 | S181: =(F181+H181+J181+L181)/4 -> 2.5 | T181: =R181-S181 -> 0.5 | U181: Колорадо Эвеланш | W181: 3 | X181: 2 | Y181: 3 | Z181: 0 | AA181: 3 | AB181: 1 | AC181: 5 | AD181: 4 | AE181: =IF(W181>X181,1,0) -> 1 | AF181: =IF(Y181>Z181,1,0) -> 1 | AG181: =IF(AA181>AB181,1,0) -> 1 | AH181: =IF(AC181>AD181,1,0) -> 1 | AI181: =SUM(AE181:AH181) -> 4 | AJ181: =(W181+Y181+AA181+AC181)/4 -> 3.5 | AK181: =(X181+Z181+AB181+AD181)/4 -> 1.75 | AL181: =AJ181-AK181 -> 1.75 | AM181: =R181+AJ181 -> 6.5 | AN181: =S181+AK181 -> 4.25 | AO181: =(R181+AK181)/2+(Q181/10)-0.5 -> 2.275 | AP181: =(S181+AJ181)/2 -> 3 | AQ181: =AO181+AP181 -> 5.275 | AR181: =IF(AQ181>=[1]Пременные!B155+[1]Пременные!G155,5) -> 5 | AS181: =IF(AQ181<[1]Пременные!B155+[1]Пременные!J155,5.5,0) -> 0 | AT181: =IF(BJ181=1,AR181,100) -> 100 | AU181: =IF(AR181=5,1,0) -> 1 | AV181: =IF(AT181=5,1,0) -> 0 | AW181: =IF(BJ181=1,AS181,0) -> 0 | AX181: =IF(AS181=5.5,1,0) -> 0 | AY181: =IF(AW181=5.5,1,0) -> 0 | AZ181: =IF(BF181>=AR181,1,0) -> 0 | BA181: =IF(BF181<AS181,1,0) -> 0 | BB181: =AZ181+BA181 -> 0 | BC181: 3:1 (0:0, 1:0, 2:1) | BD181: 3 | BE181: 1 | BF181: =BD181+BE181 -> 4 | BG181: =IF(AND(BD181>BE181),1,IF(AND(BD181<BE181),2,IF(AND(BD181=BE181),3))) -> 1
A182: 180 | B182: 1 | C182: Филадельфия Флайерз | E182: 2 | F182: 4 | G182: 1 | H182: 4 | I182: 5 | J182: 1 | K182: 4 | L182: 3 | M182: =IF(E182>F182,1,0) -> 0 | N182: =IF(G182>H182,1,0) -> 0 | O182: =IF(I182>J182,1,0) -> 1 | P182: =IF(K182>L182,1,0) -> 1 | Q182: =SUM(M182:P182)+1 -> 3 | R182: =(E182+G182+I182+K182)/4 -> 3 | S182: =(F182+H182+J182+L182)/4 -> 3 | T182: =R182-S182 -> 0 | U182: Каролина Харрикейнз | W182: 2 | X182: 5 | Y182: 2 | Z182: 3 | AA182: 4 | AB182: 5 | AC182: 3 | AD182: 4 | AE182: =IF(W182>X182,1,0) -> 0 | AF182: =IF(Y182>Z182,1,0) -> 0 | AG182: =IF(AA182>AB182,1,0) -> 0 | AH182: =IF(AC182>AD182,1,0) -> 0 | AI182: =SUM(AE182:AH182) -> 0 | AJ182: =(W182+Y182+AA182+AC182)/4 -> 2.75 | AK182: =(X182+Z182+AB182+AD182)/4 -> 4.25 | AL182: =AJ182-AK182 -> -1.5 | AM182: =R182+AJ182 -> 5.75 | AN182: =S182+AK182 -> 7.25 | AO182: =(R182+AK182)/2+(Q182/10)-0.5 -> 3.425 | AP182: =(S182+AJ182)/2 -> 2.875 | AQ182: =AO182+AP182 -> 6.3 | AR182: =IF(AQ182>=[1]Пременные!B156+[1]Пременные!G156,5) -> 5 | AS182: =IF(AQ182<[1]Пременные!B156+[1]Пременные!J156,5.5,0) -> 0 | AT182: =IF(BJ182=1,AR182,100) -> 100 | AU182: =IF(AR182=5,1,0) -> 1 | AV182: =IF(AT182=5,1,0) -> 0 | AW182: =IF(BJ182=1,AS182,0) -> 0 | AX182: =IF(AS182=5.5,1,0) -> 0 | AY182: =IF(AW182=5.5,1,0) -> 0 | AZ182: =IF(BF182>=AR182,1,0) -> 1 | BA182: =IF(BF182<AS182,1,0) -> 0 | BB182: =AZ182+BA182 -> 1 | BC182: 6:1 (3:0, 1:1, 2:0) | BD182: 6 | BE182: 1 | BF182: =BD182+BE182 -> 7 | BG182: =IF(AND(BD182>BE182),1,IF(AND(BD182<BE182),2,IF(AND(BD182=BE182),3))) -> 1
A183: 181 | B183: 2 | C183: Бостон Брюинз | E183: 1 | F183: 2 | G183: 4 | H183: 3 | I183: 3 | J183: 4 | K183: 3 | L183: 2 | M183: =IF(E183>F183,1,0) -> 0 | N183: =IF(G183>H183,1,0) -> 1 | O183: =IF(I183>J183,1,0) -> 0 | P183: =IF(K183>L183,1,0) -> 1 | Q183: =SUM(M183:P183)+1 -> 3 | R183: =(E183+G183+I183+K183)/4 -> 2.75 | S183: =(F183+H183+J183+L183)/4 -> 2.75 | T183: =R183-S183 -> 0 | U183: Эдмонтон Ойлерз | W183: 6 | X183: 5 | Y183: 0 | Z183: 3 | AA183: 0 | AB183: 2 | AC183: 2 | AD183: 5 | AE183: =IF(W183>X183,1,0) -> 1 | AF183: =IF(Y183>Z183,1,0) -> 0 | AG183: =IF(AA183>AB183,1,0) -> 0 | AH183: =IF(AC183>AD183,1,0) -> 0 | AI183: =SUM(AE183:AH183) -> 1 | AJ183: =(W183+Y183+AA183+AC183)/4 -> 2 | AK183: =(X183+Z183+AB183+AD183)/4 -> 3.75 | AL183: =AJ183-AK183 -> -1.75 | AM183: =R183+AJ183 -> 4.75 | AN183: =S183+AK183 -> 6.5 | AO183: =(R183+AK183)/2+(Q183/10)-0.5 -> 3.05 | AP183: =(S183+AJ183)/2 -> 2.375 | AQ183: =AO183+AP183 -> 5.425 | AR183: =IF(AQ183>=[1]Пременные!B157+[1]Пременные!G157,5) -> 5 | AS183: =IF(AQ183<[1]Пременные!B157+[1]Пременные!J157,5.5,0) -> 0 | AT183: =IF(BJ183=1,AR183,100) -> 100 | AU183: =IF(AR183=5,1,0) -> 1 | AV183: =IF(AT183=5,1,0) -> 0 | AW183: =IF(BJ183=1,AS183,0) -> 0 | AX183: =IF(AS183=5.5,1,0) -> 0 | AY183: =IF(AW183=5.5,1,0) -> 0 | AZ183: =IF(BF183>=AR183,1,0) -> 0 | BA183: =IF(BF183<AS183,1,0) -> 0 | BB183: =AZ183+BA183 -> 0 | BC183: 2:0 (0:0, 0:0, 2:0) | BD183: 2 | BE183: 0 | BF183: =BD183+BE183 -> 2 | BG183: =IF(AND(BD183>BE183),1,IF(AND(BD183<BE183),2,IF(AND(BD183=BE183),3))) -> 1
A184: 182 | B184: 3 | C184: Оттава Сенаторз | E184: 2 | F184: 5 | G184: 4 | H184: 3 | I184: 3 | J184: 4 | K184: 5 | L184: 6 | M184: =IF(E184>F184,1,0) -> 0 | N184: =IF(G184>H184,1,0) -> 1 | O184: =IF(I184>J184,1,0) -> 0 | P184: =IF(K184>L184,1,0) -> 0 | Q184: =SUM(M184:P184)+1 -> 2 | R184: =(E184+G184+I184+K184)/4 -> 3.5 | S184: =(F184+H184+J184+L184)/4 -> 4.5 | T184: =R184-S184 -> -1 | U184: Атланта Трэшерз | W184: 3 | X184: 4 | Y184: 3 | Z184: 4 | AA184: 4 | AB184: 5 | AC184: 1 | AD184: 2 | AE184: =IF(W184>X184,1,0) -> 0 | AF184: =IF(Y184>Z184,1,0) -> 0 | AG184: =IF(AA184>AB184,1,0) -> 0 | AH184: =IF(AC184>AD184,1,0) -> 0 | AI184: =SUM(AE184:AH184) -> 0 | AJ184: =(W184+Y184+AA184+AC184)/4 -> 2.75 | AK184: =(X184+Z184+AB184+AD184)/4 -> 3.75 | AL184: =AJ184-AK184 -> -1 | AM184: =R184+AJ184 -> 6.25 | AN184: =S184+AK184 -> 8.25 | AO184: =(R184+AK184)/2+(Q184/10)-0.5 -> 3.325 | AP184: =(S184+AJ184)/2 -> 3.625 | AQ184: =AO184+AP184 -> 6.95 | AR184: =IF(AQ184>=[1]Пременные!B158+[1]Пременные!G158,5) -> 5 | AS184: =IF(AQ184<[1]Пременные!B158+[1]Пременные!J158,5.5,0) -> 0 | AT184: =IF(BJ184=1,AR184,100) -> 100 | AU184: =IF(AR184=5,1,0) -> 1 | AV184: =IF(AT184=5,1,0) -> 0 | AW184: =IF(BJ184=1,AS184,0) -> 0 | AX184: =IF(AS184=5.5,1,0) -> 0 | AY184: =IF(AW184=5.5,1,0) -> 0 | AZ184: =IF(BF184>=AR184,1,0) -> 0 | BA184: =IF(BF184<AS184,1,0) -> 0 | BB184: =AZ184+BA184 -> 0 | BC184: 1:3 (0:1, 0:1, 1:1) | BD184: 1 | BE184: 3 | BF184: =BD184+BE184 -> 4 | BG184: =IF(AND(BD184>BE184),1,IF(AND(BD184<BE184),2,IF(AND(BD184=BE184),3))) -> 2
A185: 183 | B185: 1 | C185: Тампа Бэй Лайтнинг | E185: 5 | F185: 2 | G185: 2 | H185: 3 | I185: 5 | J185: 2 | K185: 1 | L185: 4 | M185: =IF(E185>F185,1,0) -> 1 | N185: =IF(G185>H185,1,0) -> 0 | O185: =IF(I185>J185,1,0) -> 1 | P185: =IF(K185>L185,1,0) -> 0 | Q185: =SUM(M185:P185)+1 -> 3 | R185: =(E185+G185+I185+K185)/4 -> 3.25 | S185: =(F185+H185+J185+L185)/4 -> 2.75 | T185: =R185-S185 -> 0.5 | U185: Нью-Джерси Девилз | W185: 2 | X185: 1 | Y185: 1 | Z185: 4 | AA185: 4 | AB185: 1 | AC185: 4 | AD185: 2 | AE185: =IF(W185>X185,1,0) -> 1 | AF185: =IF(Y185>Z185,1,0) -> 0 | AG185: =IF(AA185>AB185,1,0) -> 1 | AH185: =IF(AC185>AD185,1,0) -> 1 | AI185: =SUM(AE185:AH185) -> 3 | AJ185: =(W185+Y185+AA185+AC185)/4 -> 2.75 | AK185: =(X185+Z185+AB185+AD185)/4 -> 2 | AL185: =AJ185-AK185 -> 0.75 | AM185: =R185+AJ185 -> 6 | AN185: =S185+AK185 -> 4.75 | AO185: =(R185+AK185)/2+(Q185/10)-0.5 -> 2.425 | AP185: =(S185+AJ185)/2 -> 2.75 | AQ185: =AO185+AP185 -> 5.175 | AR185: =IF(AQ185>=[1]Пременные!B159+[1]Пременные!G159,5) -> 5 | AS185: =IF(AQ185<[1]Пременные!B159+[1]Пременные!J159,5.5,0) -> 0 | AT185: =IF(BJ185=1,AR185,100) -> 100 | AU185: =IF(AR185=5,1,0) -> 1 | AV185: =IF(AT185=5,1,0) -> 0 | AW185: =IF(BJ185=1,AS185,0) -> 0 | AX185: =IF(AS185=5.5,1,0) -> 0 | AY185: =IF(AW185=5.5,1,0) -> 0 | AZ185: =IF(BF185>=AR185,1,0) -> 0 | BA185: =IF(BF185<AS185,1,0) -> 0 | BB185: =AZ185+BA185 -> 0 | BC185: 1:2 ОТ | BD185: 1 | BE185: 1 | BF185: =BD185+BE185 -> 2 | BG185: =IF(AND(BD185>BE185),1,IF(AND(BD185<BE185),2,IF(AND(BD185=BE185),3))) -> 3
A186: 184 | B186: 2 | C186: Финикс Койотс | E186: 2 | F186: 0 | G186: 4 | H186: 1 | I186: 2 | J186: 5 | K186: 3 | L186: 5 | M186: =IF(E186>F186,1,0) -> 1 | N186: =IF(G186>H186,1,0) -> 1 | O186: =IF(I186>J186,1,0) -> 0 | P186: =IF(K186>L186,1,0) -> 0 | Q186: =SUM(M186:P186)+1 -> 3 | R186: =(E186+G186+I186+K186)/4 -> 2.75 | S186: =(F186+H186+J186+L186)/4 -> 2.75 | T186: =R186-S186 -> 0 | U186: Анахайм Дакс | W186: 7 | X186: 2 | Y186: 3 | Z186: 6 | AA186: 4 | AB186: 6 | AC186: 2 | AD186: 4 | AE186: =IF(W186>X186,1,0) -> 1 | AF186: =IF(Y186>Z186,1,0) -> 0 | AG186: =IF(AA186>AB186,1,0) -> 0 | AH186: =IF(AC186>AD186,1,0) -> 0 | AI186: =SUM(AE186:AH186) -> 1 | AJ186: =(W186+Y186+AA186+AC186)/4 -> 4 | AK186: =(X186+Z186+AB186+AD186)/4 -> 4.5 | AL186: =AJ186-AK186 -> -0.5 | AM186: =R186+AJ186 -> 6.75 | AN186: =S186+AK186 -> 7.25 | AO186: =(R186+AK186)/2+(Q186/10)-0.5 -> 3.425 | AP186: =(S186+AJ186)/2 -> 3.375 | AQ186: =AO186+AP186 -> 6.8 | AR186: =IF(AQ186>=[1]Пременные!B160+[1]Пременные!G160,5) -> 5 | AS186: =IF(AQ186<[1]Пременные!B160+[1]Пременные!J160,5.5,0) -> 0 | AT186: =IF(BJ186=1,AR186,100) -> 100 | AU186: =IF(AR186=5,1,0) -> 1 | AV186: =IF(AT186=5,1,0) -> 0 | AW186: =IF(BJ186=1,AS186,0) -> 0 | AX186: =IF(AS186=5.5,1,0) -> 0 | AY186: =IF(AW186=5.5,1,0) -> 0 | AZ186: =IF(BF186>=AR186,1,0) -> 0 | BA186: =IF(BF186<AS186,1,0) -> 0 | BB186: =AZ186+BA186 -> 0 | BC186: 3:2 Б | BD186: 2 | BE186: 2 | BF186: =BD186+BE186 -> 4 | BG186: =IF(AND(BD186>BE186),1,IF(AND(BD186<BE186),2,IF(AND(BD186=BE186),3))) -> 3
A187: 185 | B187: 3 | C187: Нью-Йорк Айлендерс | E187: 4 | F187: 3 | G187: 3 | H187: 1 | I187: 2 | J187: 3 | K187: 2 | L187: 3 | M187: =IF(E187>F187,1,0) -> 1 | N187: =IF(G187>H187,1,0) -> 1 | O187: =IF(I187>J187,1,0) -> 0 | P187: =IF(K187>L187,1,0) -> 0 | Q187: =SUM(M187:P187)+1 -> 3 | R187: =(E187+G187+I187+K187)/4 -> 2.75 | S187: =(F187+H187+J187+L187)/4 -> 2.5 | T187: =R187-S187 -> 0.25 | U187: Баффало Сейбрз | W187: 3 | X187: 2 | Y187: 4 | Z187: 1 | AA187: 3 | AB187: 2 | AC187: 5 | AD187: 2 | AE187: =IF(W187>X187,1,0) -> 1 | AF187: =IF(Y187>Z187,1,0) -> 1 | AG187: =IF(AA187>AB187,1,0) -> 1 | AH187: =IF(AC187>AD187,1,0) -> 1 | AI187: =SUM(AE187:AH187) -> 4 | AJ187: =(W187+Y187+AA187+AC187)/4 -> 3.75 | AK187: =(X187+Z187+AB187+AD187)/4 -> 1.75 | AL187: =AJ187-AK187 -> 2 | AM187: =R187+AJ187 -> 6.5 | AN187: =S187+AK187 -> 4.25 | AO187: =(R187+AK187)/2+(Q187/10)-0.5 -> 2.05 | AP187: =(S187+AJ187)/2 -> 3.125 | AQ187: =AO187+AP187 -> 5.175 | AR187: =IF(AQ187>=[1]Пременные!B161+[1]Пременные!G161,5) -> 5 | AS187: =IF(AQ187<[1]Пременные!B161+[1]Пременные!J161,5.5,0) -> 0 | AT187: =IF(BJ187=1,AR187,100) -> 100 | AU187: =IF(AR187=5,1,0) -> 1 | AV187: =IF(AT187=5,1,0) -> 0 | AW187: =IF(BJ187=1,AS187,0) -> 0 | AX187: =IF(AS187=5.5,1,0) -> 0 | AY187: =IF(AW187=5.5,1,0) -> 0 | AZ187: =IF(BF187>=AR187,1,0) -> 1 | BA187: =IF(BF187<AS187,1,0) -> 0 | BB187: =AZ187+BA187 -> 1 | BC187: 5:0 (1:0, 3:0, 1:0) | BD187: 5 | BE187: 0 | BF187: =BD187+BE187 -> 5 | BG187: =IF(AND(BD187>BE187),1,IF(AND(BD187<BE187),2,IF(AND(BD187=BE187),3))) -> 1
A188: 186 | B188: 1 | C188: Сент-Луис Блюз | E188: 0 | F188: 2 | G188: 5 | H188: 2 | I188: 1 | J188: 4 | K188: 3 | L188: 1 | M188: =IF(E188>F188,1,0) -> 0 | N188: =IF(G188>H188,1,0) -> 1 | O188: =IF(I188>J188,1,0) -> 0 | P188: =IF(K188>L188,1,0) -> 1 | Q188: =SUM(M188:P188)+1 -> 3 | R188: =(E188+G188+I188+K188)/4 -> 2.25 | S188: =(F188+H188+J188+L188)/4 -> 2.25 | T188: =R188-S188 -> 0 | U188: Флорида Пантерз | W188: 6 | X188: 5 | Y188: 3 | Z188: 4 | AA188: 1 | AB188: 5 | AC188: 2 | AD188: 3 | AE188: =IF(W188>X188,1,0) -> 1 | AF188: =IF(Y188>Z188,1,0) -> 0 | AG188: =IF(AA188>AB188,1,0) -> 0 | AH188: =IF(AC188>AD188,1,0) -> 0 | AI188: =SUM(AE188:AH188) -> 1 | AJ188: =(W188+Y188+AA188+AC188)/4 -> 3 | AK188: =(X188+Z188+AB188+AD188)/4 -> 4.25 | AL188: =AJ188-AK188 -> -1.25 | AM188: =R188+AJ188 -> 5.25 | AN188: =S188+AK188 -> 6.5 | AO188: =(R188+AK188)/2+(Q188/10)-0.5 -> 3.05 | AP188: =(S188+AJ188)/2 -> 2.625 | AQ188: =AO188+AP188 -> 5.675 | AR188: =IF(AQ188>=[1]Пременные!B162+[1]Пременные!G162,5) -> 5 | AS188: =IF(AQ188<[1]Пременные!B162+[1]Пременные!J162,5.5,0) -> 0 | AT188: =IF(BJ188=1,AR188,100) -> 100 | AU188: =IF(AR188=5,1,0) -> 1 | AV188: =IF(AT188=5,1,0) -> 0 | AW188: =IF(BJ188=1,AS188,0) -> 0 | AX188: =IF(AS188=5.5,1,0) -> 0 | AY188: =IF(AW188=5.5,1,0) -> 0 | AZ188: =IF(BF188>=AR188,1,0) -> 0 | BA188: =IF(BF188<AS188,1,0) -> 0 | BB188: =AZ188+BA188 -> 0 | BC188: 0:4 (0:2, 0:0, 0:2) | BD188: 0 | BE188: 4 | BF188: =BD188+BE188 -> 4 | BG188: =IF(AND(BD188>BE188),1,IF(AND(BD188<BE188),2,IF(AND(BD188=BE188),3))) -> 2
A189: 187 | B189: 2 | C189: Нэшвилл Предаторз | E189: 2 | F189: 0 | G189: 4 | H189: 3 | I189: 0 | J189: 2 | K189: 6 | L189: 5 | M189: =IF(E189>F189,1,0) -> 1 | N189: =IF(G189>H189,1,0) -> 1 | O189: =IF(I189>J189,1,0) -> 0 | P189: =IF(K189>L189,1,0) -> 1 | Q189: =SUM(M189:P189)+1 -> 4 | R189: =(E189+G189+I189+K189)/4 -> 3 | S189: =(F189+H189+J189+L189)/4 -> 2.5 | T189: =R189-S189 -> 0.5 | U189: Даллас Старз | W189: 5 | X189: 6 | Y189: 4 | Z189: 3 | AA189: 4 | AB189: 1 | AC189: 4 | AD189: 5 | AE189: =IF(W189>X189,1,0) -> 0 | AF189: =IF(Y189>Z189,1,0) -> 1 | AG189: =IF(AA189>AB189,1,0) -> 1 | AH189: =IF(AC189>AD189,1,0) -> 0 | AI189: =SUM(AE189:AH189) -> 2 | AJ189: =(W189+Y189+AA189+AC189)/4 -> 4.25 | AK189: =(X189+Z189+AB189+AD189)/4 -> 3.75 | AL189: =AJ189-AK189 -> 0.5 | AM189: =R189+AJ189 -> 7.25 | AN189: =S189+AK189 -> 6.25 | AO189: =(R189+AK189)/2+(Q189/10)-0.5 -> 3.275 | AP189: =(S189+AJ189)/2 -> 3.375 | AQ189: =AO189+AP189 -> 6.65 | AR189: =IF(AQ189>=[1]Пременные!B163+[1]Пременные!G163,5) -> 5 | AS189: =IF(AQ189<[1]Пременные!B163+[1]Пременные!J163,5.5,0) -> 0 | AT189: =IF(BJ189=1,AR189,100) -> 100 | AU189: =IF(AR189=5,1,0) -> 1 | AV189: =IF(AT189=5,1,0) -> 0 | AW189: =IF(BJ189=1,AS189,0) -> 0 | AX189: =IF(AS189=5.5,1,0) -> 0 | AY189: =IF(AW189=5.5,1,0) -> 0 | AZ189: =IF(BF189>=AR189,1,0) -> 1 | BA189: =IF(BF189<AS189,1,0) -> 0 | BB189: =AZ189+BA189 -> 1 | BC189: 4:2 (1:1, 0:1, 3:0) | BD189: 4 | BE189: 2 | BF189: =BD189+BE189 -> 6 | BG189: =IF(AND(BD189>BE189),1,IF(AND(BD189<BE189),2,IF(AND(BD189=BE189),3))) -> 1
A190: 188 | B190: 3 | C190: Монреаль Канадиенс | E190: 2 | F190: 3 | G190: 1 | H190: 6 | I190: 3 | J190: 2 | K190: 5 | L190: 4 | M190: =IF(E190>F190,1,0) -> 0 | N190: =IF(G190>H190,1,0) -> 0 | O190: =IF(I190>J190,1,0) -> 1 | P190: =IF(K190>L190,1,0) -> 1 | Q190: =SUM(M190:P190)+1 -> 3 | R190: =(E190+G190+I190+K190)/4 -> 2.75 | S190: =(F190+H190+J190+L190)/4 -> 3.75 | T190: =R190-S190 -> -1 | U190: Торонто Мейпл Лифс | W190: 2 | X190: 3 | Y190: 3 | Z190: 4 | AA190: 6 | AB190: 3 | AC190: 1 | AD190: 3 | AE190: =IF(W190>X190,1,0) -> 0 | AF190: =IF(Y190>Z190,1,0) -> 0 | AG190: =IF(AA190>AB190,1,0) -> 1 | AH190: =IF(AC190>AD190,1,0) -> 0 | AI190: =SUM(AE190:AH190) -> 1 | AJ190: =(W190+Y190+AA190+AC190)/4 -> 3 | AK190: =(X190+Z190+AB190+AD190)/4 -> 3.25 | AL190: =AJ190-AK190 -> -0.25 | AM190: =R190+AJ190 -> 5.75 | AN190: =S190+AK190 -> 7 | AO190: =(R190+AK190)/2+(Q190/10)-0.5 -> 2.8 | AP190: =(S190+AJ190)/2 -> 3.375 | AQ190: =AO190+AP190 -> 6.175 | AR190: =IF(AQ190>=[1]Пременные!B164+[1]Пременные!G164,5) -> 5 | AS190: =IF(AQ190<[1]Пременные!B164+[1]Пременные!J164,5.5,0) -> 0 | AT190: =IF(BJ190=1,AR190,100) -> 100 | AU190: =IF(AR190=5,1,0) -> 1 | AV190: =IF(AT190=5,1,0) -> 0 | AW190: =IF(BJ190=1,AS190,0) -> 0 | AX190: =IF(AS190=5.5,1,0) -> 0 | AY190: =IF(AW190=5.5,1,0) -> 0 | AZ190: =IF(BF190>=AR190,1,0) -> 1 | BA190: =IF(BF190<AS190,1,0) -> 0 | BB190: =AZ190+BA190 -> 1 | BC190: 5:4 Б | BD190: 4 | BE190: 4 | BF190: =BD190+BE190 -> 8 | BG190: =IF(AND(BD190>BE190),1,IF(AND(BD190<BE190),2,IF(AND(BD190=BE190),3))) -> 3
A191: 189 | B191: 1 | C191: Питтсбург Пингвинз | E191: 4 | F191: 3 | G191: 6 | H191: 1 | I191: 1 | J191: 4 | K191: 3 | L191: 2 | M191: =IF(E191>F191,1,0) -> 1 | N191: =IF(G191>H191,1,0) -> 1 | O191: =IF(I191>J191,1,0) -> 0 | P191: =IF(K191>L191,1,0) -> 1 | Q191: =SUM(M191:P191)+1 -> 4 | R191: =(E191+G191+I191+K191)/4 -> 3.5 | S191: =(F191+H191+J191+L191)/4 -> 2.5 | T191: =R191-S191 -> 1 | U191: Миннесота Уайлд | W191: 3 | X191: 2 | Y191: 3 | Z191: 4 | AA191: 1 | AB191: 3 | AC191: 3 | AD191: 2 | AE191: =IF(W191>X191,1,0) -> 1 | AF191: =IF(Y191>Z191,1,0) -> 0 | AG191: =IF(AA191>AB191,1,0) -> 0 | AH191: =IF(AC191>AD191,1,0) -> 1 | AI191: =SUM(AE191:AH191) -> 2 | AJ191: =(W191+Y191+AA191+AC191)/4 -> 2.5 | AK191: =(X191+Z191+AB191+AD191)/4 -> 2.75 | AL191: =AJ191-AK191 -> -0.25 | AM191: =R191+AJ191 -> 6 | AN191: =S191+AK191 -> 5.25 | AO191: =(R191+AK191)/2+(Q191/10)-0.5 -> 3.025 | AP191: =(S191+AJ191)/2 -> 2.5 | AQ191: =AO191+AP191 -> 5.525 | AR191: =IF(AQ191>=[1]Пременные!B165+[1]Пременные!G165,5) -> 5 | AS191: =IF(AQ191<[1]Пременные!B165+[1]Пременные!J165,5.5,0) -> 0 | AT191: =IF(BJ191=1,AR191,100) -> 100 | AU191: =IF(AR191=5,1,0) -> 1 | AV191: =IF(AT191=5,1,0) -> 0 | AW191: =IF(BJ191=1,AS191,0) -> 0 | AX191: =IF(AS191=5.5,1,0) -> 0 | AY191: =IF(AW191=5.5,1,0) -> 0 | AZ191: =IF(BF191>=AR191,1,0) -> 0 | BA191: =IF(BF191<AS191,1,0) -> 0 | BB191: =AZ191+BA191 -> 0 | BC191: 1:2 (1:2, 0:0, 0:0) | BD191: 1 | BE191: 2 | BF191: =BD191+BE191 -> 3 | BG191: =IF(AND(BD191>BE191),1,IF(AND(BD191<BE191),2,IF(AND(BD191=BE191),3))) -> 2
A192: 190 | B192: 2 | C192: Калгари Флэймз | E192: 2 | F192: 3 | G192: 5 | H192: 2 | I192: 6 | J192: 3 | K192: 5 | L192: 3 | M192: =IF(E192>F192,1,0) -> 0 | N192: =IF(G192>H192,1,0) -> 1 | O192: =IF(I192>J192,1,0) -> 1 | P192: =IF(K192>L192,1,0) -> 1 | Q192: =SUM(M192:P192)+1 -> 4 | R192: =(E192+G192+I192+K192)/4 -> 4.5 | S192: =(F192+H192+J192+L192)/4 -> 2.75 | T192: =R192-S192 -> 1.75 | U192: Детройт Ред Уингз | W192: 5 | X192: 6 | Y192: 5 | Z192: 4 | AA192: 1 | AB192: 3 | AC192: 2 | AD192: 3 | AE192: =IF(W192>X192,1,0) -> 0 | AF192: =IF(Y192>Z192,1,0) -> 1 | AG192: =IF(AA192>AB192,1,0) -> 0 | AH192: =IF(AC192>AD192,1,0) -> 0 | AI192: =SUM(AE192:AH192) -> 1 | AJ192: =(W192+Y192+AA192+AC192)/4 -> 3.25 | AK192: =(X192+Z192+AB192+AD192)/4 -> 4 | AL192: =AJ192-AK192 -> -0.75 | AM192: =R192+AJ192 -> 7.75 | AN192: =S192+AK192 -> 6.75 | AO192: =(R192+AK192)/2+(Q192/10)-0.5 -> 4.15 | AP192: =(S192+AJ192)/2 -> 3 | AQ192: =AO192+AP192 -> 7.15 | AR192: =IF(AQ192>=[1]Пременные!B166+[1]Пременные!G166,5) -> 5 | AS192: =IF(AQ192<[1]Пременные!B166+[1]Пременные!J166,5.5,0) -> 0 | AT192: =IF(BJ192=1,AR192,100) -> 100 | AU192: =IF(AR192=5,1,0) -> 1 | AV192: =IF(AT192=5,1,0) -> 0 | AW192: =IF(BJ192=1,AS192,0) -> 0 | AX192: =IF(AS192=5.5,1,0) -> 0 | AY192: =IF(AW192=5.5,1,0) -> 0 | AZ192: =IF(BF192>=AR192,1,0) -> 0 | BA192: =IF(BF192<AS192,1,0) -> 0 | BB192: =AZ192+BA192 -> 0 | BC192: 1:3 (0:0, 1:2, 0:1) | BD192: 1 | BE192: 3 | BF192: =BD192+BE192 -> 4 | BG192: =IF(AND(BD192>BE192),1,IF(AND(BD192<BE192),2,IF(AND(BD192=BE192),3))) -> 2
A193: 191 | B193: 3 | C193: Нью-Йорк Рейнджерс | E193: 2 | F193: 3 | G193: 1 | H193: 3 | I193: 5 | J193: 2 | K193: 4 | L193: 5 | M193: =IF(E193>F193,1,0) -> 0 | N193: =IF(G193>H193,1,0) -> 0 | O193: =IF(I193>J193,1,0) -> 1 | P193: =IF(K193>L193,1,0) -> 0 | Q193: =SUM(M193:P193)+1 -> 2 | R193: =(E193+G193+I193+K193)/4 -> 3 | S193: =(F193+H193+J193+L193)/4 -> 3.25 | T193: =R193-S193 -> -0.25 | U193: Бостон Брюинз | W193: 2 | X193: 0 | Y193: 1 | Z193: 2 | AA193: 4 | AB193: 3 | AC193: 3 | AD193: 4 | AE193: =IF(W193>X193,1,0) -> 1 | AF193: =IF(Y193>Z193,1,0) -> 0 | AG193: =IF(AA193>AB193,1,0) -> 1 | AH193: =IF(AC193>AD193,1,0) -> 0 | AI193: =SUM(AE193:AH193) -> 2 | AJ193: =(W193+Y193+AA193+AC193)/4 -> 2.5 | AK193: =(X193+Z193+AB193+AD193)/4 -> 2.25 | AL193: =AJ193-AK193 -> 0.25 | AM193: =R193+AJ193 -> 5.5 | AN193: =S193+AK193 -> 5.5 | AO193: =(R193+AK193)/2+(Q193/10)-0.5 -> 2.325 | AP193: =(S193+AJ193)/2 -> 2.875 | AQ193: =AO193+AP193 -> 5.2 | AR193: =IF(AQ193>=[1]Пременные!B167+[1]Пременные!G167,5) -> 5 | AS193: =IF(AQ193<[1]Пременные!B167+[1]Пременные!J167,5.5,0) -> 0 | AT193: =IF(BJ193=1,AR193,100) -> 100 | AU193: =IF(AR193=5,1,0) -> 1 | AV193: =IF(AT193=5,1,0) -> 0 | AW193: =IF(BJ193=1,AS193,0) -> 0 | AX193: =IF(AS193=5.5,1,0) -> 0 | AY193: =IF(AW193=5.5,1,0) -> 0 | AZ193: =IF(BF193>=AR193,1,0) -> 0 | BA193: =IF(BF193<AS193,1,0) -> 0 | BB193: =AZ193+BA193 -> 0 | BC193: 1:0 (0:0, 1:0, 0:0) | BD193: 1 | BE193: 0 | BF193: =BD193+BE193 -> 1 | BG193: =IF(AND(BD193>BE193),1,IF(AND(BD193<BE193),2,IF(AND(BD193=BE193),3))) -> 1
A194: 192 | B194: 1 | C194: Каролина Харрикейнз | E194: 1 | F194: 6 | G194: 2 | H194: 5 | I194: 2 | J194: 3 | K194: 4 | L194: 5 | M194: =IF(E194>F194,1,0) -> 0 | N194: =IF(G194>H194,1,0) -> 0 | O194: =IF(I194>J194,1,0) -> 0 | P194: =IF(K194>L194,1,0) -> 0 | Q194: =SUM(M194:P194)+1 -> 1 | R194: =(E194+G194+I194+K194)/4 -> 2.25 | S194: =(F194+H194+J194+L194)/4 -> 4.75 | T194: =R194-S194 -> -2.5 | U194: Сан-Хосе Шаркс | W194: 3 | X194: 1 | Y194: 2 | Z194: 1 | AA194: 4 | AB194: 1 | AC194: 4 | AD194: 3 | AE194: =IF(W194>X194,1,0) -> 1 | AF194: =IF(Y194>Z194,1,0) -> 1 | AG194: =IF(AA194>AB194,1,0) -> 1 | AH194: =IF(AC194>AD194,1,0) -> 1 | AI194: =SUM(AE194:AH194) -> 4 | AJ194: =(W194+Y194+AA194+AC194)/4 -> 3.25 | AK194: =(X194+Z194+AB194+AD194)/4 -> 1.5 | AL194: =AJ194-AK194 -> 1.75 | AM194: =R194+AJ194 -> 5.5 | AN194: =S194+AK194 -> 6.25 | AO194: =(R194+AK194)/2+(Q194/10)-0.5 -> 1.475 | AP194: =(S194+AJ194)/2 -> 4 | AQ194: =AO194+AP194 -> 5.475 | AR194: =IF(AQ194>=[1]Пременные!B168+[1]Пременные!G168,5) -> 5 | AS194: =IF(AQ194<[1]Пременные!B168+[1]Пременные!J168,5.5,0) -> 0 | AT194: =IF(BJ194=1,AR194,100) -> 100 | AU194: =IF(AR194=5,1,0) -> 1 | AV194: =IF(AT194=5,1,0) -> 0 | AW194: =IF(BJ194=1,AS194,0) -> 0 | AX194: =IF(AS194=5.5,1,0) -> 0 | AY194: =IF(AW194=5.5,1,0) -> 0 | AZ194: =IF(BF194>=AR194,1,0) -> 1 | BA194: =IF(BF194<AS194,1,0) -> 0 | BB194: =AZ194+BA194 -> 1 | BC194: 1:5 (0:0, 1:3, 0:2) | BD194: 1 | BE194: 5 | BF194: =BD194+BE194 -> 6 | BG194: =IF(AND(BD194>BE194),1,IF(AND(BD194<BE194),2,IF(AND(BD194=BE194),3))) -> 2
